Workbook

Sheet Update
B1: Start FY | C1: 2020 | D1: End FY | E1: 2021 | F1: # Years: | G1: =End_FY-Start_FY+1 -> 2 | H1: AURORA IN | I1: INPUT_sandbox_BP20FPgasAlt | M1: AURORA OUT | N1: OUTPUT_sandbox_BP20FPgasAlt | LLH1: 328 | LLI1: 321 | LLJ1: 328 | LLK1: 344 | LLL1: 288 | LLM1: 311 | LLN1: 304 | LLO1: 344 | LLP1: 304 | LLQ1: 344 | LLR1: 312 | LLS1: 320
E3: BP20 Final Proposal Updated Gas
B8: Fiscal Year | C8: Purchase Expense | D8: Direct Expense | E8: Pisces | F8: Capital | G8: % | H8: Credit | J8: Credit 4 RAM | K8: Purch Exp | L8: Dirc+Pis+Cap Exp | M8: Total | N8: Purch. Exp % | O8: Dir, Pis, Cap Exp %
B9: =IF(Purch_1="","",Purch_1) -> 2020 | C9: =IF(Exp_1/1000="","",Exp_1/1000) -> 89.90168169 | D9: 249.602988 | E9: 0 | F9: 47.266246 | G9: 0.223 | H9: =IF(B9="","",(SUM(C9:F9)*G9)) -> 86.2499142 | J9: =IF(H9="","",H9*-1000) -> -86249.9142 | K9: =C9*G9 -> 20.04807502 | L9: =SUM(D9,E9,F9)*(G9) -> 66.20183918 | M9: =SUM(K9:L9) -> 86.2499142 | N9: =K9/$M9 -> 0.2324416807 | O9: =L9/$M9 -> 0.7675583193
B10: =IF(Purch_2="","",Purch_2) -> 2021 | C10: =IF(Exp_2/1000="","",Exp_2/1000) -> 92.17402397 | D10: 250.03122 | E10: 0 | F10: 47.266246 | G10: 0.223 | H10: =IF(B10="","",(SUM(C10:F10)*G10)) -> 86.85214226 | J10: =IF(H10="","",H10*-1000) -> -86852.14226 | K10: =C10*G10 -> 20.55480735 | L10: =SUM(D10,E10,F10)*(G10) -> 66.29733492 | M10: =SUM(K10:L10) -> 86.85214226 | N10: =K10/$M10 -> 0.2366643679 | O10: =L10/$M10 -> 0.7633356321
B11: =IF(Purch_3="","",Purch_3) ->  | C11: =IF(Exp_3/1000="","",Exp_3/1000) ->  | D11: 258.0822254 | E11: 1.8 | F11: 29.290999 | G11: 0.223 | L11: =SUM(D11,F11)*(G11) -> 64.08422905
B12: =IF(Purch_4="","",Purch_4) ->  | C12: =IF(Exp_4/1000="","",Exp_4/1000) ->  | D12: 258.0822254 | E12: 1.8 | F12: 36.01377764 | G12: 0.223 | L12: 65.58340869
B13: =IF(Purch_5="","",Purch_5) ->  | C13: =IF(Exp_5/1000="","",Exp_5/1000) ->  | D13: 258.0822254 | E13: 1.8 | F13: 36.73765457 | G13: 0.223 | L13: 65.74483324
B14: =IF(Purch_6="","",Purch_6) ->  | C14: =IF(Exp_6/1000="","",Exp_6/1000) ->  | D14: 258.0822254 | E14: 1.8 | F14: 37.45403883 | G14: 0.223 | L14: 65.90458693
B15: =IF(Purch_7="","",Purch_7) ->  | C15: =IF(Exp_7/1000="","",Exp_7/1000) ->  | D15: 258.0822254 | E15: 1.8 | F15: 38.17690178 | G15: 0.223 | L15: 66.06578537
B16: =IF(Purch_8="","",Purch_8) ->  | C16: =IF(Exp_8/1000="","",Exp_8/1000) ->  | D16: 258.0822254 | E16: 1.8 | F16: 38.93280444 | G16: 0.223 | L16: 66.23435166
D17: 258.0822254 | E17: 1.8 | F17: 39.66084788 | G17: 0.223
D18: 258.0822254 | E18: 1.8 | F18: 40.40250573 | G18: 0.223
D19: 258.0822254 | E19: 1.8 | F19: 37.82538541 | G19: 0.223
D20: 258.0822254 | E20: 1.8 | F20: 38.55153673 | G20: 0.223
D21: 258.0822254 | E21: 1.8 | F21: 39.2904377 | G21: 0.223
A28: Fiscal Year | B28: Oct | C28: Nov | D28: Dec | E28: Jan | F28: Feb | G28: Mar | H28: Apr | I28: May | J28: Jun | K28: Jul | L28: Aug | M28: Sep | N28: Total
A29: =B9 -> 2020 | B29: =(ExpenseByItr!C3204+(SUM(Update!$D$9:$F$9)*1000)/12)*Update!$G$9 -> 9090.23671 | C29: =(ExpenseByItr!D3204+(SUM(Update!$D$9:$F$9)*1000)/12)*Update!$G$9 -> 6354.399994 | D29: =(ExpenseByItr!E3204+(SUM(Update!$D$9:$F$9)*1000)/12)*Update!$G$9 -> 8413.496695 | E29: =(ExpenseByItr!F3204+(SUM(Update!$D$9:$F$9)*1000)/12)*Update!$G$9 -> 8801.688951 | F29: =(ExpenseByItr!G3204+(SUM(Update!$D$9:$F$9)*1000)/12)*Update!$G$9 -> 7265.618401 | G29: =(ExpenseByItr!H3204+(SUM(Update!$D$9:$F$9)*1000)/12)*Update!$G$9 -> 7142.965163 | H29: =(ExpenseByItr!I3204+(SUM(Update!$D$9:$F$9)*1000)/12)*Update!$G$9 -> 8172.09791 | I29: =(ExpenseByItr!J3204+(SUM(Update!$D$9:$F$9)*1000)/12)*Update!$G$9 -> 6537.481166 | J29: =(ExpenseByItr!K3204+(SUM(Update!$D$9:$F$9)*1000)/12)*Update!$G$9 -> 5927.715248 | K29: =(ExpenseByItr!L3204+(SUM(Update!$D$9:$F$9)*1000)/12)*Update!$G$9 -> 5771.632716 | L29: =(ExpenseByItr!M3204+(SUM(Update!$D$9:$F$9)*1000)/12)*Update!$G$9 -> 5747.522092 | M29: =(ExpenseByItr!N3204+(SUM(Update!$D$9:$F$9)*1000)/12)*Update!$G$9 -> 7025.059152 | N29: =SUM(B29:M29) -> 86249.9142
A30: =B10 -> 2021 | B30: =(ExpenseByItr!S3204+(SUM(Update!$D$10:$F$10)*1000)/12)*Update!$G$10 -> 8787.396815 | C30: =(ExpenseByItr!T3204+(SUM(Update!$D$10:$F$10)*1000)/12)*Update!$G$10 -> 6314.029146 | D30: =(ExpenseByItr!U3204+(SUM(Update!$D$10:$F$10)*1000)/12)*Update!$G$10 -> 8561.050461 | E30: =(ExpenseByItr!V3204+(SUM(Update!$D$10:$F$10)*1000)/12)*Update!$G$10 -> 8777.887683 | F30: =(ExpenseByItr!W3204+(SUM(Update!$D$10:$F$10)*1000)/12)*Update!$G$10 -> 7379.240573 | G30: =(ExpenseByItr!X3204+(SUM(Update!$D$10:$F$10)*1000)/12)*Update!$G$10 -> 7313.263402 | H30: =(ExpenseByItr!Y3204+(SUM(Update!$D$10:$F$10)*1000)/12)*Update!$G$10 -> 8552.485334 | I30: =(ExpenseByItr!Z3204+(SUM(Update!$D$10:$F$10)*1000)/12)*Update!$G$10 -> 6654.354739 | J30: =(ExpenseByItr!AA3204+(SUM(Update!$D$10:$F$10)*1000)/12)*Update!$G$10 -> 5980.367609 | K30: =(ExpenseByItr!AB3204+(SUM(Update!$D$10:$F$10)*1000)/12)*Update!$G$10 -> 5776.333656 | L30: =(ExpenseByItr!AC3204+(SUM(Update!$D$10:$F$10)*1000)/12)*Update!$G$10 -> 5702.797712 | M30: =(ExpenseByItr!AD3204+(SUM(Update!$D$10:$F$10)*1000)/12)*Update!$G$10 -> 7052.935133 | N30: =SUM(B30:M30) -> 86852.14226
B31: =(ExpenseByItr!#REF!+(SUM(Update!$D$10:$F$10)*1000)/12)*Update!$G$10 ->  | C31: =(ExpenseByItr!#REF!+(SUM(Update!$D$10:$F$10)*1000)/12)*Update!$G$10 ->  | D31: =(ExpenseByItr!#REF!+(SUM(Update!$D$10:$F$10)*1000)/12)*Update!$G$10 ->  | E31: =(ExpenseByItr!#REF!+(SUM(Update!$D$10:$F$10)*1000)/12)*Update!$G$10 ->  | F31: =(ExpenseByItr!#REF!+(SUM(Update!$D$10:$F$10)*1000)/12)*Update!$G$10 ->  | G31: =(ExpenseByItr!#REF!+(SUM(Update!$D$10:$F$10)*1000)/12)*Update!$G$10 ->  | H31: =(ExpenseByItr!#REF!+(SUM(Update!$D$10:$F$10)*1000)/12)*Update!$G$10 ->  | I31: =(ExpenseByItr!#REF!+(SUM(Update!$D$10:$F$10)*1000)/12)*Update!$G$10 ->  | J31: =(ExpenseByItr!#REF!+(SUM(Update!$D$10:$F$10)*1000)/12)*Update!$G$10 ->  | K31: =(ExpenseByItr!#REF!+(SUM(Update!$D$10:$F$10)*1000)/12)*Update!$G$10 ->  | L31: =(ExpenseByItr!#REF!+(SUM(Update!$D$10:$F$10)*1000)/12)*Update!$G$10 ->  | M31: =(ExpenseByItr!#REF!+(SUM(Update!$D$10:$F$10)*1000)/12)*Update!$G$10 -> 
B32: =(ExpenseByItr!#REF!+(SUM(Update!$D$11:$F$11)*1000)/12)*Update!$G$11 ->  | C32: =(ExpenseByItr!#REF!+(SUM(Update!$D$11:$F$11)*1000)/12)*Update!$G$11 ->  | D32: =(ExpenseByItr!#REF!+(SUM(Update!$D$11:$F$11)*1000)/12)*Update!$G$11 ->  | E32: =(ExpenseByItr!#REF!+(SUM(Update!$D$11:$F$11)*1000)/12)*Update!$G$11 ->  | F32: =(ExpenseByItr!#REF!+(SUM(Update!$D$11:$F$11)*1000)/12)*Update!$G$11 ->  | G32: =(ExpenseByItr!#REF!+(SUM(Update!$D$11:$F$11)*1000)/12)*Update!$G$11 ->  | H32: =(ExpenseByItr!#REF!+(SUM(Update!$D$11:$F$11)*1000)/12)*Update!$G$11 ->  | I32: =(ExpenseByItr!#REF!+(SUM(Update!$D$11:$F$11)*1000)/12)*Update!$G$11 ->  | J32: =(ExpenseByItr!#REF!+(SUM(Update!$D$11:$F$11)*1000)/12)*Update!$G$11 ->  | K32: =(ExpenseByItr!#REF!+(SUM(Update!$D$11:$F$11)*1000)/12)*Update!$G$11 ->  | L32: =(ExpenseByItr!#REF!+(SUM(Update!$D$11:$F$11)*1000)/12)*Update!$G$11 ->  | M32: =(ExpenseByItr!#REF!+(SUM(Update!$D$11:$F$11)*1000)/12)*Update!$G$11 -> 
B33: =(ExpenseByItr!#REF!+(SUM(Update!$D$13:$F$13)*1000)/12)*Update!$G$13 ->  | C33: =(ExpenseByItr!#REF!+(SUM(Update!$D$13:$F$13)*1000)/12)*Update!$G$13 ->  | D33: =(ExpenseByItr!#REF!+(SUM(Update!$D$13:$F$13)*1000)/12)*Update!$G$13 ->  | E33: =(ExpenseByItr!#REF!+(SUM(Update!$D$13:$F$13)*1000)/12)*Update!$G$13 ->  | F33: =(ExpenseByItr!#REF!+(SUM(Update!$D$13:$F$13)*1000)/12)*Update!$G$13 ->  | G33: =(ExpenseByItr!#REF!+(SUM(Update!$D$13:$F$13)*1000)/12)*Update!$G$13 ->  | H33: =(ExpenseByItr!#REF!+(SUM(Update!$D$13:$F$13)*1000)/12)*Update!$G$13 ->  | I33: =(ExpenseByItr!#REF!+(SUM(Update!$D$13:$F$13)*1000)/12)*Update!$G$13 ->  | J33: =(ExpenseByItr!#REF!+(SUM(Update!$D$13:$F$13)*1000)/12)*Update!$G$13 ->  | K33: =(ExpenseByItr!#REF!+(SUM(Update!$D$13:$F$13)*1000)/12)*Update!$G$13 ->  | L33: =(ExpenseByItr!#REF!+(SUM(Update!$D$13:$F$13)*1000)/12)*Update!$G$13 ->  | M33: =(ExpenseByItr!#REF!+(SUM(Update!$D$13:$F$13)*1000)/12)*Update!$G$13 -> 
B34: =(ExpenseByItr!#REF!+(SUM(Update!$D$14:$F$14)*1000)/12)*Update!$G$14 ->  | C34: =(ExpenseByItr!#REF!+(SUM(Update!$D$14:$F$14)*1000)/12)*Update!$G$14 ->  | D34: =(ExpenseByItr!#REF!+(SUM(Update!$D$14:$F$14)*1000)/12)*Update!$G$14 ->  | E34: =(ExpenseByItr!#REF!+(SUM(Update!$D$14:$F$14)*1000)/12)*Update!$G$14 ->  | F34: =(ExpenseByItr!#REF!+(SUM(Update!$D$14:$F$14)*1000)/12)*Update!$G$14 ->  | G34: =(ExpenseByItr!#REF!+(SUM(Update!$D$14:$F$14)*1000)/12)*Update!$G$14 ->  | H34: =(ExpenseByItr!#REF!+(SUM(Update!$D$14:$F$14)*1000)/12)*Update!$G$14 ->  | I34: =(ExpenseByItr!#REF!+(SUM(Update!$D$14:$F$14)*1000)/12)*Update!$G$14 ->  | J34: =(ExpenseByItr!#REF!+(SUM(Update!$D$14:$F$14)*1000)/12)*Update!$G$14 ->  | K34: =(ExpenseByItr!#REF!+(SUM(Update!$D$14:$F$14)*1000)/12)*Update!$G$14 ->  | L34: =(ExpenseByItr!#REF!+(SUM(Update!$D$14:$F$14)*1000)/12)*Update!$G$14 ->  | M34: =(ExpenseByItr!#REF!+(SUM(Update!$D$14:$F$14)*1000)/12)*Update!$G$14 -> 
B35: =(ExpenseByItr!#REF!+(SUM(Update!$D$15:$F$15)*1000)/12)*Update!$G$15 ->  | C35: =(ExpenseByItr!#REF!+(SUM(Update!$D$15:$F$15)*1000)/12)*Update!$G$15 ->  | D35: =(ExpenseByItr!#REF!+(SUM(Update!$D$15:$F$15)*1000)/12)*Update!$G$15 ->  | E35: =(ExpenseByItr!#REF!+(SUM(Update!$D$15:$F$15)*1000)/12)*Update!$G$15 ->  | F35: =(ExpenseByItr!#REF!+(SUM(Update!$D$15:$F$15)*1000)/12)*Update!$G$15 ->  | G35: =(ExpenseByItr!#REF!+(SUM(Update!$D$15:$F$15)*1000)/12)*Update!$G$15 ->  | H35: =(ExpenseByItr!#REF!+(SUM(Update!$D$15:$F$15)*1000)/12)*Update!$G$15 ->  | I35: =(ExpenseByItr!#REF!+(SUM(Update!$D$15:$F$15)*1000)/12)*Update!$G$15 ->  | J35: =(ExpenseByItr!#REF!+(SUM(Update!$D$15:$F$15)*1000)/12)*Update!$G$15 ->  | K35: =(ExpenseByItr!#REF!+(SUM(Update!$D$15:$F$15)*1000)/12)*Update!$G$15 ->  | L35: =(ExpenseByItr!#REF!+(SUM(Update!$D$15:$F$15)*1000)/12)*Update!$G$15 ->  | M35: =(ExpenseByItr!#REF!+(SUM(Update!$D$15:$F$15)*1000)/12)*Update!$G$15 -> 
B36: =(ExpenseByItr!#REF!+(SUM(Update!$D$16:$F$16)*1000)/12)*Update!$G$16 ->  | C36: =(ExpenseByItr!#REF!+(SUM(Update!$D$16:$F$16)*1000)/12)*Update!$G$16 ->  | D36: =(ExpenseByItr!#REF!+(SUM(Update!$D$16:$F$16)*1000)/12)*Update!$G$16 ->  | E36: =(ExpenseByItr!#REF!+(SUM(Update!$D$16:$F$16)*1000)/12)*Update!$G$16 ->  | F36: =(ExpenseByItr!#REF!+(SUM(Update!$D$16:$F$16)*1000)/12)*Update!$G$16 ->  | G36: =(ExpenseByItr!#REF!+(SUM(Update!$D$16:$F$16)*1000)/12)*Update!$G$16 ->  | H36: =(ExpenseByItr!#REF!+(SUM(Update!$D$16:$F$16)*1000)/12)*Update!$G$16 ->  | I36: =(ExpenseByItr!#REF!+(SUM(Update!$D$16:$F$16)*1000)/12)*Update!$G$16 ->  | J36: =(ExpenseByItr!#REF!+(SUM(Update!$D$16:$F$16)*1000)/12)*Update!$G$16 ->  | K36: =(ExpenseByItr!#REF!+(SUM(Update!$D$16:$F$16)*1000)/12)*Update!$G$16 ->  | L36: =(ExpenseByItr!#REF!+(SUM(Update!$D$16:$F$16)*1000)/12)*Update!$G$16 ->  | M36: =(ExpenseByItr!#REF!+(SUM(Update!$D$16:$F$16)*1000)/12)*Update!$G$16 -> 
A37: 0 | B37: =(ExpenseByItr!#REF!+(SUM(Update!$D$17:$F$17)*1000)/12)*Update!$G$17 ->  | C37: =(ExpenseByItr!#REF!+(SUM(Update!$D$17:$F$17)*1000)/12)*Update!$G$17 ->  | D37: =(ExpenseByItr!#REF!+(SUM(Update!$D$17:$F$17)*1000)/12)*Update!$G$17 ->  | E37: =(ExpenseByItr!#REF!+(SUM(Update!$D$17:$F$17)*1000)/12)*Update!$G$17 ->  | F37: =(ExpenseByItr!#REF!+(SUM(Update!$D$17:$F$17)*1000)/12)*Update!$G$17 ->  | G37: =(ExpenseByItr!#REF!+(SUM(Update!$D$17:$F$17)*1000)/12)*Update!$G$17 ->  | H37: =(ExpenseByItr!#REF!+(SUM(Update!$D$17:$F$17)*1000)/12)*Update!$G$17 ->  | I37: =(ExpenseByItr!#REF!+(SUM(Update!$D$17:$F$17)*1000)/12)*Update!$G$17 ->  | J37: =(ExpenseByItr!#REF!+(SUM(Update!$D$17:$F$17)*1000)/12)*Update!$G$17 ->  | K37: =(ExpenseByItr!#REF!+(SUM(Update!$D$17:$F$17)*1000)/12)*Update!$G$17 ->  | L37: =(ExpenseByItr!#REF!+(SUM(Update!$D$17:$F$17)*1000)/12)*Update!$G$17 ->  | M37: =(ExpenseByItr!#REF!+(SUM(Update!$D$17:$F$17)*1000)/12)*Update!$G$17 -> 
A38: 0 | B38: =(ExpenseByItr!#REF!+(SUM(Update!$D$18:$F$18)*1000)/12)*Update!$G$18 ->  | C38: =(ExpenseByItr!#REF!+(SUM(Update!$D$18:$F$18)*1000)/12)*Update!$G$18 ->  | D38: =(ExpenseByItr!#REF!+(SUM(Update!$D$18:$F$18)*1000)/12)*Update!$G$18 ->  | E38: =(ExpenseByItr!#REF!+(SUM(Update!$D$18:$F$18)*1000)/12)*Update!$G$18 ->  | F38: =(ExpenseByItr!#REF!+(SUM(Update!$D$18:$F$18)*1000)/12)*Update!$G$18 ->  | G38: =(ExpenseByItr!#REF!+(SUM(Update!$D$18:$F$18)*1000)/12)*Update!$G$18 ->  | H38: =(ExpenseByItr!#REF!+(SUM(Update!$D$18:$F$18)*1000)/12)*Update!$G$18 ->  | I38: =(ExpenseByItr!#REF!+(SUM(Update!$D$18:$F$18)*1000)/12)*Update!$G$18 ->  | J38: =(ExpenseByItr!#REF!+(SUM(Update!$D$18:$F$18)*1000)/12)*Update!$G$18 ->  | K38: =(ExpenseByItr!#REF!+(SUM(Update!$D$18:$F$18)*1000)/12)*Update!$G$18 ->  | L38: =(ExpenseByItr!#REF!+(SUM(Update!$D$18:$F$18)*1000)/12)*Update!$G$18 ->  | M38: =(ExpenseByItr!#REF!+(SUM(Update!$D$18:$F$18)*1000)/12)*Update!$G$18 -> 
A39: 0 | B39: =(ExpenseByItr!#REF!+(SUM(Update!$D$19:$F$19)*1000)/12)*Update!$G$19 ->  | C39: =(ExpenseByItr!#REF!+(SUM(Update!$D$19:$F$19)*1000)/12)*Update!$G$19 ->  | D39: =(ExpenseByItr!#REF!+(SUM(Update!$D$19:$F$19)*1000)/12)*Update!$G$19 ->  | E39: =(ExpenseByItr!#REF!+(SUM(Update!$D$19:$F$19)*1000)/12)*Update!$G$19 ->  | F39: =(ExpenseByItr!#REF!+(SUM(Update!$D$19:$F$19)*1000)/12)*Update!$G$19 ->  | G39: =(ExpenseByItr!#REF!+(SUM(Update!$D$19:$F$19)*1000)/12)*Update!$G$19 ->  | H39: =(ExpenseByItr!#REF!+(SUM(Update!$D$19:$F$19)*1000)/12)*Update!$G$19 ->  | I39: =(ExpenseByItr!#REF!+(SUM(Update!$D$19:$F$19)*1000)/12)*Update!$G$19 ->  | J39: =(ExpenseByItr!#REF!+(SUM(Update!$D$19:$F$19)*1000)/12)*Update!$G$19 ->  | K39: =(ExpenseByItr!#REF!+(SUM(Update!$D$19:$F$19)*1000)/12)*Update!$G$19 ->  | L39: =(ExpenseByItr!#REF!+(SUM(Update!$D$19:$F$19)*1000)/12)*Update!$G$19 ->  | M39: =(ExpenseByItr!#REF!+(SUM(Update!$D$19:$F$19)*1000)/12)*Update!$G$19 -> 
A40: 0 | B40: =(ExpenseByItr!#REF!+(SUM(Update!$D$20:$F$20)*1000)/12)*Update!$G$20 ->  | C40: =(ExpenseByItr!#REF!+(SUM(Update!$D$20:$F$20)*1000)/12)*Update!$G$20 ->  | D40: =(ExpenseByItr!#REF!+(SUM(Update!$D$20:$F$20)*1000)/12)*Update!$G$20 ->  | E40: =(ExpenseByItr!#REF!+(SUM(Update!$D$20:$F$20)*1000)/12)*Update!$G$20 ->  | F40: =(ExpenseByItr!#REF!+(SUM(Update!$D$20:$F$20)*1000)/12)*Update!$G$20 ->  | G40: =(ExpenseByItr!#REF!+(SUM(Update!$D$20:$F$20)*1000)/12)*Update!$G$20 ->  | H40: =(ExpenseByItr!#REF!+(SUM(Update!$D$20:$F$20)*1000)/12)*Update!$G$20 ->  | I40: =(ExpenseByItr!#REF!+(SUM(Update!$D$20:$F$20)*1000)/12)*Update!$G$20 ->  | J40: =(ExpenseByItr!#REF!+(SUM(Update!$D$20:$F$20)*1000)/12)*Update!$G$20 ->  | K40: =(ExpenseByItr!#REF!+(SUM(Update!$D$20:$F$20)*1000)/12)*Update!$G$20 ->  | L40: =(ExpenseByItr!#REF!+(SUM(Update!$D$20:$F$20)*1000)/12)*Update!$G$20 ->  | M40: =(ExpenseByItr!#REF!+(SUM(Update!$D$20:$F$20)*1000)/12)*Update!$G$20 -> 
A41: 0 | B41: =(ExpenseByItr!#REF!+(SUM(Update!$D$21:$F$21)*1000)/12)*Update!$G$21 ->  | C41: =(ExpenseByItr!#REF!+(SUM(Update!$D$21:$F$21)*1000)/12)*Update!$G$21 ->  | D41: =(ExpenseByItr!#REF!+(SUM(Update!$D$21:$F$21)*1000)/12)*Update!$G$21 ->  | E41: =(ExpenseByItr!#REF!+(SUM(Update!$D$21:$F$21)*1000)/12)*Update!$G$21 ->  | F41: =(ExpenseByItr!#REF!+(SUM(Update!$D$21:$F$21)*1000)/12)*Update!$G$21 ->  | G41: =(ExpenseByItr!#REF!+(SUM(Update!$D$21:$F$21)*1000)/12)*Update!$G$21 ->  | H41: =(ExpenseByItr!#REF!+(SUM(Update!$D$21:$F$21)*1000)/12)*Update!$G$21 ->  | I41: =(ExpenseByItr!#REF!+(SUM(Update!$D$21:$F$21)*1000)/12)*Update!$G$21 ->  | J41: =(ExpenseByItr!#REF!+(SUM(Update!$D$21:$F$21)*1000)/12)*Update!$G$21 ->  | K41: =(ExpenseByItr!#REF!+(SUM(Update!$D$21:$F$21)*1000)/12)*Update!$G$21 ->  | L41: =(ExpenseByItr!#REF!+(SUM(Update!$D$21:$F$21)*1000)/12)*Update!$G$21 ->  | M41: =(ExpenseByItr!#REF!+(SUM(Update!$D$21:$F$21)*1000)/12)*Update!$G$21 -> 
A42: 0 | B42: =(ExpenseByItr!#REF!+(SUM(Update!$D$22:$F$22)*1000)/12)*Update!$G$22 ->  | C42: =(ExpenseByItr!#REF!+(SUM(Update!$D$22:$F$22)*1000)/12)*Update!$G$22 ->  | D42: =(ExpenseByItr!#REF!+(SUM(Update!$D$22:$F$22)*1000)/12)*Update!$G$22 ->  | E42: =(ExpenseByItr!#REF!+(SUM(Update!$D$22:$F$22)*1000)/12)*Update!$G$22 ->  | F42: =(ExpenseByItr!#REF!+(SUM(Update!$D$22:$F$22)*1000)/12)*Update!$G$22 ->  | G42: =(ExpenseByItr!#REF!+(SUM(Update!$D$22:$F$22)*1000)/12)*Update!$G$22 ->  | H42: =(ExpenseByItr!#REF!+(SUM(Update!$D$22:$F$22)*1000)/12)*Update!$G$22 ->  | I42: =(ExpenseByItr!#REF!+(SUM(Update!$D$22:$F$22)*1000)/12)*Update!$G$22 ->  | J42: =(ExpenseByItr!#REF!+(SUM(Update!$D$22:$F$22)*1000)/12)*Update!$G$22 ->  | K42: =(ExpenseByItr!#REF!+(SUM(Update!$D$22:$F$22)*1000)/12)*Update!$G$22 ->  | L42: =(ExpenseByItr!#REF!+(SUM(Update!$D$22:$F$22)*1000)/12)*Update!$G$22 ->  | M42: =(ExpenseByItr!#REF!+(SUM(Update!$D$22:$F$22)*1000)/12)*Update!$G$22 -> 
A43: 0 | B43: =(ExpenseByItr!#REF!+(SUM(Update!$D$23:$F$23)*1000)/12)*Update!$G$23 ->  | C43: =(ExpenseByItr!#REF!+(SUM(Update!$D$23:$F$23)*1000)/12)*Update!$G$23 ->  | D43: =(ExpenseByItr!#REF!+(SUM(Update!$D$23:$F$23)*1000)/12)*Update!$G$23 ->  | E43: =(ExpenseByItr!#REF!+(SUM(Update!$D$23:$F$23)*1000)/12)*Update!$G$23 ->  | F43: =(ExpenseByItr!#REF!+(SUM(Update!$D$23:$F$23)*1000)/12)*Update!$G$23 ->  | G43: =(ExpenseByItr!#REF!+(SUM(Update!$D$23:$F$23)*1000)/12)*Update!$G$23 ->  | H43: =(ExpenseByItr!#REF!+(SUM(Update!$D$23:$F$23)*1000)/12)*Update!$G$23 ->  | I43: =(ExpenseByItr!#REF!+(SUM(Update!$D$23:$F$23)*1000)/12)*Update!$G$23 ->  | J43: =(ExpenseByItr!#REF!+(SUM(Update!$D$23:$F$23)*1000)/12)*Update!$G$23 ->  | K43: =(ExpenseByItr!#REF!+(SUM(Update!$D$23:$F$23)*1000)/12)*Update!$G$23 ->  | L43: =(ExpenseByItr!#REF!+(SUM(Update!$D$23:$F$23)*1000)/12)*Update!$G$23 ->  | M43: =(ExpenseByItr!#REF!+(SUM(Update!$D$23:$F$23)*1000)/12)*Update!$G$23 -> 
A47: BP18 Final Proposal
A49: Fiscal Year | B49: Oct | C49: Nov | D49: Dec | E49: Jan | F49: Feb | G49: Mar | H49: Apr | I49: May | J49: Jun | K49: Jul | L49: Aug | M49: Sep | N49: Total
A50: 2018 | B50: 9671.723434 | C50: 7590.387671 | D50: 9314.625258 | E50: 10087.26659 | F50: 8481.894171 | G50: 7447.785003 | H50: 6850.018488 | I50: 6475.515303 | J50: 6998.777176 | K50: 6413.189476 | L50: 6118.470441 | M50: 7722.301207 | N50: 93171.95422
A51: 2019 | B51: 9314.117275 | C51: 7475.691773 | D51: 9096.013622 | E51: 9829.289774 | F51: 8450.70576 | G51: 7207.367424 | H51: 6738.000151 | I51: 6370.618134 | J51: 6956.293275 | K51: 6296.040589 | L51: 6107.276953 | M51: 7684.101545 | N51: 91525.51627
A52: Deltas
A53: 2018 | B53: =B29-B50 -> -581.4867242 | C53: =C29-C50 -> -1235.987677 | D53: -901.1285626 | E53: -1285.577641 | F53: -1216.27577 | G53: -304.8198404 | H53: 1322.079423 | I53: 61.96586287 | J53: -1071.061929 | K53: -641.5567604 | L53: -370.9483484 | M53: -697.2420549 | N53: -6922.040022
A54: 2019 | B54: =B30-B51 -> -526.7204604 | C54: -1161.662627 | D54: -534.9631609 | E54: -1051.402091 | F54: -1071.465187 | G54: 105.8959782 | H54: 1814.485183 | I54: 283.7366054 | J54: -975.9256656 | K54: -519.706933 | L54: -404.4792408 | M54: -631.1664114 | N54: -4673.374011
B57: Fiscal Year | C57: Purchase Expense | D57: Direct Expense | E57: Pisces | F57: Capital | G57: % | H57: Credit
B58: 2018 | C58: 79.19673634 | D58: 288.0822254 | F58: 50.53249212 | G58: 0.223 | H58: 93.17195422
B59: 2019 | C59: 78.09790376 | D59: 288.3304203 | F59: 44.00000004 | G59: 0.223 | H59: 91.52551627
B60: Deltas
B61: 2018 | C61: =C9-C58 -> 10.70494535 | D61: =D9-D58 -> -38.47923744 | E61: =E9-E58 -> 0 | F61: -3.26624612 | G61: 0 | H61: -6.922040022
B62: 2019 | C62: =C10-C59 -> 14.07612021 | D62: =D10-D59 -> -38.2992003 | E62: 0 | F62: 3.26624596 | G62: 0 | H62: -4.673374011
D66: =D58-30 -> 258.0822254

Sheet MonthlySummaries
A2: =Update!E3 -> BP20 Final Proposal Updated Gas | P2: =A2 -> BP20 Final Proposal Updated Gas
G3: Directe Expense | H3: =Update!D9 -> 249.602988 | I3: Pices | J3: =Update!E9 -> 0 | K3: Capital | L3: =Update!F9 -> 47.266246 | M3: =Update!G9 -> 0.223 | N3: =((N7/1000)+SUM(H3,J3,L3))*M3 -> 86.2499142 | V3: Directe Expense | W3: =Update!D10 -> 250.03122 | X3: Pices | Y3: =Update!E10 -> 0 | Z3: Capital | AA3: =Update!F10 -> 47.266246 | AB3: =Update!G10 -> 0.223 | AC3: =((AC7/1000)+SUM(W3,Y3,AA3))*AB3 -> 86.85214226
A4: =Purch_1 -> 2020 | B4: Oct | C4: Nov | D4: Dec | E4: Jan | F4: Feb | G4: Mar | H4: Apr | I4: May | J4: Jun | K4: Jul | L4: Aug | M4: Sep | N4: Total | P4: =Purch_2 -> 2021 | Q4: Oct | R4: Nov | S4: Dec | T4: Jan | U4: Feb | V4: Mar | W4: Apr | X4: May | Y4: Jun | Z4: Jul | AA4: Aug | AB4: Sep | AC4: Total
A5: Purchase (aMW) | B5: =ReplacementPurches!C95 -> 911.7125 | C5: =ReplacementPurches!D95 -> 193.85 | D5: =ReplacementPurches!E95 -> 581.5375 | E5: =ReplacementPurches!F95 -> 688.8 | F5: =ReplacementPurches!G95 -> 406.8 | G5: =ReplacementPurches!H95 -> 439.25 | H5: =ReplacementPurches!I95 -> 734.2520833 | I5: =ReplacementPurches!J95 -> 350.9583333 | J5: =ReplacementPurches!K95 -> 147.75 | K5: =ReplacementPurches!L95 -> 55.4 | L5: =ReplacementPurches!M95 -> 52.68104839 | M5: =ReplacementPurches!N95 -> 399.875 | N5: =ReplacementPurches!O95 -> 414.0890639 | P5: Purchase (aMW) | Q5: =ReplacementPurches!S95 -> 910.5 | R5: =ReplacementPurches!T95 -> 192.6875 | S5: =ReplacementPurches!U95 -> 617.375 | T5: =ReplacementPurches!V95 -> 690.025 | U5: =ReplacementPurches!W95 -> 403.7125 | V5: =ReplacementPurches!X95 -> 448.8875 | W5: =ReplacementPurches!Y95 -> 758.0395833 | X5: =ReplacementPurches!Z95 -> 348.9208333 | Y5: =ReplacementPurches!AA95 -> 149.6 | Z5: =ReplacementPurches!AB95 -> 55.775 | AA5: =ReplacementPurches!AC95 -> 41.16801075 | AB5: =ReplacementPurches!AD95 -> 392.825 | AC5: =ReplacementPurches!AE95 -> 418.0274772
A6: Price | B6: =((B7*1000)/(B5*PricesByItr!C$1)) -> 23.62370248 | C6: =((C7*1000)/(C5*PricesByItr!D$1)) -> 26.8732627 | D6: =((D7*1000)/(D5*PricesByItr!E$1)) -> 30.02233812 | E6: =((E7*1000)/(E5*PricesByItr!F$1)) -> 28.74399444 | F6: =((F7*1000)/(F5*PricesByItr!G$1)) -> 27.69776445 | G6: =((G7*1000)/(G5*PricesByItr!H$1)) -> 22.34363781 | H6: =((H7*1000)/(H5*PricesByItr!I$1)) -> 22.52306275 | I6: =((I7*1000)/(I5*PricesByItr!J$1)) -> 17.52864165 | J6: =((J7*1000)/(J5*PricesByItr!K$1)) -> 17.32073596 | K6: =((K7*1000)/(K5*PricesByItr!L$1)) -> 27.72258027 | L6: =((L7*1000)/(L5*PricesByItr!M$1)) -> 26.39486554 | M6: =((M7*1000)/(M5*PricesByItr!N$1)) -> 23.49138472 | N6: =((N7*1000)/(N5*PricesByItr!O$1)) -> 24.71620152 | P6: Price | Q6: =((Q7*1000)/(Q5*PricesByItr!S$1)) -> 21.59775447 | R6: =((R7*1000)/(R5*PricesByItr!T$1)) -> 25.47543455 | S6: =((S7*1000)/(S5*PricesByItr!U$1)) -> 29.64243769 | T6: =((T7*1000)/(T5*PricesByItr!V$1)) -> 28.4155518 | U6: =((U7*1000)/(U5*PricesByItr!W$1)) -> 30.65291362 | V6: =((V7*1000)/(V5*PricesByItr!X$1)) -> 24.04663066 | W6: =((W7*1000)/(W5*PricesByItr!Y$1)) -> 24.87623564 | X6: =((X7*1000)/(X5*PricesByItr!Z$1)) -> 19.51241731 | Y6: =((Y7*1000)/(Y5*PricesByItr!AA$1)) -> 18.96727512 | Z6: =ABS((Z7*1000)/(Z5*PricesByItr!AB$1)) -> 27.18421928 | AA6: =((AA7*1000)/(AA5*PricesByItr!AC$1)) -> 26.0633739 | AB6: =((AB7*1000)/(AB5*PricesByItr!AD$1)) -> 24.22878075 | AC6: =((AC7*1000)/(AC5*PricesByItr!O$1)) -> 25.10217722
A7: Purchase Expense | B7: =ExpenseByItr!C3204 -> 16024.29049 | C7: =ExpenseByItr!D3204 -> 3755.964404 | D7: =ExpenseByItr!E3204 -> 12989.5819 | E7: =ExpenseByItr!F3204 -> 14730.35435 | F7: =ExpenseByItr!G3204 -> 7842.145602 | G7: =ExpenseByItr!H3204 -> 7292.13108 | H7: =ExpenseByItr!I3204 -> 11907.07614 | I7: =ExpenseByItr!J3204 -> 4576.956207 | J7: =ExpenseByItr!K3204 -> 1842.579891 | K7: =ExpenseByItr!L3204 -> 1142.658225 | L7: =ExpenseByItr!M3204 -> 1034.538836 | M7: =ExpenseByItr!N3204 -> 6763.404575 | N7: =ExpenseByItr!O3204 -> 89901.68169 | P7: Purchase Expense | Q7: =ExpenseByItr!S3204 -> 14630.57805 | R7: =ExpenseByItr!T3204 -> 3539.243209 | S7: =ExpenseByItr!U3204 -> 13615.57198 | T7: =ExpenseByItr!V3204 -> 14587.9362 | U7: =ExpenseByItr!W3204 -> 8315.97607 | V7: =ExpenseByItr!X3204 -> 8020.114316 | W7: =ExpenseByItr!Y3204 -> 13577.16334 | X7: =ExpenseByItr!Z3204 -> 5065.366948 | Y7: =ExpenseByItr!AA3204 -> 2043.003137 | Z7: =ExpenseByItr!AB3204 -> 1128.052674 | AA7: =ExpenseByItr!AC3204 -> 798.2950792 | AB7: =ExpenseByItr!AD3204 -> 6852.722975 | AC7: =ExpenseByItr!AE3204 -> 92174.02397
A8: Credit | B8: =(B7+(SUM(Update!$D$9:$F$9)*1000)/12)*Update!$G$9 -> 9090.23671 | C8: =(C7+(SUM(Update!$D$9:$F$9)*1000)/12)*Update!$G$9 -> 6354.399994 | D8: =(D7+(SUM(Update!$D$9:$F$9)*1000)/12)*Update!$G$9 -> 8413.496695 | E8: =(E7+(SUM(Update!$D$9:$F$9)*1000)/12)*Update!$G$9 -> 8801.688951 | F8: =(F7+(SUM(Update!$D$9:$F$9)*1000)/12)*Update!$G$9 -> 7265.618401 | G8: =(G7+(SUM(Update!$D$9:$F$9)*1000)/12)*Update!$G$9 -> 7142.965163 | H8: =(H7+(SUM(Update!$D$9:$F$9)*1000)/12)*Update!$G$9 -> 8172.09791 | I8: =(I7+(SUM(Update!$D$9:$F$9)*1000)/12)*Update!$G$9 -> 6537.481166 | J8: =(J7+(SUM(Update!$D$9:$F$9)*1000)/12)*Update!$G$9 -> 5927.715248 | K8: =(K7+(SUM(Update!$D$9:$F$9)*1000)/12)*Update!$G$9 -> 5771.632716 | L8: =(L7+(SUM(Update!$D$9:$F$9)*1000)/12)*Update!$G$9 -> 5747.522092 | M8: =(M7+(SUM(Update!$D$9:$F$9)*1000)/12)*Update!$G$9 -> 7025.059152 | N8: =SUM(B8:M8) -> 86249.9142 | P8: Credit | Q8: =(Q7+(SUM(W3,Y3,AA3)*1000)/12)*Update!$G$10 -> 8787.396815 | R8: =(R7+(SUM(Update!$D$10:$F$10)*1000)/12)*Update!$G$10 -> 6314.029146 | S8: =(S7+(SUM(Update!$D$10:$F$10)*1000)/12)*Update!$G$10 -> 8561.050461 | T8: =(T7+(SUM(Update!$D$10:$F$10)*1000)/12)*Update!$G$10 -> 8777.887683 | U8: =(U7+(SUM(Update!$D$10:$F$10)*1000)/12)*Update!$G$10 -> 7379.240573 | V8: =(V7+(SUM(Update!$D$10:$F$10)*1000)/12)*Update!$G$10 -> 7313.263402 | W8: =(W7+(SUM(Update!$D$10:$F$10)*1000)/12)*Update!$G$10 -> 8552.485334 | X8: =(X7+(SUM(Update!$D$10:$F$10)*1000)/12)*Update!$G$10 -> 6654.354739 | Y8: =(Y7+(SUM(Update!$D$10:$F$10)*1000)/12)*Update!$G$10 -> 5980.367609 | Z8: =(Z7+(SUM(Update!$D$10:$F$10)*1000)/12)*Update!$G$10 -> 5776.333656 | AA8: =(AA7+(SUM(Update!$D$10:$F$10)*1000)/12)*Update!$G$10 -> 5702.797712 | AB8: =(AB7+(SUM(Update!$D$10:$F$10)*1000)/12)*Update!$G$10 -> 7052.935133 | AC8: =SUM(Q8:AB8) -> 86852.14226
A10: =IF(A12="","",Aurora_Descrp) ->  | P10: =IF(P12="","",Aurora_Descrp) -> 
G11: Directe Expense | H11: =Update!$D18 -> 258.0822254 | I11: Pices | J11: =Update!$E18 -> 1.8 | K11: Capital | L11: =Update!$F18 -> 40.40250573 | M11: =Update!$G18 -> 0.223 | N11: =IFERROR(((N15/1000)+SUM(H11,J11,L11))*M11,"") ->  | V11: Directe Expense | W11: =Update!$D19 -> 258.0822254 | X11: Pices | Y11: =Update!$E19 -> 1.8 | Z11: Capital | AA11: =Update!$F19 -> 37.82538541 | AB11: =Update!$G19 -> 0.223 | AC11: =IFERROR(((AC15/1000)+SUM(W11,Y11,AA11))*AB11,"") -> 
A12: =IF(Purch_3="","",Purch_3) ->  | B12: Oct | C12: Nov | D12: Dec | E12: Jan | F12: Feb | G12: Mar | H12: Apr | I12: May | J12: Jun | K12: Jul | L12: Aug | M12: Sep | N12: Total | P12: =IF(Purch_4=0,"",Purch_4) ->  | Q12: Oct | R12: Nov | S12: Dec | T12: Jan | U12: Feb | V12: Mar | W12: Apr | X12: May | Y12: Jun | Z12: Jul | AA12: Aug | AB12: Sep | AC12: Total
A13: Purchase (aMW) | B13: =ReplacementPurches!#REF! ->  | C13: =ReplacementPurches!#REF! ->  | D13: =ReplacementPurches!#REF! ->  | E13: =ReplacementPurches!#REF! ->  | F13: =ReplacementPurches!#REF! ->  | G13: =ReplacementPurches!#REF! ->  | H13: =ReplacementPurches!#REF! ->  | I13: =ReplacementPurches!#REF! ->  | J13: =ReplacementPurches!#REF! ->  | K13: =ReplacementPurches!#REF! ->  | L13: =ReplacementPurches!#REF! ->  | M13: =ReplacementPurches!#REF! ->  | N13: =ReplacementPurches!#REF! ->  | P13: Purchase (aMW) | Q13: =ReplacementPurches!#REF! ->  | R13: =ReplacementPurches!#REF! ->  | S13: =ReplacementPurches!#REF! ->  | T13: =ReplacementPurches!#REF! ->  | U13: =ReplacementPurches!#REF! ->  | V13: =ReplacementPurches!#REF! ->  | W13: =ReplacementPurches!#REF! ->  | X13: =ReplacementPurches!#REF! ->  | Y13: =ReplacementPurches!#REF! ->  | Z13: =ReplacementPurches!#REF! ->  | AA13: =ReplacementPurches!#REF! ->  | AB13: =ReplacementPurches!#REF! ->  | AC13: =ReplacementPurches!#REF! -> 
A14: Price | B14: =IFERROR((B15*1000)/(B13*PricesByItr!#REF!),"") ->  | C14: =IFERROR((C15*1000)/(C13*PricesByItr!#REF!),"") ->  | D14: =IFERROR((D15*1000)/(D13*PricesByItr!#REF!),"") ->  | E14: =IFERROR((E15*1000)/(E13*PricesByItr!#REF!),"") ->  | F14: =IFERROR((F15*1000)/(F13*PricesByItr!#REF!),"") ->  | G14: =IFERROR((G15*1000)/(G13*PricesByItr!#REF!),"") ->  | H14: =IFERROR((H15*1000)/(H13*PricesByItr!#REF!),"") ->  | I14: =IFERROR((I15*1000)/(I13*PricesByItr!#REF!),"") ->  | J14: =IFERROR((J15*1000)/(J13*PricesByItr!#REF!),"") ->  | K14: =IFERROR((K15*1000)/(K13*PricesByItr!#REF!),"") ->  | L14: =IFERROR((L15*1000)/(L13*PricesByItr!#REF!),"") ->  | M14: =IFERROR((M15*1000)/(M13*PricesByItr!#REF!),"") ->  | N14: =IFERROR((N15*1000)/(N13*PricesByItr!#REF!),"") ->  | P14: Price | Q14: =IFERROR((Q15*1000)/(Q13*PricesByItr!#REF!),"") ->  | R14: =IFERROR((R15*1000)/(R13*PricesByItr!#REF!),"") ->  | S14: =IFERROR((S15*1000)/(S13*PricesByItr!#REF!),"") ->  | T14: =IFERROR((T15*1000)/(T13*PricesByItr!#REF!),"") ->  | U14: =IFERROR((U15*1000)/(U13*PricesByItr!#REF!),"") ->  | V14: =IFERROR((V15*1000)/(V13*PricesByItr!#REF!),"") ->  | W14: =IFERROR((W15*1000)/(W13*PricesByItr!#REF!),"") ->  | X14: =IFERROR((X15*1000)/(X13*PricesByItr!#REF!),"") ->  | Y14: =IFERROR((Y15*1000)/(Y13*PricesByItr!#REF!),"") ->  | Z14: =IFERROR((Z15*1000)/(Z13*PricesByItr!#REF!),"") ->  | AA14: =IFERROR((AA15*1000)/(AA13*PricesByItr!#REF!),"") ->  | AB14: =IFERROR((AB15*1000)/(AB13*PricesByItr!#REF!),"") ->  | AC14: =IFERROR((AC15*1000)/(AC13*PricesByItr!#REF!),"") -> 
A15: Purchase Expense | B15: =ExpenseByItr!#REF! ->  | C15: =ExpenseByItr!#REF! ->  | D15: =ExpenseByItr!#REF! ->  | E15: =ExpenseByItr!#REF! ->  | F15: =ExpenseByItr!#REF! ->  | G15: =ExpenseByItr!#REF! ->  | H15: =ExpenseByItr!#REF! ->  | I15: =ExpenseByItr!#REF! ->  | J15: =ExpenseByItr!#REF! ->  | K15: =ExpenseByItr!#REF! ->  | L15: =ExpenseByItr!#REF! ->  | M15: =ExpenseByItr!#REF! ->  | N15: =ExpenseByItr!#REF! ->  | P15: Purchase Expense | Q15: =ExpenseByItr!#REF! ->  | R15: =ExpenseByItr!#REF! ->  | S15: =ExpenseByItr!#REF! ->  | T15: =ExpenseByItr!#REF! ->  | U15: =ExpenseByItr!#REF! ->  | V15: =ExpenseByItr!#REF! ->  | W15: =ExpenseByItr!#REF! ->  | X15: =ExpenseByItr!#REF! ->  | Y15: =ExpenseByItr!#REF! ->  | Z15: =ExpenseByItr!#REF! ->  | AA15: =ExpenseByItr!#REF! ->  | AB15: =ExpenseByItr!#REF! ->  | AC15: =ExpenseByItr!#REF! -> 
A16: Credit | B16: =IFERROR((B15+(SUM(Update!$D$18:$F$18)*1000)/12)*Update!$G18,"") ->  | C16: =IFERROR((C15+(SUM(Update!$D$18:$F$18)*1000)/12)*Update!$G18,"") ->  | D16: =IFERROR((D15+(SUM(Update!$D$18:$F$18)*1000)/12)*Update!$G18,"") ->  | E16: =IFERROR((E15+(SUM(Update!$D$18:$F$18)*1000)/12)*Update!$G18,"") ->  | F16: =IFERROR((F15+(SUM(Update!$D$18:$F$18)*1000)/12)*Update!$G18,"") ->  | G16: =IFERROR((G15+(SUM(Update!$D$18:$F$18)*1000)/12)*Update!$G18,"") ->  | H16: =IFERROR((H15+(SUM(Update!$D$18:$F$18)*1000)/12)*Update!$G18,"") ->  | I16: =IFERROR((I15+(SUM(Update!$D$18:$F$18)*1000)/12)*Update!$G18,"") ->  | J16: =IFERROR((J15+(SUM(Update!$D$18:$F$18)*1000)/12)*Update!$G18,"") ->  | K16: =IFERROR((K15+(SUM(Update!$D$18:$F$18)*1000)/12)*Update!$G18,"") ->  | L16: =IFERROR((L15+(SUM(Update!$D$18:$F$18)*1000)/12)*Update!$G18,"") ->  | M16: =IFERROR((M15+(SUM(Update!$D$18:$F$18)*1000)/12)*Update!$G18,"") ->  | N16: =IFERROR((N15+(SUM(Update!$D$18:$F$18)*1000)/12)*Update!$G18,"") ->  | P16: Credit | Q16: =IFERROR((Q15+(SUM(Update!$D$19:$F$19)*1000)/12)*Update!$G19,"") ->  | R16: =IFERROR((R15+(SUM(Update!$D$19:$F$19)*1000)/12)*Update!$G19,"") ->  | S16: =IFERROR((S15+(SUM(Update!$D$19:$F$19)*1000)/12)*Update!$G19,"") ->  | T16: =IFERROR((T15+(SUM(Update!$D$19:$F$19)*1000)/12)*Update!$G19,"") ->  | U16: =IFERROR((U15+(SUM(Update!$D$19:$F$19)*1000)/12)*Update!$G19,"") ->  | V16: =IFERROR((V15+(SUM(Update!$D$19:$F$19)*1000)/12)*Update!$G19,"") ->  | W16: =IFERROR((W15+(SUM(Update!$D$19:$F$19)*1000)/12)*Update!$G19,"") ->  | X16: =IFERROR((X15+(SUM(Update!$D$19:$F$19)*1000)/12)*Update!$G19,"") ->  | Y16: =IFERROR((Y15+(SUM(Update!$D$19:$F$19)*1000)/12)*Update!$G19,"") ->  | Z16: =IFERROR((Z15+(SUM(Update!$D$19:$F$19)*1000)/12)*Update!$G19,"") ->  | AA16: =IFERROR((AA15+(SUM(Update!$D$19:$F$19)*1000)/12)*Update!$G19,"") ->  | AB16: =IFERROR((AB15+(SUM(Update!$D$19:$F$19)*1000)/12)*Update!$G19,"") ->  | AC16: =IFERROR((AC15+(SUM(Update!$D$19:$F$19)*1000)/12)*Update!$G19,"") -> 
A18: =IF(A20="","",Aurora_Descrp) ->  | P18: =IF(P20="","",Aurora_Descrp) -> 
G19: Directe Expense | H19: =Update!$D20 -> 258.0822254 | I19: Pices | J19: =Update!$E20 -> 1.8 | K19: Capital | L19: =Update!$F20 -> 38.55153673 | M19: =Update!$G20 -> 0.223 | N19: =IFERROR(((N23/1000)+SUM(H19,J19,L19))*M19,"") ->  | V19: Directe Expense | W19: =Update!$D21 -> 258.0822254 | X19: Pices | Y19: =Update!$E21 -> 1.8 | Z19: Capital | AA19: =Update!$F21 -> 39.2904377 | AB19: =Update!$G21 -> 0.223 | AC19: =IFERROR(((AC23/1000)+SUM(W19,Y19,AA19))*AB19,"") -> 
A20: =IF(Purch_5="","",Purch_5) ->  | B20: Oct | C20: Nov | D20: Dec | E20: Jan | F20: Feb | G20: Mar | H20: Apr | I20: May | J20: Jun | K20: Jul | L20: Aug | M20: Sep | N20: Total | P20: =IF(Purch_6="","",Purch_6) ->  | Q20: Oct | R20: Nov | S20: Dec | T20: Jan | U20: Feb | V20: Mar | W20: Apr | X20: May | Y20: Jun | Z20: Jul | AA20: Aug | AB20: Sep | AC20: Total
A21: Purchase (aMW) | B21: =ReplacementPurches!#REF! ->  | C21: =ReplacementPurches!#REF! ->  | D21: =ReplacementPurches!#REF! ->  | E21: =ReplacementPurches!#REF! ->  | F21: =ReplacementPurches!#REF! ->  | G21: =ReplacementPurches!#REF! ->  | H21: =ReplacementPurches!#REF! ->  | I21: =ReplacementPurches!#REF! ->  | J21: =ReplacementPurches!#REF! ->  | K21: =ReplacementPurches!#REF! ->  | L21: =ReplacementPurches!#REF! ->  | M21: =ReplacementPurches!#REF! ->  | N21: =ReplacementPurches!#REF! ->  | P21: Purchase (aMW) | Q21: =ReplacementPurches!#REF! ->  | R21: =ReplacementPurches!#REF! ->  | S21: =ReplacementPurches!#REF! ->  | T21: =ReplacementPurches!#REF! ->  | U21: =ReplacementPurches!#REF! ->  | V21: =ReplacementPurches!#REF! ->  | W21: =ReplacementPurches!#REF! ->  | X21: =ReplacementPurches!#REF! ->  | Y21: =ReplacementPurches!#REF! ->  | Z21: =ReplacementPurches!#REF! ->  | AA21: =ReplacementPurches!#REF! ->  | AB21: =ReplacementPurches!#REF! ->  | AC21: =ReplacementPurches!#REF! -> 
A22: Price | B22: =IFERROR((B23*1000)/(B21*PricesByItr!#REF!),"") ->  | C22: =IFERROR((C23*1000)/(C21*PricesByItr!#REF!),"") ->  | D22: =IFERROR((D23*1000)/(D21*PricesByItr!#REF!),"") ->  | E22: =IFERROR((E23*1000)/(E21*PricesByItr!#REF!),"") ->  | F22: =IFERROR((F23*1000)/(F21*PricesByItr!#REF!),"") ->  | G22: =IFERROR((G23*1000)/(G21*PricesByItr!#REF!),"") ->  | H22: =IFERROR((H23*1000)/(H21*PricesByItr!#REF!),"") ->  | I22: =IFERROR((I23*1000)/(I21*PricesByItr!#REF!),"") ->  | J22: =IFERROR((J23*1000)/(J21*PricesByItr!#REF!),"") ->  | K22: =IFERROR((K23*1000)/(K21*PricesByItr!#REF!),"") ->  | L22: =IFERROR((L23*1000)/(L21*PricesByItr!#REF!),"") ->  | M22: =IFERROR((M23*1000)/(M21*PricesByItr!#REF!),"") ->  | N22: =IFERROR((N23*1000)/(N21*PricesByItr!#REF!),"") ->  | P22: Price | Q22: =IFERROR((Q23*1000)/(Q21*PricesByItr!#REF!),"") ->  | R22: =IFERROR((R23*1000)/(R21*PricesByItr!#REF!),"") ->  | S22: =IFERROR((S23*1000)/(S21*PricesByItr!#REF!),"") ->  | T22: =IFERROR((T23*1000)/(T21*PricesByItr!#REF!),"") ->  | U22: =IFERROR((U23*1000)/(U21*PricesByItr!#REF!),"") ->  | V22: =IFERROR((V23*1000)/(V21*PricesByItr!#REF!),"") ->  | W22: =IFERROR((W23*1000)/(W21*PricesByItr!#REF!),"") ->  | X22: =IFERROR((X23*1000)/(X21*PricesByItr!#REF!),"") ->  | Y22: =IFERROR((Y23*1000)/(Y21*PricesByItr!#REF!),"") ->  | Z22: =IFERROR((Z23*1000)/(Z21*PricesByItr!#REF!),"") ->  | AA22: =IFERROR((AA23*1000)/(AA21*PricesByItr!#REF!),"") ->  | AB22: =IFERROR((AB23*1000)/(AB21*PricesByItr!#REF!),"") ->  | AC22: =IFERROR((AC23*1000)/(AC21*PricesByItr!#REF!),"") -> 
A23: Purchase Expense | B23: =ExpenseByItr!#REF! ->  | C23: =ExpenseByItr!#REF! ->  | D23: =ExpenseByItr!#REF! ->  | E23: =ExpenseByItr!#REF! ->  | F23: =ExpenseByItr!#REF! ->  | G23: =ExpenseByItr!#REF! ->  | H23: =ExpenseByItr!#REF! ->  | I23: =ExpenseByItr!#REF! ->  | J23: =ExpenseByItr!#REF! ->  | K23: =ExpenseByItr!#REF! ->  | L23: =ExpenseByItr!#REF! ->  | M23: =ExpenseByItr!#REF! ->  | N23: =ExpenseByItr!#REF! ->  | P23: Purchase Expense | Q23: =ExpenseByItr!#REF! ->  | R23: =ExpenseByItr!#REF! ->  | S23: =ExpenseByItr!#REF! ->  | T23: =ExpenseByItr!#REF! ->  | U23: =ExpenseByItr!#REF! ->  | V23: =ExpenseByItr!#REF! ->  | W23: =ExpenseByItr!#REF! ->  | X23: =ExpenseByItr!#REF! ->  | Y23: =ExpenseByItr!#REF! ->  | Z23: =ExpenseByItr!#REF! ->  | AA23: =ExpenseByItr!#REF! ->  | AB23: =ExpenseByItr!#REF! ->  | AC23: =ExpenseByItr!#REF! -> 
A24: Credit | B24: =IFERROR((B23+(SUM(Update!$D$20:$F$20)*1000)/12)*Update!$G20,"") ->  | C24: =IFERROR((C23+(SUM(Update!$D$20:$F$20)*1000)/12)*Update!$G20,"") ->  | D24: =IFERROR((D23+(SUM(Update!$D$20:$F$20)*1000)/12)*Update!$G20,"") ->  | E24: =IFERROR((E23+(SUM(Update!$D$20:$F$20)*1000)/12)*Update!$G20,"") ->  | F24: =IFERROR((F23+(SUM(Update!$D$20:$F$20)*1000)/12)*Update!$G20,"") ->  | G24: =IFERROR((G23+(SUM(Update!$D$20:$F$20)*1000)/12)*Update!$G20,"") ->  | H24: =IFERROR((H23+(SUM(Update!$D$20:$F$20)*1000)/12)*Update!$G20,"") ->  | I24: =IFERROR((I23+(SUM(Update!$D$20:$F$20)*1000)/12)*Update!$G20,"") ->  | J24: =IFERROR((J23+(SUM(Update!$D$20:$F$20)*1000)/12)*Update!$G20,"") ->  | K24: =IFERROR((K23+(SUM(Update!$D$20:$F$20)*1000)/12)*Update!$G20,"") ->  | L24: =IFERROR((L23+(SUM(Update!$D$20:$F$20)*1000)/12)*Update!$G20,"") ->  | M24: =IFERROR((M23+(SUM(Update!$D$20:$F$20)*1000)/12)*Update!$G20,"") ->  | N24: =IFERROR((N23+(SUM(Update!$D$20:$F$20)*1000)/12)*Update!$G20,"") ->  | P24: Credit | Q24: =IFERROR((Q23+(SUM(Update!$D$21:$F$21)*1000)/12)*Update!$G21,"") ->  | R24: =IFERROR((R23+(SUM(Update!$D$21:$F$21)*1000)/12)*Update!$G21,"") ->  | S24: =IFERROR((S23+(SUM(Update!$D$21:$F$21)*1000)/12)*Update!$G21,"") ->  | T24: =IFERROR((T23+(SUM(Update!$D$21:$F$21)*1000)/12)*Update!$G21,"") ->  | U24: =IFERROR((U23+(SUM(Update!$D$21:$F$21)*1000)/12)*Update!$G21,"") ->  | V24: =IFERROR((V23+(SUM(Update!$D$21:$F$21)*1000)/12)*Update!$G21,"") ->  | W24: =IFERROR((W23+(SUM(Update!$D$21:$F$21)*1000)/12)*Update!$G21,"") ->  | X24: =IFERROR((X23+(SUM(Update!$D$21:$F$21)*1000)/12)*Update!$G21,"") ->  | Y24: =IFERROR((Y23+(SUM(Update!$D$21:$F$21)*1000)/12)*Update!$G21,"") ->  | Z24: =IFERROR((Z23+(SUM(Update!$D$21:$F$21)*1000)/12)*Update!$G21,"") ->  | AA24: =IFERROR((AA23+(SUM(Update!$D$21:$F$21)*1000)/12)*Update!$G21,"") ->  | AB24: =IFERROR((AB23+(SUM(Update!$D$21:$F$21)*1000)/12)*Update!$G21,"") ->  | AC24: =IFERROR((AC23+(SUM(Update!$D$21:$F$21)*1000)/12)*Update!$G21,"") -> 
A26: =IF(A28="","",Aurora_Descrp) ->  | P26: =IF(P28="","",Aurora_Descrp) -> 
G27: Directe Expense | H27: =Update!$D22 -> 0 | I27: Pices | J27: =Update!$E22 -> 0 | K27: Capital | L27: =Update!$F22 -> 0 | M27: =Update!$G22 -> 0 | N27: =IFERROR(((N31/1000)+SUM(H27,J27,L27))*M27,"") ->  | V27: Directe Expense | W27: =Update!$D23 -> 0 | X27: Pices | Y27: =Update!$E23 -> 0 | Z27: Capital | AA27: =Update!$F23 -> 0 | AB27: =Update!$G23 -> 0 | AC27: =IFERROR(((AC31/1000)+SUM(W27,Y27,AA27))*AB27,"") -> 
A28: =IF(Purch_7="","",Purch_7) ->  | B28: Oct | C28: Nov | D28: Dec | E28: Jan | F28: Feb | G28: Mar | H28: Apr | I28: May | J28: Jun | K28: Jul | L28: Aug | M28: Sep | N28: Total | P28: =IF(Purch_8="","",Purch_8) ->  | Q28: Oct | R28: Nov | S28: Dec | T28: Jan | U28: Feb | V28: Mar | W28: Apr | X28: May | Y28: Jun | Z28: Jul | AA28: Aug | AB28: Sep | AC28: Total
A29: Purchase (aMW) | B29: =ReplacementPurches!#REF! ->  | C29: =ReplacementPurches!#REF! ->  | D29: =ReplacementPurches!#REF! ->  | E29: =ReplacementPurches!#REF! ->  | F29: =ReplacementPurches!#REF! ->  | G29: =ReplacementPurches!#REF! ->  | H29: =ReplacementPurches!#REF! ->  | I29: =ReplacementPurches!#REF! ->  | J29: =ReplacementPurches!#REF! ->  | K29: =ReplacementPurches!#REF! ->  | L29: =ReplacementPurches!#REF! ->  | M29: =ReplacementPurches!#REF! ->  | N29: =ReplacementPurches!#REF! ->  | P29: Purchase (aMW) | Q29: =ReplacementPurches!#REF! ->  | R29: =ReplacementPurches!#REF! ->  | S29: =ReplacementPurches!#REF! ->  | T29: =ReplacementPurches!#REF! ->  | U29: =ReplacementPurches!#REF! ->  | V29: =ReplacementPurches!#REF! ->  | W29: =ReplacementPurches!#REF! ->  | X29: =ReplacementPurches!#REF! ->  | Y29: =ReplacementPurches!#REF! ->  | Z29: =ReplacementPurches!#REF! ->  | AA29: =ReplacementPurches!#REF! ->  | AB29: =ReplacementPurches!#REF! ->  | AC29: =ReplacementPurches!#REF! -> 
A30: Price | B30: =IFERROR((B31*1000)/(B29*PricesByItr!#REF!),"") ->  | C30: =IFERROR((C31*1000)/(C29*PricesByItr!#REF!),"") ->  | D30: =IFERROR((D31*1000)/(D29*PricesByItr!#REF!),"") ->  | E30: =IFERROR((E31*1000)/(E29*PricesByItr!#REF!),"") ->  | F30: =IFERROR((F31*1000)/(F29*PricesByItr!#REF!),"") ->  | G30: =IFERROR((G31*1000)/(G29*PricesByItr!#REF!),"") ->  | H30: =IFERROR((H31*1000)/(H29*PricesByItr!#REF!),"") ->  | I30: =IFERROR((I31*1000)/(I29*PricesByItr!#REF!),"") ->  | J30: =IFERROR((J31*1000)/(J29*PricesByItr!#REF!),"") ->  | K30: =IFERROR((K31*1000)/(K29*PricesByItr!#REF!),"") ->  | L30: =IFERROR((L31*1000)/(L29*PricesByItr!#REF!),"") ->  | M30: =IFERROR((M31*1000)/(M29*PricesByItr!#REF!),"") ->  | N30: =IFERROR((N31*1000)/(N29*PricesByItr!#REF!),"") ->  | P30: Price | Q30: =IFERROR((Q31*1000)/(Q29*PricesByItr!#REF!),"") ->  | R30: =IFERROR((R31*1000)/(R29*PricesByItr!#REF!),"") ->  | S30: =IFERROR((S31*1000)/(S29*PricesByItr!#REF!),"") ->  | T30: =IFERROR((T31*1000)/(T29*PricesByItr!#REF!),"") ->  | U30: =IFERROR((U31*1000)/(U29*PricesByItr!#REF!),"") ->  | V30: =IFERROR((V31*1000)/(V29*PricesByItr!#REF!),"") ->  | W30: =IFERROR((W31*1000)/(W29*PricesByItr!#REF!),"") ->  | X30: =IFERROR((X31*1000)/(X29*PricesByItr!#REF!),"") ->  | Y30: =IFERROR((Y31*1000)/(Y29*PricesByItr!#REF!),"") ->  | Z30: =IFERROR((Z31*1000)/(Z29*PricesByItr!#REF!),"") ->  | AA30: =IFERROR((AA31*1000)/(AA29*PricesByItr!#REF!),"") ->  | AB30: =IFERROR((AB31*1000)/(AB29*PricesByItr!#REF!),"") ->  | AC30: =IFERROR((AC31*1000)/(AC29*PricesByItr!#REF!),"") -> 
A31: Purchase Expense | B31: =ExpenseByItr!#REF! ->  | C31: =ExpenseByItr!#REF! ->  | D31: =ExpenseByItr!#REF! ->  | E31: =ExpenseByItr!#REF! ->  | F31: =ExpenseByItr!#REF! ->  | G31: =ExpenseByItr!#REF! ->  | H31: =ExpenseByItr!#REF! ->  | I31: =ExpenseByItr!#REF! ->  | J31: =ExpenseByItr!#REF! ->  | K31: =ExpenseByItr!#REF! ->  | L31: =ExpenseByItr!#REF! ->  | M31: =ExpenseByItr!#REF! ->  | N31: =ExpenseByItr!#REF! ->  | P31: Purchase Expense | Q31: =ExpenseByItr!#REF! ->  | R31: =ExpenseByItr!#REF! ->  | S31: =ExpenseByItr!#REF! ->  | T31: =ExpenseByItr!#REF! ->  | U31: =ExpenseByItr!#REF! ->  | V31: =ExpenseByItr!#REF! ->  | W31: =ExpenseByItr!#REF! ->  | X31: =ExpenseByItr!#REF! ->  | Y31: =ExpenseByItr!#REF! ->  | Z31: =ExpenseByItr!#REF! ->  | AA31: =ExpenseByItr!#REF! ->  | AB31: =ExpenseByItr!#REF! ->  | AC31: =ExpenseByItr!#REF! -> 
A32: Credit | B32: =IFERROR((B31+(SUM(Update!$D$22:$F$22)*1000)/12)*Update!$G22,"") ->  | C32: =IFERROR((C31+(SUM(Update!$D$22:$F$22)*1000)/12)*Update!$G22,"") ->  | D32: =IFERROR((D31+(SUM(Update!$D$22:$F$22)*1000)/12)*Update!$G22,"") ->  | E32: =IFERROR((E31+(SUM(Update!$D$22:$F$22)*1000)/12)*Update!$G22,"") ->  | F32: =IFERROR((F31+(SUM(Update!$D$22:$F$22)*1000)/12)*Update!$G22,"") ->  | G32: =IFERROR((G31+(SUM(Update!$D$22:$F$22)*1000)/12)*Update!$G22,"") ->  | H32: =IFERROR((H31+(SUM(Update!$D$22:$F$22)*1000)/12)*Update!$G22,"") ->  | I32: =IFERROR((I31+(SUM(Update!$D$22:$F$22)*1000)/12)*Update!$G22,"") ->  | J32: =IFERROR((J31+(SUM(Update!$D$22:$F$22)*1000)/12)*Update!$G22,"") ->  | K32: =IFERROR((K31+(SUM(Update!$D$22:$F$22)*1000)/12)*Update!$G22,"") ->  | L32: =IFERROR((L31+(SUM(Update!$D$22:$F$22)*1000)/12)*Update!$G22,"") ->  | M32: =IFERROR((M31+(SUM(Update!$D$22:$F$22)*1000)/12)*Update!$G22,"") ->  | N32: =IFERROR((N31+(SUM(Update!$D$22:$F$22)*1000)/12)*Update!$G22,"") ->  | P32: Credit | Q32: =IFERROR((Q31+(SUM(Update!$D$23:$F$23)*1000)/12)*Update!$G23,"") ->  | R32: =IFERROR((R31+(SUM(Update!$D$23:$F$23)*1000)/12)*Update!$G23,"") ->  | S32: =IFERROR((S31+(SUM(Update!$D$23:$F$23)*1000)/12)*Update!$G23,"") ->  | T32: =IFERROR((T31+(SUM(Update!$D$23:$F$23)*1000)/12)*Update!$G23,"") ->  | U32: =IFERROR((U31+(SUM(Update!$D$23:$F$23)*1000)/12)*Update!$G23,"") ->  | V32: =IFERROR((V31+(SUM(Update!$D$23:$F$23)*1000)/12)*Update!$G23,"") ->  | W32: =IFERROR((W31+(SUM(Update!$D$23:$F$23)*1000)/12)*Update!$G23,"") ->  | X32: =IFERROR((X31+(SUM(Update!$D$23:$F$23)*1000)/12)*Update!$G23,"") ->  | Y32: =IFERROR((Y31+(SUM(Update!$D$23:$F$23)*1000)/12)*Update!$G23,"") ->  | Z32: =IFERROR((Z31+(SUM(Update!$D$23:$F$23)*1000)/12)*Update!$G23,"") ->  | AA32: =IFERROR((AA31+(SUM(Update!$D$23:$F$23)*1000)/12)*Update!$G23,"") ->  | AB32: =IFERROR((AB31+(SUM(Update!$D$23:$F$23)*1000)/12)*Update!$G23,"") ->  | AC32: =IFERROR((AC31+(SUM(Update!$D$23:$F$23)*1000)/12)*Update!$G23,"") -> 
A34: =IF(A36="","",Aurora_Descrp) ->  | P34: =IF(P36="","",Aurora_Descrp) -> 
G35: Directe Expense | H35: =Update!$D24 -> 0 | I35: Pices | J35: =Update!$E24 -> 0 | K35: Capital | L35: =Update!$F24 -> 0 | M35: =Update!$G24 -> 0 | N35: =IFERROR(((N39/1000)+SUM(H35,J35,L35))*M35,"") ->  | V35: Directe Expense | W35: =Update!$D165 -> 0 | X35: Pices | Y35: =Update!$E25 -> 0 | Z35: Capital | AA35: =Update!$F25 -> 0 | AB35: =Update!$G25 -> 0 | AC35: =IFERROR(((AC39/1000)+SUM(W35,Y35,AA35))*AB35,"") -> 
A36: =IF(Purch_9="","",Purch_9) ->  | B36: Oct | C36: Nov | D36: Dec | E36: Jan | F36: Feb | G36: Mar | H36: Apr | I36: May | J36: Jun | K36: Jul | L36: Aug | M36: Sep | N36: Total | P36: =IF(Purch_10="","",Purch_10) ->  | Q36: Oct | R36: Nov | S36: Dec | T36: Jan | U36: Feb | V36: Mar | W36: Apr | X36: May | Y36: Jun | Z36: Jul | AA36: Aug | AB36: Sep | AC36: Total
A37: Purchase (aMW) | B37: =ReplacementPurches!#REF! ->  | C37: =ReplacementPurches!#REF! ->  | D37: =ReplacementPurches!#REF! ->  | E37: =ReplacementPurches!#REF! ->  | F37: =ReplacementPurches!#REF! ->  | G37: =ReplacementPurches!#REF! ->  | H37: =ReplacementPurches!#REF! ->  | I37: =ReplacementPurches!#REF! ->  | J37: =ReplacementPurches!#REF! ->  | K37: =ReplacementPurches!#REF! ->  | L37: =ReplacementPurches!#REF! ->  | M37: =ReplacementPurches!#REF! ->  | N37: =ReplacementPurches!#REF! ->  | P37: Purchase (aMW) | Q37: =ReplacementPurches!#REF! ->  | R37: =ReplacementPurches!#REF! ->  | S37: =ReplacementPurches!#REF! ->  | T37: =ReplacementPurches!#REF! ->  | U37: =ReplacementPurches!#REF! ->  | V37: =ReplacementPurches!#REF! ->  | W37: =ReplacementPurches!#REF! ->  | X37: =ReplacementPurches!#REF! ->  | Y37: =ReplacementPurches!#REF! ->  | Z37: =ReplacementPurches!#REF! ->  | AA37: =ReplacementPurches!#REF! ->  | AB37: =ReplacementPurches!#REF! ->  | AC37: =ReplacementPurches!#REF! -> 
A38: Price | B38: =IFERROR((B39*1000)/(B37*PricesByItr!#REF!),"") ->  | C38: =IFERROR((C39*1000)/(C37*PricesByItr!#REF!),"") ->  | D38: =IFERROR((D39*1000)/(D37*PricesByItr!#REF!),"") ->  | E38: =IFERROR((E39*1000)/(E37*PricesByItr!#REF!),"") ->  | F38: =IFERROR((F39*1000)/(F37*PricesByItr!#REF!),"") ->  | G38: =IFERROR((G39*1000)/(G37*PricesByItr!#REF!),"") ->  | H38: =IFERROR((H39*1000)/(H37*PricesByItr!#REF!),"") ->  | I38: =IFERROR((I39*1000)/(I37*PricesByItr!#REF!),"") ->  | J38: =IFERROR((J39*1000)/(J37*PricesByItr!#REF!),"") ->  | K38: =IFERROR((K39*1000)/(K37*PricesByItr!#REF!),"") ->  | L38: =IFERROR((L39*1000)/(L37*PricesByItr!#REF!),"") ->  | M38: =IFERROR((M39*1000)/(M37*PricesByItr!#REF!),"") ->  | N38: =IFERROR((N39*1000)/(N37*PricesByItr!#REF!),"") ->  | P38: Price | Q38: =IFERROR((Q39*1000)/(Q37*PricesByItr!#REF!),"") ->  | R38: =IFERROR((R39*1000)/(R37*PricesByItr!#REF!),"") ->  | S38: =IFERROR((S39*1000)/(S37*PricesByItr!#REF!),"") ->  | T38: =IFERROR((T39*1000)/(T37*PricesByItr!#REF!),"") ->  | U38: =IFERROR((U39*1000)/(U37*PricesByItr!#REF!),"") ->  | V38: =IFERROR((V39*1000)/(V37*PricesByItr!#REF!),"") ->  | W38: =IFERROR((W39*1000)/(W37*PricesByItr!#REF!),"") ->  | X38: =IFERROR((X39*1000)/(X37*PricesByItr!#REF!),"") ->  | Y38: =IFERROR((Y39*1000)/(Y37*PricesByItr!#REF!),"") ->  | Z38: =IFERROR((Z39*1000)/(Z37*PricesByItr!#REF!),"") ->  | AA38: =IFERROR((AA39*1000)/(AA37*PricesByItr!#REF!),"") ->  | AB38: =IFERROR((AB39*1000)/(AB37*PricesByItr!#REF!),"") ->  | AC38: =IFERROR((AC39*1000)/(AC37*PricesByItr!#REF!),"") -> 
A39: Purchase Expense | B39: =ExpenseByItr!#REF! ->  | C39: =ExpenseByItr!#REF! ->  | D39: =ExpenseByItr!#REF! ->  | E39: =ExpenseByItr!#REF! ->  | F39: =ExpenseByItr!#REF! ->  | G39: =ExpenseByItr!#REF! ->  | H39: =ExpenseByItr!#REF! ->  | I39: =ExpenseByItr!#REF! ->  | J39: =ExpenseByItr!#REF! ->  | K39: =ExpenseByItr!#REF! ->  | L39: =ExpenseByItr!#REF! ->  | M39: =ExpenseByItr!#REF! ->  | N39: =ExpenseByItr!#REF! ->  | P39: Purchase Expense | Q39: =ExpenseByItr!#REF! ->  | R39: =ExpenseByItr!#REF! ->  | S39: =ExpenseByItr!#REF! ->  | T39: =ExpenseByItr!#REF! ->  | U39: =ExpenseByItr!#REF! ->  | V39: =ExpenseByItr!#REF! ->  | W39: =ExpenseByItr!#REF! ->  | X39: =ExpenseByItr!#REF! ->  | Y39: =ExpenseByItr!#REF! ->  | Z39: =ExpenseByItr!#REF! ->  | AA39: =ExpenseByItr!#REF! ->  | AB39: =ExpenseByItr!#REF! ->  | AC39: =ExpenseByItr!#REF! -> 
A40: Credit | B40: =IFERROR((B39+(SUM(Update!$D$24:$F$24)*1000)/12)*Update!$G24,"") ->  | C40: =IFERROR((C39+(SUM(Update!$D$24:$F$24)*1000)/12)*Update!$G24,"") ->  | D40: =IFERROR((D39+(SUM(Update!$D$24:$F$24)*1000)/12)*Update!$G24,"") ->  | E40: =IFERROR((E39+(SUM(Update!$D$24:$F$24)*1000)/12)*Update!$G24,"") ->  | F40: =IFERROR((F39+(SUM(Update!$D$24:$F$24)*1000)/12)*Update!$G24,"") ->  | G40: =IFERROR((G39+(SUM(Update!$D$24:$F$24)*1000)/12)*Update!$G24,"") ->  | H40: =IFERROR((H39+(SUM(Update!$D$24:$F$24)*1000)/12)*Update!$G24,"") ->  | I40: =IFERROR((I39+(SUM(Update!$D$24:$F$24)*1000)/12)*Update!$G24,"") ->  | J40: =IFERROR((J39+(SUM(Update!$D$24:$F$24)*1000)/12)*Update!$G24,"") ->  | K40: =IFERROR((K39+(SUM(Update!$D$24:$F$24)*1000)/12)*Update!$G24,"") ->  | L40: =IFERROR((L39+(SUM(Update!$D$24:$F$24)*1000)/12)*Update!$G24,"") ->  | M40: =IFERROR((M39+(SUM(Update!$D$24:$F$24)*1000)/12)*Update!$G24,"") ->  | N40: =IFERROR((N39+(SUM(Update!$D$24:$F$24)*1000)/12)*Update!$G24,"") ->  | P40: Credit | Q40: =IFERROR((Q39+(SUM(Update!$D$25:$F$25)*1000)/12)*Update!$G25,"") ->  | R40: =IFERROR((R39+(SUM(Update!$D$25:$F$25)*1000)/12)*Update!$G25,"") ->  | S40: =IFERROR((S39+(SUM(Update!$D$25:$F$25)*1000)/12)*Update!$G25,"") ->  | T40: =IFERROR((T39+(SUM(Update!$D$25:$F$25)*1000)/12)*Update!$G25,"") ->  | U40: =IFERROR((U39+(SUM(Update!$D$25:$F$25)*1000)/12)*Update!$G25,"") ->  | V40: =IFERROR((V39+(SUM(Update!$D$25:$F$25)*1000)/12)*Update!$G25,"") ->  | W40: =IFERROR((W39+(SUM(Update!$D$25:$F$25)*1000)/12)*Update!$G25,"") ->  | X40: =IFERROR((X39+(SUM(Update!$D$25:$F$25)*1000)/12)*Update!$G25,"") ->  | Y40: =IFERROR((Y39+(SUM(Update!$D$25:$F$25)*1000)/12)*Update!$G25,"") ->  | Z40: =IFERROR((Z39+(SUM(Update!$D$25:$F$25)*1000)/12)*Update!$G25,"") ->  | AA40: =IFERROR((AA39+(SUM(Update!$D$25:$F$25)*1000)/12)*Update!$G25,"") ->  | AB40: =IFERROR((AB39+(SUM(Update!$D$25:$F$25)*1000)/12)*Update!$G25,"") ->  | AC40: =IFERROR((AC39+(SUM(Update!$D$25:$F$25)*1000)/12)*Update!$G25,"") -> 
A42: =IF(A44="","",Aurora_Descrp) ->  | P42: =IF(P44="","",Aurora_Descrp) -> 
G43: Directe Expense | H43: =Update!$D32 ->  | I43: Pices | J43: =Update!$E32 ->  | K43: Capital | L43: =Update!$F32 ->  | M43: =Update!$G32 ->  | N43: =IFERROR(((N47/1000)+SUM(H43,J43,L43))*M43,"") ->  | V43: Directe Expense | W43: =Update!$D173 -> 0 | X43: Pices | Y43: =Update!$E33 ->  | Z43: Capital | AA43: =Update!$F33 ->  | AB43: =Update!$G33 ->  | AC43: =IFERROR(((AC47/1000)+SUM(W43,Y43,AA43))*AB43,"") -> 
A44: =IF(Purch_10="","",Purch_10) ->  | B44: Oct | C44: Nov | D44: Dec | E44: Jan | F44: Feb | G44: Mar | H44: Apr | I44: May | J44: Jun | K44: Jul | L44: Aug | M44: Sep | N44: Total | P44: =IF(Purch_11="","",Purch_11) ->  | Q44: Oct | R44: Nov | S44: Dec | T44: Jan | U44: Feb | V44: Mar | W44: Apr | X44: May | Y44: Jun | Z44: Jul | AA44: Aug | AB44: Sep | AC44: Total
A45: Purchase (aMW) | B45: =ReplacementPurches!#REF! ->  | C45: =ReplacementPurches!#REF! ->  | D45: =ReplacementPurches!#REF! ->  | E45: =ReplacementPurches!#REF! ->  | F45: =ReplacementPurches!#REF! ->  | G45: =ReplacementPurches!#REF! ->  | H45: =ReplacementPurches!#REF! ->  | I45: =ReplacementPurches!#REF! ->  | J45: =ReplacementPurches!#REF! ->  | K45: =ReplacementPurches!#REF! ->  | L45: =ReplacementPurches!#REF! ->  | M45: =ReplacementPurches!#REF! ->  | N45: =ReplacementPurches!#REF! ->  | P45: Purchase (aMW) | Q45: =ReplacementPurches!#REF! ->  | R45: =ReplacementPurches!#REF! ->  | S45: =ReplacementPurches!#REF! ->  | T45: =ReplacementPurches!#REF! ->  | U45: =ReplacementPurches!#REF! ->  | V45: =ReplacementPurches!#REF! ->  | W45: =ReplacementPurches!#REF! ->  | X45: =ReplacementPurches!#REF! ->  | Y45: =ReplacementPurches!#REF! ->  | Z45: =ReplacementPurches!#REF! ->  | AA45: =ReplacementPurches!#REF! ->  | AB45: =ReplacementPurches!#REF! ->  | AC45: =ReplacementPurches!#REF! -> 
A46: Price | B46: =IFERROR((B47*1000)/(B45*PricesByItr!#REF!),"") ->  | C46: =IFERROR((C47*1000)/(C45*PricesByItr!#REF!),"") ->  | D46: =IFERROR((D47*1000)/(D45*PricesByItr!#REF!),"") ->  | E46: =IFERROR((E47*1000)/(E45*PricesByItr!#REF!),"") ->  | F46: =IFERROR((F47*1000)/(F45*PricesByItr!#REF!),"") ->  | G46: =IFERROR((G47*1000)/(G45*PricesByItr!#REF!),"") ->  | H46: =IFERROR((H47*1000)/(H45*PricesByItr!#REF!),"") ->  | I46: =IFERROR((I47*1000)/(I45*PricesByItr!#REF!),"") ->  | J46: =IFERROR((J47*1000)/(J45*PricesByItr!#REF!),"") ->  | K46: =IFERROR((K47*1000)/(K45*PricesByItr!#REF!),"") ->  | L46: =IFERROR((L47*1000)/(L45*PricesByItr!#REF!),"") ->  | M46: =IFERROR((M47*1000)/(M45*PricesByItr!#REF!),"") ->  | N46: =IFERROR((N47*1000)/(N45*PricesByItr!#REF!),"") ->  | P46: Price | Q46: =IFERROR((Q47*1000)/(Q45*PricesByItr!#REF!),"") ->  | R46: =IFERROR((R47*1000)/(R45*PricesByItr!#REF!),"") ->  | S46: =IFERROR((S47*1000)/(S45*PricesByItr!#REF!),"") ->  | T46: =IFERROR((T47*1000)/(T45*PricesByItr!#REF!),"") ->  | U46: =IFERROR((U47*1000)/(U45*PricesByItr!#REF!),"") ->  | V46: =IFERROR((V47*1000)/(V45*PricesByItr!#REF!),"") ->  | W46: =IFERROR((W47*1000)/(W45*PricesByItr!#REF!),"") ->  | X46: =IFERROR((X47*1000)/(X45*PricesByItr!#REF!),"") ->  | Y46: =IFERROR((Y47*1000)/(Y45*PricesByItr!#REF!),"") ->  | Z46: =IFERROR((Z47*1000)/(Z45*PricesByItr!#REF!),"") ->  | AA46: =IFERROR((AA47*1000)/(AA45*PricesByItr!#REF!),"") ->  | AB46: =IFERROR((AB47*1000)/(AB45*PricesByItr!#REF!),"") ->  | AC46: =IFERROR((AC47*1000)/(AC45*PricesByItr!#REF!),"") -> 
A47: Purchase Expense | B47: =ExpenseByItr!#REF! ->  | C47: =ExpenseByItr!#REF! ->  | D47: =ExpenseByItr!#REF! ->  | E47: =ExpenseByItr!#REF! ->  | F47: =ExpenseByItr!#REF! ->  | G47: =ExpenseByItr!#REF! ->  | H47: =ExpenseByItr!#REF! ->  | I47: =ExpenseByItr!#REF! ->  | J47: =ExpenseByItr!#REF! ->  | K47: =ExpenseByItr!#REF! ->  | L47: =ExpenseByItr!#REF! ->  | M47: =ExpenseByItr!#REF! ->  | N47: =SUM(B47:M47) ->  | P47: Purchase Expense | Q47: =ExpenseByItr!#REF! ->  | R47: =ExpenseByItr!#REF! ->  | S47: =ExpenseByItr!#REF! ->  | T47: =ExpenseByItr!#REF! ->  | U47: =ExpenseByItr!#REF! ->  | V47: =ExpenseByItr!#REF! ->  | W47: =ExpenseByItr!#REF! ->  | X47: =ExpenseByItr!#REF! ->  | Y47: =ExpenseByItr!#REF! ->  | Z47: =ExpenseByItr!#REF! ->  | AA47: =ExpenseByItr!#REF! ->  | AB47: =ExpenseByItr!#REF! ->  | AC47: =SUM(Q47:AB47) -> 
A48: Credit | B48: =IFERROR((B47+(SUM(Update!$D$24:$F$24)*1000)/12)*Update!$G32,"") ->  | C48: =IFERROR((C47+(SUM(Update!$D$24:$F$24)*1000)/12)*Update!$G32,"") ->  | D48: =IFERROR((D47+(SUM(Update!$D$24:$F$24)*1000)/12)*Update!$G32,"") ->  | E48: =IFERROR((E47+(SUM(Update!$D$24:$F$24)*1000)/12)*Update!$G32,"") ->  | F48: =IFERROR((F47+(SUM(Update!$D$24:$F$24)*1000)/12)*Update!$G32,"") ->  | G48: =IFERROR((G47+(SUM(Update!$D$24:$F$24)*1000)/12)*Update!$G32,"") ->  | H48: =IFERROR((H47+(SUM(Update!$D$24:$F$24)*1000)/12)*Update!$G32,"") ->  | I48: =IFERROR((I47+(SUM(Update!$D$24:$F$24)*1000)/12)*Update!$G32,"") ->  | J48: =IFERROR((J47+(SUM(Update!$D$24:$F$24)*1000)/12)*Update!$G32,"") ->  | K48: =IFERROR((K47+(SUM(Update!$D$24:$F$24)*1000)/12)*Update!$G32,"") ->  | L48: =IFERROR((L47+(SUM(Update!$D$24:$F$24)*1000)/12)*Update!$G32,"") ->  | M48: =IFERROR((M47+(SUM(Update!$D$24:$F$24)*1000)/12)*Update!$G32,"") ->  | N48: =IFERROR((N47+(SUM(Update!$D$24:$F$24)*1000)/12)*Update!$G32,"") ->  | P48: Credit | Q48: =IFERROR((Q47+(SUM(Update!$D$25:$F$25)*1000)/12)*Update!$G33,"") ->  | R48: =IFERROR((R47+(SUM(Update!$D$25:$F$25)*1000)/12)*Update!$G33,"") ->  | S48: =IFERROR((S47+(SUM(Update!$D$25:$F$25)*1000)/12)*Update!$G33,"") ->  | T48: =IFERROR((T47+(SUM(Update!$D$25:$F$25)*1000)/12)*Update!$G33,"") ->  | U48: =IFERROR((U47+(SUM(Update!$D$25:$F$25)*1000)/12)*Update!$G33,"") ->  | V48: =IFERROR((V47+(SUM(Update!$D$25:$F$25)*1000)/12)*Update!$G33,"") ->  | W48: =IFERROR((W47+(SUM(Update!$D$25:$F$25)*1000)/12)*Update!$G33,"") ->  | X48: =IFERROR((X47+(SUM(Update!$D$25:$F$25)*1000)/12)*Update!$G33,"") ->  | Y48: =IFERROR((Y47+(SUM(Update!$D$25:$F$25)*1000)/12)*Update!$G33,"") ->  | Z48: =IFERROR((Z47+(SUM(Update!$D$25:$F$25)*1000)/12)*Update!$G33,"") ->  | AA48: =IFERROR((AA47+(SUM(Update!$D$25:$F$25)*1000)/12)*Update!$G33,"") ->  | AB48: =IFERROR((AB47+(SUM(Update!$D$25:$F$25)*1000)/12)*Update!$G33,"") ->  | AC48: =IFERROR((AC47+(SUM(Update!$D$25:$F$25)*1000)/12)*Update!$G33,"") -> 
A50: =IF(A52="","",Aurora_Descrp) ->  | P50: =IF(P52="","",Aurora_Descrp) -> 
G51: Directe Expense | H51: =Update!$D40 ->  | I51: Pices | J51: =Update!$E40 ->  | K51: Capital | L51: =Update!$F40 ->  | M51: =Update!$G40 ->  | N51: =IFERROR(((N55/1000)+SUM(H51,J51,L51))*M51,"") ->  | V51: Directe Expense | W51: =Update!$D181 -> 0 | X51: Pices | Y51: =Update!$E41 ->  | Z51: Capital | AA51: =Update!$F41 ->  | AB51: =Update!$G41 ->  | AC51: =IFERROR(((AC55/1000)+SUM(W51,Y51,AA51))*AB51,"") -> 
A52: =IF(Purch_12="","",Purch_12) ->  | B52: Oct | C52: Nov | D52: Dec | E52: Jan | F52: Feb | G52: Mar | H52: Apr | I52: May | J52: Jun | K52: Jul | L52: Aug | M52: Sep | N52: Total | P52: =IF(Purch_13="","",Purch_13) ->  | Q52: Oct | R52: Nov | S52: Dec | T52: Jan | U52: Feb | V52: Mar | W52: Apr | X52: May | Y52: Jun | Z52: Jul | AA52: Aug | AB52: Sep | AC52: Total
A53: Purchase (aMW) | B53: =ReplacementPurches!#REF! ->  | C53: =ReplacementPurches!#REF! ->  | D53: =ReplacementPurches!#REF! ->  | E53: =ReplacementPurches!#REF! ->  | F53: =ReplacementPurches!#REF! ->  | G53: =ReplacementPurches!#REF! ->  | H53: =ReplacementPurches!#REF! ->  | I53: =ReplacementPurches!#REF! ->  | J53: =ReplacementPurches!#REF! ->  | K53: =ReplacementPurches!#REF! ->  | L53: =ReplacementPurches!#REF! ->  | M53: =ReplacementPurches!#REF! ->  | N53: =ReplacementPurches!#REF! ->  | P53: Purchase (aMW) | Q53: =ReplacementPurches!#REF! ->  | R53: =ReplacementPurches!#REF! ->  | S53: =ReplacementPurches!#REF! ->  | T53: =ReplacementPurches!#REF! ->  | U53: =ReplacementPurches!#REF! ->  | V53: =ReplacementPurches!#REF! ->  | W53: =ReplacementPurches!#REF! ->  | X53: =ReplacementPurches!#REF! ->  | Y53: =ReplacementPurches!#REF! ->  | Z53: =ReplacementPurches!#REF! ->  | AA53: =ReplacementPurches!#REF! ->  | AB53: =ReplacementPurches!#REF! ->  | AC53: =ReplacementPurches!#REF! -> 
A54: Price | B54: =IFERROR((B55*1000)/(B53*PricesByItr!#REF!),"") ->  | C54: =IFERROR((C55*1000)/(C53*PricesByItr!#REF!),"") ->  | D54: =IFERROR((D55*1000)/(D53*PricesByItr!#REF!),"") ->  | E54: =IFERROR((E55*1000)/(E53*PricesByItr!#REF!),"") ->  | F54: =IFERROR((F55*1000)/(F53*PricesByItr!#REF!),"") ->  | G54: =IFERROR((G55*1000)/(G53*PricesByItr!#REF!),"") ->  | H54: =IFERROR((H55*1000)/(H53*PricesByItr!#REF!),"") ->  | I54: =IFERROR((I55*1000)/(I53*PricesByItr!#REF!),"") ->  | J54: =IFERROR((J55*1000)/(J53*PricesByItr!#REF!),"") ->  | K54: =IFERROR((K55*1000)/(K53*PricesByItr!#REF!),"") ->  | L54: =IFERROR((L55*1000)/(L53*PricesByItr!#REF!),"") ->  | M54: =IFERROR((M55*1000)/(M53*PricesByItr!#REF!),"") ->  | N54: =IFERROR((N55*1000)/(N53*PricesByItr!#REF!),"") ->  | P54: Price | Q54: =IFERROR((Q55*1000)/(Q53*PricesByItr!#REF!),"") ->  | R54: =IFERROR((R55*1000)/(R53*PricesByItr!#REF!),"") ->  | S54: =IFERROR((S55*1000)/(S53*PricesByItr!#REF!),"") ->  | T54: =IFERROR((T55*1000)/(T53*PricesByItr!#REF!),"") ->  | U54: =IFERROR((U55*1000)/(U53*PricesByItr!#REF!),"") ->  | V54: =IFERROR((V55*1000)/(V53*PricesByItr!#REF!),"") ->  | W54: =IFERROR((W55*1000)/(W53*PricesByItr!#REF!),"") ->  | X54: =IFERROR((X55*1000)/(X53*PricesByItr!#REF!),"") ->  | Y54: =IFERROR((Y55*1000)/(Y53*PricesByItr!#REF!),"") ->  | Z54: =IFERROR((Z55*1000)/(Z53*PricesByItr!#REF!),"") ->  | AA54: =IFERROR((AA55*1000)/(AA53*PricesByItr!#REF!),"") ->  | AB54: =IFERROR((AB55*1000)/(AB53*PricesByItr!#REF!),"") ->  | AC54: =IFERROR((AC55*1000)/(AC53*PricesByItr!#REF!),"") -> 
A55: Purchase Expense | B55: =ExpenseByItr!#REF! ->  | C55: =ExpenseByItr!#REF! ->  | D55: =ExpenseByItr!#REF! ->  | E55: =ExpenseByItr!#REF! ->  | F55: =ExpenseByItr!#REF! ->  | G55: =ExpenseByItr!#REF! ->  | H55: =ExpenseByItr!#REF! ->  | I55: =ExpenseByItr!#REF! ->  | J55: =ExpenseByItr!#REF! ->  | K55: =ExpenseByItr!#REF! ->  | L55: =ExpenseByItr!#REF! ->  | M55: =ExpenseByItr!#REF! ->  | N55: =ExpenseByItr!#REF! ->  | P55: Purchase Expense | Q55: =ExpenseByItr!#REF! ->  | R55: =ExpenseByItr!#REF! ->  | S55: =ExpenseByItr!#REF! ->  | T55: =ExpenseByItr!#REF! ->  | U55: =ExpenseByItr!#REF! ->  | V55: =ExpenseByItr!#REF! ->  | W55: =ExpenseByItr!#REF! ->  | X55: =ExpenseByItr!#REF! ->  | Y55: =ExpenseByItr!#REF! ->  | Z55: =ExpenseByItr!#REF! ->  | AA55: =ExpenseByItr!#REF! ->  | AB55: =ExpenseByItr!#REF! ->  | AC55: =ExpenseByItr!#REF! -> 
A56: Credit | B56: =IFERROR((B55+(SUM(Update!$D$24:$F$24)*1000)/12)*Update!$G40,"") ->  | C56: =IFERROR((C55+(SUM(Update!$D$24:$F$24)*1000)/12)*Update!$G40,"") ->  | D56: =IFERROR((D55+(SUM(Update!$D$24:$F$24)*1000)/12)*Update!$G40,"") ->  | E56: =IFERROR((E55+(SUM(Update!$D$24:$F$24)*1000)/12)*Update!$G40,"") ->  | F56: =IFERROR((F55+(SUM(Update!$D$24:$F$24)*1000)/12)*Update!$G40,"") ->  | G56: =IFERROR((G55+(SUM(Update!$D$24:$F$24)*1000)/12)*Update!$G40,"") ->  | H56: =IFERROR((H55+(SUM(Update!$D$24:$F$24)*1000)/12)*Update!$G40,"") ->  | I56: =IFERROR((I55+(SUM(Update!$D$24:$F$24)*1000)/12)*Update!$G40,"") ->  | J56: =IFERROR((J55+(SUM(Update!$D$24:$F$24)*1000)/12)*Update!$G40,"") ->  | K56: =IFERROR((K55+(SUM(Update!$D$24:$F$24)*1000)/12)*Update!$G40,"") ->  | L56: =IFERROR((L55+(SUM(Update!$D$24:$F$24)*1000)/12)*Update!$G40,"") ->  | M56: =IFERROR((M55+(SUM(Update!$D$24:$F$24)*1000)/12)*Update!$G40,"") ->  | N56: =IFERROR((N55+(SUM(Update!$D$24:$F$24)*1000)/12)*Update!$G40,"") ->  | P56: Credit | Q56: =IFERROR((Q55+(SUM(Update!$D$25:$F$25)*1000)/12)*Update!$G41,"") ->  | R56: =IFERROR((R55+(SUM(Update!$D$25:$F$25)*1000)/12)*Update!$G41,"") ->  | S56: =IFERROR((S55+(SUM(Update!$D$25:$F$25)*1000)/12)*Update!$G41,"") ->  | T56: =IFERROR((T55+(SUM(Update!$D$25:$F$25)*1000)/12)*Update!$G41,"") ->  | U56: =IFERROR((U55+(SUM(Update!$D$25:$F$25)*1000)/12)*Update!$G41,"") ->  | V56: =IFERROR((V55+(SUM(Update!$D$25:$F$25)*1000)/12)*Update!$G41,"") ->  | W56: =IFERROR((W55+(SUM(Update!$D$25:$F$25)*1000)/12)*Update!$G41,"") ->  | X56: =IFERROR((X55+(SUM(Update!$D$25:$F$25)*1000)/12)*Update!$G41,"") ->  | Y56: =IFERROR((Y55+(SUM(Update!$D$25:$F$25)*1000)/12)*Update!$G41,"") ->  | Z56: =IFERROR((Z55+(SUM(Update!$D$25:$F$25)*1000)/12)*Update!$G41,"") ->  | AA56: =IFERROR((AA55+(SUM(Update!$D$25:$F$25)*1000)/12)*Update!$G41,"") ->  | AB56: =IFERROR((AB55+(SUM(Update!$D$25:$F$25)*1000)/12)*Update!$G41,"") ->  | AC56: =IFERROR((AC55+(SUM(Update!$D$25:$F$25)*1000)/12)*Update!$G41,"") -> 
A58: =IF(A60="","",Aurora_Descrp) ->  | P58: =IF(P60="","",Aurora_Descrp) -> 
G59: Directe Expense | H59: =Update!$D48 -> 0 | I59: Pices | J59: =Update!$E48 -> 0 | K59: Capital | L59: =Update!$F48 -> 0 | M59: =Update!$G48 -> 0 | N59: =IFERROR(((N63/1000)+SUM(H59,J59,L59))*M59,"") ->  | V59: Directe Expense | W59: =Update!$D189 -> 0 | X59: Pices | Y59: =Update!$E49 -> Jan | Z59: Capital | AA59: =Update!$F49 -> Feb | AB59: =Update!$G49 -> Mar | AC59: =IFERROR(((AC63/1000)+SUM(W59,Y59,AA59))*AB59,"") -> 
A60: =IF(Purch_14="","",Purch_14) ->  | B60: Oct | C60: Nov | D60: Dec | E60: Jan | F60: Feb | G60: Mar | H60: Apr | I60: May | J60: Jun | K60: Jul | L60: Aug | M60: Sep | N60: Total | P60: =IF(Purch_15="","",Purch_15) ->  | Q60: Oct | R60: Nov | S60: Dec | T60: Jan | U60: Feb | V60: Mar | W60: Apr | X60: May | Y60: Jun | Z60: Jul | AA60: Aug | AB60: Sep | AC60: Total
A61: Purchase (aMW) | B61: =ReplacementPurches!#REF! ->  | C61: =ReplacementPurches!#REF! ->  | D61: =ReplacementPurches!#REF! ->  | E61: =ReplacementPurches!#REF! ->  | F61: =ReplacementPurches!#REF! ->  | G61: =ReplacementPurches!#REF! ->  | H61: =ReplacementPurches!#REF! ->  | I61: =ReplacementPurches!#REF! ->  | J61: =ReplacementPurches!#REF! ->  | K61: =ReplacementPurches!#REF! ->  | L61: =ReplacementPurches!#REF! ->  | M61: =ReplacementPurches!#REF! ->  | N61: =ReplacementPurches!#REF! ->  | P61: Purchase (aMW) | Q61: =ReplacementPurches!#REF! ->  | R61: =ReplacementPurches!#REF! ->  | S61: =ReplacementPurches!#REF! ->  | T61: =ReplacementPurches!#REF! ->  | U61: =ReplacementPurches!#REF! ->  | V61: =ReplacementPurches!#REF! ->  | W61: =ReplacementPurches!#REF! ->  | X61: =ReplacementPurches!#REF! ->  | Y61: =ReplacementPurches!#REF! ->  | Z61: =ReplacementPurches!#REF! ->  | AA61: =ReplacementPurches!#REF! ->  | AB61: =ReplacementPurches!#REF! ->  | AC61: =ReplacementPurches!#REF! -> 
A62: Price | B62: =IFERROR((B63*1000)/(B61*PricesByItr!#REF!),"") ->  | C62: =IFERROR((C63*1000)/(C61*PricesByItr!#REF!),"") ->  | D62: =IFERROR((D63*1000)/(D61*PricesByItr!#REF!),"") ->  | E62: =IFERROR((E63*1000)/(E61*PricesByItr!#REF!),"") ->  | F62: =IFERROR((F63*1000)/(F61*PricesByItr!#REF!),"") ->  | G62: =IFERROR((G63*1000)/(G61*PricesByItr!#REF!),"") ->  | H62: =IFERROR((H63*1000)/(H61*PricesByItr!#REF!),"") ->  | I62: =IFERROR((I63*1000)/(I61*PricesByItr!#REF!),"") ->  | J62: =IFERROR((J63*1000)/(J61*PricesByItr!#REF!),"") ->  | K62: =IFERROR((K63*1000)/(K61*PricesByItr!#REF!),"") ->  | L62: =IFERROR((L63*1000)/(L61*PricesByItr!#REF!),"") ->  | M62: =IFERROR((M63*1000)/(M61*PricesByItr!#REF!),"") ->  | N62: =IFERROR((N63*1000)/(N61*PricesByItr!#REF!),"") ->  | P62: Price | Q62: =IFERROR((Q63*1000)/(Q61*PricesByItr!#REF!),"") ->  | R62: =IFERROR((R63*1000)/(R61*PricesByItr!#REF!),"") ->  | S62: =IFERROR((S63*1000)/(S61*PricesByItr!#REF!),"") ->  | T62: =IFERROR((T63*1000)/(T61*PricesByItr!#REF!),"") ->  | U62: =IFERROR((U63*1000)/(U61*PricesByItr!#REF!),"") ->  | V62: =IFERROR((V63*1000)/(V61*PricesByItr!#REF!),"") ->  | W62: =IFERROR((W63*1000)/(W61*PricesByItr!#REF!),"") ->  | X62: =IFERROR((X63*1000)/(X61*PricesByItr!#REF!),"") ->  | Y62: =IFERROR((Y63*1000)/(Y61*PricesByItr!#REF!),"") ->  | Z62: =IFERROR((Z63*1000)/(Z61*PricesByItr!#REF!),"") ->  | AA62: =IFERROR((AA63*1000)/(AA61*PricesByItr!#REF!),"") ->  | AB62: =IFERROR((AB63*1000)/(AB61*PricesByItr!#REF!),"") ->  | AC62: =IFERROR((AC63*1000)/(AC61*PricesByItr!#REF!),"") -> 
A63: Purchase Expense | B63: =ExpenseByItr!#REF! ->  | C63: =ExpenseByItr!#REF! ->  | D63: =ExpenseByItr!#REF! ->  | E63: =ExpenseByItr!#REF! ->  | F63: =ExpenseByItr!#REF! ->  | G63: =ExpenseByItr!#REF! ->  | H63: =ExpenseByItr!#REF! ->  | I63: =ExpenseByItr!#REF! ->  | J63: =ExpenseByItr!#REF! ->  | K63: =ExpenseByItr!#REF! ->  | L63: =ExpenseByItr!#REF! ->  | M63: =ExpenseByItr!#REF! ->  | N63: =ExpenseByItr!#REF! ->  | P63: Purchase Expense | Q63: =ExpenseByItr!#REF! ->  | R63: =ExpenseByItr!#REF! ->  | S63: =ExpenseByItr!#REF! ->  | T63: =ExpenseByItr!#REF! ->  | U63: =ExpenseByItr!#REF! ->  | V63: =ExpenseByItr!#REF! ->  | W63: =ExpenseByItr!#REF! ->  | X63: =ExpenseByItr!#REF! ->  | Y63: =ExpenseByItr!#REF! ->  | Z63: =ExpenseByItr!#REF! ->  | AA63: =ExpenseByItr!#REF! ->  | AB63: =ExpenseByItr!#REF! ->  | AC63: =ExpenseByItr!#REF! -> 
A64: Credit | B64: =IFERROR((B63+(SUM(Update!$D$24:$F$24)*1000)/12)*Update!$G48,"") ->  | C64: =IFERROR((C63+(SUM(Update!$D$24:$F$24)*1000)/12)*Update!$G48,"") ->  | D64: =IFERROR((D63+(SUM(Update!$D$24:$F$24)*1000)/12)*Update!$G48,"") ->  | E64: =IFERROR((E63+(SUM(Update!$D$24:$F$24)*1000)/12)*Update!$G48,"") ->  | F64: =IFERROR((F63+(SUM(Update!$D$24:$F$24)*1000)/12)*Update!$G48,"") ->  | G64: =IFERROR((G63+(SUM(Update!$D$24:$F$24)*1000)/12)*Update!$G48,"") ->  | H64: =IFERROR((H63+(SUM(Update!$D$24:$F$24)*1000)/12)*Update!$G48,"") ->  | I64: =IFERROR((I63+(SUM(Update!$D$24:$F$24)*1000)/12)*Update!$G48,"") ->  | J64: =IFERROR((J63+(SUM(Update!$D$24:$F$24)*1000)/12)*Update!$G48,"") ->  | K64: =IFERROR((K63+(SUM(Update!$D$24:$F$24)*1000)/12)*Update!$G48,"") ->  | L64: =IFERROR((L63+(SUM(Update!$D$24:$F$24)*1000)/12)*Update!$G48,"") ->  | M64: =IFERROR((M63+(SUM(Update!$D$24:$F$24)*1000)/12)*Update!$G48,"") ->  | N64: =IFERROR((N63+(SUM(Update!$D$24:$F$24)*1000)/12)*Update!$G48,"") ->  | P64: Credit | Q64: =IFERROR((Q63+(SUM(Update!$D$25:$F$25)*1000)/12)*Update!$G49,"") ->  | R64: =IFERROR((R63+(SUM(Update!$D$25:$F$25)*1000)/12)*Update!$G49,"") ->  | S64: =IFERROR((S63+(SUM(Update!$D$25:$F$25)*1000)/12)*Update!$G49,"") ->  | T64: =IFERROR((T63+(SUM(Update!$D$25:$F$25)*1000)/12)*Update!$G49,"") ->  | U64: =IFERROR((U63+(SUM(Update!$D$25:$F$25)*1000)/12)*Update!$G49,"") ->  | V64: =IFERROR((V63+(SUM(Update!$D$25:$F$25)*1000)/12)*Update!$G49,"") ->  | W64: =IFERROR((W63+(SUM(Update!$D$25:$F$25)*1000)/12)*Update!$G49,"") ->  | X64: =IFERROR((X63+(SUM(Update!$D$25:$F$25)*1000)/12)*Update!$G49,"") ->  | Y64: =IFERROR((Y63+(SUM(Update!$D$25:$F$25)*1000)/12)*Update!$G49,"") ->  | Z64: =IFERROR((Z63+(SUM(Update!$D$25:$F$25)*1000)/12)*Update!$G49,"") ->  | AA64: =IFERROR((AA63+(SUM(Update!$D$25:$F$25)*1000)/12)*Update!$G49,"") ->  | AB64: =IFERROR((AB63+(SUM(Update!$D$25:$F$25)*1000)/12)*Update!$G49,"") ->  | AC64: =IFERROR((AC63+(SUM(Update!$D$25:$F$25)*1000)/12)*Update!$G49,"") -> 
A69: BP18 Final Proposal | P69: BP18 Final Proposal
G70: Directe Expense | H70: 288.0822254 | I70: Pices | J70: 0 | K70: Capital | L70: 50.53249212 | M70: 0.223 | N70: 93.17195422 | V70: Directe Expense | W70: 288.3304203 | X70: Pices | Y70: 0 | Z70: Capital | AA70: 44.00000004 | AB70: 0.223 | AC70: 91.52551627
A71: 2018 | B71: Oct | C71: Nov | D71: Dec | E71: Jan | F71: Feb | G71: Mar | H71: Apr | I71: May | J71: Jun | K71: Jul | L71: Aug | M71: Sep | N71: Total | P71: 2019 | Q71: Oct | R71: Nov | S71: Dec | T71: Jan | U71: Feb | V71: Mar | W71: Apr | X71: May | Y71: Jun | Z71: Jul | AA71: Aug | AB71: Sep | AC71: Total
A72: Purchase (aMW) | B72: 793.6375 | C72: 304.2375 | D72: 615.1 | E72: 760.425 | F72: 509.325 | G72: 299.05 | H72: 187.38125 | I72: 86.95 | J72: 273.475 | K72: 32.7125 | L72: -40.80080645 | M72: 354.1 | N72: 347.3874757 | P72: Purchase (aMW) | Q72: 785.575 | R72: 320.9875 | S72: 610.225 | T72: 745.2 | U72: 521.7125 | V72: 273.5 | W72: 189.425 | X72: 87.95 | Y72: 283.025 | Z72: 32.5125 | AA72: -15.43225806 | AB72: 374.1 | AC72: 349.9766881
A73: Price | B73: 25.66287691 | C73: 26.53102706 | D73: 29.6125616 | E73: 30.07741887 | F73: 28.68381688 | G73: 23.31405168 | H73: 18.52787182 | I73: 12.68019697 | J73: 16.08291375 | K73: 22.22047214 | L73: 25.72180446 | M73: 25.14693065 | N73: 26.02489715 | P73: Price | Q73: 24.07855548 | R73: 25.18701005 | S73: 28.84335598 | T73: 29.54992764 | U73: 29.09756853 | V73: 22.763743 | W73: 18.4846364 | X73: 13.35058146 | Y73: 17.17525224 | Z73: 22.28936661 | AA73: 26.76539226 | AB73: 25.11083179 | AC73: 25.4739419
A74: Purchase Expense | B74: 15153.06398 | C74: 5819.719742 | D74: 13551.72686 | E74: 17016.48621 | F74: 9817.50674 | G74: 5180.245897 | H74: 2499.678563 | I74: 820.2920859 | J74: 3166.757884 | K74: 540.804073 | L74: -780.8059518 | M74: 6411.260264 | N74: 79196.73634 | P74: Purchase Expense | Q74: 14073.14035 | R74: 5829.079796 | S74: 13095.09706 | T74: 16383.33092 | U74: 10201.33983 | V74: 4625.831597 | W74: 2521.04562 | X74: 873.5926276 | Y74: 3499.938552 | Z74: 539.1641757 | AA74: -307.3095277 | AB74: 6763.652765 | AC74: 78097.90376
A75: Credit | B75: 9671.723434 | C75: 7590.387671 | D75: 9314.625258 | E75: 10087.26659 | F75: 8481.894171 | G75: 7447.785003 | H75: 6850.018488 | I75: 6475.515303 | J75: 6998.777176 | K75: 6413.189476 | L75: 6118.470441 | M75: 7722.301207 | N75: 93171.95422 | P75: Credit | Q75: 9314.117275 | R75: 7475.691773 | S75: 9096.013622 | T75: 9829.289774 | U75: 8450.70576 | V75: 7207.367424 | W75: 6738.000151 | X75: 6370.618134 | Y75: 6956.293275 | Z75: 6296.040589 | AA75: 6107.276953 | AB75: 7684.101545 | AC75: 91525.51627
G77: Directe Expense | H77: =H3-H70 -> -38.47923744 | I77: Pices | J77: 0 | K77: Capital | L77: =L3-L70 -> -3.26624612 | M77: 0.223 | N77: =N3-N70 -> -6.922040022 | V77: Directe Expense | W77: =W3-W70 -> -38.2992003 | X77: Pices | Y77: 0 | Z77: Capital | AA77: =AA3-AA70 -> 3.26624596 | AB77: 0.223 | AC77: =AC3-AC70 -> -4.673374011
A78: Purchase (aMW) | B78: =B5-B72 -> 118.075 | C78: =C5-C72 -> -110.3875 | D78: -33.5625 | E78: -71.625 | F78: -102.525 | G78: 140.2 | H78: 546.8708333 | I78: 264.0083333 | J78: -125.725 | K78: 22.6875 | L78: 93.48185484 | M78: 45.775 | N78: 66.70158818 | P78: Purchase (aMW) | Q78: =Q5-Q72 -> 124.925 | R78: =R5-R72 -> -128.3 | S78: 7.15 | T78: -55.175 | U78: -118 | V78: 175.3875 | W78: 568.6145833 | X78: 260.9708333 | Y78: -133.425 | Z78: 23.2625 | AA78: 56.60026882 | AB78: 18.725 | AC78: 68.0507891
A79: Price | B79: =B6-B73 -> -2.039174428 | C79: 0.3422356398 | D79: 0.4097765212 | E79: -1.333424434 | F79: -0.9860524287 | G79: -0.9704138769 | H79: 3.995190924 | I79: 4.848444684 | J79: 1.237822201 | K79: 5.50210813 | L79: 0.6730610808 | M79: -1.655545934 | N79: -1.308695623 | P79: Price | Q79: =Q6-Q73 -> -2.480801009 | R79: 0.2884244909 | S79: 0.799081708 | T79: -1.134375843 | U79: 1.555345088 | V79: 1.282887658 | W79: 6.391599245 | X79: 6.161835855 | Y79: 1.792022873 | Z79: 4.894852675 | AA79: -0.7020183564 | AB79: -0.8820510434 | AC79: -0.3717646776
A80: Purchase Expense | B80: =B7-B74 -> 871.226511 | C80: -2063.755339 | D80: -562.1449616 | E80: -2286.13186 | F80: -1975.361139 | G80: 2111.885183 | H80: 9407.397574 | I80: 3756.664121 | J80: -1324.177993 | K80: 601.8541515 | L80: 1815.344788 | M80: 352.1443105 | N80: 10704.94535 | P80: Purchase Expense | Q80: =Q7-Q74 -> 557.4377029 | R80: -2289.836587 | S80: 520.4749202 | T80: -1795.394722 | U80: -1885.36376 | V80: 3394.282719 | W80: 11056.11772 | X80: 4191.774321 | Y80: -1456.935414 | Z80: 588.8884982 | AA80: 1105.604607 | AB80: 89.07020945 | AC80: 14076.12021
A81: Credit | B81: =B8-B75 -> -581.4867242 | C81: -1235.987677 | D81: -901.1285626 | E81: -1285.577641 | F81: -1216.27577 | G81: -304.8198404 | H81: 1322.079423 | I81: 61.96586287 | J81: -1071.061929 | K81: -641.5567604 | L81: -370.9483484 | M81: -697.2420549 | N81: -6922.040022 | P81: Credit | Q81: =Q8-Q75 -> -526.7204604 | R81: -1161.662627 | S81: -534.9631609 | T81: -1051.402091 | U81: -1071.465187 | V81: 105.8959782 | W81: 1814.485183 | X81: 283.7366054 | Y81: -975.9256656 | Z81: -519.706933 | AA81: -404.4792408 | AB81: -631.1664114 | AC81: -4673.374011

Sheet ReplacementPurches
A1: Hours | C1: =PricesByItr!C1 -> 744 | D1: 721 | E1: 744 | F1: 744 | G1: 672 | H1: 743 | I1: 720 | J1: 744 | K1: 720 | L1: 744 | M1: 744 | N1: 720 | O1: 8760 | Q1: Hours | S1: 744 | T1: 721 | U1: 744 | V1: 744 | W1: 672 | X1: 743 | Y1: 720 | Z1: 744 | AA1: 720 | AB1: 744 | AC1: 744 | AD1: 720 | AE1: 8760
A2: FY | B2: WY | C2: =CreditByItr!C2 -> 2019-10-01 | D2: =DATE(Purch_1-1,11,1) -> 2019-11-01 | E2: =DATE(Purch_1-1,12,1) -> 2019-12-01 | F2: =DATE(Purch_1,1,1) -> 2020-01-01 | G2: =DATE(Purch_1,2,1) -> 2020-02-01 | H2: =DATE(Purch_1,3,1) -> 2020-03-01 | I2: =DATE(Purch_1,4,1) -> 2020-04-01 | J2: =DATE(Purch_1,5,1) -> 2020-05-01 | K2: =DATE(Purch_1,6,1) -> 2020-06-01 | L2: =DATE(Purch_1,7,1) -> 2020-07-01 | M2: =DATE(Purch_1,8,1) -> 2020-08-01 | N2: =DATE(Purch_1,9,1) -> 2020-09-01 | O2: Wtd Avg | Q2: FY | R2: WY | S2: =DATE(Purch_2-1,10,1) -> 2020-10-01 | T2: =DATE(Purch_2-1,11,1) -> 2020-11-01 | U2: =DATE(Purch_2-1,12,1) -> 2020-12-01 | V2: =DATE(Purch_2,1,1) -> 2021-01-01 | W2: =DATE(Purch_2,2,1) -> 2021-02-01 | X2: =DATE(Purch_2,3,1) -> 2021-03-01 | Y2: =DATE(Purch_2,4,1) -> 2021-04-01 | Z2: =DATE(Purch_2,5,1) -> 2021-05-01 | AA2: =DATE(Purch_2,6,1) -> 2021-06-01 | AB2: =DATE(Purch_2,7,1) -> 2021-07-01 | AC2: =DATE(Purch_2,8,1) -> 2021-08-01 | AD2: =DATE(Purch_2,9,1) -> 2021-09-01 | AE2: Wtd Avg
A3: =Prices_1 -> 2020 | B3: 1929 | C3: 1360 | D3: 413 | E3: 1582 | F3: 2105 | G3: 1570 | H3: 1510 | I3: 2478.5 | J3: 2885 | K3: -51 | L3: 771 | M3: 256.2258065 | N3: -185 | O3: =IFERROR((SUMPRODUCT(C3:N3,C$1:N$1)/O$1),"") -> 1227.740525 | Q3: =Prices_2 -> 2021 | R3: 1929 | S3: 1360 | T3: 414 | U3: 1679 | V3: 2105 | W3: 1544 | X3: 1495 | Y3: 2478.5 | Z3: 2878 | AA3: -43 | AB3: 767 | AC3: 162.516129 | AD3: -119 | AE3: =IFERROR((SUMPRODUCT(S3:AD3,S$1:AD$1)/AE$1),"") -> 1229.983447
A4: 2020 | B4: 1930 | C4: 824 | D4: 307 | E4: 2257 | F4: 3484 | G4: 1012 | H4: 1294 | I4: 1693 | J4: 2195 | K4: 823 | L4: -19 | M4: 229.8387097 | N4: -72 | O4: =IFERROR((SUMPRODUCT(C4:N4,C$1:N$1)/O$1),"") -> 1175.438014 | Q4: 2021 | R4: 1930 | S4: 833 | T4: 310 | U4: 2340 | V4: 3484 | W4: 914 | X4: 1294 | Y4: 1703 | Z4: 2188 | AA4: 852 | AB4: -45 | AC4: 199.3548387 | AD4: -70 | AE4: =IFERROR((SUMPRODUCT(S4:AD4,S$1:AD$1)/AE$1),"") -> 1173.958904
A5: 2020 | B5: 1931 | C5: 745 | D5: 170 | E5: 1954 | F5: 3376 | G5: 966 | H5: 1081 | I5: 2628 | J5: 1867 | K5: 1165 | L5: 0 | M5: 0 | N5: 499 | O5: 1207.076826 | Q5: 2021 | R5: 1931 | S5: 745 | T5: 171 | U5: 1954 | V5: 3376 | W5: 966 | X5: 1081 | Y5: 2628 | Z5: 1862 | AA5: 1168 | AB5: 0 | AC5: 0 | AD5: 523 | AE5: 1208.953653
A6: 2020 | B6: 1932 | C6: 723 | D6: 311 | E6: 1611 | F6: 2273 | G6: 2249 | H6: 287 | I6: 0 | J6: 0 | K6: 0 | L6: 0 | M6: 0 | N6: 293 | O6: 637.8273973 | Q6: 2021 | R6: 1932 | S6: 717 | T6: 311 | U6: 1611 | V6: 2184 | W6: 2390 | X6: 213 | Y6: 0 | Z6: 0 | AA6: 0 | AB6: 0 | AC6: 0 | AD6: 293 | AE6: 634.2988584
A7: 2020 | B7: 1933 | C7: 1291 | D7: 608 | E7: 0 | F7: 0 | G7: 0 | H7: 0 | I7: 169 | J7: 0 | K7: 0 | L7: 0 | M7: 0 | N7: 211 | O7: 190.9214612 | Q7: 2021 | R7: 1933 | S7: 1291 | T7: 608 | U7: 0 | V7: 0 | W7: 0 | X7: 0 | Y7: 226 | Z7: 0 | AA7: 0 | AB7: 0 | AC7: 0 | AD7: 211 | AE7: 195.6063927
A8: 2020 | B8: 1934 | C8: 565 | D8: 0 | E8: 0 | F8: 0 | G8: 0 | H8: 0 | I8: 0 | J8: 0 | K8: -488 | L8: 208 | M8: 182.4193548 | N8: 410 | O8: 74.73424658 | Q8: 2021 | R8: 1934 | S8: 565 | T8: 0 | U8: 0 | V8: 0 | W8: 0 | X8: 0 | Y8: 0 | Z8: 0 | AA8: -486 | AB8: 200 | AC8: 133.8709677 | AD8: 418 | AE8: 70.75342466
A9: 2020 | B9: 1935 | C9: 892 | D9: 1300 | E9: 1053 | F9: 0 | G9: 0 | H9: 0 | I9: 1017 | J9: 0 | K9: 202 | L9: -17 | M9: 0 | N9: 980 | O9: 451.4853881 | Q9: 2021 | R9: 1935 | S9: 886 | T9: 1336 | U9: 1264 | V9: 0 | W9: 0 | X9: 0 | Y9: 1017.5 | Z9: 0 | AA9: 228 | AB9: -5 | AC9: 0 | AD9: 980 | AE9: 475.056621
A10: 2020 | B10: 1936 | C10: 1359 | D10: 489 | E10: 1615 | F10: 3151 | G10: 2034 | H10: 1331 | I10: 459 | J10: 0 | K10: 0 | L10: 0 | M10: 127.5806452 | N10: 1188 | O10: 975.5833333 | Q10: 2021 | R10: 1936 | S10: 1359 | T10: 489 | U10: 1657 | V10: 3151 | W10: 2023 | X10: 1331 | Y10: 462 | Z10: 0 | AA10: 0 | AB10: 0 | AC10: 127.5806452 | AD10: 1197 | AE10: 979.2929224
A11: 2020 | B11: 1937 | C11: 1182 | D11: 89 | E11: 1355 | F11: 3159 | G11: 2254 | H11: 1841 | I11: 2331.5 | J11: 2512 | K11: -535 | L11: -185 | M11: 91.41935484 | N11: -316 | O11: 1147.238356 | Q11: 2021 | R11: 1937 | S11: 1182 | T11: 89 | U11: 1423 | V11: 3159 | W11: 2254 | X11: 1762 | Y11: 2363.5 | Z11: 2508 | AA11: -534 | AB11: -206 | AC11: -28.16129032 | AD11: -245 | AE11: 1142.581621
A12: 2020 | B12: 1938 | C12: 766 | D12: 391 | E12: 986 | F12: 46 | G12: 0 | H12: 0 | I12: 0 | J12: 0 | K12: 0 | L12: 0 | M12: 16.33333333 | N12: 236 | O12: 205.6729452 | Q12: 2021 | R12: 1938 | S12: 774 | T12: 394 | U12: 1112 | V12: 57 | W12: 0 | X12: 0 | Y12: 0 | Z12: 0 | AA12: 0 | AB12: 0 | AC12: 18.3655914 | AD12: 242 | AE12: 218.9006849
A13: 2020 | B13: 1939 | C13: 1235 | D13: 750 | E13: 1746 | F13: 660 | G13: 270 | H13: 731 | I13: 66.5 | J13: 0 | K13: 474 | L13: 0 | M13: 238.5483871 | N13: 435 | O13: 554.1172374 | Q13: 2021 | R13: 1939 | S13: 1239 | T13: 750 | U13: 1881 | V13: 660 | W13: 270 | X13: 731 | Y13: 97.5 | Z13: 0 | AA13: 514 | AB13: -11 | AC13: 238.5483871 | AD13: 435 | AE13: 570.8240868
A14: 2020 | B14: 1940 | C14: 857 | D14: 441 | E14: 345 | F14: 986 | G14: 308 | H14: 0 | I14: 1050 | J14: 0 | K14: 965 | L14: 1256 | M14: 671.8064516 | N14: -6 | O14: 574.6092466 | Q14: 2021 | R14: 1940 | S14: 857 | T14: 439 | U14: 385 | V14: 986 | W14: 308 | X14: 0 | Y14: 1050 | Z14: 0 | AA14: 962 | AB14: 1256 | AC14: 609.1290323 | AD14: 0 | AE14: 572.7651826
A15: 2020 | B15: 1941 | C15: 832 | D15: -43 | E15: 1035 | F15: 2047 | G15: 433 | H15: 388 | I15: 2554 | J15: 1865 | K15: 416 | L15: 0 | M15: 0 | N15: 220 | O15: 815.5973744 | Q15: 2021 | R15: 1941 | S15: 833 | T15: -46 | U15: 1130 | V15: 2047 | W15: 433 | X15: 388 | Y15: 2553 | Z15: 1861 | AA15: 414 | AB15: 0 | AC15: 0 | AD15: 220 | AE15: 822.9175799
A16: 2020 | B16: 1942 | C16: 707 | D16: -62 | E16: 0 | F16: 0 | G16: 63 | H16: 2896 | I16: 1275.166667 | J16: 830.6666667 | K16: 0 | L16: 0 | M16: 0 | N16: 0 | O16: 480.7655251 | Q16: 2021 | R16: 1942 | S16: 707 | T16: -63 | U16: 0 | V16: 0 | W16: 79 | X16: 2896 | Y16: 1274.666667 | Z16: 824.6666667 | AA16: 0 | AB16: 0 | AC16: 0 | AD16: -597 | AE16: 432.2914384
A17: 2020 | B17: 1943 | C17: 934 | D17: 1249 | E17: 1269 | F17: 0 | G17: 0 | H17: 0 | I17: 0 | J17: 0 | K17: 0 | L17: 0 | M17: 0 | N17: 777 | O17: 353.7672374 | Q17: 2021 | R17: 1943 | S17: 1019 | T17: 978 | U17: 1158 | V17: 0 | W17: 0 | X17: 0 | Y17: 0 | Z17: 0 | AA17: 0 | AB17: 0 | AC17: 0 | AD17: 777 | AE17: 329.2541096
A18: 2020 | B18: 1944 | C18: 1453 | D18: 443 | E18: 1643 | F18: 1409 | G18: 1524 | H18: 1879 | I18: 2813.5 | J18: 3308 | K18: 1221 | L18: 586 | M18: 0 | N18: 719 | O18: 1416.781279 | Q18: 2021 | R18: 1944 | S18: 1453 | T18: 444 | U18: 1718 | V18: 1409 | W18: 1443 | X18: 1883 | Y18: 2814.5 | Z18: 3306 | AA18: 1212 | AB18: 585 | AC18: -21.29032258 | AD18: 719 | AE18: 1414.63847
A19: 2020 | B19: 1945 | C19: 650 | D19: -48 | E19: 1436 | F19: 2717 | G19: 2980 | H19: 2149 | I19: 1837 | J19: 0 | K19: 0 | L19: 212 | M19: 85.12903226 | N19: -299 | O19: 966.4971461 | Q19: 2021 | R19: 1945 | S19: 649 | T19: -48 | U19: 1436 | V19: 2724 | W19: 2901 | X19: 2136 | Y19: 1837 | Z19: 0 | AA19: 0 | AB19: 207 | AC19: -16.32258065 | AD19: -240 | AE19: 955.6520548
A20: 2020 | B20: 1946 | C20: 776 | D20: 40 | E20: 825 | F20: 375 | G20: 0 | H20: 0 | I20: 0 | J20: 0 | K20: 0 | L20: 0 | M20: 0 | N20: 320 | O20: 197.4182648 | Q20: 2021 | R20: 1946 | S20: 791 | T20: 56 | U20: 937 | V20: 367 | W20: 0 | X20: 0 | Y20: 0 | Z20: 0 | AA20: 0 | AB20: 0 | AC20: 0 | AD20: 320 | AE20: 208.8420091
A21: 2020 | B21: 1947 | C21: 1543 | D21: 0 | E21: 0 | F21: 0 | G21: 0 | H21: 0 | I21: 0 | J21: 0 | K21: 0 | L21: 0 | M21: 0 | N21: 431 | O21: 166.4739726 | Q21: 2021 | R21: 1947 | S21: 1543 | T21: 0 | U21: 0 | V21: 0 | W21: 0 | X21: 0 | Y21: 0 | Z21: 0 | AA21: 0 | AB21: 0 | AC21: 0 | AD21: 431 | AE21: 166.4739726
A22: 2020 | B22: 1948 | C22: 0 | D22: 0 | E22: 0 | F22: 0 | G22: 0 | H22: 0 | I22: 0 | J22: 0 | K22: 0 | L22: 0 | M22: 0 | N22: 0 | O22: 0 | Q22: 2021 | R22: 1948 | S22: 0 | T22: 0 | U22: 0 | V22: 0 | W22: 0 | X22: 0 | Y22: 0 | Z22: 0 | AA22: 0 | AB22: 0 | AC22: 0 | AD22: 0 | AE22: 0
A23: 2020 | B23: 1949 | C23: 980 | D23: 156 | E23: 643 | F23: 0 | G23: 0 | H23: 0 | I23: 0 | J23: 0 | K23: 0 | L23: 19 | M23: 264.8064516 | N23: 260 | O23: 196.1575342 | Q23: 2021 | R23: 1949 | S23: 980 | T23: 156 | U23: 643 | V23: 0 | W23: 0 | X23: 0 | Y23: 0 | Z23: 0 | AA23: 0 | AB23: 10 | AC23: 186.4516129 | AD23: 293 | AE23: 191.4506849
A24: 2020 | B24: 1950 | C24: 1091 | D24: 668 | E24: 253 | F24: 0 | G24: 0 | H24: 0 | I24: 0 | J24: 0 | K24: 0 | L24: 0 | M24: 0 | N24: 60 | O24: 174.0598174 | Q24: 2021 | R24: 1950 | S24: 1092 | T24: 714 | U24: 348 | V24: 0 | W24: 0 | X24: 0 | Y24: 39.5 | Z24: 0 | AA24: 0 | AB24: 0 | AC24: 0 | AD24: 60 | AE24: 189.2458904
A25: 2020 | B25: 1951 | C25: 302 | D25: 0 | E25: 0 | F25: 0 | G25: 0 | H25: 0 | I25: 0 | J25: 0 | K25: 0 | L25: 0 | M25: 0 | N25: 344 | O25: 53.92328767 | Q25: 2021 | R25: 1951 | S25: 302 | T25: 0 | U25: 0 | V25: 0 | W25: 0 | X25: 0 | Y25: 0 | Z25: 0 | AA25: 0 | AB25: 0 | AC25: 0 | AD25: 344 | AE25: 53.92328767
A26: 2020 | B26: 1952 | C26: 0 | D26: 0 | E26: 0 | F26: 0 | G26: 0 | H26: 0 | I26: 0 | J26: 0 | K26: 0 | L26: 0 | M26: 0 | N26: 1286 | O26: 105.6986301 | Q26: 2021 | R26: 1952 | S26: 0 | T26: 0 | U26: 0 | V26: 0 | W26: 0 | X26: 0 | Y26: 0 | Z26: 0 | AA26: 0 | AB26: 0 | AC26: 0 | AD26: 1273 | AE26: 104.630137
A27: 2020 | B27: 1953 | C27: 1350 | D27: 472 | E27: 1586 | F27: 1218 | G27: 0 | H27: 214 | I27: 1681.5 | J27: 0 | K27: 0 | L27: 0 | M27: 0 | N27: 379 | O27: 579.1609589 | Q27: 2021 | R27: 1953 | S27: 1350 | T27: 472 | U27: 1610 | V27: 1509 | W27: 0 | X27: 175 | Y27: 1676.5 | Z27: 0 | AA27: 0 | AB27: 0 | AC27: 0 | AD27: 379 | AE27: 602.1955479
A28: 2020 | B28: 1954 | C28: 1060 | D28: 0 | E28: 0 | F28: 0 | G28: 0 | H28: 0 | I28: 0 | J28: 0 | K28: 0 | L28: 0 | M28: 0 | N28: 0 | O28: 90.02739726 | Q28: 2021 | R28: 1954 | S28: 1060 | T28: 0 | U28: 0 | V28: 0 | W28: 0 | X28: 0 | Y28: 0 | Z28: 0 | AA28: 0 | AB28: 0 | AC28: 0 | AD28: 0 | AE28: 90.02739726
A29: 2020 | B29: 1955 | C29: 950 | D29: 0 | E29: 0 | F29: 1017 | G29: 291 | H29: 1871 | I29: 1599.5 | J29: 0 | K29: 0 | L29: 0 | M29: 0 | N29: 496 | O29: 520.3097032 | Q29: 2021 | R29: 1955 | S29: 950 | T29: 0 | U29: 0 | V29: 1017 | W29: 337 | X29: 1767 | Y29: 1841.5 | Z29: 0 | AA29: 0 | AB29: 0 | AC29: 0 | AD29: 496 | AE29: 534.9078767
A30: 2020 | B30: 1956 | C30: 800 | D30: 0 | E30: 0 | F30: 0 | G30: 0 | H30: 0 | I30: 0 | J30: 0 | K30: 0 | L30: 0 | M30: 0 | N30: 293 | O30: 92.02739726 | Q30: 2021 | R30: 1956 | S30: 800 | T30: 0 | U30: 0 | V30: 0 | W30: 0 | X30: 0 | Y30: 0 | Z30: 0 | AA30: 0 | AB30: 0 | AC30: 0 | AD30: 293 | AE30: 92.02739726
A31: 2020 | B31: 1957 | C31: 827 | D31: 225 | E31: 0 | F31: 0 | G31: 486 | H31: 0 | I31: 0 | J31: 0 | K31: 0 | L31: 0 | M31: 0 | N31: 889 | O31: 199.1078767 | Q31: 2021 | R31: 1957 | S31: 827 | T31: 225 | U31: 0 | V31: 0 | W31: 461 | X31: 0 | Y31: 0 | Z31: 0 | AA31: 0 | AB31: 0 | AC31: 0 | AD31: 889 | AE31: 197.1900685
A32: 2020 | B32: 1958 | C32: 1366 | D32: 428 | E32: 716 | F32: 0 | G32: 0 | H32: 0 | I32: 0 | J32: 0 | K32: 0 | L32: 0 | M32: -35.16129032 | N32: 761 | O32: 271.6159817 | Q32: 2021 | R32: 1958 | S32: 1366 | T32: 420 | U32: 782 | V32: 0 | W32: 0 | X32: 0 | Y32: 0 | Z32: 0 | AA32: 0 | AB32: -16 | AC32: 0 | AD32: 740 | AE32: 276.4643836
A33: 2020 | B33: 1959 | C33: 1062 | D33: 0 | E33: 0 | F33: 0 | G33: 0 | H33: 0 | I33: 0 | J33: 0 | K33: 0 | L33: 0 | M33: 0 | N33: 0 | O33: 90.19726027 | Q33: 2021 | R33: 1959 | S33: 1062 | T33: 0 | U33: 0 | V33: 0 | W33: 0 | X33: 0 | Y33: 0 | Z33: 0 | AA33: 0 | AB33: 0 | AC33: 0 | AD33: 0 | AE33: 90.19726027
A34: 2020 | B34: 1960 | C34: 0 | D34: 0 | E34: 0 | F34: 0 | G34: 0 | H34: 0 | I34: 0 | J34: 0 | K34: 0 | L34: -286 | M34: 0 | N34: 654 | O34: 29.4630137 | Q34: 2021 | R34: 1960 | S34: 0 | T34: 0 | U34: 0 | V34: 0 | W34: 0 | X34: 0 | Y34: 0 | Z34: 0 | AA34: 0 | AB34: -272 | AC34: 0 | AD34: 654 | AE34: 30.65205479
A35: =Prices_1 -> 2020 | B35: 1961 | C35: 1080 | D35: 0 | E35: 350 | F35: 0 | G35: 0 | H35: 0 | I35: 0 | J35: 0 | K35: 0 | L35: -182 | M35: -105.3225806 | N35: 791 | O35: 162.0630137 | Q35: =Prices_2 -> 2021 | R35: 1961 | S35: 1080 | T35: 0 | U35: 350 | V35: 0 | W35: 0 | X35: 0 | Y35: 5.5 | Z35: 0 | AA35: 0 | AB35: 0 | AC35: 0 | AD35: 889 | AE35: 194.9726027
A36: 2020 | B36: 1962 | C36: 1449 | D36: 231 | E36: 282 | F36: 0 | G36: 0 | H36: 781 | I36: 0 | J36: 0 | K36: 0 | L36: 0 | M36: 0 | N36: 814 | O36: 299.1755708 | Q36: 2021 | R36: 1962 | S36: 1449 | T36: 182 | U36: 459 | V36: 0 | W36: 0 | X36: 925 | Y36: 0 | Z36: 0 | AA36: 0 | AB36: 0 | AC36: 0 | AD36: 814 | AE36: 322.3891553
A37: 2020 | B37: 1963 | C37: 524 | D37: 0 | E37: 0 | F37: 0 | G37: 0 | H37: 759 | I37: 1324 | J37: 0 | K37: 0 | L37: 0 | M37: 0 | N37: 137 | O37: 228.9626712 | Q37: 2021 | R37: 1963 | S37: 524 | T37: 0 | U37: 0 | V37: 0 | W37: 0 | X37: 759 | Y37: 1323 | Z37: 0 | AA37: 0 | AB37: 0 | AC37: 0 | AD37: 137 | AE37: 228.8804795
A38: 2020 | B38: 1964 | C38: 1425 | D38: 174 | E38: 393 | F38: 280 | G38: 0 | H38: 938 | I38: 382.5 | J38: 0 | K38: 0 | L38: 0 | M38: 0 | N38: 0 | O38: 303.5045662 | Q38: 2021 | R38: 1964 | S38: 1425 | T38: 174 | U38: 393 | V38: 280 | W38: 0 | X38: 1481 | Y38: 395 | Z38: 0 | AA38: 0 | AB38: 0 | AC38: 0 | AD38: 0 | AE38: 350.5877854
A39: 2020 | B39: 1965 | C39: 212 | D39: 0 | E39: 0 | F39: 0 | G39: 0 | H39: 0 | I39: 0 | J39: 0 | K39: 0 | L39: 0 | M39: 0 | N39: 614 | O39: 68.47123288 | Q39: 2021 | R39: 1965 | S39: 212 | T39: 0 | U39: 0 | V39: 0 | W39: 0 | X39: 0 | Y39: 0 | Z39: 0 | AA39: 0 | AB39: 0 | AC39: 0 | AD39: 614 | AE39: 68.47123288
A40: 2020 | B40: 1966 | C40: 775 | D40: 17 | E40: 0 | F40: 0 | G40: 0 | H40: 704 | I40: 0 | J40: 204 | K40: 0 | L40: 0 | M40: 0 | N40: 690 | O40: 200.9708904 | Q40: 2021 | R40: 1966 | S40: 775 | T40: 17 | U40: 0 | V40: 0 | W40: 0 | X40: 840 | Y40: 11.5 | Z40: 200 | AA40: 0 | AB40: 0 | AC40: 0 | AD40: 690 | AE40: 213.1115297
A41: 2020 | B41: 1967 | C41: 1354 | D41: 480 | E41: 0 | F41: 0 | G41: 0 | H41: 0 | I41: 893 | J41: 0 | K41: 0 | L41: 0 | M41: 0 | N41: 133 | O41: 238.8328767 | Q41: 2021 | R41: 1967 | S41: 1354 | T41: 481 | U41: 0 | V41: 0 | W41: 0 | X41: 0 | Y41: 899.5 | Z41: 0 | AA41: 0 | AB41: 0 | AC41: 0 | AD41: 133 | AE41: 239.4494292
A42: 2020 | B42: 1968 | C42: 948 | D42: 0 | E42: 0 | F42: 0 | G42: 0 | H42: 0 | I42: 1728.5 | J42: 317 | K42: 0 | L42: 0 | M42: 0 | N42: 0 | O42: 249.5068493 | Q42: 2021 | R42: 1968 | S42: 948 | T42: 0 | U42: 0 | V42: 0 | W42: 0 | X42: 0 | Y42: 1725 | Z42: 306 | AA42: 0 | AB42: 0 | AC42: 0 | AD42: 0 | AE42: 248.2849315
A43: 2020 | B43: 1969 | C43: 39 | D43: 0 | E43: 0 | F43: 0 | G43: 0 | H43: 0 | I43: 0 | J43: 0 | K43: 0 | L43: 0 | M43: 0 | N43: 725 | O43: 62.90136986 | Q43: 2021 | R43: 1969 | S43: 39 | T43: 0 | U43: 0 | V43: 0 | W43: 0 | X43: 0 | Y43: 0 | Z43: 0 | AA43: 0 | AB43: 0 | AC43: 0 | AD43: 725 | AE43: 62.90136986
A44: 2020 | B44: 1970 | C44: 947 | D44: 39 | E44: 997 | F44: 0 | G44: 0 | H44: 172 | I44: 1641 | J44: 0 | K44: 0 | L44: 0 | M44: -27.41935484 | N44: 1055 | O44: 402.1656393 | Q44: 2021 | R44: 1970 | S44: 947 | T44: 39 | U44: 997 | V44: 0 | W44: 0 | X44: 62 | Y44: 1703 | Z44: 0 | AA44: 0 | AB44: 0 | AC44: -28.87096774 | AD44: 1055 | AE44: 397.8083333
A45: 2020 | B45: 1971 | C45: 1282 | D45: 430 | E45: 271 | F45: 0 | G45: 0 | H45: 0 | I45: 0 | J45: 0 | K45: 0 | L45: 0 | M45: 0 | N45: 78 | O45: 173.7011416 | Q45: 2021 | R45: 1971 | S45: 1282 | T45: 430 | U45: 271 | V45: 0 | W45: 0 | X45: 0 | Y45: 0 | Z45: 0 | AA45: 0 | AB45: 0 | AC45: 0 | AD45: 78 | AE45: 173.7011416
A46: 2020 | B46: 1972 | C46: 794 | D46: 28 | E46: 0 | F46: 0 | G46: 0 | H46: 0 | I46: 0 | J46: 0 | K46: 0 | L46: 0 | M46: 0 | N46: 0 | O46: 69.74018265 | Q46: 2021 | R46: 1972 | S46: 794 | T46: 28 | U46: 0 | V46: 0 | W46: 0 | X46: 0 | Y46: 0 | Z46: 0 | AA46: 0 | AB46: 0 | AC46: 0 | AD46: 0 | AE46: 69.74018265
A47: 2020 | B47: 1973 | C47: 829 | D47: 0 | E47: 244 | F47: 0 | G47: 0 | H47: 721 | I47: 2692.5 | J47: 2574 | K47: 485 | L47: 99 | M47: 274.516129 | N47: -151 | O47: 651.3752283 | Q47: 2021 | R47: 1973 | S47: 829 | T47: 0 | U47: 244 | V47: 0 | W47: 0 | X47: 755 | Y47: 2791 | Z47: 2568 | AA47: 496 | AB47: 97 | AC47: 184.7096774 | AD47: -94 | AE47: 659.6371005
A48: 2020 | B48: 1974 | C48: 848 | D48: 586 | E48: 0 | F48: 0 | G48: 0 | H48: 0 | I48: 0 | J48: 0 | K48: 0 | L48: 0 | M48: 0 | N48: 0 | O48: 120.2531963 | Q48: 2021 | R48: 1974 | S48: 831 | T48: 578 | U48: 0 | V48: 0 | W48: 0 | X48: 0 | Y48: 0 | Z48: 0 | AA48: 0 | AB48: 0 | AC48: 0 | AD48: 0 | AE48: 118.1509132
A49: 2020 | B49: 1975 | C49: 1549 | D49: 504 | E49: 955 | F49: 0 | G49: 0 | H49: 0 | I49: 518.5 | J49: 0 | K49: 0 | L49: 0 | M49: 0 | N49: 0 | O49: 296.7671233 | Q49: 2021 | R49: 1975 | S49: 1549 | T49: 504 | U49: 955 | V49: 0 | W49: 0 | X49: 0 | Y49: 579.5 | Z49: 0 | AA49: 0 | AB49: 0 | AC49: 0 | AD49: 0 | AE49: 301.7808219
A50: 2020 | B50: 1976 | C50: 0 | D50: 0 | E50: 0 | F50: 0 | G50: 0 | H50: 0 | I50: 0 | J50: 0 | K50: 0 | L50: 0 | M50: 0 | N50: 0 | O50: 0 | Q50: 2021 | R50: 1976 | S50: 0 | T50: 0 | U50: 0 | V50: 0 | W50: 0 | X50: 0 | Y50: 0 | Z50: 0 | AA50: 0 | AB50: 0 | AC50: 0 | AD50: 0 | AE50: 0
A51: 2020 | B51: 1977 | C51: 747 | D51: 420 | E51: 1386 | F51: 982 | G51: 1117 | H51: 2026 | I51: 2675.5 | J51: 2969 | K51: 2004 | L51: 590 | M51: -38.67741935 | N51: 1211 | O51: 1339.794749 | Q51: 2021 | R51: 1977 | S51: 747 | T51: 420 | U51: 1386 | V51: 982 | W51: 1102 | X51: 2024 | Y51: 2672 | Z51: 2969 | AA51: 2004 | AB51: 582 | AC51: -93.16129032 | AD51: 1211 | AE51: 1332.879909
A52: 2020 | B52: 1978 | C52: 986 | D52: -259 | E52: 46 | F52: 0 | G52: 0 | H52: 923 | I52: 0 | J52: 0 | K52: 0 | L52: 0 | M52: -12.09677419 | N52: 0 | O52: 143.5910959 | Q52: 2021 | R52: 1978 | S52: 985 | T52: -259 | U52: 229 | V52: 0 | W52: 0 | X52: 1024 | Y52: 0 | Z52: 0 | AA52: 0 | AB52: 0 | AC52: -12.09677419 | AD52: 0 | AE52: 167.6151826
A53: 2020 | B53: 1979 | C53: 389 | D53: 191 | E53: 1454 | F53: 1029 | G53: 324 | H53: 0 | I53: 1452.5 | J53: 0 | K53: 251 | L53: 761 | M53: 223.5483871 | N53: -57 | O53: 503.4464612 | Q53: 2021 | R53: 1979 | S53: 389 | T53: 189 | U53: 1592 | V53: 1029 | W53: 324 | X53: 0 | Y53: 1458.5 | Z53: 0 | AA53: 230 | AB53: 730 | AC53: 209.6129032 | AD53: -32 | AE53: 512.0078767
A54: 2020 | B54: 1980 | C54: 942 | D54: 822 | E54: 1703 | F54: 1128 | G54: 866 | H54: 1524 | I54: 72 | J54: 0 | K54: 0 | L54: -207 | M54: -63.95698925 | N54: 495 | O54: 607.3865297 | Q54: 2021 | R54: 1980 | S54: 936 | T54: 822 | U54: 1803 | V54: 1128 | W54: 866 | X54: 1513 | Y54: 72 | Z54: 0 | AA54: 0 | AB54: -203 | AC54: 0.7096774194 | AD54: 0 | AE54: 579.5841324
A55: 2020 | B55: 1981 | C55: 1233 | D55: 0 | E55: 0 | F55: 0 | G55: 0 | H55: 477 | I55: 1761.5 | J55: 0 | K55: 0 | L55: 0 | M55: 0 | N55: 137 | O55: 301.2195205 | Q55: 2021 | R55: 1981 | S55: 1019 | T55: 80 | U55: 0 | V55: 0 | W55: 0 | X55: 651 | Y55: 2647 | Z55: 0 | AA55: 0 | AB55: 0 | AC55: 0 | AD55: 137 | AE55: 377.1676941
A56: 2020 | B56: 1982 | C56: 1173 | D56: 0 | E56: 219 | F56: 0 | G56: 0 | H56: 0 | I56: 0 | J56: 0 | K56: 0 | L56: 0 | M56: 0 | N56: 0 | O56: 118.2246575 | Q56: 2021 | R56: 1982 | S56: 1173 | T56: 0 | U56: 219 | V56: 0 | W56: 0 | X56: 0 | Y56: 0 | Z56: 0 | AA56: 0 | AB56: 0 | AC56: 0 | AD56: 0 | AE56: 118.2246575
A57: 2020 | B57: 1983 | C57: 137 | D57: 0 | E57: 0 | F57: 0 | G57: 0 | H57: 0 | I57: 0 | J57: 0 | K57: 0 | L57: 0 | M57: 0 | N57: 0 | O57: 11.63561644 | Q57: 2021 | R57: 1983 | S57: 137 | T57: 0 | U57: 0 | V57: 0 | W57: 0 | X57: 0 | Y57: 0 | Z57: 0 | AA57: 0 | AB57: 0 | AC57: 0 | AD57: 0 | AE57: 11.63561644
A58: 2020 | B58: 1984 | C58: 988 | D58: 0 | E58: 0 | F58: 0 | G58: 0 | H58: 0 | I58: 0 | J58: 0 | K58: 0 | L58: 0 | M58: 0 | N58: 0 | O58: 83.91232877 | Q58: 2021 | R58: 1984 | S58: 988 | T58: 0 | U58: 0 | V58: 0 | W58: 0 | X58: 0 | Y58: 0 | Z58: 0 | AA58: 0 | AB58: 0 | AC58: 0 | AD58: 0 | AE58: 83.91232877
A59: 2020 | B59: 1985 | C59: 1008 | D59: 0 | E59: 157 | F59: 0 | G59: 0 | H59: 610 | I59: 0 | J59: 0 | K59: -83 | L59: 69 | M59: 516.8064516 | N59: 122 | O59: 203.6426941 | Q59: 2021 | R59: 1985 | S59: 1008 | T59: 0 | U59: 157 | V59: 0 | W59: 0 | X59: 610 | Y59: 0 | Z59: 0 | AA59: -37 | AB59: 58 | AC59: 460.7096774 | AD59: 122 | AE59: 201.7248858
A60: 2020 | B60: 1986 | C60: 271 | D60: -367 | E60: 6 | F60: 0 | G60: 0 | H60: 0 | I60: 0 | J60: 0 | K60: 0 | L60: -3 | M60: -66.40860215 | N60: 963 | O60: 66.57545662 | Q60: 2021 | R60: 1986 | S60: 314 | T60: -372 | U60: 6 | V60: 0 | W60: 0 | X60: 0 | Y60: 0 | Z60: 0 | AA60: 0 | AB60: -6 | AC60: -26.15053763 | AD60: 963 | AE60: 72.9803653
A61: 2020 | B61: 1987 | C61: 1513 | D61: -19 | E61: 0 | F61: 597 | G61: 1167 | H61: -350 | I61: 1033 | J61: 0 | K61: 186 | L61: 655 | M61: 246.7741935 | N61: 353 | O61: 443.2734018 | Q61: 2021 | R61: 1987 | S61: 1513 | T61: -24 | U61: 0 | V61: 597 | W61: 1169 | X61: -341 | Y61: 1037.5 | Z61: 0 | AA61: 186 | AB61: 655 | AC61: 234.0967742 | AD61: 353 | AE61: 443.0718037
A62: 2020 | B62: 1988 | C62: 1065 | D62: 944 | E62: 2078 | F62: 3677 | G62: 1171 | H62: 1770 | I62: 2303 | J62: 2098 | K62: 833 | L62: -169 | M62: 0 | N62: 19 | O62: 1320.034475 | Q62: 2021 | R62: 1988 | S62: 1065 | T62: 944 | U62: 2192 | V62: 3636 | W62: 1171 | X62: 1816 | Y62: 2303 | Z62: 2091 | AA62: 824 | AB62: -184 | AC62: 0 | AD62: 82 | AE62: 1332.705936
A63: 2020 | B63: 1989 | C63: 714 | D63: -33 | E63: 816 | F63: 2709 | G63: 2101 | H63: 0 | I63: 0 | J63: 0 | K63: -685 | L63: -762 | M63: 174.1935484 | N63: 235 | O63: 431.5715753 | Q63: 2021 | R63: 1989 | S63: 715 | T63: -36 | U63: 838 | V63: 2685 | W63: 2103 | X63: 0 | Y63: 0 | Z63: 0 | AA63: -687 | AB63: -775 | AC63: 137.9032258 | AD63: 227 | AE63: 426.3849315
A64: 2020 | B64: 1990 | C64: 1005 | D64: 546 | E64: 0 | F64: 0 | G64: 0 | H64: 0 | I64: 0 | J64: 0 | K64: 0 | L64: 0 | M64: 0 | N64: 851 | O64: 200.240411 | Q64: 2021 | R64: 1990 | S64: 1005 | T64: 546 | U64: 0 | V64: 0 | W64: 0 | X64: 0 | Y64: 0 | Z64: 0 | AA64: 0 | AB64: 0 | AC64: 0 | AD64: 851 | AE64: 200.240411
A65: 2020 | B65: 1991 | C65: 1448 | D65: 0 | E65: 0 | F65: 0 | G65: 0 | H65: 0 | I65: 0 | J65: 0 | K65: 0 | L65: 0 | M65: 0 | N65: 725 | O65: 182.569863 | Q65: 2021 | R65: 1991 | S65: 1448 | T65: 0 | U65: 0 | V65: 0 | W65: 0 | X65: 0 | Y65: 0 | Z65: 0 | AA65: 0 | AB65: 0 | AC65: 0 | AD65: 725 | AE65: 182.569863
A66: 2020 | B66: 1992 | C66: 1438 | D66: 177 | E66: 1907 | F66: 1104 | G66: 979 | H66: 694 | I66: 1665 | J66: -56 | K66: 994 | L66: 718 | M66: 283.8709677 | N66: 177 | O66: 839.8231735 | Q66: 2021 | R66: 1992 | S66: 1438 | T66: 178 | U66: 2013 | V66: 1104 | W66: 979 | X66: 694 | Y66: 1680.5 | Z66: -72 | AA66: 994 | AB66: 718 | AC66: 203.9354839 | AD66: 177 | AE66: 842.0342466
A67: =Prices_1 -> 2020 | B67: 1993 | C67: 712 | D67: -47 | E67: 1650 | F67: 2672 | G67: 2256 | H67: 398 | I67: 1908 | J67: 0 | K67: 0 | L67: 0 | M67: -45.96774194 | N67: 128 | O67: 793.9355023 | Q67: =Prices_2 -> 2021 | R67: 1993 | S67: 696 | T67: -54 | U67: 1760 | V67: 2610 | W67: 2256 | X67: 409 | Y67: 1955.5 | Z67: 0 | AA67: 0 | AB67: 0 | AC67: -62.90322581 | AD67: 133 | AE67: 799.8868721
A68: 2020 | B68: 1994 | C68: 1019 | D68: 280 | E68: 1207 | F68: 3109 | G68: 522 | H68: 1712 | I68: 1892 | J68: 662 | K68: 1147 | L68: 0 | M68: 91.4516129 | N68: 160 | O68: =IFERROR((SUMPRODUCT(C68:N68,C$1:N$1)/O$1),"") -> 988.3296804 | Q68: 2021 | R68: 1994 | S68: 1019 | T68: 277 | U68: 1342 | V68: 3109 | W68: 522 | X68: 1715 | Y68: 1892 | Z68: 656 | AA68: 1174 | AB68: 0 | AC68: 80.80645161 | AD68: 195 | AE68: =IFERROR((SUMPRODUCT(S68:AD68,S$1:AD$1)/AE$1),"") -> 1003.48516
A69: 2020 | B69: 1995 | C69: 947 | D69: 1003 | E69: 1189 | F69: 1331 | G69: 0 | H69: 0 | I69: 2193.5 | J69: 0 | K69: 0 | L69: 0 | M69: 0 | N69: 183 | O69: 572.3391553 | Q69: 2021 | R69: 1995 | S69: 948 | T69: 1008 | U69: 1286 | V69: 1331 | W69: 0 | X69: 0 | Y69: 2193.5 | Z69: 0 | AA69: 0 | AB69: 0 | AC69: 0 | AD69: 183 | AE69: 581.0739726
A70: 2020 | B70: 1996 | C70: 119 | D70: 0 | E70: 0 | F70: 0 | G70: 0 | H70: 0 | I70: 0 | J70: 0 | K70: 0 | L70: 0 | M70: 0 | N70: 256 | O70: 31.14794521 | Q70: 2021 | R70: 1996 | S70: 119 | T70: 0 | U70: 0 | V70: 0 | W70: 0 | X70: 0 | Y70: 0 | Z70: 0 | AA70: 0 | AB70: 0 | AC70: 0 | AD70: 256 | AE70: 31.14794521
A71: 2020 | B71: 1997 | C71: 1160 | D71: 0 | E71: 0 | F71: 0 | G71: 0 | H71: 0 | I71: 0 | J71: 0 | K71: 0 | L71: 0 | M71: 0 | N71: 0 | O71: 98.52054795 | Q71: 2021 | R71: 1997 | S71: 1160 | T71: 0 | U71: 0 | V71: 0 | W71: 0 | X71: 0 | Y71: 0 | Z71: 0 | AA71: 0 | AB71: 0 | AC71: 0 | AD71: 0 | AE71: 98.52054795
A72: 2020 | B72: 1998 | C72: 0 | D72: 0 | E72: 173 | F72: 0 | G72: 0 | H72: 0 | I72: 1329 | J72: 0 | K72: 0 | L72: 0 | M72: 0 | N72: 906 | O72: 198.3917808 | Q72: 2021 | R72: 1998 | S72: 0 | T72: 0 | U72: 173 | V72: 0 | W72: 0 | X72: 0 | Y72: 1330.5 | Z72: 0 | AA72: 0 | AB72: 0 | AC72: 0 | AD72: 906 | AE72: 198.5150685
A73: 2020 | B73: 1999 | C73: 1356 | D73: 693 | E73: 0 | F73: 0 | G73: 0 | H73: 0 | I73: 0 | J73: 0 | K73: 0 | L73: 0 | M73: 0 | N73: 140 | O73: 183.7119863 | Q73: 2021 | R73: 1999 | S73: 1356 | T73: 693 | U73: 0 | V73: 0 | W73: 0 | X73: 0 | Y73: 0 | Z73: 0 | AA73: 0 | AB73: 0 | AC73: 0 | AD73: 140 | AE73: 183.7119863
A74: 2020 | B74: 2000 | C74: 1142 | D74: 0 | E74: 0 | F74: 0 | G74: 0 | H74: 0 | I74: 0 | J74: 0 | K74: 298 | L74: 0 | M74: -15.31182796 | N74: 930 | O74: 196.6228311 | Q74: 2021 | R74: 2000 | S74: 1142 | T74: 0 | U74: 0 | V74: 0 | W74: 0 | X74: 0 | Y74: 0 | Z74: 0 | AA74: 305 | AB74: 0 | AC74: -16.34408602 | AD74: 930 | AE74: 197.1105023
A75: 2020 | B75: 2001 | C75: 1269 | D75: 501 | E75: 1559 | F75: 1407 | G75: 1485 | H75: 1558 | I75: 2774 | J75: 2499 | K75: 2198 | L75: 329 | M75: -54.74193548 | N75: 1242 | O75: 1393.26016 | Q75: 2021 | R75: 2001 | S75: 1269 | T75: 501 | U75: 1561 | V75: 1407 | W75: 1469 | X75: 1540 | Y75: 2774.5 | Z75: 2492 | AA75: 2192 | AB75: 329 | AC75: -109.7419355 | AD75: 1242 | AE75: 1384.958105
A76: 2020 | B76: 2002 | C76: 1148 | D76: -107 | E76: 802 | F76: 1896 | G76: 1924 | H76: 713 | I76: 0 | J76: 0 | K76: 0 | L76: 0 | M76: -88.08602151 | N76: 772 | O76: 581.8799087 | Q76: 2021 | R76: 2002 | S76: 1146 | T76: -109 | U76: 898 | V76: 1917 | W76: 1811 | X76: 750 | Y76: 0 | Z76: 0 | AA76: 0 | AB76: 0 | AC76: -88.08602151 | AD76: 772 | AE76: 585.9521689
A77: 2020 | B77: 2003 | C77: 1097 | D77: 128 | E77: 1379 | F77: 1904 | G77: 463 | H77: 0 | I77: 12 | J77: 923 | K77: 0 | L77: -7 | M77: 465 | N77: 720 | O77: 595.5077626 | Q77: 2021 | R77: 2003 | S77: 1097 | T77: 128 | U77: 1488 | V77: 1904 | W77: 463 | X77: 0 | Y77: 51 | Z77: 917 | AA77: 0 | AB77: -5 | AC77: 465 | AD77: 720 | AE77: 607.6310502
A78: 2020 | B78: 2004 | C78: 951 | D78: -161 | E78: 163 | F78: 2126 | G78: 1072 | H78: 956 | I78: 1400.5 | J78: 354 | K78: 0 | L78: 0 | M78: 283.0645161 | N78: 0 | O78: 594.4642694 | Q78: 2021 | R78: 2004 | S78: 955 | T78: -143 | U78: 317 | V78: 2126 | W78: 1072 | X78: 956 | Y78: 1446.5 | Z78: 348 | AA78: 0 | AB78: 0 | AC78: 228.3870968 | AD78: 0 | AE78: 607.9923516
A79: 2020 | B79: 2005 | C79: 694 | D79: 0 | E79: 0 | F79: 0 | G79: 0 | H79: 278 | I79: 1971.5 | J79: 70 | K79: 0 | L79: 0 | M79: 0 | N79: 1117 | O79: 342.31621 | Q79: 2021 | R79: 2005 | S79: 694 | T79: 0 | U79: 0 | V79: 0 | W79: 0 | X79: 266 | Y79: 2148 | Z79: 11 | AA79: 0 | AB79: 0 | AC79: 0 | AD79: 1120 | AE79: 351.0408676
A80: 2020 | B80: 2006 | C80: 1244 | D80: 0 | E80: 215 | F80: 0 | G80: 0 | H80: 0 | I80: 0 | J80: 0 | K80: 0 | L80: 0 | M80: -106.1182796 | N80: 1545 | O80: 241.8885845 | Q80: 2021 | R80: 2006 | S80: 1244 | T80: 0 | U80: 215 | V80: 0 | W80: 0 | X80: 0 | Y80: 0 | Z80: 0 | AA80: 0 | AB80: 0 | AC80: -169.4086022 | AD80: 1545 | AE80: 236.513242
A81: 2020 | B81: 2007 | C81: 1401 | D81: -454 | E81: 152 | F81: 0 | G81: 0 | H81: 0 | I81: 163.5 | J81: 0 | K81: 0 | L81: -4 | M81: 150.4193548 | N81: 1737 | O81: 263.1728311 | Q81: 2021 | R81: 2007 | S81: 1401 | T81: -404 | U81: 152 | V81: 0 | W81: 0 | X81: 0 | Y81: 150 | Z81: 0 | AA81: 0 | AB81: -4 | AC81: 84.29032258 | AD81: 1737 | AE81: 260.5621005
A82: 2020 | B82: 2008 | C82: 1084 | D82: -36 | E82: 860 | F82: 1130 | G82: 657 | H82: 304 | I82: 1300.5 | J82: 0 | K82: 0 | L82: 0 | M82: 0 | N82: 774 | O82: 504.8077626 | Q82: 2021 | R82: 2008 | S82: 1084 | T82: -22 | U82: 1026 | V82: 1122 | W82: 667 | X82: 310 | Y82: 1335.5 | Z82: 0 | AA82: 0 | AB82: 0 | AC82: 0 | AD82: 774 | AE82: 523.5319635
B83: Average | C83: =AVERAGE(C3:C82) -> 911.7125 | D83: =AVERAGE(D3:D82) -> 193.85 | E83: 581.5375 | F83: 688.8 | G83: 406.8 | H83: 439.25 | I83: 734.2520833 | J83: 350.9583333 | K83: 147.75 | L83: 55.4 | M83: 52.68104839 | N83: 399.875 | O83: =IFERROR((SUMPRODUCT(C83:N83,C$1:N$1)/O$1),"") -> 414.0890639 | R83: Average | S83: =AVERAGE(S3:S82) -> 910.5 | T83: =AVERAGE(T3:T82) -> 192.6875 | U83: =AVERAGE(U3:U82) -> 617.375 | V83: =AVERAGE(V3:V82) -> 690.025 | W83: =AVERAGE(W3:W82) -> 403.7125 | X83: =AVERAGE(X3:X82) -> 448.8875 | Y83: =AVERAGE(Y3:Y82) -> 758.0395833 | Z83: =AVERAGE(Z3:Z82) -> 348.9208333 | AA83: =AVERAGE(AA3:AA82) -> 149.6 | AB83: =AVERAGE(AB3:AB82) -> 55.775 | AC83: =AVERAGE(AC3:AC82) -> 41.16801075 | AD83: =AVERAGE(AD3:AD82) -> 392.825 | AE83: =IFERROR((SUMPRODUCT(S83:AD83,S$1:AD$1)/AE$1),"") -> 418.0274772
B95: Average | C95: =IFERROR(AVERAGE(C3:C82),"") -> 911.7125 | D95: =IFERROR(AVERAGE(D3:D82),"") -> 193.85 | E95: 581.5375 | F95: 688.8 | G95: 406.8 | H95: 439.25 | I95: 734.2520833 | J95: 350.9583333 | K95: 147.75 | L95: 55.4 | M95: 52.68104839 | N95: 399.875 | O95: 414.0890639 | S95: =IFERROR(AVERAGE(S3:S82),"") -> 910.5 | T95: =IFERROR(AVERAGE(T3:T82),"") -> 192.6875 | U95: 617.375 | V95: 690.025 | W95: 403.7125 | X95: 448.8875 | Y95: 758.0395833 | Z95: 348.9208333 | AA95: 149.6 | AB95: 55.775 | AC95: 41.16801075 | AD95: 392.825 | AE95: 418.0274772

Sheet ExpenseByItr
A1: =ReplacementPurches!A1 -> Hours | C1: =ReplacementPurches!C1 -> 744 | D1: =ReplacementPurches!D1 -> 721 | E1: =ReplacementPurches!E1 -> 744 | F1: =ReplacementPurches!F1 -> 744 | G1: =ReplacementPurches!G1 -> 672 | H1: =ReplacementPurches!H1 -> 743 | I1: =ReplacementPurches!I1 -> 720 | J1: =ReplacementPurches!J1 -> 744 | K1: =ReplacementPurches!K1 -> 720 | L1: =ReplacementPurches!L1 -> 744 | M1: =ReplacementPurches!M1 -> 744 | N1: =ReplacementPurches!N1 -> 720 | O1: =ReplacementPurches!O1 -> 8760 | Q1: =ReplacementPurches!Q1 -> Hours | S1: =ReplacementPurches!S1 -> 744 | T1: =ReplacementPurches!T1 -> 721 | U1: =ReplacementPurches!U1 -> 744 | V1: =ReplacementPurches!V1 -> 744 | W1: =ReplacementPurches!W1 -> 672 | X1: =ReplacementPurches!X1 -> 743 | Y1: =ReplacementPurches!Y1 -> 720 | Z1: =ReplacementPurches!Z1 -> 744 | AA1: =ReplacementPurches!AA1 -> 720 | AB1: =ReplacementPurches!AB1 -> 744 | AC1: =ReplacementPurches!AC1 -> 744 | AD1: =ReplacementPurches!AD1 -> 720 | AE1: =ReplacementPurches!AE1 -> 8760
A2: =ReplacementPurches!A2 -> FY | B2: =ReplacementPurches!B2 -> WY | C2: =ReplacementPurches!C2 -> 2019-10-01 | D2: =ReplacementPurches!D2 -> 2019-11-01 | E2: =ReplacementPurches!E2 -> 2019-12-01 | F2: =ReplacementPurches!F2 -> 2020-01-01 | G2: =ReplacementPurches!G2 -> 2020-02-01 | H2: =ReplacementPurches!H2 -> 2020-03-01 | I2: =ReplacementPurches!I2 -> 2020-04-01 | J2: =ReplacementPurches!J2 -> 2020-05-01 | K2: =ReplacementPurches!K2 -> 2020-06-01 | L2: =ReplacementPurches!L2 -> 2020-07-01 | M2: =ReplacementPurches!M2 -> 2020-08-01 | N2: =ReplacementPurches!N2 -> 2020-09-01 | O2: =ReplacementPurches!O2 -> Wtd Avg | Q2: =ReplacementPurches!Q2 -> FY | R2: =ReplacementPurches!R2 -> WY | S2: =ReplacementPurches!S2 -> 2020-10-01 | T2: =ReplacementPurches!T2 -> 2020-11-01 | U2: =ReplacementPurches!U2 -> 2020-12-01 | V2: =ReplacementPurches!V2 -> 2021-01-01 | W2: =ReplacementPurches!W2 -> 2021-02-01 | X2: =ReplacementPurches!X2 -> 2021-03-01 | Y2: =ReplacementPurches!Y2 -> 2021-04-01 | Z2: =ReplacementPurches!Z2 -> 2021-05-01 | AA2: =ReplacementPurches!AA2 -> 2021-06-01 | AB2: =ReplacementPurches!AB2 -> 2021-07-01 | AC2: =ReplacementPurches!AC2 -> 2021-08-01 | AD2: =ReplacementPurches!AD2 -> 2021-09-01 | AE2: =ReplacementPurches!AE2 -> Wtd Avg
A3: =PurchByItr!A3 -> 2020 | B3: =PurchByItr!B3 -> 1950 | C3: =IF(PricesByItr!C3<0,0,(PurchByItr!C3*C$1*PricesByItr!C3)/1000) -> 18334.17586 | D3: =IF(PricesByItr!D3<0,0,(PurchByItr!D3*D$1*PricesByItr!D3)/1000) -> 11626.75635 | E3: =IF(PricesByItr!E3<0,0,(PurchByItr!E3*E$1*PricesByItr!E3)/1000) -> 4771.284593 | F3: =IF(PricesByItr!F3<0,0,(PurchByItr!F3*F$1*PricesByItr!F3)/1000) -> 0 | G3: =IF(PricesByItr!G3<0,0,(PurchByItr!G3*G$1*PricesByItr!G3)/1000) -> 0 | H3: =IF(PricesByItr!H3<0,0,(PurchByItr!H3*H$1*PricesByItr!H3)/1000) -> 0 | I3: =IF(PricesByItr!I3<0,0,(PurchByItr!I3*I$1*PricesByItr!I3)/1000) -> 0 | J3: =IF(PricesByItr!J3<0,0,(PurchByItr!J3*J$1*PricesByItr!J3)/1000) -> 0 | K3: =IF(PricesByItr!K3<0,0,(PurchByItr!K3*K$1*PricesByItr!K3)/1000) -> 0 | L3: =IF(PricesByItr!L3<0,0,(PurchByItr!L3*L$1*PricesByItr!L3)/1000) -> 0 | M3: =IF(PricesByItr!M3<0,0,(PurchByItr!M3*M$1*PricesByItr!M3)/1000) -> 0 | N3: =IF(PricesByItr!N3<0,0,(PurchByItr!N3*N$1*PricesByItr!N3)/1000) -> 1074.510049 | O3: =SUM(C3:N3) -> 35806.72685 | Q3: =PurchByItr!Q3 -> 2021 | R3: =PurchByItr!R3 -> 1951 | S3: =IF(PricesByItr!S3<0,0,(PurchByItr!S3*S$1*PricesByItr!S3)/1000) -> 5304.505179 | T3: =IF(PricesByItr!T3<0,0,(PurchByItr!T3*T$1*PricesByItr!T3)/1000) -> 0 | U3: =IF(PricesByItr!U3<0,0,(PurchByItr!U3*U$1*PricesByItr!U3)/1000) -> 0 | V3: =IF(PricesByItr!V3<0,0,(PurchByItr!V3*V$1*PricesByItr!V3)/1000) -> 0 | W3: =IF(PricesByItr!W3<0,0,(PurchByItr!W3*W$1*PricesByItr!W3)/1000) -> 0 | X3: =IF(PricesByItr!X3<0,0,(PurchByItr!X3*X$1*PricesByItr!X3)/1000) -> 0 | Y3: =IF(PricesByItr!Y3<0,0,(PurchByItr!Y3*Y$1*PricesByItr!Y3)/1000) -> 0 | Z3: =IF(PricesByItr!Z3<0,0,(PurchByItr!Z3*Z$1*PricesByItr!Z3)/1000) -> 0 | AA3: =IF(PricesByItr!AA3<0,0,(PurchByItr!AA3*AA$1*PricesByItr!AA3)/1000) -> 0 | AB3: =IF(PricesByItr!AB3<0,0,(PurchByItr!AB3*AB$1*PricesByItr!AB3)/1000) -> 0 | AC3: =IF(PricesByItr!AC3<0,0,(PurchByItr!AC3*AC$1*PricesByItr!AC3)/1000) -> 0 | AD3: =IF(PricesByItr!AD3<0,0,(PurchByItr!AD3*AD$1*PricesByItr!AD3)/1000) -> 4949.876658 | AE3: =SUM(S3:AD3) -> 10254.38184
A4: =PurchByItr!A4 -> 2020 | B4: =PurchByItr!B4 -> 1941 | C4: =IF(PricesByItr!C4<0,0,(PurchByItr!C4*C$1*PricesByItr!C4)/1000) -> 12923.1503 | D4: =IF(PricesByItr!D4<0,0,(PurchByItr!D4*D$1*PricesByItr!D4)/1000) -> -774.3103164 | E4: =IF(PricesByItr!E4<0,0,(PurchByItr!E4*E$1*PricesByItr!E4)/1000) -> 22040.12375 | F4: =IF(PricesByItr!F4<0,0,(PurchByItr!F4*F$1*PricesByItr!F4)/1000) -> 38489.24309 | G4: =IF(PricesByItr!G4<0,0,(PurchByItr!G4*G$1*PricesByItr!G4)/1000) -> 8988.718662 | H4: =IF(PricesByItr!H4<0,0,(PurchByItr!H4*H$1*PricesByItr!H4)/1000) -> 6297.863858 | I4: =IF(PricesByItr!I4<0,0,(PurchByItr!I4*I$1*PricesByItr!I4)/1000) -> 47190.65847 | J4: =IF(PricesByItr!J4<0,0,(PurchByItr!J4*J$1*PricesByItr!J4)/1000) -> 19008.2812 | K4: =IF(PricesByItr!K4<0,0,(PurchByItr!K4*K$1*PricesByItr!K4)/1000) -> 3343.870302 | L4: =IF(PricesByItr!L4<0,0,(PurchByItr!L4*L$1*PricesByItr!L4)/1000) -> 0 | M4: =IF(PricesByItr!M4<0,0,(PurchByItr!M4*M$1*PricesByItr!M4)/1000) -> 0 | N4: =IF(PricesByItr!N4<0,0,(PurchByItr!N4*N$1*PricesByItr!N4)/1000) -> 3987.287473 | O4: =SUM(C4:N4) -> 161494.8868 | Q4: =PurchByItr!Q4 -> 2021 | R4: =PurchByItr!R4 -> 1942 | S4: =IF(PricesByItr!S4<0,0,(PurchByItr!S4*S$1*PricesByItr!S4)/1000) -> 13655.40284 | T4: =IF(PricesByItr!T4<0,0,(PurchByItr!T4*T$1*PricesByItr!T4)/1000) -> -1218.467729 | U4: =IF(PricesByItr!U4<0,0,(PurchByItr!U4*U$1*PricesByItr!U4)/1000) -> 0 | V4: =IF(PricesByItr!V4<0,0,(PurchByItr!V4*V$1*PricesByItr!V4)/1000) -> 0 | W4: =IF(PricesByItr!W4<0,0,(PurchByItr!W4*W$1*PricesByItr!W4)/1000) -> 1367.304873 | X4: =IF(PricesByItr!X4<0,0,(PurchByItr!X4*X$1*PricesByItr!X4)/1000) -> 78457.60997 | Y4: =IF(PricesByItr!Y4<0,0,(PurchByItr!Y4*Y$1*PricesByItr!Y4)/1000) -> 22394.65134 | Z4: =IF(PricesByItr!Z4<0,0,(PurchByItr!Z4*Z$1*PricesByItr!Z4)/1000) -> 14756.99543 | AA4: =IF(PricesByItr!AA4<0,0,(PurchByItr!AA4*AA$1*PricesByItr!AA4)/1000) -> 0 | AB4: =IF(PricesByItr!AB4<0,0,(PurchByItr!AB4*AB$1*PricesByItr!AB4)/1000) -> 0 | AC4: =IF(PricesByItr!AC4<0,0,(PurchByItr!AC4*AC$1*PricesByItr!AC4)/1000) -> 0 | AD4: =IF(PricesByItr!AD4<0,0,(PurchByItr!AD4*AD$1*PricesByItr!AD4)/1000) -> -11382.22149 | AE4: =SUM(S4:AD4) -> 118031.2752
A5: =PurchByItr!A5 -> 2020 | B5: =PurchByItr!B5 -> 1968 | C5: =IF(PricesByItr!C5<0,0,(PurchByItr!C5*C$1*PricesByItr!C5)/1000) -> 18425.20538 | D5: =IF(PricesByItr!D5<0,0,(PurchByItr!D5*D$1*PricesByItr!D5)/1000) -> 0 | E5: =IF(PricesByItr!E5<0,0,(PurchByItr!E5*E$1*PricesByItr!E5)/1000) -> 0 | F5: =IF(PricesByItr!F5<0,0,(PurchByItr!F5*F$1*PricesByItr!F5)/1000) -> 0 | G5: =IF(PricesByItr!G5<0,0,(PurchByItr!G5*G$1*PricesByItr!G5)/1000) -> 0 | H5: =IF(PricesByItr!H5<0,0,(PurchByItr!H5*H$1*PricesByItr!H5)/1000) -> 0 | I5: =IF(PricesByItr!I5<0,0,(PurchByItr!I5*I$1*PricesByItr!I5)/1000) -> 31372.69694 | J5: =IF(PricesByItr!J5<0,0,(PurchByItr!J5*J$1*PricesByItr!J5)/1000) -> 3751.781469 | K5: =IF(PricesByItr!K5<0,0,(PurchByItr!K5*K$1*PricesByItr!K5)/1000) -> 0 | L5: =IF(PricesByItr!L5<0,0,(PurchByItr!L5*L$1*PricesByItr!L5)/1000) -> 0 | M5: =IF(PricesByItr!M5<0,0,(PurchByItr!M5*M$1*PricesByItr!M5)/1000) -> 0 | N5: =IF(PricesByItr!N5<0,0,(PurchByItr!N5*N$1*PricesByItr!N5)/1000) -> 0 | O5: 53549.68379 | Q5: =PurchByItr!Q5 -> 2021 | R5: =PurchByItr!R5 -> 1969 | S5: =IF(PricesByItr!S5<0,0,(PurchByItr!S5*S$1*PricesByItr!S5)/1000) -> 521.243298 | T5: =IF(PricesByItr!T5<0,0,(PurchByItr!T5*T$1*PricesByItr!T5)/1000) -> 0 | U5: =IF(PricesByItr!U5<0,0,(PurchByItr!U5*U$1*PricesByItr!U5)/1000) -> 0 | V5: =IF(PricesByItr!V5<0,0,(PurchByItr!V5*V$1*PricesByItr!V5)/1000) -> 0 | W5: =IF(PricesByItr!W5<0,0,(PurchByItr!W5*W$1*PricesByItr!W5)/1000) -> 0 | X5: =IF(PricesByItr!X5<0,0,(PurchByItr!X5*X$1*PricesByItr!X5)/1000) -> 0 | Y5: =IF(PricesByItr!Y5<0,0,(PurchByItr!Y5*Y$1*PricesByItr!Y5)/1000) -> 0 | Z5: =IF(PricesByItr!Z5<0,0,(PurchByItr!Z5*Z$1*PricesByItr!Z5)/1000) -> 0 | AA5: =IF(PricesByItr!AA5<0,0,(PurchByItr!AA5*AA$1*PricesByItr!AA5)/1000) -> 0 | AB5: =IF(PricesByItr!AB5<0,0,(PurchByItr!AB5*AB$1*PricesByItr!AB5)/1000) -> 0 | AC5: =IF(PricesByItr!AC5<0,0,(PurchByItr!AC5*AC$1*PricesByItr!AC5)/1000) -> 0 | AD5: =IF(PricesByItr!AD5<0,0,(PurchByItr!AD5*AD$1*PricesByItr!AD5)/1000) -> 11521.92278 | AE5: 12043.16608
A6: =PurchByItr!A6 -> 2020 | B6: =PurchByItr!B6 -> 1940 | C6: =IF(PricesByItr!C6<0,0,(PurchByItr!C6*C$1*PricesByItr!C6)/1000) -> 13892.85122 | D6: =IF(PricesByItr!D6<0,0,(PurchByItr!D6*D$1*PricesByItr!D6)/1000) -> 6902.411105 | E6: =IF(PricesByItr!E6<0,0,(PurchByItr!E6*E$1*PricesByItr!E6)/1000) -> 6950.23524 | F6: =IF(PricesByItr!F6<0,0,(PurchByItr!F6*F$1*PricesByItr!F6)/1000) -> 27083.80006 | G6: =IF(PricesByItr!G6<0,0,(PurchByItr!G6*G$1*PricesByItr!G6)/1000) -> 5478.848476 | H6: =IF(PricesByItr!H6<0,0,(PurchByItr!H6*H$1*PricesByItr!H6)/1000) -> 0 | I6: =IF(PricesByItr!I6<0,0,(PurchByItr!I6*I$1*PricesByItr!I6)/1000) -> 8999.336943 | J6: =IF(PricesByItr!J6<0,0,(PurchByItr!J6*J$1*PricesByItr!J6)/1000) -> 0 | K6: =IF(PricesByItr!K6<0,0,(PurchByItr!K6*K$1*PricesByItr!K6)/1000) -> 7368.657718 | L6: =IF(PricesByItr!L6<0,0,(PurchByItr!L6*L$1*PricesByItr!L6)/1000) -> 21549.65727 | M6: =IF(PricesByItr!M6<0,0,(PurchByItr!M6*M$1*PricesByItr!M6)/1000) -> 12141.46601 | N6: =IF(PricesByItr!N6<0,0,(PurchByItr!N6*N$1*PricesByItr!N6)/1000) -> -74.27059753 | O6: 110292.9934 | Q6: =PurchByItr!Q6 -> 2021 | R6: =PurchByItr!R6 -> 1941 | S6: =IF(PricesByItr!S6<0,0,(PurchByItr!S6*S$1*PricesByItr!S6)/1000) -> 9779.034418 | T6: =IF(PricesByItr!T6<0,0,(PurchByItr!T6*T$1*PricesByItr!T6)/1000) -> -669.5217897 | U6: =IF(PricesByItr!U6<0,0,(PurchByItr!U6*U$1*PricesByItr!U6)/1000) -> 21043.81133 | V6: =IF(PricesByItr!V6<0,0,(PurchByItr!V6*V$1*PricesByItr!V6)/1000) -> 46821.17743 | W6: =IF(PricesByItr!W6<0,0,(PurchByItr!W6*W$1*PricesByItr!W6)/1000) -> 9227.684909 | X6: =IF(PricesByItr!X6<0,0,(PurchByItr!X6*X$1*PricesByItr!X6)/1000) -> 6752.880522 | Y6: =IF(PricesByItr!Y6<0,0,(PurchByItr!Y6*Y$1*PricesByItr!Y6)/1000) -> 52407.42405 | Z6: =IF(PricesByItr!Z6<0,0,(PurchByItr!Z6*Z$1*PricesByItr!Z6)/1000) -> 21597.2953 | AA6: =IF(PricesByItr!AA6<0,0,(PurchByItr!AA6*AA$1*PricesByItr!AA6)/1000) -> 5209.991035 | AB6: =IF(PricesByItr!AB6<0,0,(PurchByItr!AB6*AB$1*PricesByItr!AB6)/1000) -> 0 | AC6: =IF(PricesByItr!AC6<0,0,(PurchByItr!AC6*AC$1*PricesByItr!AC6)/1000) -> 0 | AD6: =IF(PricesByItr!AD6<0,0,(PurchByItr!AD6*AD$1*PricesByItr!AD6)/1000) -> 2628.647052 | AE6: 174798.4243
A7: =PurchByItr!A7 -> 2020 | B7: =PurchByItr!B7 -> 1962 | C7: =IF(PricesByItr!C7<0,0,(PurchByItr!C7*C$1*PricesByItr!C7)/1000) -> 29035.70498 | D7: =IF(PricesByItr!D7<0,0,(PurchByItr!D7*D$1*PricesByItr!D7)/1000) -> 5256.263992 | E7: =IF(PricesByItr!E7<0,0,(PurchByItr!E7*E$1*PricesByItr!E7)/1000) -> 6094.209383 | F7: =IF(PricesByItr!F7<0,0,(PurchByItr!F7*F$1*PricesByItr!F7)/1000) -> 0 | G7: =IF(PricesByItr!G7<0,0,(PurchByItr!G7*G$1*PricesByItr!G7)/1000) -> 0 | H7: =IF(PricesByItr!H7<0,0,(PurchByItr!H7*H$1*PricesByItr!H7)/1000) -> 12566.98014 | I7: =IF(PricesByItr!I7<0,0,(PurchByItr!I7*I$1*PricesByItr!I7)/1000) -> 0 | J7: =IF(PricesByItr!J7<0,0,(PurchByItr!J7*J$1*PricesByItr!J7)/1000) -> 0 | K7: =IF(PricesByItr!K7<0,0,(PurchByItr!K7*K$1*PricesByItr!K7)/1000) -> 0 | L7: =IF(PricesByItr!L7<0,0,(PurchByItr!L7*L$1*PricesByItr!L7)/1000) -> 0 | M7: =IF(PricesByItr!M7<0,0,(PurchByItr!M7*M$1*PricesByItr!M7)/1000) -> 0 | N7: =IF(PricesByItr!N7<0,0,(PurchByItr!N7*N$1*PricesByItr!N7)/1000) -> 12506.69577 | O7: 65459.85426 | Q7: =PurchByItr!Q7 -> 2021 | R7: =PurchByItr!R7 -> 1963 | S7: =IF(PricesByItr!S7<0,0,(PurchByItr!S7*S$1*PricesByItr!S7)/1000) -> 5752.968315 | T7: =IF(PricesByItr!T7<0,0,(PurchByItr!T7*T$1*PricesByItr!T7)/1000) -> 0 | U7: =IF(PricesByItr!U7<0,0,(PurchByItr!U7*U$1*PricesByItr!U7)/1000) -> 0 | V7: =IF(PricesByItr!V7<0,0,(PurchByItr!V7*V$1*PricesByItr!V7)/1000) -> 0 | W7: =IF(PricesByItr!W7<0,0,(PurchByItr!W7*W$1*PricesByItr!W7)/1000) -> 0 | X7: =IF(PricesByItr!X7<0,0,(PurchByItr!X7*X$1*PricesByItr!X7)/1000) -> 15295.85539 | Y7: =IF(PricesByItr!Y7<0,0,(PurchByItr!Y7*Y$1*PricesByItr!Y7)/1000) -> 25836.62164 | Z7: =IF(PricesByItr!Z7<0,0,(PurchByItr!Z7*Z$1*PricesByItr!Z7)/1000) -> 0 | AA7: =IF(PricesByItr!AA7<0,0,(PurchByItr!AA7*AA$1*PricesByItr!AA7)/1000) -> 0 | AB7: =IF(PricesByItr!AB7<0,0,(PurchByItr!AB7*AB$1*PricesByItr!AB7)/1000) -> 0 | AC7: =IF(PricesByItr!AC7<0,0,(PurchByItr!AC7*AC$1*PricesByItr!AC7)/1000) -> 0 | AD7: =IF(PricesByItr!AD7<0,0,(PurchByItr!AD7*AD$1*PricesByItr!AD7)/1000) -> 2511.407903 | AE7: 49396.85325
A8: =PurchByItr!A8 -> 2020 | B8: =PurchByItr!B8 -> 1995 | C8: =IF(PricesByItr!C8<0,0,(PurchByItr!C8*C$1*PricesByItr!C8)/1000) -> 12457.78944 | D8: =IF(PricesByItr!D8<0,0,(PurchByItr!D8*D$1*PricesByItr!D8)/1000) -> 16536.01612 | E8: =IF(PricesByItr!E8<0,0,(PurchByItr!E8*E$1*PricesByItr!E8)/1000) -> 22269.99767 | F8: =IF(PricesByItr!F8<0,0,(PurchByItr!F8*F$1*PricesByItr!F8)/1000) -> 21109.46757 | G8: =IF(PricesByItr!G8<0,0,(PurchByItr!G8*G$1*PricesByItr!G8)/1000) -> 0 | H8: =IF(PricesByItr!H8<0,0,(PurchByItr!H8*H$1*PricesByItr!H8)/1000) -> 0 | I8: =IF(PricesByItr!I8<0,0,(PurchByItr!I8*I$1*PricesByItr!I8)/1000) -> 35772.11987 | J8: =IF(PricesByItr!J8<0,0,(PurchByItr!J8*J$1*PricesByItr!J8)/1000) -> 0 | K8: =IF(PricesByItr!K8<0,0,(PurchByItr!K8*K$1*PricesByItr!K8)/1000) -> 0 | L8: =IF(PricesByItr!L8<0,0,(PurchByItr!L8*L$1*PricesByItr!L8)/1000) -> 0 | M8: =IF(PricesByItr!M8<0,0,(PurchByItr!M8*M$1*PricesByItr!M8)/1000) -> 0 | N8: =IF(PricesByItr!N8<0,0,(PurchByItr!N8*N$1*PricesByItr!N8)/1000) -> 2952.307089 | O8: 111097.6978 | Q8: =PurchByItr!Q8 -> 2021 | R8: =PurchByItr!R8 -> 1996 | S8: =IF(PricesByItr!S8<0,0,(PurchByItr!S8*S$1*PricesByItr!S8)/1000) -> 1457.066931 | T8: =IF(PricesByItr!T8<0,0,(PurchByItr!T8*T$1*PricesByItr!T8)/1000) -> 0 | U8: =IF(PricesByItr!U8<0,0,(PurchByItr!U8*U$1*PricesByItr!U8)/1000) -> 0 | V8: =IF(PricesByItr!V8<0,0,(PurchByItr!V8*V$1*PricesByItr!V8)/1000) -> 0 | W8: =IF(PricesByItr!W8<0,0,(PurchByItr!W8*W$1*PricesByItr!W8)/1000) -> 0 | X8: =IF(PricesByItr!X8<0,0,(PurchByItr!X8*X$1*PricesByItr!X8)/1000) -> 0 | Y8: =IF(PricesByItr!Y8<0,0,(PurchByItr!Y8*Y$1*PricesByItr!Y8)/1000) -> 0 | Z8: =IF(PricesByItr!Z8<0,0,(PurchByItr!Z8*Z$1*PricesByItr!Z8)/1000) -> 0 | AA8: =IF(PricesByItr!AA8<0,0,(PurchByItr!AA8*AA$1*PricesByItr!AA8)/1000) -> 0 | AB8: =IF(PricesByItr!AB8<0,0,(PurchByItr!AB8*AB$1*PricesByItr!AB8)/1000) -> 0 | AC8: =IF(PricesByItr!AC8<0,0,(PurchByItr!AC8*AC$1*PricesByItr!AC8)/1000) -> 0 | AD8: =IF(PricesByItr!AD8<0,0,(PurchByItr!AD8*AD$1*PricesByItr!AD8)/1000) -> 4387.32707 | AE8: 5844.394001
A9: =PurchByItr!A9 -> 2020 | B9: =PurchByItr!B9 -> 1943 | C9: =IF(PricesByItr!C9<0,0,(PurchByItr!C9*C$1*PricesByItr!C9)/1000) -> 16348.93782 | D9: =IF(PricesByItr!D9<0,0,(PurchByItr!D9*D$1*PricesByItr!D9)/1000) -> 20776.0227 | E9: =IF(PricesByItr!E9<0,0,(PurchByItr!E9*E$1*PricesByItr!E9)/1000) -> 23905.08827 | F9: =IF(PricesByItr!F9<0,0,(PurchByItr!F9*F$1*PricesByItr!F9)/1000) -> 0 | G9: =IF(PricesByItr!G9<0,0,(PurchByItr!G9*G$1*PricesByItr!G9)/1000) -> 0 | H9: =IF(PricesByItr!H9<0,0,(PurchByItr!H9*H$1*PricesByItr!H9)/1000) -> 0 | I9: =IF(PricesByItr!I9<0,0,(PurchByItr!I9*I$1*PricesByItr!I9)/1000) -> 0 | J9: =IF(PricesByItr!J9<0,0,(PurchByItr!J9*J$1*PricesByItr!J9)/1000) -> 0 | K9: =IF(PricesByItr!K9<0,0,(PurchByItr!K9*K$1*PricesByItr!K9)/1000) -> 0 | L9: =IF(PricesByItr!L9<0,0,(PurchByItr!L9*L$1*PricesByItr!L9)/1000) -> 0 | M9: =IF(PricesByItr!M9<0,0,(PurchByItr!M9*M$1*PricesByItr!M9)/1000) -> 0 | N9: =IF(PricesByItr!N9<0,0,(PurchByItr!N9*N$1*PricesByItr!N9)/1000) -> 15678.42482 | O9: 76708.47362 | Q9: =PurchByItr!Q9 -> 2021 | R9: =PurchByItr!R9 -> 1944 | S9: =IF(PricesByItr!S9<0,0,(PurchByItr!S9*S$1*PricesByItr!S9)/1000) -> 21306.90208 | T9: =IF(PricesByItr!T9<0,0,(PurchByItr!T9*T$1*PricesByItr!T9)/1000) -> 8602.548402 | U9: =IF(PricesByItr!U9<0,0,(PurchByItr!U9*U$1*PricesByItr!U9)/1000) -> 36065.65381 | V9: =IF(PricesByItr!V9<0,0,(PurchByItr!V9*V$1*PricesByItr!V9)/1000) -> 30034.67264 | W9: =IF(PricesByItr!W9<0,0,(PurchByItr!W9*W$1*PricesByItr!W9)/1000) -> 27167.32648 | X9: =IF(PricesByItr!X9<0,0,(PurchByItr!X9*X$1*PricesByItr!X9)/1000) -> 30373.6057 | Y9: =IF(PricesByItr!Y9<0,0,(PurchByItr!Y9*Y$1*PricesByItr!Y9)/1000) -> 48802.45083 | Z9: =IF(PricesByItr!Z9<0,0,(PurchByItr!Z9*Z$1*PricesByItr!Z9)/1000) -> 51211.36599 | AA9: =IF(PricesByItr!AA9<0,0,(PurchByItr!AA9*AA$1*PricesByItr!AA9)/1000) -> 13065.53349 | AB9: =IF(PricesByItr!AB9<0,0,(PurchByItr!AB9*AB$1*PricesByItr!AB9)/1000) -> 8819.766916 | AC9: =IF(PricesByItr!AC9<0,0,(PurchByItr!AC9*AC$1*PricesByItr!AC9)/1000) -> -297.6608771 | AD9: =IF(PricesByItr!AD9<0,0,(PurchByItr!AD9*AD$1*PricesByItr!AD9)/1000) -> 11602.50583 | AE9: 286754.6713
A10: =PurchByItr!A10 -> 2020 | B10: =PurchByItr!B10 -> 1966 | C10: =IF(PricesByItr!C10<0,0,(PurchByItr!C10*C$1*PricesByItr!C10)/1000) -> 12911.80427 | D10: =IF(PricesByItr!D10<0,0,(PurchByItr!D10*D$1*PricesByItr!D10)/1000) -> 295.7563604 | E10: =IF(PricesByItr!E10<0,0,(PurchByItr!E10*E$1*PricesByItr!E10)/1000) -> 0 | F10: =IF(PricesByItr!F10<0,0,(PurchByItr!F10*F$1*PricesByItr!F10)/1000) -> 0 | G10: =IF(PricesByItr!G10<0,0,(PurchByItr!G10*G$1*PricesByItr!G10)/1000) -> 0 | H10: =IF(PricesByItr!H10<0,0,(PurchByItr!H10*H$1*PricesByItr!H10)/1000) -> 10847.76269 | I10: =IF(PricesByItr!I10<0,0,(PurchByItr!I10*I$1*PricesByItr!I10)/1000) -> 0 | J10: =IF(PricesByItr!J10<0,0,(PurchByItr!J10*J$1*PricesByItr!J10)/1000) -> 2413.416349 | K10: =IF(PricesByItr!K10<0,0,(PurchByItr!K10*K$1*PricesByItr!K10)/1000) -> 0 | L10: =IF(PricesByItr!L10<0,0,(PurchByItr!L10*L$1*PricesByItr!L10)/1000) -> 0 | M10: =IF(PricesByItr!M10<0,0,(PurchByItr!M10*M$1*PricesByItr!M10)/1000) -> 0 | N10: =IF(PricesByItr!N10<0,0,(PurchByItr!N10*N$1*PricesByItr!N10)/1000) -> 11934.72236 | O10: 38403.46202 | Q10: =PurchByItr!Q10 -> 2021 | R10: =PurchByItr!R10 -> 1967 | S10: =IF(PricesByItr!S10<0,0,(PurchByItr!S10*S$1*PricesByItr!S10)/1000) -> 19375.18911 | T10: =IF(PricesByItr!T10<0,0,(PurchByItr!T10*T$1*PricesByItr!T10)/1000) -> 8929.564967 | U10: =IF(PricesByItr!U10<0,0,(PurchByItr!U10*U$1*PricesByItr!U10)/1000) -> 0 | V10: =IF(PricesByItr!V10<0,0,(PurchByItr!V10*V$1*PricesByItr!V10)/1000) -> 0 | W10: =IF(PricesByItr!W10<0,0,(PurchByItr!W10*W$1*PricesByItr!W10)/1000) -> 0 | X10: =IF(PricesByItr!X10<0,0,(PurchByItr!X10*X$1*PricesByItr!X10)/1000) -> 0 | Y10: =IF(PricesByItr!Y10<0,0,(PurchByItr!Y10*Y$1*PricesByItr!Y10)/1000) -> 13913.2918 | Z10: =IF(PricesByItr!Z10<0,0,(PurchByItr!Z10*Z$1*PricesByItr!Z10)/1000) -> 0 | AA10: =IF(PricesByItr!AA10<0,0,(PurchByItr!AA10*AA$1*PricesByItr!AA10)/1000) -> 0 | AB10: =IF(PricesByItr!AB10<0,0,(PurchByItr!AB10*AB$1*PricesByItr!AB10)/1000) -> 0 | AC10: =IF(PricesByItr!AC10<0,0,(PurchByItr!AC10*AC$1*PricesByItr!AC10)/1000) -> 0 | AD10: =IF(PricesByItr!AD10<0,0,(PurchByItr!AD10*AD$1*PricesByItr!AD10)/1000) -> 2195.578717 | AE10: 44413.62459
A11: =PurchByItr!A11 -> 2020 | B11: =PurchByItr!B11 -> 2004 | C11: =IF(PricesByItr!C11<0,0,(PurchByItr!C11*C$1*PricesByItr!C11)/1000) -> 18606.86323 | D11: =IF(PricesByItr!D11<0,0,(PurchByItr!D11*D$1*PricesByItr!D11)/1000) -> -3490.353949 | E11: =IF(PricesByItr!E11<0,0,(PurchByItr!E11*E$1*PricesByItr!E11)/1000) -> 3800.287143 | F11: =IF(PricesByItr!F11<0,0,(PurchByItr!F11*F$1*PricesByItr!F11)/1000) -> 45450.12158 | G11: =IF(PricesByItr!G11<0,0,(PurchByItr!G11*G$1*PricesByItr!G11)/1000) -> 23628.622 | H11: =IF(PricesByItr!H11<0,0,(PurchByItr!H11*H$1*PricesByItr!H11)/1000) -> 14255.27019 | I11: =IF(PricesByItr!I11<0,0,(PurchByItr!I11*I$1*PricesByItr!I11)/1000) -> 14955.86584 | J11: =IF(PricesByItr!J11<0,0,(PurchByItr!J11*J$1*PricesByItr!J11)/1000) -> 2583.866137 | K11: =IF(PricesByItr!K11<0,0,(PurchByItr!K11*K$1*PricesByItr!K11)/1000) -> 0 | L11: =IF(PricesByItr!L11<0,0,(PurchByItr!L11*L$1*PricesByItr!L11)/1000) -> 0 | M11: =IF(PricesByItr!M11<0,0,(PurchByItr!M11*M$1*PricesByItr!M11)/1000) -> 4547.144098 | N11: =IF(PricesByItr!N11<0,0,(PurchByItr!N11*N$1*PricesByItr!N11)/1000) -> 0 | O11: 124337.6863 | Q11: =PurchByItr!Q11 -> 2021 | R11: =PurchByItr!R11 -> 2005 | S11: =IF(PricesByItr!S11<0,0,(PurchByItr!S11*S$1*PricesByItr!S11)/1000) -> 7130.997423 | T11: =IF(PricesByItr!T11<0,0,(PurchByItr!T11*T$1*PricesByItr!T11)/1000) -> 0 | U11: =IF(PricesByItr!U11<0,0,(PurchByItr!U11*U$1*PricesByItr!U11)/1000) -> 0 | V11: =IF(PricesByItr!V11<0,0,(PurchByItr!V11*V$1*PricesByItr!V11)/1000) -> 0 | W11: =IF(PricesByItr!W11<0,0,(PurchByItr!W11*W$1*PricesByItr!W11)/1000) -> 0 | X11: =IF(PricesByItr!X11<0,0,(PurchByItr!X11*X$1*PricesByItr!X11)/1000) -> 3881.657359 | Y11: =IF(PricesByItr!Y11<0,0,(PurchByItr!Y11*Y$1*PricesByItr!Y11)/1000) -> 39023.79721 | Z11: =IF(PricesByItr!Z11<0,0,(PurchByItr!Z11*Z$1*PricesByItr!Z11)/1000) -> 111.0324688 | AA11: =IF(PricesByItr!AA11<0,0,(PurchByItr!AA11*AA$1*PricesByItr!AA11)/1000) -> 0 | AB11: =IF(PricesByItr!AB11<0,0,(PurchByItr!AB11*AB$1*PricesByItr!AB11)/1000) -> 0 | AC11: =IF(PricesByItr!AC11<0,0,(PurchByItr!AC11*AC$1*PricesByItr!AC11)/1000) -> 0 | AD11: =IF(PricesByItr!AD11<0,0,(PurchByItr!AD11*AD$1*PricesByItr!AD11)/1000) -> 17049.02688 | AE11: 67196.51134
A12: =PurchByItr!A12 -> 2020 | B12: =PurchByItr!B12 -> 1954 | C12: =IF(PricesByItr!C12<0,0,(PurchByItr!C12*C$1*PricesByItr!C12)/1000) -> 12686.85271 | D12: =IF(PricesByItr!D12<0,0,(PurchByItr!D12*D$1*PricesByItr!D12)/1000) -> 0 | E12: =IF(PricesByItr!E12<0,0,(PurchByItr!E12*E$1*PricesByItr!E12)/1000) -> 0 | F12: =IF(PricesByItr!F12<0,0,(PurchByItr!F12*F$1*PricesByItr!F12)/1000) -> 0 | G12: =IF(PricesByItr!G12<0,0,(PurchByItr!G12*G$1*PricesByItr!G12)/1000) -> 0 | H12: =IF(PricesByItr!H12<0,0,(PurchByItr!H12*H$1*PricesByItr!H12)/1000) -> 0 | I12: =IF(PricesByItr!I12<0,0,(PurchByItr!I12*I$1*PricesByItr!I12)/1000) -> 0 | J12: =IF(PricesByItr!J12<0,0,(PurchByItr!J12*J$1*PricesByItr!J12)/1000) -> 0 | K12: =IF(PricesByItr!K12<0,0,(PurchByItr!K12*K$1*PricesByItr!K12)/1000) -> 0 | L12: =IF(PricesByItr!L12<0,0,(PurchByItr!L12*L$1*PricesByItr!L12)/1000) -> 0 | M12: =IF(PricesByItr!M12<0,0,(PurchByItr!M12*M$1*PricesByItr!M12)/1000) -> 0 | N12: =IF(PricesByItr!N12<0,0,(PurchByItr!N12*N$1*PricesByItr!N12)/1000) -> 0 | O12: 12686.85271 | Q12: =PurchByItr!Q12 -> 2021 | R12: =PurchByItr!R12 -> 1955 | S12: =IF(PricesByItr!S12<0,0,(PurchByItr!S12*S$1*PricesByItr!S12)/1000) -> 15565.54327 | T12: =IF(PricesByItr!T12<0,0,(PurchByItr!T12*T$1*PricesByItr!T12)/1000) -> 0 | U12: =IF(PricesByItr!U12<0,0,(PurchByItr!U12*U$1*PricesByItr!U12)/1000) -> 0 | V12: =IF(PricesByItr!V12<0,0,(PurchByItr!V12*V$1*PricesByItr!V12)/1000) -> 21094.609 | W12: =IF(PricesByItr!W12<0,0,(PurchByItr!W12*W$1*PricesByItr!W12)/1000) -> 7211.926293 | X12: =IF(PricesByItr!X12<0,0,(PurchByItr!X12*X$1*PricesByItr!X12)/1000) -> 39500.94091 | Y12: =IF(PricesByItr!Y12<0,0,(PurchByItr!Y12*Y$1*PricesByItr!Y12)/1000) -> 36352.71116 | Z12: =IF(PricesByItr!Z12<0,0,(PurchByItr!Z12*Z$1*PricesByItr!Z12)/1000) -> 0 | AA12: =IF(PricesByItr!AA12<0,0,(PurchByItr!AA12*AA$1*PricesByItr!AA12)/1000) -> 0 | AB12: =IF(PricesByItr!AB12<0,0,(PurchByItr!AB12*AB$1*PricesByItr!AB12)/1000) -> 0 | AC12: =IF(PricesByItr!AC12<0,0,(PurchByItr!AC12*AC$1*PricesByItr!AC12)/1000) -> 0 | AD12: =IF(PricesByItr!AD12<0,0,(PurchByItr!AD12*AD$1*PricesByItr!AD12)/1000) -> 8643.59165 | AE12: 128369.3223
A13: =PurchByItr!A13 -> 2020 | B13: =PurchByItr!B13 -> 1944 | C13: =IF(PricesByItr!C13<0,0,(PurchByItr!C13*C$1*PricesByItr!C13)/1000) -> 20917.80167 | D13: =IF(PricesByItr!D13<0,0,(PurchByItr!D13*D$1*PricesByItr!D13)/1000) -> 9159.719292 | E13: =IF(PricesByItr!E13<0,0,(PurchByItr!E13*E$1*PricesByItr!E13)/1000) -> 29099.06547 | F13: =IF(PricesByItr!F13<0,0,(PurchByItr!F13*F$1*PricesByItr!F13)/1000) -> 26320.76879 | G13: =IF(PricesByItr!G13<0,0,(PurchByItr!G13*G$1*PricesByItr!G13)/1000) -> 22743.89734 | H13: =IF(PricesByItr!H13<0,0,(PurchByItr!H13*H$1*PricesByItr!H13)/1000) -> 32513.06655 | I13: =IF(PricesByItr!I13<0,0,(PurchByItr!I13*I$1*PricesByItr!I13)/1000) -> 54890.68137 | J13: =IF(PricesByItr!J13<0,0,(PurchByItr!J13*J$1*PricesByItr!J13)/1000) -> 49813.66589 | K13: =IF(PricesByItr!K13<0,0,(PurchByItr!K13*K$1*PricesByItr!K13)/1000) -> 15358.73714 | L13: =IF(PricesByItr!L13<0,0,(PurchByItr!L13*L$1*PricesByItr!L13)/1000) -> 11917.42741 | M13: =IF(PricesByItr!M13<0,0,(PurchByItr!M13*M$1*PricesByItr!M13)/1000) -> 0 | N13: =IF(PricesByItr!N13<0,0,(PurchByItr!N13*N$1*PricesByItr!N13)/1000) -> 13023.5078 | O13: 285758.3387 | Q13: =PurchByItr!Q13 -> 2021 | R13: =PurchByItr!R13 -> 1945 | S13: =IF(PricesByItr!S13<0,0,(PurchByItr!S13*S$1*PricesByItr!S13)/1000) -> 13084.26971 | T13: =IF(PricesByItr!T13<0,0,(PurchByItr!T13*T$1*PricesByItr!T13)/1000) -> -939.6335009 | U13: =IF(PricesByItr!U13<0,0,(PurchByItr!U13*U$1*PricesByItr!U13)/1000) -> 26095.66559 | V13: =IF(PricesByItr!V13<0,0,(PurchByItr!V13*V$1*PricesByItr!V13)/1000) -> 38742.14063 | W13: =IF(PricesByItr!W13<0,0,(PurchByItr!W13*W$1*PricesByItr!W13)/1000) -> 51217.64157 | X13: =IF(PricesByItr!X13<0,0,(PurchByItr!X13*X$1*PricesByItr!X13)/1000) -> 36399.30118 | Y13: =IF(PricesByItr!Y13<0,0,(PurchByItr!Y13*Y$1*PricesByItr!Y13)/1000) -> 33860.82216 | Z13: =IF(PricesByItr!Z13<0,0,(PurchByItr!Z13*Z$1*PricesByItr!Z13)/1000) -> 0 | AA13: =IF(PricesByItr!AA13<0,0,(PurchByItr!AA13*AA$1*PricesByItr!AA13)/1000) -> 0 | AB13: =IF(PricesByItr!AB13<0,0,(PurchByItr!AB13*AB$1*PricesByItr!AB13)/1000) -> 4549.198659 | AC13: =IF(PricesByItr!AC13<0,0,(PurchByItr!AC13*AC$1*PricesByItr!AC13)/1000) -> -343.6391765 | AD13: =IF(PricesByItr!AD13<0,0,(PurchByItr!AD13*AD$1*PricesByItr!AD13)/1000) -> -4362.91377 | AE13: 198302.853
A14: =PurchByItr!A14 -> 2020 | B14: =PurchByItr!B14 -> 1971 | C14: =IF(PricesByItr!C14<0,0,(PurchByItr!C14*C$1*PricesByItr!C14)/1000) -> 20840.74707 | D14: =IF(PricesByItr!D14<0,0,(PurchByItr!D14*D$1*PricesByItr!D14)/1000) -> 8870.794112 | E14: =IF(PricesByItr!E14<0,0,(PurchByItr!E14*E$1*PricesByItr!E14)/1000) -> 5307.032859 | F14: =IF(PricesByItr!F14<0,0,(PurchByItr!F14*F$1*PricesByItr!F14)/1000) -> 0 | G14: =IF(PricesByItr!G14<0,0,(PurchByItr!G14*G$1*PricesByItr!G14)/1000) -> 0 | H14: =IF(PricesByItr!H14<0,0,(PurchByItr!H14*H$1*PricesByItr!H14)/1000) -> 0 | I14: =IF(PricesByItr!I14<0,0,(PurchByItr!I14*I$1*PricesByItr!I14)/1000) -> 0 | J14: =IF(PricesByItr!J14<0,0,(PurchByItr!J14*J$1*PricesByItr!J14)/1000) -> 0 | K14: =IF(PricesByItr!K14<0,0,(PurchByItr!K14*K$1*PricesByItr!K14)/1000) -> 0 | L14: =IF(PricesByItr!L14<0,0,(PurchByItr!L14*L$1*PricesByItr!L14)/1000) -> 0 | M14: =IF(PricesByItr!M14<0,0,(PurchByItr!M14*M$1*PricesByItr!M14)/1000) -> 0 | N14: =IF(PricesByItr!N14<0,0,(PurchByItr!N14*N$1*PricesByItr!N14)/1000) -> 1281.254903 | O14: 36299.82894 | Q14: =PurchByItr!Q14 -> 2021 | R14: =PurchByItr!R14 -> 1972 | S14: =IF(PricesByItr!S14<0,0,(PurchByItr!S14*S$1*PricesByItr!S14)/1000) -> 11873.81265 | T14: =IF(PricesByItr!T14<0,0,(PurchByItr!T14*T$1*PricesByItr!T14)/1000) -> 431.2628282 | U14: =IF(PricesByItr!U14<0,0,(PurchByItr!U14*U$1*PricesByItr!U14)/1000) -> 0 | V14: =IF(PricesByItr!V14<0,0,(PurchByItr!V14*V$1*PricesByItr!V14)/1000) -> 0 | W14: =IF(PricesByItr!W14<0,0,(PurchByItr!W14*W$1*PricesByItr!W14)/1000) -> 0 | X14: =IF(PricesByItr!X14<0,0,(PurchByItr!X14*X$1*PricesByItr!X14)/1000) -> 0 | Y14: =IF(PricesByItr!Y14<0,0,(PurchByItr!Y14*Y$1*PricesByItr!Y14)/1000) -> 0 | Z14: =IF(PricesByItr!Z14<0,0,(PurchByItr!Z14*Z$1*PricesByItr!Z14)/1000) -> 0 | AA14: =IF(PricesByItr!AA14<0,0,(PurchByItr!AA14*AA$1*PricesByItr!AA14)/1000) -> 0 | AB14: =IF(PricesByItr!AB14<0,0,(PurchByItr!AB14*AB$1*PricesByItr!AB14)/1000) -> 0 | AC14: =IF(PricesByItr!AC14<0,0,(PurchByItr!AC14*AC$1*PricesByItr!AC14)/1000) -> 0 | AD14: =IF(PricesByItr!AD14<0,0,(PurchByItr!AD14*AD$1*PricesByItr!AD14)/1000) -> 0 | AE14: 12305.07548
A15: =PurchByItr!A15 -> 2020 | B15: =PurchByItr!B15 -> 1957 | C15: =IF(PricesByItr!C15<0,0,(PurchByItr!C15*C$1*PricesByItr!C15)/1000) -> 16346.91786 | D15: =IF(PricesByItr!D15<0,0,(PurchByItr!D15*D$1*PricesByItr!D15)/1000) -> 4466.19815 | E15: =IF(PricesByItr!E15<0,0,(PurchByItr!E15*E$1*PricesByItr!E15)/1000) -> 0 | F15: =IF(PricesByItr!F15<0,0,(PurchByItr!F15*F$1*PricesByItr!F15)/1000) -> 0 | G15: =IF(PricesByItr!G15<0,0,(PurchByItr!G15*G$1*PricesByItr!G15)/1000) -> 4990.082546 | H15: =IF(PricesByItr!H15<0,0,(PurchByItr!H15*H$1*PricesByItr!H15)/1000) -> 0 | I15: =IF(PricesByItr!I15<0,0,(PurchByItr!I15*I$1*PricesByItr!I15)/1000) -> 0 | J15: =IF(PricesByItr!J15<0,0,(PurchByItr!J15*J$1*PricesByItr!J15)/1000) -> 0 | K15: =IF(PricesByItr!K15<0,0,(PurchByItr!K15*K$1*PricesByItr!K15)/1000) -> 0 | L15: =IF(PricesByItr!L15<0,0,(PurchByItr!L15*L$1*PricesByItr!L15)/1000) -> 0 | M15: =IF(PricesByItr!M15<0,0,(PurchByItr!M15*M$1*PricesByItr!M15)/1000) -> 0 | N15: =IF(PricesByItr!N15<0,0,(PurchByItr!N15*N$1*PricesByItr!N15)/1000) -> 24563.59877 | O15: 50366.79732 | Q15: =PurchByItr!Q15 -> 2021 | R15: =PurchByItr!R15 -> 1958 | S15: =IF(PricesByItr!S15<0,0,(PurchByItr!S15*S$1*PricesByItr!S15)/1000) -> 45846.38113 | T15: =IF(PricesByItr!T15<0,0,(PurchByItr!T15*T$1*PricesByItr!T15)/1000) -> 9091.047957 | U15: =IF(PricesByItr!U15<0,0,(PurchByItr!U15*U$1*PricesByItr!U15)/1000) -> 16698.97068 | V15: =IF(PricesByItr!V15<0,0,(PurchByItr!V15*V$1*PricesByItr!V15)/1000) -> 0 | W15: =IF(PricesByItr!W15<0,0,(PurchByItr!W15*W$1*PricesByItr!W15)/1000) -> 0 | X15: =IF(PricesByItr!X15<0,0,(PurchByItr!X15*X$1*PricesByItr!X15)/1000) -> 0 | Y15: =IF(PricesByItr!Y15<0,0,(PurchByItr!Y15*Y$1*PricesByItr!Y15)/1000) -> 0 | Z15: =IF(PricesByItr!Z15<0,0,(PurchByItr!Z15*Z$1*PricesByItr!Z15)/1000) -> 0 | AA15: =IF(PricesByItr!AA15<0,0,(PurchByItr!AA15*AA$1*PricesByItr!AA15)/1000) -> 0 | AB15: =IF(PricesByItr!AB15<0,0,(PurchByItr!AB15*AB$1*PricesByItr!AB15)/1000) -> -281.4627661 | AC15: =IF(PricesByItr!AC15<0,0,(PurchByItr!AC15*AC$1*PricesByItr!AC15)/1000) -> 0 | AD15: =IF(PricesByItr!AD15<0,0,(PurchByItr!AD15*AD$1*PricesByItr!AD15)/1000) -> 10019.06569 | AE15: 81374.00268
A16: =PurchByItr!A16 -> 2020 | B16: =PurchByItr!B16 -> 1945 | C16: =IF(PricesByItr!C16<0,0,(PurchByItr!C16*C$1*PricesByItr!C16)/1000) -> 11341.46583 | D16: =IF(PricesByItr!D16<0,0,(PurchByItr!D16*D$1*PricesByItr!D16)/1000) -> -921.0788346 | E16: =IF(PricesByItr!E16<0,0,(PurchByItr!E16*E$1*PricesByItr!E16)/1000) -> 26530.13738 | F16: =IF(PricesByItr!F16<0,0,(PurchByItr!F16*F$1*PricesByItr!F16)/1000) -> 47319.87783 | G16: =IF(PricesByItr!G16<0,0,(PurchByItr!G16*G$1*PricesByItr!G16)/1000) -> 48597.70667 | H16: =IF(PricesByItr!H16<0,0,(PurchByItr!H16*H$1*PricesByItr!H16)/1000) -> 41132.26134 | I16: =IF(PricesByItr!I16<0,0,(PurchByItr!I16*I$1*PricesByItr!I16)/1000) -> 35223.63448 | J16: =IF(PricesByItr!J16<0,0,(PurchByItr!J16*J$1*PricesByItr!J16)/1000) -> 0 | K16: =IF(PricesByItr!K16<0,0,(PurchByItr!K16*K$1*PricesByItr!K16)/1000) -> 0 | L16: =IF(PricesByItr!L16<0,0,(PurchByItr!L16*L$1*PricesByItr!L16)/1000) -> 4070.768451 | M16: =IF(PricesByItr!M16<0,0,(PurchByItr!M16*M$1*PricesByItr!M16)/1000) -> 1789.635453 | N16: =IF(PricesByItr!N16<0,0,(PurchByItr!N16*N$1*PricesByItr!N16)/1000) -> -5643.338893 | O16: 209441.0697 | Q16: =PurchByItr!Q16 -> 2021 | R16: =PurchByItr!R16 -> 1946 | S16: =IF(PricesByItr!S16<0,0,(PurchByItr!S16*S$1*PricesByItr!S16)/1000) -> 13719.48263 | T16: =IF(PricesByItr!T16<0,0,(PurchByItr!T16*T$1*PricesByItr!T16)/1000) -> 974.0637114 | U16: =IF(PricesByItr!U16<0,0,(PurchByItr!U16*U$1*PricesByItr!U16)/1000) -> 17157.8868 | V16: =IF(PricesByItr!V16<0,0,(PurchByItr!V16*V$1*PricesByItr!V16)/1000) -> 4037.862791 | W16: =IF(PricesByItr!W16<0,0,(PurchByItr!W16*W$1*PricesByItr!W16)/1000) -> 0 | X16: =IF(PricesByItr!X16<0,0,(PurchByItr!X16*X$1*PricesByItr!X16)/1000) -> 0 | Y16: =IF(PricesByItr!Y16<0,0,(PurchByItr!Y16*Y$1*PricesByItr!Y16)/1000) -> 0 | Z16: =IF(PricesByItr!Z16<0,0,(PurchByItr!Z16*Z$1*PricesByItr!Z16)/1000) -> 0 | AA16: =IF(PricesByItr!AA16<0,0,(PurchByItr!AA16*AA$1*PricesByItr!AA16)/1000) -> 0 | AB16: =IF(PricesByItr!AB16<0,0,(PurchByItr!AB16*AB$1*PricesByItr!AB16)/1000) -> 0 | AC16: =IF(PricesByItr!AC16<0,0,(PurchByItr!AC16*AC$1*PricesByItr!AC16)/1000) -> 0 | AD16: =IF(PricesByItr!AD16<0,0,(PurchByItr!AD16*AD$1*PricesByItr!AD16)/1000) -> 4104.659277 | AE16: 39993.9552
A17: =PurchByItr!A17 -> 2020 | B17: =PurchByItr!B17 -> 1969 | C17: =IF(PricesByItr!C17<0,0,(PurchByItr!C17*C$1*PricesByItr!C17)/1000) -> 494.6752234 | D17: =IF(PricesByItr!D17<0,0,(PurchByItr!D17*D$1*PricesByItr!D17)/1000) -> 0 | E17: =IF(PricesByItr!E17<0,0,(PurchByItr!E17*E$1*PricesByItr!E17)/1000) -> 0 | F17: =IF(PricesByItr!F17<0,0,(PurchByItr!F17*F$1*PricesByItr!F17)/1000) -> 0 | G17: =IF(PricesByItr!G17<0,0,(PurchByItr!G17*G$1*PricesByItr!G17)/1000) -> 0 | H17: =IF(PricesByItr!H17<0,0,(PurchByItr!H17*H$1*PricesByItr!H17)/1000) -> 0 | I17: =IF(PricesByItr!I17<0,0,(PurchByItr!I17*I$1*PricesByItr!I17)/1000) -> 0 | J17: =IF(PricesByItr!J17<0,0,(PurchByItr!J17*J$1*PricesByItr!J17)/1000) -> 0 | K17: =IF(PricesByItr!K17<0,0,(PurchByItr!K17*K$1*PricesByItr!K17)/1000) -> 0 | L17: =IF(PricesByItr!L17<0,0,(PurchByItr!L17*L$1*PricesByItr!L17)/1000) -> 0 | M17: =IF(PricesByItr!M17<0,0,(PurchByItr!M17*M$1*PricesByItr!M17)/1000) -> 0 | N17: =IF(PricesByItr!N17<0,0,(PurchByItr!N17*N$1*PricesByItr!N17)/1000) -> 13535.41038 | O17: 14030.0856 | Q17: =PurchByItr!Q17 -> 2021 | R17: =PurchByItr!R17 -> 1970 | S17: =IF(PricesByItr!S17<0,0,(PurchByItr!S17*S$1*PricesByItr!S17)/1000) -> 16748.30073 | T17: =IF(PricesByItr!T17<0,0,(PurchByItr!T17*T$1*PricesByItr!T17)/1000) -> 737.9163832 | U17: =IF(PricesByItr!U17<0,0,(PurchByItr!U17*U$1*PricesByItr!U17)/1000) -> 20504.30188 | V17: =IF(PricesByItr!V17<0,0,(PurchByItr!V17*V$1*PricesByItr!V17)/1000) -> 0 | W17: =IF(PricesByItr!W17<0,0,(PurchByItr!W17*W$1*PricesByItr!W17)/1000) -> 0 | X17: =IF(PricesByItr!X17<0,0,(PurchByItr!X17*X$1*PricesByItr!X17)/1000) -> 817.1931939 | Y17: =IF(PricesByItr!Y17<0,0,(PurchByItr!Y17*Y$1*PricesByItr!Y17)/1000) -> 26314.09524 | Z17: =IF(PricesByItr!Z17<0,0,(PurchByItr!Z17*Z$1*PricesByItr!Z17)/1000) -> 0 | AA17: =IF(PricesByItr!AA17<0,0,(PurchByItr!AA17*AA$1*PricesByItr!AA17)/1000) -> 0 | AB17: =IF(PricesByItr!AB17<0,0,(PurchByItr!AB17*AB$1*PricesByItr!AB17)/1000) -> 0 | AC17: =IF(PricesByItr!AC17<0,0,(PurchByItr!AC17*AC$1*PricesByItr!AC17)/1000) -> -428.7712522 | AD17: =IF(PricesByItr!AD17<0,0,(PurchByItr!AD17*AD$1*PricesByItr!AD17)/1000) -> 17276.88531 | AE17: 81969.92149
A18: =PurchByItr!A18 -> 2020 | B18: =PurchByItr!B18 -> 1953 | C18: =IF(PricesByItr!C18<0,0,(PurchByItr!C18*C$1*PricesByItr!C18)/1000) -> 19411.75994 | D18: =IF(PricesByItr!D18<0,0,(PurchByItr!D18*D$1*PricesByItr!D18)/1000) -> 7712.420273 | E18: =IF(PricesByItr!E18<0,0,(PurchByItr!E18*E$1*PricesByItr!E18)/1000) -> 41613.2772 | F18: =IF(PricesByItr!F18<0,0,(PurchByItr!F18*F$1*PricesByItr!F18)/1000) -> 23424.38879 | G18: =IF(PricesByItr!G18<0,0,(PurchByItr!G18*G$1*PricesByItr!G18)/1000) -> 0 | H18: =IF(PricesByItr!H18<0,0,(PurchByItr!H18*H$1*PricesByItr!H18)/1000) -> 3936.367979 | I18: =IF(PricesByItr!I18<0,0,(PurchByItr!I18*I$1*PricesByItr!I18)/1000) -> 34281.59767 | J18: =IF(PricesByItr!J18<0,0,(PurchByItr!J18*J$1*PricesByItr!J18)/1000) -> 0 | K18: =IF(PricesByItr!K18<0,0,(PurchByItr!K18*K$1*PricesByItr!K18)/1000) -> 0 | L18: =IF(PricesByItr!L18<0,0,(PurchByItr!L18*L$1*PricesByItr!L18)/1000) -> 0 | M18: =IF(PricesByItr!M18<0,0,(PurchByItr!M18*M$1*PricesByItr!M18)/1000) -> 0 | N18: =IF(PricesByItr!N18<0,0,(PurchByItr!N18*N$1*PricesByItr!N18)/1000) -> 6401.574692 | O18: 136781.3865 | Q18: =PurchByItr!Q18 -> 2021 | R18: =PurchByItr!R18 -> 1954 | S18: =IF(PricesByItr!S18<0,0,(PurchByItr!S18*S$1*PricesByItr!S18)/1000) -> 18419.16101 | T18: =IF(PricesByItr!T18<0,0,(PurchByItr!T18*T$1*PricesByItr!T18)/1000) -> 0 | U18: =IF(PricesByItr!U18<0,0,(PurchByItr!U18*U$1*PricesByItr!U18)/1000) -> 0 | V18: =IF(PricesByItr!V18<0,0,(PurchByItr!V18*V$1*PricesByItr!V18)/1000) -> 0 | W18: =IF(PricesByItr!W18<0,0,(PurchByItr!W18*W$1*PricesByItr!W18)/1000) -> 0 | X18: =IF(PricesByItr!X18<0,0,(PurchByItr!X18*X$1*PricesByItr!X18)/1000) -> 0 | Y18: =IF(PricesByItr!Y18<0,0,(PurchByItr!Y18*Y$1*PricesByItr!Y18)/1000) -> 0 | Z18: =IF(PricesByItr!Z18<0,0,(PurchByItr!Z18*Z$1*PricesByItr!Z18)/1000) -> 0 | AA18: =IF(PricesByItr!AA18<0,0,(PurchByItr!AA18*AA$1*PricesByItr!AA18)/1000) -> 0 | AB18: =IF(PricesByItr!AB18<0,0,(PurchByItr!AB18*AB$1*PricesByItr!AB18)/1000) -> 0 | AC18: =IF(PricesByItr!AC18<0,0,(PurchByItr!AC18*AC$1*PricesByItr!AC18)/1000) -> 0 | AD18: =IF(PricesByItr!AD18<0,0,(PurchByItr!AD18*AD$1*PricesByItr!AD18)/1000) -> 0 | AE18: 18419.16101
A19: =PurchByItr!A19 -> 2020 | B19: =PurchByItr!B19 -> 1951 | C19: =IF(PricesByItr!C19<0,0,(PurchByItr!C19*C$1*PricesByItr!C19)/1000) -> 4099.714781 | D19: =IF(PricesByItr!D19<0,0,(PurchByItr!D19*D$1*PricesByItr!D19)/1000) -> 0 | E19: =IF(PricesByItr!E19<0,0,(PurchByItr!E19*E$1*PricesByItr!E19)/1000) -> 0 | F19: =IF(PricesByItr!F19<0,0,(PurchByItr!F19*F$1*PricesByItr!F19)/1000) -> 0 | G19: =IF(PricesByItr!G19<0,0,(PurchByItr!G19*G$1*PricesByItr!G19)/1000) -> 0 | H19: =IF(PricesByItr!H19<0,0,(PurchByItr!H19*H$1*PricesByItr!H19)/1000) -> 0 | I19: =IF(PricesByItr!I19<0,0,(PurchByItr!I19*I$1*PricesByItr!I19)/1000) -> 0 | J19: =IF(PricesByItr!J19<0,0,(PurchByItr!J19*J$1*PricesByItr!J19)/1000) -> 0 | K19: =IF(PricesByItr!K19<0,0,(PurchByItr!K19*K$1*PricesByItr!K19)/1000) -> 0 | L19: =IF(PricesByItr!L19<0,0,(PurchByItr!L19*L$1*PricesByItr!L19)/1000) -> 0 | M19: =IF(PricesByItr!M19<0,0,(PurchByItr!M19*M$1*PricesByItr!M19)/1000) -> 0 | N19: =IF(PricesByItr!N19<0,0,(PurchByItr!N19*N$1*PricesByItr!N19)/1000) -> 5364.621053 | O19: 9464.335835 | Q19: =PurchByItr!Q19 -> 2021 | R19: =PurchByItr!R19 -> 1952 | S19: =IF(PricesByItr!S19<0,0,(PurchByItr!S19*S$1*PricesByItr!S19)/1000) -> 0 | T19: =IF(PricesByItr!T19<0,0,(PurchByItr!T19*T$1*PricesByItr!T19)/1000) -> 0 | U19: =IF(PricesByItr!U19<0,0,(PurchByItr!U19*U$1*PricesByItr!U19)/1000) -> 0 | V19: =IF(PricesByItr!V19<0,0,(PurchByItr!V19*V$1*PricesByItr!V19)/1000) -> 0 | W19: =IF(PricesByItr!W19<0,0,(PurchByItr!W19*W$1*PricesByItr!W19)/1000) -> 0 | X19: =IF(PricesByItr!X19<0,0,(PurchByItr!X19*X$1*PricesByItr!X19)/1000) -> 0 | Y19: =IF(PricesByItr!Y19<0,0,(PurchByItr!Y19*Y$1*PricesByItr!Y19)/1000) -> 0 | Z19: =IF(PricesByItr!Z19<0,0,(PurchByItr!Z19*Z$1*PricesByItr!Z19)/1000) -> 0 | AA19: =IF(PricesByItr!AA19<0,0,(PurchByItr!AA19*AA$1*PricesByItr!AA19)/1000) -> 0 | AB19: =IF(PricesByItr!AB19<0,0,(PurchByItr!AB19*AB$1*PricesByItr!AB19)/1000) -> 0 | AC19: =IF(PricesByItr!AC19<0,0,(PurchByItr!AC19*AC$1*PricesByItr!AC19)/1000) -> 0 | AD19: =IF(PricesByItr!AD19<0,0,(PurchByItr!AD19*AD$1*PricesByItr!AD19)/1000) -> 20768.38468 | AE19: 20768.38468
A20: =PurchByItr!A20 -> 2020 | B20: =PurchByItr!B20 -> 1983 | C20: =IF(PricesByItr!C20<0,0,(PurchByItr!C20*C$1*PricesByItr!C20)/1000) -> 1804.334307 | D20: =IF(PricesByItr!D20<0,0,(PurchByItr!D20*D$1*PricesByItr!D20)/1000) -> 0 | E20: =IF(PricesByItr!E20<0,0,(PurchByItr!E20*E$1*PricesByItr!E20)/1000) -> 0 | F20: =IF(PricesByItr!F20<0,0,(PurchByItr!F20*F$1*PricesByItr!F20)/1000) -> 0 | G20: =IF(PricesByItr!G20<0,0,(PurchByItr!G20*G$1*PricesByItr!G20)/1000) -> 0 | H20: =IF(PricesByItr!H20<0,0,(PurchByItr!H20*H$1*PricesByItr!H20)/1000) -> 0 | I20: =IF(PricesByItr!I20<0,0,(PurchByItr!I20*I$1*PricesByItr!I20)/1000) -> 0 | J20: =IF(PricesByItr!J20<0,0,(PurchByItr!J20*J$1*PricesByItr!J20)/1000) -> 0 | K20: =IF(PricesByItr!K20<0,0,(PurchByItr!K20*K$1*PricesByItr!K20)/1000) -> 0 | L20: =IF(PricesByItr!L20<0,0,(PurchByItr!L20*L$1*PricesByItr!L20)/1000) -> 0 | M20: =IF(PricesByItr!M20<0,0,(PurchByItr!M20*M$1*PricesByItr!M20)/1000) -> 0 | N20: =IF(PricesByItr!N20<0,0,(PurchByItr!N20*N$1*PricesByItr!N20)/1000) -> 0 | O20: 1804.334307 | Q20: =PurchByItr!Q20 -> 2021 | R20: =PurchByItr!R20 -> 1984 | S20: =IF(PricesByItr!S20<0,0,(PurchByItr!S20*S$1*PricesByItr!S20)/1000) -> 12024.06442 | T20: =IF(PricesByItr!T20<0,0,(PurchByItr!T20*T$1*PricesByItr!T20)/1000) -> 0 | U20: =IF(PricesByItr!U20<0,0,(PurchByItr!U20*U$1*PricesByItr!U20)/1000) -> 0 | V20: =IF(PricesByItr!V20<0,0,(PurchByItr!V20*V$1*PricesByItr!V20)/1000) -> 0 | W20: =IF(PricesByItr!W20<0,0,(PurchByItr!W20*W$1*PricesByItr!W20)/1000) -> 0 | X20: =IF(PricesByItr!X20<0,0,(PurchByItr!X20*X$1*PricesByItr!X20)/1000) -> 0 | Y20: =IF(PricesByItr!Y20<0,0,(PurchByItr!Y20*Y$1*PricesByItr!Y20)/1000) -> 0 | Z20: =IF(PricesByItr!Z20<0,0,(PurchByItr!Z20*Z$1*PricesByItr!Z20)/1000) -> 0 | AA20: =IF(PricesByItr!AA20<0,0,(PurchByItr!AA20*AA$1*PricesByItr!AA20)/1000) -> 0 | AB20: =IF(PricesByItr!AB20<0,0,(PurchByItr!AB20*AB$1*PricesByItr!AB20)/1000) -> 0 | AC20: =IF(PricesByItr!AC20<0,0,(PurchByItr!AC20*AC$1*PricesByItr!AC20)/1000) -> 0 | AD20: =IF(PricesByItr!AD20<0,0,(PurchByItr!AD20*AD$1*PricesByItr!AD20)/1000) -> 0 | AE20: 12024.06442
A21: =PurchByItr!A21 -> 2020 | B21: =PurchByItr!B21 -> 1946 | C21: =IF(PricesByItr!C21<0,0,(PurchByItr!C21*C$1*PricesByItr!C21)/1000) -> 12637.34971 | D21: =IF(PricesByItr!D21<0,0,(PurchByItr!D21*D$1*PricesByItr!D21)/1000) -> 691.8849061 | E21: =IF(PricesByItr!E21<0,0,(PurchByItr!E21*E$1*PricesByItr!E21)/1000) -> 15785.57777 | F21: =IF(PricesByItr!F21<0,0,(PurchByItr!F21*F$1*PricesByItr!F21)/1000) -> 6781.69099 | G21: =IF(PricesByItr!G21<0,0,(PurchByItr!G21*G$1*PricesByItr!G21)/1000) -> 0 | H21: =IF(PricesByItr!H21<0,0,(PurchByItr!H21*H$1*PricesByItr!H21)/1000) -> 0 | I21: =IF(PricesByItr!I21<0,0,(PurchByItr!I21*I$1*PricesByItr!I21)/1000) -> 0 | J21: =IF(PricesByItr!J21<0,0,(PurchByItr!J21*J$1*PricesByItr!J21)/1000) -> 0 | K21: =IF(PricesByItr!K21<0,0,(PurchByItr!K21*K$1*PricesByItr!K21)/1000) -> 0 | L21: =IF(PricesByItr!L21<0,0,(PurchByItr!L21*L$1*PricesByItr!L21)/1000) -> 0 | M21: =IF(PricesByItr!M21<0,0,(PurchByItr!M21*M$1*PricesByItr!M21)/1000) -> 0 | N21: =IF(PricesByItr!N21<0,0,(PurchByItr!N21*N$1*PricesByItr!N21)/1000) -> 6856.726025 | O21: 42753.22941 | Q21: =PurchByItr!Q21 -> 2021 | R21: =PurchByItr!R21 -> 1947 | S21: =IF(PricesByItr!S21<0,0,(PurchByItr!S21*S$1*PricesByItr!S21)/1000) -> 31625.56893 | T21: =IF(PricesByItr!T21<0,0,(PurchByItr!T21*T$1*PricesByItr!T21)/1000) -> 0 | U21: =IF(PricesByItr!U21<0,0,(PurchByItr!U21*U$1*PricesByItr!U21)/1000) -> 0 | V21: =IF(PricesByItr!V21<0,0,(PurchByItr!V21*V$1*PricesByItr!V21)/1000) -> 0 | W21: =IF(PricesByItr!W21<0,0,(PurchByItr!W21*W$1*PricesByItr!W21)/1000) -> 0 | X21: =IF(PricesByItr!X21<0,0,(PurchByItr!X21*X$1*PricesByItr!X21)/1000) -> 0 | Y21: =IF(PricesByItr!Y21<0,0,(PurchByItr!Y21*Y$1*PricesByItr!Y21)/1000) -> 0 | Z21: =IF(PricesByItr!Z21<0,0,(PurchByItr!Z21*Z$1*PricesByItr!Z21)/1000) -> 0 | AA21: =IF(PricesByItr!AA21<0,0,(PurchByItr!AA21*AA$1*PricesByItr!AA21)/1000) -> 0 | AB21: =IF(PricesByItr!AB21<0,0,(PurchByItr!AB21*AB$1*PricesByItr!AB21)/1000) -> 0 | AC21: =IF(PricesByItr!AC21<0,0,(PurchByItr!AC21*AC$1*PricesByItr!AC21)/1000) -> 0 | AD21: =IF(PricesByItr!AD21<0,0,(PurchByItr!AD21*AD$1*PricesByItr!AD21)/1000) -> 4672.656616 | AE21: 36298.22555
A22: =PurchByItr!A22 -> 2020 | B22: =PurchByItr!B22 -> 1990 | C22: =IF(PricesByItr!C22<0,0,(PurchByItr!C22*C$1*PricesByItr!C22)/1000) -> 19932.73482 | D22: =IF(PricesByItr!D22<0,0,(PurchByItr!D22*D$1*PricesByItr!D22)/1000) -> 9607.046566 | E22: =IF(PricesByItr!E22<0,0,(PurchByItr!E22*E$1*PricesByItr!E22)/1000) -> 0 | F22: =IF(PricesByItr!F22<0,0,(PurchByItr!F22*F$1*PricesByItr!F22)/1000) -> 0 | G22: =IF(PricesByItr!G22<0,0,(PurchByItr!G22*G$1*PricesByItr!G22)/1000) -> 0 | H22: =IF(PricesByItr!H22<0,0,(PurchByItr!H22*H$1*PricesByItr!H22)/1000) -> 0 | I22: =IF(PricesByItr!I22<0,0,(PurchByItr!I22*I$1*PricesByItr!I22)/1000) -> 0 | J22: =IF(PricesByItr!J22<0,0,(PurchByItr!J22*J$1*PricesByItr!J22)/1000) -> 0 | K22: =IF(PricesByItr!K22<0,0,(PurchByItr!K22*K$1*PricesByItr!K22)/1000) -> 0 | L22: =IF(PricesByItr!L22<0,0,(PurchByItr!L22*L$1*PricesByItr!L22)/1000) -> 0 | M22: =IF(PricesByItr!M22<0,0,(PurchByItr!M22*M$1*PricesByItr!M22)/1000) -> 0 | N22: =IF(PricesByItr!N22<0,0,(PurchByItr!N22*N$1*PricesByItr!N22)/1000) -> 15940.5693 | O22: 45480.35068 | Q22: =PurchByItr!Q22 -> 2021 | R22: =PurchByItr!R22 -> 1991 | S22: =IF(PricesByItr!S22<0,0,(PurchByItr!S22*S$1*PricesByItr!S22)/1000) -> 23472.41915 | T22: =IF(PricesByItr!T22<0,0,(PurchByItr!T22*T$1*PricesByItr!T22)/1000) -> 0 | U22: =IF(PricesByItr!U22<0,0,(PurchByItr!U22*U$1*PricesByItr!U22)/1000) -> 0 | V22: =IF(PricesByItr!V22<0,0,(PurchByItr!V22*V$1*PricesByItr!V22)/1000) -> 0 | W22: =IF(PricesByItr!W22<0,0,(PurchByItr!W22*W$1*PricesByItr!W22)/1000) -> 0 | X22: =IF(PricesByItr!X22<0,0,(PurchByItr!X22*X$1*PricesByItr!X22)/1000) -> 0 | Y22: =IF(PricesByItr!Y22<0,0,(PurchByItr!Y22*Y$1*PricesByItr!Y22)/1000) -> 0 | Z22: =IF(PricesByItr!Z22<0,0,(PurchByItr!Z22*Z$1*PricesByItr!Z22)/1000) -> 0 | AA22: =IF(PricesByItr!AA22<0,0,(PurchByItr!AA22*AA$1*PricesByItr!AA22)/1000) -> 0 | AB22: =IF(PricesByItr!AB22<0,0,(PurchByItr!AB22*AB$1*PricesByItr!AB22)/1000) -> 0 | AC22: =IF(PricesByItr!AC22<0,0,(PurchByItr!AC22*AC$1*PricesByItr!AC22)/1000) -> 0 | AD22: =IF(PricesByItr!AD22<0,0,(PurchByItr!AD22*AD$1*PricesByItr!AD22)/1000) -> 14607.6017 | AE22: 38080.02085
A23: =PurchByItr!A23 -> 2020 | B23: =PurchByItr!B23 -> 1964 | C23: =IF(PricesByItr!C23<0,0,(PurchByItr!C23*C$1*PricesByItr!C23)/1000) -> 23331.56416 | D23: =IF(PricesByItr!D23<0,0,(PurchByItr!D23*D$1*PricesByItr!D23)/1000) -> 3340.404331 | E23: =IF(PricesByItr!E23<0,0,(PurchByItr!E23*E$1*PricesByItr!E23)/1000) -> 7916.662515 | F23: =IF(PricesByItr!F23<0,0,(PurchByItr!F23*F$1*PricesByItr!F23)/1000) -> 4059.254366 | G23: =IF(PricesByItr!G23<0,0,(PurchByItr!G23*G$1*PricesByItr!G23)/1000) -> 0 | H23: =IF(PricesByItr!H23<0,0,(PurchByItr!H23*H$1*PricesByItr!H23)/1000) -> 12736.29055 | I23: =IF(PricesByItr!I23<0,0,(PurchByItr!I23*I$1*PricesByItr!I23)/1000) -> 3623.21419 | J23: =IF(PricesByItr!J23<0,0,(PurchByItr!J23*J$1*PricesByItr!J23)/1000) -> 0 | K23: =IF(PricesByItr!K23<0,0,(PurchByItr!K23*K$1*PricesByItr!K23)/1000) -> 0 | L23: =IF(PricesByItr!L23<0,0,(PurchByItr!L23*L$1*PricesByItr!L23)/1000) -> 0 | M23: =IF(PricesByItr!M23<0,0,(PurchByItr!M23*M$1*PricesByItr!M23)/1000) -> 0 | N23: =IF(PricesByItr!N23<0,0,(PurchByItr!N23*N$1*PricesByItr!N23)/1000) -> 0 | O23: 55007.39011 | Q23: =PurchByItr!Q23 -> 2021 | R23: =PurchByItr!R23 -> 1965 | S23: =IF(PricesByItr!S23<0,0,(PurchByItr!S23*S$1*PricesByItr!S23)/1000) -> 2546.791923 | T23: =IF(PricesByItr!T23<0,0,(PurchByItr!T23*T$1*PricesByItr!T23)/1000) -> 0 | U23: =IF(PricesByItr!U23<0,0,(PurchByItr!U23*U$1*PricesByItr!U23)/1000) -> 0 | V23: =IF(PricesByItr!V23<0,0,(PurchByItr!V23*V$1*PricesByItr!V23)/1000) -> 0 | W23: =IF(PricesByItr!W23<0,0,(PurchByItr!W23*W$1*PricesByItr!W23)/1000) -> 0 | X23: =IF(PricesByItr!X23<0,0,(PurchByItr!X23*X$1*PricesByItr!X23)/1000) -> 0 | Y23: =IF(PricesByItr!Y23<0,0,(PurchByItr!Y23*Y$1*PricesByItr!Y23)/1000) -> 0 | Z23: =IF(PricesByItr!Z23<0,0,(PurchByItr!Z23*Z$1*PricesByItr!Z23)/1000) -> 0 | AA23: =IF(PricesByItr!AA23<0,0,(PurchByItr!AA23*AA$1*PricesByItr!AA23)/1000) -> 0 | AB23: =IF(PricesByItr!AB23<0,0,(PurchByItr!AB23*AB$1*PricesByItr!AB23)/1000) -> 0 | AC23: =IF(PricesByItr!AC23<0,0,(PurchByItr!AC23*AC$1*PricesByItr!AC23)/1000) -> 0 | AD23: =IF(PricesByItr!AD23<0,0,(PurchByItr!AD23*AD$1*PricesByItr!AD23)/1000) -> 9628.331815 | AE23: 12175.12374
A24: =PurchByItr!A24 -> 2020 | B24: =PurchByItr!B24 -> 1931 | C24: =IF(PricesByItr!C24<0,0,(PurchByItr!C24*C$1*PricesByItr!C24)/1000) -> 14149.54222 | D24: =IF(PricesByItr!D24<0,0,(PurchByItr!D24*D$1*PricesByItr!D24)/1000) -> 2614.0593 | E24: =IF(PricesByItr!E24<0,0,(PurchByItr!E24*E$1*PricesByItr!E24)/1000) -> 38056.26909 | F24: =IF(PricesByItr!F24<0,0,(PurchByItr!F24*F$1*PricesByItr!F24)/1000) -> 84370.30263 | G24: =IF(PricesByItr!G24<0,0,(PurchByItr!G24*G$1*PricesByItr!G24)/1000) -> 19530.97759 | H24: =IF(PricesByItr!H24<0,0,(PurchByItr!H24*H$1*PricesByItr!H24)/1000) -> 22351.31942 | I24: =IF(PricesByItr!I24<0,0,(PurchByItr!I24*I$1*PricesByItr!I24)/1000) -> 39065.58154 | J24: =IF(PricesByItr!J24<0,0,(PurchByItr!J24*J$1*PricesByItr!J24)/1000) -> 17749.35517 | K24: =IF(PricesByItr!K24<0,0,(PurchByItr!K24*K$1*PricesByItr!K24)/1000) -> 12787.54483 | L24: =IF(PricesByItr!L24<0,0,(PurchByItr!L24*L$1*PricesByItr!L24)/1000) -> 0 | M24: =IF(PricesByItr!M24<0,0,(PurchByItr!M24*M$1*PricesByItr!M24)/1000) -> 0 | N24: =IF(PricesByItr!N24<0,0,(PurchByItr!N24*N$1*PricesByItr!N24)/1000) -> 7722.277561 | O24: 258397.2294 | Q24: =PurchByItr!Q24 -> 2021 | R24: =PurchByItr!R24 -> 1932 | S24: =IF(PricesByItr!S24<0,0,(PurchByItr!S24*S$1*PricesByItr!S24)/1000) -> 8490.951766 | T24: =IF(PricesByItr!T24<0,0,(PurchByItr!T24*T$1*PricesByItr!T24)/1000) -> 4671.326114 | U24: =IF(PricesByItr!U24<0,0,(PurchByItr!U24*U$1*PricesByItr!U24)/1000) -> 24356.08366 | V24: =IF(PricesByItr!V24<0,0,(PurchByItr!V24*V$1*PricesByItr!V24)/1000) -> 44592.30561 | W24: =IF(PricesByItr!W24<0,0,(PurchByItr!W24*W$1*PricesByItr!W24)/1000) -> 61819.01617 | X24: =IF(PricesByItr!X24<0,0,(PurchByItr!X24*X$1*PricesByItr!X24)/1000) -> 3362.526923 | Y24: =IF(PricesByItr!Y24<0,0,(PurchByItr!Y24*Y$1*PricesByItr!Y24)/1000) -> 0 | Z24: =IF(PricesByItr!Z24<0,0,(PurchByItr!Z24*Z$1*PricesByItr!Z24)/1000) -> 0 | AA24: =IF(PricesByItr!AA24<0,0,(PurchByItr!AA24*AA$1*PricesByItr!AA24)/1000) -> 0 | AB24: =IF(PricesByItr!AB24<0,0,(PurchByItr!AB24*AB$1*PricesByItr!AB24)/1000) -> 0 | AC24: =IF(PricesByItr!AC24<0,0,(PurchByItr!AC24*AC$1*PricesByItr!AC24)/1000) -> 0 | AD24: =IF(PricesByItr!AD24<0,0,(PurchByItr!AD24*AD$1*PricesByItr!AD24)/1000) -> 6123.306299 | AE24: 153415.5166
A25: =PurchByItr!A25 -> 2020 | B25: =PurchByItr!B25 -> 1973 | C25: =IF(PricesByItr!C25<0,0,(PurchByItr!C25*C$1*PricesByItr!C25)/1000) -> 10965.41581 | D25: =IF(PricesByItr!D25<0,0,(PurchByItr!D25*D$1*PricesByItr!D25)/1000) -> 0 | E25: =IF(PricesByItr!E25<0,0,(PurchByItr!E25*E$1*PricesByItr!E25)/1000) -> 4144.812601 | F25: =IF(PricesByItr!F25<0,0,(PurchByItr!F25*F$1*PricesByItr!F25)/1000) -> 0 | G25: =IF(PricesByItr!G25<0,0,(PurchByItr!G25*G$1*PricesByItr!G25)/1000) -> 0 | H25: =IF(PricesByItr!H25<0,0,(PurchByItr!H25*H$1*PricesByItr!H25)/1000) -> 11084.48999 | I25: =IF(PricesByItr!I25<0,0,(PurchByItr!I25*I$1*PricesByItr!I25)/1000) -> 46447.42342 | J25: =IF(PricesByItr!J25<0,0,(PurchByItr!J25*J$1*PricesByItr!J25)/1000) -> 29501.5235 | K25: =IF(PricesByItr!K25<0,0,(PurchByItr!K25*K$1*PricesByItr!K25)/1000) -> 5639.453044 | L25: =IF(PricesByItr!L25<0,0,(PurchByItr!L25*L$1*PricesByItr!L25)/1000) -> 1830.828035 | M25: =IF(PricesByItr!M25<0,0,(PurchByItr!M25*M$1*PricesByItr!M25)/1000) -> 5531.44671 | N25: =IF(PricesByItr!N25<0,0,(PurchByItr!N25*N$1*PricesByItr!N25)/1000) -> -2857.071585 | O25: 112288.3215 | Q25: =PurchByItr!Q25 -> 2021 | R25: =PurchByItr!R25 -> 1974 | S25: =IF(PricesByItr!S25<0,0,(PurchByItr!S25*S$1*PricesByItr!S25)/1000) -> 16638.29938 | T25: =IF(PricesByItr!T25<0,0,(PurchByItr!T25*T$1*PricesByItr!T25)/1000) -> 10143.87528 | U25: =IF(PricesByItr!U25<0,0,(PurchByItr!U25*U$1*PricesByItr!U25)/1000) -> 0 | V25: =IF(PricesByItr!V25<0,0,(PurchByItr!V25*V$1*PricesByItr!V25)/1000) -> 0 | W25: =IF(PricesByItr!W25<0,0,(PurchByItr!W25*W$1*PricesByItr!W25)/1000) -> 0 | X25: =IF(PricesByItr!X25<0,0,(PurchByItr!X25*X$1*PricesByItr!X25)/1000) -> 0 | Y25: =IF(PricesByItr!Y25<0,0,(PurchByItr!Y25*Y$1*PricesByItr!Y25)/1000) -> 0 | Z25: =IF(PricesByItr!Z25<0,0,(PurchByItr!Z25*Z$1*PricesByItr!Z25)/1000) -> 0 | AA25: =IF(PricesByItr!AA25<0,0,(PurchByItr!AA25*AA$1*PricesByItr!AA25)/1000) -> 0 | AB25: =IF(PricesByItr!AB25<0,0,(PurchByItr!AB25*AB$1*PricesByItr!AB25)/1000) -> 0 | AC25: =IF(PricesByItr!AC25<0,0,(PurchByItr!AC25*AC$1*PricesByItr!AC25)/1000) -> 0 | AD25: =IF(PricesByItr!AD25<0,0,(PurchByItr!AD25*AD$1*PricesByItr!AD25)/1000) -> 0 | AE25: 26782.17466
A26: =PurchByItr!A26 -> 2020 | B26: =PurchByItr!B26 -> 1976 | C26: =IF(PricesByItr!C26<0,0,(PurchByItr!C26*C$1*PricesByItr!C26)/1000) -> 0 | D26: =IF(PricesByItr!D26<0,0,(PurchByItr!D26*D$1*PricesByItr!D26)/1000) -> 0 | E26: =IF(PricesByItr!E26<0,0,(PurchByItr!E26*E$1*PricesByItr!E26)/1000) -> 0 | F26: =IF(PricesByItr!F26<0,0,(PurchByItr!F26*F$1*PricesByItr!F26)/1000) -> 0 | G26: =IF(PricesByItr!G26<0,0,(PurchByItr!G26*G$1*PricesByItr!G26)/1000) -> 0 | H26: =IF(PricesByItr!H26<0,0,(PurchByItr!H26*H$1*PricesByItr!H26)/1000) -> 0 | I26: =IF(PricesByItr!I26<0,0,(PurchByItr!I26*I$1*PricesByItr!I26)/1000) -> 0 | J26: =IF(PricesByItr!J26<0,0,(PurchByItr!J26*J$1*PricesByItr!J26)/1000) -> 0 | K26: =IF(PricesByItr!K26<0,0,(PurchByItr!K26*K$1*PricesByItr!K26)/1000) -> 0 | L26: =IF(PricesByItr!L26<0,0,(PurchByItr!L26*L$1*PricesByItr!L26)/1000) -> 0 | M26: =IF(PricesByItr!M26<0,0,(PurchByItr!M26*M$1*PricesByItr!M26)/1000) -> 0 | N26: =IF(PricesByItr!N26<0,0,(PurchByItr!N26*N$1*PricesByItr!N26)/1000) -> 0 | O26: 0 | Q26: =PurchByItr!Q26 -> 2021 | R26: =PurchByItr!R26 -> 1977 | S26: =IF(PricesByItr!S26<0,0,(PurchByItr!S26*S$1*PricesByItr!S26)/1000) -> 9679.253811 | T26: =IF(PricesByItr!T26<0,0,(PurchByItr!T26*T$1*PricesByItr!T26)/1000) -> 6207.129034 | U26: =IF(PricesByItr!U26<0,0,(PurchByItr!U26*U$1*PricesByItr!U26)/1000) -> 32272.20923 | V26: =IF(PricesByItr!V26<0,0,(PurchByItr!V26*V$1*PricesByItr!V26)/1000) -> 18988.27464 | W26: =IF(PricesByItr!W26<0,0,(PurchByItr!W26*W$1*PricesByItr!W26)/1000) -> 20343.05149 | X26: =IF(PricesByItr!X26<0,0,(PurchByItr!X26*X$1*PricesByItr!X26)/1000) -> 32613.14568 | Y26: =IF(PricesByItr!Y26<0,0,(PurchByItr!Y26*Y$1*PricesByItr!Y26)/1000) -> 51102.30432 | Z26: =IF(PricesByItr!Z26<0,0,(PurchByItr!Z26*Z$1*PricesByItr!Z26)/1000) -> 51434.15409 | AA26: =IF(PricesByItr!AA26<0,0,(PurchByItr!AA26*AA$1*PricesByItr!AA26)/1000) -> 26382.67725 | AB26: =IF(PricesByItr!AB26<0,0,(PurchByItr!AB26*AB$1*PricesByItr!AB26)/1000) -> 11735.02094 | AC26: =IF(PricesByItr!AC26<0,0,(PurchByItr!AC26*AC$1*PricesByItr!AC26)/1000) -> -2030.873884 | AD26: =IF(PricesByItr!AD26<0,0,(PurchByItr!AD26*AD$1*PricesByItr!AD26)/1000) -> 25786.9929 | AE26: 284513.3395
A27: =PurchByItr!A27 -> 2020 | B27: =PurchByItr!B27 -> 1929 | C27: =IF(PricesByItr!C27<0,0,(PurchByItr!C27*C$1*PricesByItr!C27)/1000) -> 20759.47915 | D27: =IF(PricesByItr!D27<0,0,(PurchByItr!D27*D$1*PricesByItr!D27)/1000) -> 7351.527123 | E27: =IF(PricesByItr!E27<0,0,(PurchByItr!E27*E$1*PricesByItr!E27)/1000) -> 30003.65568 | F27: =IF(PricesByItr!F27<0,0,(PurchByItr!F27*F$1*PricesByItr!F27)/1000) -> 41722.64123 | G27: =IF(PricesByItr!G27<0,0,(PurchByItr!G27*G$1*PricesByItr!G27)/1000) -> 30676.24128 | H27: =IF(PricesByItr!H27<0,0,(PurchByItr!H27*H$1*PricesByItr!H27)/1000) -> 22524.51682 | I27: =IF(PricesByItr!I27<0,0,(PurchByItr!I27*I$1*PricesByItr!I27)/1000) -> 41403.86312 | J27: =IF(PricesByItr!J27<0,0,(PurchByItr!J27*J$1*PricesByItr!J27)/1000) -> 32261.46674 | K27: =IF(PricesByItr!K27<0,0,(PurchByItr!K27*K$1*PricesByItr!K27)/1000) -> -402.0208788 | L27: =IF(PricesByItr!L27<0,0,(PurchByItr!L27*L$1*PricesByItr!L27)/1000) -> 13419.42477 | M27: =IF(PricesByItr!M27<0,0,(PurchByItr!M27*M$1*PricesByItr!M27)/1000) -> 4036.609571 | N27: =IF(PricesByItr!N27<0,0,(PurchByItr!N27*N$1*PricesByItr!N27)/1000) -> -2668.565353 | O27: 241088.8393 | Q27: =PurchByItr!Q27 -> 2021 | R27: =PurchByItr!R27 -> 1930 | S27: =IF(PricesByItr!S27<0,0,(PurchByItr!S27*S$1*PricesByItr!S27)/1000) -> 10576.76758 | T27: =IF(PricesByItr!T27<0,0,(PurchByItr!T27*T$1*PricesByItr!T27)/1000) -> 5233.50514 | U27: =IF(PricesByItr!U27<0,0,(PurchByItr!U27*U$1*PricesByItr!U27)/1000) -> 49028.33727 | V27: =IF(PricesByItr!V27<0,0,(PurchByItr!V27*V$1*PricesByItr!V27)/1000) -> 66500.95319 | W27: =IF(PricesByItr!W27<0,0,(PurchByItr!W27*W$1*PricesByItr!W27)/1000) -> 18207.51027 | X27: =IF(PricesByItr!X27<0,0,(PurchByItr!X27*X$1*PricesByItr!X27)/1000) -> 29563.75861 | Y27: =IF(PricesByItr!Y27<0,0,(PurchByItr!Y27*Y$1*PricesByItr!Y27)/1000) -> 24483.29469 | Z27: =IF(PricesByItr!Z27<0,0,(PurchByItr!Z27*Z$1*PricesByItr!Z27)/1000) -> 27759.37842 | AA27: =IF(PricesByItr!AA27<0,0,(PurchByItr!AA27*AA$1*PricesByItr!AA27)/1000) -> 12758.83684 | AB27: =IF(PricesByItr!AB27<0,0,(PurchByItr!AB27*AB$1*PricesByItr!AB27)/1000) -> -778.811768 | AC27: =IF(PricesByItr!AC27<0,0,(PurchByItr!AC27*AC$1*PricesByItr!AC27)/1000) -> 3742.832181 | AD27: =IF(PricesByItr!AD27<0,0,(PurchByItr!AD27*AD$1*PricesByItr!AD27)/1000) -> -1133.526686 | AE27: 245942.8357
A28: =PurchByItr!A28 -> 2020 | B28: =PurchByItr!B28 -> 2001 | C28: =IF(PricesByItr!C28<0,0,(PurchByItr!C28*C$1*PricesByItr!C28)/1000) -> 22245.46699 | D28: =IF(PricesByItr!D28<0,0,(PurchByItr!D28*D$1*PricesByItr!D28)/1000) -> 9114.326027 | E28: =IF(PricesByItr!E28<0,0,(PurchByItr!E28*E$1*PricesByItr!E28)/1000) -> 32799.40878 | F28: =IF(PricesByItr!F28<0,0,(PurchByItr!F28*F$1*PricesByItr!F28)/1000) -> 32290.6438 | G28: =IF(PricesByItr!G28<0,0,(PurchByItr!G28*G$1*PricesByItr!G28)/1000) -> 25595.72993 | H28: =IF(PricesByItr!H28<0,0,(PurchByItr!H28*H$1*PricesByItr!H28)/1000) -> 24389.28392 | I28: =IF(PricesByItr!I28<0,0,(PurchByItr!I28*I$1*PricesByItr!I28)/1000) -> 53382.7738 | J28: =IF(PricesByItr!J28<0,0,(PurchByItr!J28*J$1*PricesByItr!J28)/1000) -> 26284.20509 | K28: =IF(PricesByItr!K28<0,0,(PurchByItr!K28*K$1*PricesByItr!K28)/1000) -> 26604.10445 | L28: =IF(PricesByItr!L28<0,0,(PurchByItr!L28*L$1*PricesByItr!L28)/1000) -> 5860.196003 | M28: =IF(PricesByItr!M28<0,0,(PurchByItr!M28*M$1*PricesByItr!M28)/1000) -> -963.7019976 | N28: =IF(PricesByItr!N28<0,0,(PurchByItr!N28*N$1*PricesByItr!N28)/1000) -> 19725.59463 | O28: 277328.0314 | Q28: =PurchByItr!Q28 -> 2021 | R28: =PurchByItr!R28 -> 2002 | S28: =IF(PricesByItr!S28<0,0,(PurchByItr!S28*S$1*PricesByItr!S28)/1000) -> 17661.18594 | T28: =IF(PricesByItr!T28<0,0,(PurchByItr!T28*T$1*PricesByItr!T28)/1000) -> -1913.548943 | U28: =IF(PricesByItr!U28<0,0,(PurchByItr!U28*U$1*PricesByItr!U28)/1000) -> 15528.04313 | V28: =IF(PricesByItr!V28<0,0,(PurchByItr!V28*V$1*PricesByItr!V28)/1000) -> 32857.55782 | W28: =IF(PricesByItr!W28<0,0,(PurchByItr!W28*W$1*PricesByItr!W28)/1000) -> 29106.59549 | X28: =IF(PricesByItr!X28<0,0,(PurchByItr!X28*X$1*PricesByItr!X28)/1000) -> 11440.30433 | Y28: =IF(PricesByItr!Y28<0,0,(PurchByItr!Y28*Y$1*PricesByItr!Y28)/1000) -> 0 | Z28: =IF(PricesByItr!Z28<0,0,(PurchByItr!Z28*Z$1*PricesByItr!Z28)/1000) -> 0 | AA28: =IF(PricesByItr!AA28<0,0,(PurchByItr!AA28*AA$1*PricesByItr!AA28)/1000) -> 0 | AB28: =IF(PricesByItr!AB28<0,0,(PurchByItr!AB28*AB$1*PricesByItr!AB28)/1000) -> 0 | AC28: =IF(PricesByItr!AC28<0,0,(PurchByItr!AC28*AC$1*PricesByItr!AC28)/1000) -> -1912.769792 | AD28: =IF(PricesByItr!AD28<0,0,(PurchByItr!AD28*AD$1*PricesByItr!AD28)/1000) -> 12722.17692 | AE28: 115489.5449
A29: =PurchByItr!A29 -> 2020 | B29: =PurchByItr!B29 -> 1989 | C29: =IF(PricesByItr!C29<0,0,(PurchByItr!C29*C$1*PricesByItr!C29)/1000) -> 14313.57165 | D29: =IF(PricesByItr!D29<0,0,(PurchByItr!D29*D$1*PricesByItr!D29)/1000) -> -789.7743061 | E29: =IF(PricesByItr!E29<0,0,(PurchByItr!E29*E$1*PricesByItr!E29)/1000) -> 22755.15428 | F29: =IF(PricesByItr!F29<0,0,(PurchByItr!F29*F$1*PricesByItr!F29)/1000) -> 72218.98604 | G29: =IF(PricesByItr!G29<0,0,(PurchByItr!G29*G$1*PricesByItr!G29)/1000) -> 50363.16152 | H29: =IF(PricesByItr!H29<0,0,(PurchByItr!H29*H$1*PricesByItr!H29)/1000) -> 0 | I29: =IF(PricesByItr!I29<0,0,(PurchByItr!I29*I$1*PricesByItr!I29)/1000) -> 0 | J29: =IF(PricesByItr!J29<0,0,(PurchByItr!J29*J$1*PricesByItr!J29)/1000) -> 0 | K29: =IF(PricesByItr!K29<0,0,(PurchByItr!K29*K$1*PricesByItr!K29)/1000) -> -6614.972545 | L29: =IF(PricesByItr!L29<0,0,(PurchByItr!L29*L$1*PricesByItr!L29)/1000) -> -12707.47207 | M29: =IF(PricesByItr!M29<0,0,(PurchByItr!M29*M$1*PricesByItr!M29)/1000) -> 3453.187118 | N29: =IF(PricesByItr!N29<0,0,(PurchByItr!N29*N$1*PricesByItr!N29)/1000) -> 3937.828763 | O29: 146929.6704 | Q29: =PurchByItr!Q29 -> 2021 | R29: =PurchByItr!R29 -> 1990 | S29: =IF(PricesByItr!S29<0,0,(PurchByItr!S29*S$1*PricesByItr!S29)/1000) -> 13498.88632 | T29: =IF(PricesByItr!T29<0,0,(PurchByItr!T29*T$1*PricesByItr!T29)/1000) -> 8955.365486 | U29: =IF(PricesByItr!U29<0,0,(PurchByItr!U29*U$1*PricesByItr!U29)/1000) -> 0 | V29: =IF(PricesByItr!V29<0,0,(PurchByItr!V29*V$1*PricesByItr!V29)/1000) -> 0 | W29: =IF(PricesByItr!W29<0,0,(PurchByItr!W29*W$1*PricesByItr!W29)/1000) -> 0 | X29: =IF(PricesByItr!X29<0,0,(PurchByItr!X29*X$1*PricesByItr!X29)/1000) -> 0 | Y29: =IF(PricesByItr!Y29<0,0,(PurchByItr!Y29*Y$1*PricesByItr!Y29)/1000) -> 0 | Z29: =IF(PricesByItr!Z29<0,0,(PurchByItr!Z29*Z$1*PricesByItr!Z29)/1000) -> 0 | AA29: =IF(PricesByItr!AA29<0,0,(PurchByItr!AA29*AA$1*PricesByItr!AA29)/1000) -> 0 | AB29: =IF(PricesByItr!AB29<0,0,(PurchByItr!AB29*AB$1*PricesByItr!AB29)/1000) -> 0 | AC29: =IF(PricesByItr!AC29<0,0,(PurchByItr!AC29*AC$1*PricesByItr!AC29)/1000) -> 0 | AD29: =IF(PricesByItr!AD29<0,0,(PurchByItr!AD29*AD$1*PricesByItr!AD29)/1000) -> 10811.81268 | AE29: 33266.06449
A30: =PurchByItr!A30 -> 2020 | B30: =PurchByItr!B30 -> 2002 | C30: =IF(PricesByItr!C30<0,0,(PurchByItr!C30*C$1*PricesByItr!C30)/1000) -> 17884.49288 | D30: =IF(PricesByItr!D30<0,0,(PurchByItr!D30*D$1*PricesByItr!D30)/1000) -> -2010.323198 | E30: =IF(PricesByItr!E30<0,0,(PurchByItr!E30*E$1*PricesByItr!E30)/1000) -> 14700.9776 | F30: =IF(PricesByItr!F30<0,0,(PurchByItr!F30*F$1*PricesByItr!F30)/1000) -> 36620.52674 | G30: =IF(PricesByItr!G30<0,0,(PurchByItr!G30*G$1*PricesByItr!G30)/1000) -> 38145.65649 | H30: =IF(PricesByItr!H30<0,0,(PurchByItr!H30*H$1*PricesByItr!H30)/1000) -> 12800.2619 | I30: =IF(PricesByItr!I30<0,0,(PurchByItr!I30*I$1*PricesByItr!I30)/1000) -> 0 | J30: =IF(PricesByItr!J30<0,0,(PurchByItr!J30*J$1*PricesByItr!J30)/1000) -> 0 | K30: =IF(PricesByItr!K30<0,0,(PurchByItr!K30*K$1*PricesByItr!K30)/1000) -> 0 | L30: =IF(PricesByItr!L30<0,0,(PurchByItr!L30*L$1*PricesByItr!L30)/1000) -> 0 | M30: =IF(PricesByItr!M30<0,0,(PurchByItr!M30*M$1*PricesByItr!M30)/1000) -> -1656.027488 | N30: =IF(PricesByItr!N30<0,0,(PurchByItr!N30*N$1*PricesByItr!N30)/1000) -> 12400.77832 | O30: 128886.3433 | Q30: =PurchByItr!Q30 -> 2021 | R30: =PurchByItr!R30 -> 2003 | S30: =IF(PricesByItr!S30<0,0,(PurchByItr!S30*S$1*PricesByItr!S30)/1000) -> 19358.29508 | T30: =IF(PricesByItr!T30<0,0,(PurchByItr!T30*T$1*PricesByItr!T30)/1000) -> 2859.267906 | U30: =IF(PricesByItr!U30<0,0,(PurchByItr!U30*U$1*PricesByItr!U30)/1000) -> 32458.45124 | V30: =IF(PricesByItr!V30<0,0,(PurchByItr!V30*V$1*PricesByItr!V30)/1000) -> 40397.19819 | W30: =IF(PricesByItr!W30<0,0,(PurchByItr!W30*W$1*PricesByItr!W30)/1000) -> 8341.958604 | X30: =IF(PricesByItr!X30<0,0,(PurchByItr!X30*X$1*PricesByItr!X30)/1000) -> 0 | Y30: =IF(PricesByItr!Y30<0,0,(PurchByItr!Y30*Y$1*PricesByItr!Y30)/1000) -> 658.9090827 | Z30: =IF(PricesByItr!Z30<0,0,(PurchByItr!Z30*Z$1*PricesByItr!Z30)/1000) -> 8502.391818 | AA30: =IF(PricesByItr!AA30<0,0,(PurchByItr!AA30*AA$1*PricesByItr!AA30)/1000) -> 0 | AB30: =IF(PricesByItr!AB30<0,0,(PurchByItr!AB30*AB$1*PricesByItr!AB30)/1000) -> -79.58089478 | AC30: =IF(PricesByItr!AC30<0,0,(PurchByItr!AC30*AC$1*PricesByItr!AC30)/1000) -> 9195.89423 | AD30: =IF(PricesByItr!AD30<0,0,(PurchByItr!AD30*AD$1*PricesByItr!AD30)/1000) -> 13001.26794 | AE30: 134694.0532
A31: =PurchByItr!A31 -> 2020 | B31: =PurchByItr!B31 -> 1934 | C31: =IF(PricesByItr!C31<0,0,(PurchByItr!C31*C$1*PricesByItr!C31)/1000) -> 9506.900228 | D31: =IF(PricesByItr!D31<0,0,(PurchByItr!D31*D$1*PricesByItr!D31)/1000) -> 0 | E31: =IF(PricesByItr!E31<0,0,(PurchByItr!E31*E$1*PricesByItr!E31)/1000) -> 0 | F31: =IF(PricesByItr!F31<0,0,(PurchByItr!F31*F$1*PricesByItr!F31)/1000) -> 0 | G31: =IF(PricesByItr!G31<0,0,(PurchByItr!G31*G$1*PricesByItr!G31)/1000) -> 0 | H31: =IF(PricesByItr!H31<0,0,(PurchByItr!H31*H$1*PricesByItr!H31)/1000) -> 0 | I31: =IF(PricesByItr!I31<0,0,(PurchByItr!I31*I$1*PricesByItr!I31)/1000) -> 0 | J31: =IF(PricesByItr!J31<0,0,(PurchByItr!J31*J$1*PricesByItr!J31)/1000) -> 0 | K31: =IF(PricesByItr!K31<0,0,(PurchByItr!K31*K$1*PricesByItr!K31)/1000) -> -2761.025751 | L31: =IF(PricesByItr!L31<0,0,(PurchByItr!L31*L$1*PricesByItr!L31)/1000) -> 3062.088923 | M31: =IF(PricesByItr!M31<0,0,(PurchByItr!M31*M$1*PricesByItr!M31)/1000) -> 2472.063833 | N31: =IF(PricesByItr!N31<0,0,(PurchByItr!N31*N$1*PricesByItr!N31)/1000) -> 5999.026584 | O31: 18279.05382 | Q31: =PurchByItr!Q31 -> 2021 | R31: =PurchByItr!R31 -> 1935 | S31: =IF(PricesByItr!S31<0,0,(PurchByItr!S31*S$1*PricesByItr!S31)/1000) -> 11792.16415 | T31: =IF(PricesByItr!T31<0,0,(PurchByItr!T31*T$1*PricesByItr!T31)/1000) -> 22795.15309 | U31: =IF(PricesByItr!U31<0,0,(PurchByItr!U31*U$1*PricesByItr!U31)/1000) -> 24047.60879 | V31: =IF(PricesByItr!V31<0,0,(PurchByItr!V31*V$1*PricesByItr!V31)/1000) -> 0 | W31: =IF(PricesByItr!W31<0,0,(PurchByItr!W31*W$1*PricesByItr!W31)/1000) -> 0 | X31: =IF(PricesByItr!X31<0,0,(PurchByItr!X31*X$1*PricesByItr!X31)/1000) -> 0 | Y31: =IF(PricesByItr!Y31<0,0,(PurchByItr!Y31*Y$1*PricesByItr!Y31)/1000) -> 14125.81972 | Z31: =IF(PricesByItr!Z31<0,0,(PurchByItr!Z31*Z$1*PricesByItr!Z31)/1000) -> 0 | AA31: =IF(PricesByItr!AA31<0,0,(PurchByItr!AA31*AA$1*PricesByItr!AA31)/1000) -> 2059.689997 | AB31: =IF(PricesByItr!AB31<0,0,(PurchByItr!AB31*AB$1*PricesByItr!AB31)/1000) -> -58.11960495 | AC31: =IF(PricesByItr!AC31<0,0,(PurchByItr!AC31*AC$1*PricesByItr!AC31)/1000) -> 0 | AD31: =IF(PricesByItr!AD31<0,0,(PurchByItr!AD31*AD$1*PricesByItr!AD31)/1000) -> 14738.68993 | AE31: 89501.00608
A32: =PurchByItr!A32 -> 2020 | B32: =PurchByItr!B32 -> 1936 | C32: =IF(PricesByItr!C32<0,0,(PurchByItr!C32*C$1*PricesByItr!C32)/1000) -> 19666.41251 | D32: =IF(PricesByItr!D32<0,0,(PurchByItr!D32*D$1*PricesByItr!D32)/1000) -> 9233.084421 | E32: =IF(PricesByItr!E32<0,0,(PurchByItr!E32*E$1*PricesByItr!E32)/1000) -> 32464.66995 | F32: =IF(PricesByItr!F32<0,0,(PurchByItr!F32*F$1*PricesByItr!F32)/1000) -> 71985.11792 | G32: =IF(PricesByItr!G32<0,0,(PurchByItr!G32*G$1*PricesByItr!G32)/1000) -> 43457.44453 | H32: =IF(PricesByItr!H32<0,0,(PurchByItr!H32*H$1*PricesByItr!H32)/1000) -> 18166.52033 | I32: =IF(PricesByItr!I32<0,0,(PurchByItr!I32*I$1*PricesByItr!I32)/1000) -> 4843.855106 | J32: =IF(PricesByItr!J32<0,0,(PurchByItr!J32*J$1*PricesByItr!J32)/1000) -> 0 | K32: =IF(PricesByItr!K32<0,0,(PurchByItr!K32*K$1*PricesByItr!K32)/1000) -> 0 | L32: =IF(PricesByItr!L32<0,0,(PurchByItr!L32*L$1*PricesByItr!L32)/1000) -> 0 | M32: =IF(PricesByItr!M32<0,0,(PurchByItr!M32*M$1*PricesByItr!M32)/1000) -> 2179.205798 | N32: =IF(PricesByItr!N32<0,0,(PurchByItr!N32*N$1*PricesByItr!N32)/1000) -> 20269.86751 | O32: 222266.1781 | Q32: =PurchByItr!Q32 -> 2021 | R32: =PurchByItr!R32 -> 1937 | S32: =IF(PricesByItr!S32<0,0,(PurchByItr!S32*S$1*PricesByItr!S32)/1000) -> 16167.12758 | T32: =IF(PricesByItr!T32<0,0,(PurchByItr!T32*T$1*PricesByItr!T32)/1000) -> 1571.903535 | U32: =IF(PricesByItr!U32<0,0,(PurchByItr!U32*U$1*PricesByItr!U32)/1000) -> 32177.83314 | V32: =IF(PricesByItr!V32<0,0,(PurchByItr!V32*V$1*PricesByItr!V32)/1000) -> 75698.28589 | W32: =IF(PricesByItr!W32<0,0,(PurchByItr!W32*W$1*PricesByItr!W32)/1000) -> 48776.09225 | X32: =IF(PricesByItr!X32<0,0,(PurchByItr!X32*X$1*PricesByItr!X32)/1000) -> 29812.25426 | Y32: =IF(PricesByItr!Y32<0,0,(PurchByItr!Y32*Y$1*PricesByItr!Y32)/1000) -> 49727.63385 | Z32: =IF(PricesByItr!Z32<0,0,(PurchByItr!Z32*Z$1*PricesByItr!Z32)/1000) -> 36341.28715 | AA32: =IF(PricesByItr!AA32<0,0,(PurchByItr!AA32*AA$1*PricesByItr!AA32)/1000) -> -7134.401742 | AB32: =IF(PricesByItr!AB32<0,0,(PurchByItr!AB32*AB$1*PricesByItr!AB32)/1000) -> -3576.438409 | AC32: =IF(PricesByItr!AC32<0,0,(PurchByItr!AC32*AC$1*PricesByItr!AC32)/1000) -> -598.5759476 | AD32: =IF(PricesByItr!AD32<0,0,(PurchByItr!AD32*AD$1*PricesByItr!AD32)/1000) -> -5008.597028 | AE32: 273954.4045
A33: =PurchByItr!A33 -> 2020 | B33: =PurchByItr!B33 -> 1958 | C33: =IF(PricesByItr!C33<0,0,(PurchByItr!C33*C$1*PricesByItr!C33)/1000) -> 21618.58436 | D33: =IF(PricesByItr!D33<0,0,(PurchByItr!D33*D$1*PricesByItr!D33)/1000) -> 10865.56175 | E33: =IF(PricesByItr!E33<0,0,(PurchByItr!E33*E$1*PricesByItr!E33)/1000) -> 16301.97742 | F33: =IF(PricesByItr!F33<0,0,(PurchByItr!F33*F$1*PricesByItr!F33)/1000) -> 0 | G33: =IF(PricesByItr!G33<0,0,(PurchByItr!G33*G$1*PricesByItr!G33)/1000) -> 0 | H33: =IF(PricesByItr!H33<0,0,(PurchByItr!H33*H$1*PricesByItr!H33)/1000) -> 0 | I33: =IF(PricesByItr!I33<0,0,(PurchByItr!I33*I$1*PricesByItr!I33)/1000) -> 0 | J33: =IF(PricesByItr!J33<0,0,(PurchByItr!J33*J$1*PricesByItr!J33)/1000) -> 0 | K33: =IF(PricesByItr!K33<0,0,(PurchByItr!K33*K$1*PricesByItr!K33)/1000) -> 0 | L33: =IF(PricesByItr!L33<0,0,(PurchByItr!L33*L$1*PricesByItr!L33)/1000) -> 0 | M33: =IF(PricesByItr!M33<0,0,(PurchByItr!M33*M$1*PricesByItr!M33)/1000) -> -571.4768545 | N33: =IF(PricesByItr!N33<0,0,(PurchByItr!N33*N$1*PricesByItr!N33)/1000) -> 10985.2302 | O33: 59199.87687 | Q33: =PurchByItr!Q33 -> 2021 | R33: =PurchByItr!R33 -> 1959 | S33: =IF(PricesByItr!S33<0,0,(PurchByItr!S33*S$1*PricesByItr!S33)/1000) -> 11578.72405 | T33: =IF(PricesByItr!T33<0,0,(PurchByItr!T33*T$1*PricesByItr!T33)/1000) -> 0 | U33: =IF(PricesByItr!U33<0,0,(PurchByItr!U33*U$1*PricesByItr!U33)/1000) -> 0 | V33: =IF(PricesByItr!V33<0,0,(PurchByItr!V33*V$1*PricesByItr!V33)/1000) -> 0 | W33: =IF(PricesByItr!W33<0,0,(PurchByItr!W33*W$1*PricesByItr!W33)/1000) -> 0 | X33: =IF(PricesByItr!X33<0,0,(PurchByItr!X33*X$1*PricesByItr!X33)/1000) -> 0 | Y33: =IF(PricesByItr!Y33<0,0,(PurchByItr!Y33*Y$1*PricesByItr!Y33)/1000) -> 0 | Z33: =IF(PricesByItr!Z33<0,0,(PurchByItr!Z33*Z$1*PricesByItr!Z33)/1000) -> 0 | AA33: =IF(PricesByItr!AA33<0,0,(PurchByItr!AA33*AA$1*PricesByItr!AA33)/1000) -> 0 | AB33: =IF(PricesByItr!AB33<0,0,(PurchByItr!AB33*AB$1*PricesByItr!AB33)/1000) -> 0 | AC33: =IF(PricesByItr!AC33<0,0,(PurchByItr!AC33*AC$1*PricesByItr!AC33)/1000) -> 0 | AD33: =IF(PricesByItr!AD33<0,0,(PurchByItr!AD33*AD$1*PricesByItr!AD33)/1000) -> 0 | AE33: 11578.72405
A34: =PurchByItr!A34 -> 2020 | B34: =PurchByItr!B34 -> 1996 | C34: =IF(PricesByItr!C34<0,0,(PurchByItr!C34*C$1*PricesByItr!C34)/1000) -> 2060.657559 | D34: =IF(PricesByItr!D34<0,0,(PurchByItr!D34*D$1*PricesByItr!D34)/1000) -> 0 | E34: =IF(PricesByItr!E34<0,0,(PurchByItr!E34*E$1*PricesByItr!E34)/1000) -> 0 | F34: =IF(PricesByItr!F34<0,0,(PurchByItr!F34*F$1*PricesByItr!F34)/1000) -> 0 | G34: =IF(PricesByItr!G34<0,0,(PurchByItr!G34*G$1*PricesByItr!G34)/1000) -> 0 | H34: =IF(PricesByItr!H34<0,0,(PurchByItr!H34*H$1*PricesByItr!H34)/1000) -> 0 | I34: =IF(PricesByItr!I34<0,0,(PurchByItr!I34*I$1*PricesByItr!I34)/1000) -> 0 | J34: =IF(PricesByItr!J34<0,0,(PurchByItr!J34*J$1*PricesByItr!J34)/1000) -> 0 | K34: =IF(PricesByItr!K34<0,0,(PurchByItr!K34*K$1*PricesByItr!K34)/1000) -> 0 | L34: =IF(PricesByItr!L34<0,0,(PurchByItr!L34*L$1*PricesByItr!L34)/1000) -> 0 | M34: =IF(PricesByItr!M34<0,0,(PurchByItr!M34*M$1*PricesByItr!M34)/1000) -> 0 | N34: =IF(PricesByItr!N34<0,0,(PurchByItr!N34*N$1*PricesByItr!N34)/1000) -> 4846.722148 | O34: 6907.379707 | Q34: =PurchByItr!Q34 -> 2021 | R34: =PurchByItr!R34 -> 1997 | S34: =IF(PricesByItr!S34<0,0,(PurchByItr!S34*S$1*PricesByItr!S34)/1000) -> 17333.5144 | T34: =IF(PricesByItr!T34<0,0,(PurchByItr!T34*T$1*PricesByItr!T34)/1000) -> 0 | U34: =IF(PricesByItr!U34<0,0,(PurchByItr!U34*U$1*PricesByItr!U34)/1000) -> 0 | V34: =IF(PricesByItr!V34<0,0,(PurchByItr!V34*V$1*PricesByItr!V34)/1000) -> 0 | W34: =IF(PricesByItr!W34<0,0,(PurchByItr!W34*W$1*PricesByItr!W34)/1000) -> 0 | X34: =IF(PricesByItr!X34<0,0,(PurchByItr!X34*X$1*PricesByItr!X34)/1000) -> 0 | Y34: =IF(PricesByItr!Y34<0,0,(PurchByItr!Y34*Y$1*PricesByItr!Y34)/1000) -> 0 | Z34: =IF(PricesByItr!Z34<0,0,(PurchByItr!Z34*Z$1*PricesByItr!Z34)/1000) -> 0 | AA34: =IF(PricesByItr!AA34<0,0,(PurchByItr!AA34*AA$1*PricesByItr!AA34)/1000) -> 0 | AB34: =IF(PricesByItr!AB34<0,0,(PurchByItr!AB34*AB$1*PricesByItr!AB34)/1000) -> 0 | AC34: =IF(PricesByItr!AC34<0,0,(PurchByItr!AC34*AC$1*PricesByItr!AC34)/1000) -> 0 | AD34: =IF(PricesByItr!AD34<0,0,(PurchByItr!AD34*AD$1*PricesByItr!AD34)/1000) -> 0 | AE34: 17333.5144
A35: =PurchByItr!A35 -> 2020 | B35: =PurchByItr!B35 -> 1979 | C35: =IF(PricesByItr!C35<0,0,(PurchByItr!C35*C$1*PricesByItr!C35)/1000) -> 8041.480819 | D35: =IF(PricesByItr!D35<0,0,(PurchByItr!D35*D$1*PricesByItr!D35)/1000) -> 4308.587201 | E35: =IF(PricesByItr!E35<0,0,(PurchByItr!E35*E$1*PricesByItr!E35)/1000) -> 39239.53791 | F35: =IF(PricesByItr!F35<0,0,(PurchByItr!F35*F$1*PricesByItr!F35)/1000) -> 24420.21131 | G35: =IF(PricesByItr!G35<0,0,(PurchByItr!G35*G$1*PricesByItr!G35)/1000) -> 7210.980198 | H35: =IF(PricesByItr!H35<0,0,(PurchByItr!H35*H$1*PricesByItr!H35)/1000) -> 0 | I35: =IF(PricesByItr!I35<0,0,(PurchByItr!I35*I$1*PricesByItr!I35)/1000) -> 22592.93692 | J35: =IF(PricesByItr!J35<0,0,(PurchByItr!J35*J$1*PricesByItr!J35)/1000) -> 0 | K35: =IF(PricesByItr!K35<0,0,(PurchByItr!K35*K$1*PricesByItr!K35)/1000) -> 2818.446189 | L35: =IF(PricesByItr!L35<0,0,(PurchByItr!L35*L$1*PricesByItr!L35)/1000) -> 13105.50176 | M35: =IF(PricesByItr!M35<0,0,(PurchByItr!M35*M$1*PricesByItr!M35)/1000) -> 3987.932832 | N35: =IF(PricesByItr!N35<0,0,(PurchByItr!N35*N$1*PricesByItr!N35)/1000) -> -976.0171422 | O35: 124749.598 | Q35: =PurchByItr!Q35 -> 2021 | R35: =PurchByItr!R35 -> 1980 | S35: =IF(PricesByItr!S35<0,0,(PurchByItr!S35*S$1*PricesByItr!S35)/1000) -> 16876.64429 | T35: =IF(PricesByItr!T35<0,0,(PurchByItr!T35*T$1*PricesByItr!T35)/1000) -> 11168.84479 | U35: =IF(PricesByItr!U35<0,0,(PurchByItr!U35*U$1*PricesByItr!U35)/1000) -> 45899.18023 | V35: =IF(PricesByItr!V35<0,0,(PurchByItr!V35*V$1*PricesByItr!V35)/1000) -> 17376.03655 | W35: =IF(PricesByItr!W35<0,0,(PurchByItr!W35*W$1*PricesByItr!W35)/1000) -> 17688.35519 | X35: =IF(PricesByItr!X35<0,0,(PurchByItr!X35*X$1*PricesByItr!X35)/1000) -> 24887.77001 | Y35: =IF(PricesByItr!Y35<0,0,(PurchByItr!Y35*Y$1*PricesByItr!Y35)/1000) -> 813.9993486 | Z35: =IF(PricesByItr!Z35<0,0,(PurchByItr!Z35*Z$1*PricesByItr!Z35)/1000) -> 0 | AA35: =IF(PricesByItr!AA35<0,0,(PurchByItr!AA35*AA$1*PricesByItr!AA35)/1000) -> 0 | AB35: =IF(PricesByItr!AB35<0,0,(PurchByItr!AB35*AB$1*PricesByItr!AB35)/1000) -> -3596.237613 | AC35: =IF(PricesByItr!AC35<0,0,(PurchByItr!AC35*AC$1*PricesByItr!AC35)/1000) -> 13.76651663 | AD35: =IF(PricesByItr!AD35<0,0,(PurchByItr!AD35*AD$1*PricesByItr!AD35)/1000) -> 0 | AE35: 131128.3593
A36: =PurchByItr!A36 -> 2020 | B36: =PurchByItr!B36 -> 1988 | C36: =IF(PricesByItr!C36<0,0,(PurchByItr!C36*C$1*PricesByItr!C36)/1000) -> 19617.85182 | D36: =IF(PricesByItr!D36<0,0,(PurchByItr!D36*D$1*PricesByItr!D36)/1000) -> 19718.10264 | E36: =IF(PricesByItr!E36<0,0,(PurchByItr!E36*E$1*PricesByItr!E36)/1000) -> 52078.58817 | F36: =IF(PricesByItr!F36<0,0,(PurchByItr!F36*F$1*PricesByItr!F36)/1000) -> 88196.43509 | G36: =IF(PricesByItr!G36<0,0,(PurchByItr!G36*G$1*PricesByItr!G36)/1000) -> 24850.7198 | H36: =IF(PricesByItr!H36<0,0,(PurchByItr!H36*H$1*PricesByItr!H36)/1000) -> 26312.53063 | I36: =IF(PricesByItr!I36<0,0,(PurchByItr!I36*I$1*PricesByItr!I36)/1000) -> 34955.41325 | J36: =IF(PricesByItr!J36<0,0,(PurchByItr!J36*J$1*PricesByItr!J36)/1000) -> 23530.17718 | K36: =IF(PricesByItr!K36<0,0,(PurchByItr!K36*K$1*PricesByItr!K36)/1000) -> 8275.131807 | L36: =IF(PricesByItr!L36<0,0,(PurchByItr!L36*L$1*PricesByItr!L36)/1000) -> -2497.060173 | M36: =IF(PricesByItr!M36<0,0,(PurchByItr!M36*M$1*PricesByItr!M36)/1000) -> 0 | N36: =IF(PricesByItr!N36<0,0,(PurchByItr!N36*N$1*PricesByItr!N36)/1000) -> 316.147809 | O36: 295354.038 | Q36: =PurchByItr!Q36 -> 2021 | R36: =PurchByItr!R36 -> 1989 | S36: =IF(PricesByItr!S36<0,0,(PurchByItr!S36*S$1*PricesByItr!S36)/1000) -> 8180.150346 | T36: =IF(PricesByItr!T36<0,0,(PurchByItr!T36*T$1*PricesByItr!T36)/1000) -> -521.7778309 | U36: =IF(PricesByItr!U36<0,0,(PurchByItr!U36*U$1*PricesByItr!U36)/1000) -> 15365.16318 | V36: =IF(PricesByItr!V36<0,0,(PurchByItr!V36*V$1*PricesByItr!V36)/1000) -> 55937.24597 | W36: =IF(PricesByItr!W36<0,0,(PurchByItr!W36*W$1*PricesByItr!W36)/1000) -> 54388.38337 | X36: =IF(PricesByItr!X36<0,0,(PurchByItr!X36*X$1*PricesByItr!X36)/1000) -> 0 | Y36: =IF(PricesByItr!Y36<0,0,(PurchByItr!Y36*Y$1*PricesByItr!Y36)/1000) -> 0 | Z36: =IF(PricesByItr!Z36<0,0,(PurchByItr!Z36*Z$1*PricesByItr!Z36)/1000) -> 0 | AA36: =IF(PricesByItr!AA36<0,0,(PurchByItr!AA36*AA$1*PricesByItr!AA36)/1000) -> -6964.493739 | AB36: =IF(PricesByItr!AB36<0,0,(PurchByItr!AB36*AB$1*PricesByItr!AB36)/1000) -> -12719.54213 | AC36: =IF(PricesByItr!AC36<0,0,(PurchByItr!AC36*AC$1*PricesByItr!AC36)/1000) -> 2101.7476 | AD36: =IF(PricesByItr!AD36<0,0,(PurchByItr!AD36*AD$1*PricesByItr!AD36)/1000) -> 3859.644915 | AE36: 119626.5217
A37: =PurchByItr!A37 -> 2020 | B37: =PurchByItr!B37 -> 1967 | C37: =IF(PricesByItr!C37<0,0,(PurchByItr!C37*C$1*PricesByItr!C37)/1000) -> 20614.11919 | D37: =IF(PricesByItr!D37<0,0,(PurchByItr!D37*D$1*PricesByItr!D37)/1000) -> 8704.778165 | E37: =IF(PricesByItr!E37<0,0,(PurchByItr!E37*E$1*PricesByItr!E37)/1000) -> 0 | F37: =IF(PricesByItr!F37<0,0,(PurchByItr!F37*F$1*PricesByItr!F37)/1000) -> 0 | G37: =IF(PricesByItr!G37<0,0,(PurchByItr!G37*G$1*PricesByItr!G37)/1000) -> 0 | H37: =IF(PricesByItr!H37<0,0,(PurchByItr!H37*H$1*PricesByItr!H37)/1000) -> 0 | I37: =IF(PricesByItr!I37<0,0,(PurchByItr!I37*I$1*PricesByItr!I37)/1000) -> 15644.46016 | J37: =IF(PricesByItr!J37<0,0,(PurchByItr!J37*J$1*PricesByItr!J37)/1000) -> 0 | K37: =IF(PricesByItr!K37<0,0,(PurchByItr!K37*K$1*PricesByItr!K37)/1000) -> 0 | L37: =IF(PricesByItr!L37<0,0,(PurchByItr!L37*L$1*PricesByItr!L37)/1000) -> 0 | M37: =IF(PricesByItr!M37<0,0,(PurchByItr!M37*M$1*PricesByItr!M37)/1000) -> 0 | N37: =IF(PricesByItr!N37<0,0,(PurchByItr!N37*N$1*PricesByItr!N37)/1000) -> 2860.838382 | O37: 47824.1959 | Q37: =PurchByItr!Q37 -> 2021 | R37: =PurchByItr!R37 -> 1968 | S37: =IF(PricesByItr!S37<0,0,(PurchByItr!S37*S$1*PricesByItr!S37)/1000) -> 18036.35707 | T37: =IF(PricesByItr!T37<0,0,(PurchByItr!T37*T$1*PricesByItr!T37)/1000) -> 0 | U37: =IF(PricesByItr!U37<0,0,(PurchByItr!U37*U$1*PricesByItr!U37)/1000) -> 0 | V37: =IF(PricesByItr!V37<0,0,(PurchByItr!V37*V$1*PricesByItr!V37)/1000) -> 0 | W37: =IF(PricesByItr!W37<0,0,(PurchByItr!W37*W$1*PricesByItr!W37)/1000) -> 0 | X37: =IF(PricesByItr!X37<0,0,(PurchByItr!X37*X$1*PricesByItr!X37)/1000) -> 0 | Y37: =IF(PricesByItr!Y37<0,0,(PurchByItr!Y37*Y$1*PricesByItr!Y37)/1000) -> 47308.55172 | Z37: =IF(PricesByItr!Z37<0,0,(PurchByItr!Z37*Z$1*PricesByItr!Z37)/1000) -> 4863.605911 | AA37: =IF(PricesByItr!AA37<0,0,(PurchByItr!AA37*AA$1*PricesByItr!AA37)/1000) -> 0 | AB37: =IF(PricesByItr!AB37<0,0,(PurchByItr!AB37*AB$1*PricesByItr!AB37)/1000) -> 0 | AC37: =IF(PricesByItr!AC37<0,0,(PurchByItr!AC37*AC$1*PricesByItr!AC37)/1000) -> 0 | AD37: =IF(PricesByItr!AD37<0,0,(PurchByItr!AD37*AD$1*PricesByItr!AD37)/1000) -> 0 | AE37: 70208.51471
A38: =PurchByItr!A38 -> 2020 | B38: =PurchByItr!B38 -> 1939 | C38: =IF(PricesByItr!C38<0,0,(PurchByItr!C38*C$1*PricesByItr!C38)/1000) -> 19235.62992 | D38: =IF(PricesByItr!D38<0,0,(PurchByItr!D38*D$1*PricesByItr!D38)/1000) -> 13254.91995 | E38: =IF(PricesByItr!E38<0,0,(PurchByItr!E38*E$1*PricesByItr!E38)/1000) -> 34316.67356 | F38: =IF(PricesByItr!F38<0,0,(PurchByItr!F38*F$1*PricesByItr!F38)/1000) -> 8673.317304 | G38: =IF(PricesByItr!G38<0,0,(PurchByItr!G38*G$1*PricesByItr!G38)/1000) -> 3440.101224 | H38: =IF(PricesByItr!H38<0,0,(PurchByItr!H38*H$1*PricesByItr!H38)/1000) -> 6827.242433 | I38: =IF(PricesByItr!I38<0,0,(PurchByItr!I38*I$1*PricesByItr!I38)/1000) -> 473.2595381 | J38: =IF(PricesByItr!J38<0,0,(PurchByItr!J38*J$1*PricesByItr!J38)/1000) -> 0 | K38: =IF(PricesByItr!K38<0,0,(PurchByItr!K38*K$1*PricesByItr!K38)/1000) -> 3401.97489 | L38: =IF(PricesByItr!L38<0,0,(PurchByItr!L38*L$1*PricesByItr!L38)/1000) -> 0 | M38: =IF(PricesByItr!M38<0,0,(PurchByItr!M38*M$1*PricesByItr!M38)/1000) -> 3155.144488 | N38: =IF(PricesByItr!N38<0,0,(PurchByItr!N38*N$1*PricesByItr!N38)/1000) -> 4779.424239 | O38: 97557.68754 | Q38: =PurchByItr!Q38 -> 2021 | R38: =PurchByItr!R38 -> 1940 | S38: =IF(PricesByItr!S38<0,0,(PurchByItr!S38*S$1*PricesByItr!S38)/1000) -> 9511.141476 | T38: =IF(PricesByItr!T38<0,0,(PurchByItr!T38*T$1*PricesByItr!T38)/1000) -> 6783.836417 | U38: =IF(PricesByItr!U38<0,0,(PurchByItr!U38*U$1*PricesByItr!U38)/1000) -> 6921.332747 | V38: =IF(PricesByItr!V38<0,0,(PurchByItr!V38*V$1*PricesByItr!V38)/1000) -> 13357.05097 | W38: =IF(PricesByItr!W38<0,0,(PurchByItr!W38*W$1*PricesByItr!W38)/1000) -> 6117.880079 | X38: =IF(PricesByItr!X38<0,0,(PurchByItr!X38*X$1*PricesByItr!X38)/1000) -> 0 | Y38: =IF(PricesByItr!Y38<0,0,(PurchByItr!Y38*Y$1*PricesByItr!Y38)/1000) -> 12123.61154 | Z38: =IF(PricesByItr!Z38<0,0,(PurchByItr!Z38*Z$1*PricesByItr!Z38)/1000) -> 0 | AA38: =IF(PricesByItr!AA38<0,0,(PurchByItr!AA38*AA$1*PricesByItr!AA38)/1000) -> 11786.02649 | AB38: =IF(PricesByItr!AB38<0,0,(PurchByItr!AB38*AB$1*PricesByItr!AB38)/1000) -> 20294.58229 | AC38: =IF(PricesByItr!AC38<0,0,(PurchByItr!AC38*AC$1*PricesByItr!AC38)/1000) -> 10464.1741 | AD38: =IF(PricesByItr!AD38<0,0,(PurchByItr!AD38*AD$1*PricesByItr!AD38)/1000) -> 0 | AE38: 97359.63611
A39: =PurchByItr!A39 -> 2020 | B39: =PurchByItr!B39 -> 1984 | C39: =IF(PricesByItr!C39<0,0,(PurchByItr!C39*C$1*PricesByItr!C39)/1000) -> 15886.84833 | D39: =IF(PricesByItr!D39<0,0,(PurchByItr!D39*D$1*PricesByItr!D39)/1000) -> 0 | E39: =IF(PricesByItr!E39<0,0,(PurchByItr!E39*E$1*PricesByItr!E39)/1000) -> 0 | F39: =IF(PricesByItr!F39<0,0,(PurchByItr!F39*F$1*PricesByItr!F39)/1000) -> 0 | G39: =IF(PricesByItr!G39<0,0,(PurchByItr!G39*G$1*PricesByItr!G39)/1000) -> 0 | H39: =IF(PricesByItr!H39<0,0,(PurchByItr!H39*H$1*PricesByItr!H39)/1000) -> 0 | I39: =IF(PricesByItr!I39<0,0,(PurchByItr!I39*I$1*PricesByItr!I39)/1000) -> 0 | J39: =IF(PricesByItr!J39<0,0,(PurchByItr!J39*J$1*PricesByItr!J39)/1000) -> 0 | K39: =IF(PricesByItr!K39<0,0,(PurchByItr!K39*K$1*PricesByItr!K39)/1000) -> 0 | L39: =IF(PricesByItr!L39<0,0,(PurchByItr!L39*L$1*PricesByItr!L39)/1000) -> 0 | M39: =IF(PricesByItr!M39<0,0,(PurchByItr!M39*M$1*PricesByItr!M39)/1000) -> 0 | N39: =IF(PricesByItr!N39<0,0,(PurchByItr!N39*N$1*PricesByItr!N39)/1000) -> 0 | O39: 15886.84833 | Q39: =PurchByItr!Q39 -> 2021 | R39: =PurchByItr!R39 -> 1985 | S39: =IF(PricesByItr!S39<0,0,(PurchByItr!S39*S$1*PricesByItr!S39)/1000) -> 13859.64226 | T39: =IF(PricesByItr!T39<0,0,(PurchByItr!T39*T$1*PricesByItr!T39)/1000) -> 0 | U39: =IF(PricesByItr!U39<0,0,(PurchByItr!U39*U$1*PricesByItr!U39)/1000) -> 2865.535885 | V39: =IF(PricesByItr!V39<0,0,(PurchByItr!V39*V$1*PricesByItr!V39)/1000) -> 0 | W39: =IF(PricesByItr!W39<0,0,(PurchByItr!W39*W$1*PricesByItr!W39)/1000) -> 0 | X39: =IF(PricesByItr!X39<0,0,(PurchByItr!X39*X$1*PricesByItr!X39)/1000) -> 8791.500842 | Y39: =IF(PricesByItr!Y39<0,0,(PurchByItr!Y39*Y$1*PricesByItr!Y39)/1000) -> 0 | Z39: =IF(PricesByItr!Z39<0,0,(PurchByItr!Z39*Z$1*PricesByItr!Z39)/1000) -> 0 | AA39: =IF(PricesByItr!AA39<0,0,(PurchByItr!AA39*AA$1*PricesByItr!AA39)/1000) -> -292.4177636 | AB39: =IF(PricesByItr!AB39<0,0,(PurchByItr!AB39*AB$1*PricesByItr!AB39)/1000) -> 1013.748286 | AC39: =IF(PricesByItr!AC39<0,0,(PurchByItr!AC39*AC$1*PricesByItr!AC39)/1000) -> 7352.187978 | AD39: =IF(PricesByItr!AD39<0,0,(PurchByItr!AD39*AD$1*PricesByItr!AD39)/1000) -> 1928.47976 | AE39: 35518.67725
A40: =PurchByItr!A40 -> 2020 | B40: =PurchByItr!B40 -> 1970 | C40: =IF(PricesByItr!C40<0,0,(PurchByItr!C40*C$1*PricesByItr!C40)/1000) -> 11790.91032 | D40: =IF(PricesByItr!D40<0,0,(PurchByItr!D40*D$1*PricesByItr!D40)/1000) -> 611.0563789 | E40: =IF(PricesByItr!E40<0,0,(PurchByItr!E40*E$1*PricesByItr!E40)/1000) -> 20627.56454 | F40: =IF(PricesByItr!F40<0,0,(PurchByItr!F40*F$1*PricesByItr!F40)/1000) -> 0 | G40: =IF(PricesByItr!G40<0,0,(PurchByItr!G40*G$1*PricesByItr!G40)/1000) -> 0 | H40: =IF(PricesByItr!H40<0,0,(PurchByItr!H40*H$1*PricesByItr!H40)/1000) -> 2084.783514 | I40: =IF(PricesByItr!I40<0,0,(PurchByItr!I40*I$1*PricesByItr!I40)/1000) -> 25901.61912 | J40: =IF(PricesByItr!J40<0,0,(PurchByItr!J40*J$1*PricesByItr!J40)/1000) -> 0 | K40: =IF(PricesByItr!K40<0,0,(PurchByItr!K40*K$1*PricesByItr!K40)/1000) -> 0 | L40: =IF(PricesByItr!L40<0,0,(PurchByItr!L40*L$1*PricesByItr!L40)/1000) -> 0 | M40: =IF(PricesByItr!M40<0,0,(PurchByItr!M40*M$1*PricesByItr!M40)/1000) -> -459.2804413 | N40: =IF(PricesByItr!N40<0,0,(PurchByItr!N40*N$1*PricesByItr!N40)/1000) -> 15419.05874 | O40: 75975.71217 | Q40: =PurchByItr!Q40 -> 2021 | R40: =PurchByItr!R40 -> 1971 | S40: =IF(PricesByItr!S40<0,0,(PurchByItr!S40*S$1*PricesByItr!S40)/1000) -> 12380.42242 | T40: =IF(PricesByItr!T40<0,0,(PurchByItr!T40*T$1*PricesByItr!T40)/1000) -> 7100.504365 | U40: =IF(PricesByItr!U40<0,0,(PurchByItr!U40*U$1*PricesByItr!U40)/1000) -> 3826.444269 | V40: =IF(PricesByItr!V40<0,0,(PurchByItr!V40*V$1*PricesByItr!V40)/1000) -> 0 | W40: =IF(PricesByItr!W40<0,0,(PurchByItr!W40*W$1*PricesByItr!W40)/1000) -> 0 | X40: =IF(PricesByItr!X40<0,0,(PurchByItr!X40*X$1*PricesByItr!X40)/1000) -> 0 | Y40: =IF(PricesByItr!Y40<0,0,(PurchByItr!Y40*Y$1*PricesByItr!Y40)/1000) -> 0 | Z40: =IF(PricesByItr!Z40<0,0,(PurchByItr!Z40*Z$1*PricesByItr!Z40)/1000) -> 0 | AA40: =IF(PricesByItr!AA40<0,0,(PurchByItr!AA40*AA$1*PricesByItr!AA40)/1000) -> 0 | AB40: =IF(PricesByItr!AB40<0,0,(PurchByItr!AB40*AB$1*PricesByItr!AB40)/1000) -> 0 | AC40: =IF(PricesByItr!AC40<0,0,(PurchByItr!AC40*AC$1*PricesByItr!AC40)/1000) -> 0 | AD40: =IF(PricesByItr!AD40<0,0,(PurchByItr!AD40*AD$1*PricesByItr!AD40)/1000) -> 1770.018701 | AE40: 25077.38975
A41: =PurchByItr!A41 -> 2020 | B41: =PurchByItr!B41 -> 1963 | C41: =IF(PricesByItr!C41<0,0,(PurchByItr!C41*C$1*PricesByItr!C41)/1000) -> 9331.562282 | D41: =IF(PricesByItr!D41<0,0,(PurchByItr!D41*D$1*PricesByItr!D41)/1000) -> 0 | E41: =IF(PricesByItr!E41<0,0,(PurchByItr!E41*E$1*PricesByItr!E41)/1000) -> 0 | F41: =IF(PricesByItr!F41<0,0,(PurchByItr!F41*F$1*PricesByItr!F41)/1000) -> 0 | G41: =IF(PricesByItr!G41<0,0,(PurchByItr!G41*G$1*PricesByItr!G41)/1000) -> 0 | H41: =IF(PricesByItr!H41<0,0,(PurchByItr!H41*H$1*PricesByItr!H41)/1000) -> 15524.96539 | I41: =IF(PricesByItr!I41<0,0,(PurchByItr!I41*I$1*PricesByItr!I41)/1000) -> 26180.52597 | J41: =IF(PricesByItr!J41<0,0,(PurchByItr!J41*J$1*PricesByItr!J41)/1000) -> 0 | K41: =IF(PricesByItr!K41<0,0,(PurchByItr!K41*K$1*PricesByItr!K41)/1000) -> 0 | L41: =IF(PricesByItr!L41<0,0,(PurchByItr!L41*L$1*PricesByItr!L41)/1000) -> 0 | M41: =IF(PricesByItr!M41<0,0,(PurchByItr!M41*M$1*PricesByItr!M41)/1000) -> 0 | N41: =IF(PricesByItr!N41<0,0,(PurchByItr!N41*N$1*PricesByItr!N41)/1000) -> 2421.722698 | O41: 53458.77635 | Q41: =PurchByItr!Q41 -> 2021 | R41: =PurchByItr!R41 -> 1964 | S41: =IF(PricesByItr!S41<0,0,(PurchByItr!S41*S$1*PricesByItr!S41)/1000) -> 22032.29606 | T41: =IF(PricesByItr!T41<0,0,(PurchByItr!T41*T$1*PricesByItr!T41)/1000) -> 2844.431087 | U41: =IF(PricesByItr!U41<0,0,(PurchByItr!U41*U$1*PricesByItr!U41)/1000) -> 7449.566316 | V41: =IF(PricesByItr!V41<0,0,(PurchByItr!V41*V$1*PricesByItr!V41)/1000) -> 4208.353734 | W41: =IF(PricesByItr!W41<0,0,(PurchByItr!W41*W$1*PricesByItr!W41)/1000) -> 0 | X41: =IF(PricesByItr!X41<0,0,(PurchByItr!X41*X$1*PricesByItr!X41)/1000) -> 28587.49087 | Y41: =IF(PricesByItr!Y41<0,0,(PurchByItr!Y41*Y$1*PricesByItr!Y41)/1000) -> 5359.255789 | Z41: =IF(PricesByItr!Z41<0,0,(PurchByItr!Z41*Z$1*PricesByItr!Z41)/1000) -> 0 | AA41: =IF(PricesByItr!AA41<0,0,(PurchByItr!AA41*AA$1*PricesByItr!AA41)/1000) -> 0 | AB41: =IF(PricesByItr!AB41<0,0,(PurchByItr!AB41*AB$1*PricesByItr!AB41)/1000) -> 0 | AC41: =IF(PricesByItr!AC41<0,0,(PurchByItr!AC41*AC$1*PricesByItr!AC41)/1000) -> 0 | AD41: =IF(PricesByItr!AD41<0,0,(PurchByItr!AD41*AD$1*PricesByItr!AD41)/1000) -> 0 | AE41: 70481.39385
A42: =PurchByItr!A42 -> 2020 | B42: =PurchByItr!B42 -> 1986 | C42: =IF(PricesByItr!C42<0,0,(PurchByItr!C42*C$1*PricesByItr!C42)/1000) -> 3810.894106 | D42: =IF(PricesByItr!D42<0,0,(PurchByItr!D42*D$1*PricesByItr!D42)/1000) -> -5289.940043 | E42: =IF(PricesByItr!E42<0,0,(PurchByItr!E42*E$1*PricesByItr!E42)/1000) -> 111.1228881 | F42: =IF(PricesByItr!F42<0,0,(PurchByItr!F42*F$1*PricesByItr!F42)/1000) -> 0 | G42: =IF(PricesByItr!G42<0,0,(PurchByItr!G42*G$1*PricesByItr!G42)/1000) -> 0 | H42: =IF(PricesByItr!H42<0,0,(PurchByItr!H42*H$1*PricesByItr!H42)/1000) -> 0 | I42: =IF(PricesByItr!I42<0,0,(PurchByItr!I42*I$1*PricesByItr!I42)/1000) -> 0 | J42: =IF(PricesByItr!J42<0,0,(PurchByItr!J42*J$1*PricesByItr!J42)/1000) -> 0 | K42: =IF(PricesByItr!K42<0,0,(PurchByItr!K42*K$1*PricesByItr!K42)/1000) -> 0 | L42: =IF(PricesByItr!L42<0,0,(PurchByItr!L42*L$1*PricesByItr!L42)/1000) -> -54.09473332 | M42: =IF(PricesByItr!M42<0,0,(PurchByItr!M42*M$1*PricesByItr!M42)/1000) -> -1194.818125 | N42: =IF(PricesByItr!N42<0,0,(PurchByItr!N42*N$1*PricesByItr!N42)/1000) -> 18338.94713 | O42: 15722.11122 | Q42: =PurchByItr!Q42 -> 2021 | R42: =PurchByItr!R42 -> 1987 | S42: =IF(PricesByItr!S42<0,0,(PurchByItr!S42*S$1*PricesByItr!S42)/1000) -> 25841.39898 | T42: =IF(PricesByItr!T42<0,0,(PurchByItr!T42*T$1*PricesByItr!T42)/1000) -> -394.9996138 | U42: =IF(PricesByItr!U42<0,0,(PurchByItr!U42*U$1*PricesByItr!U42)/1000) -> 0 | V42: =IF(PricesByItr!V42<0,0,(PurchByItr!V42*V$1*PricesByItr!V42)/1000) -> 10304.90169 | W42: =IF(PricesByItr!W42<0,0,(PurchByItr!W42*W$1*PricesByItr!W42)/1000) -> 24051.71815 | X42: =IF(PricesByItr!X42<0,0,(PurchByItr!X42*X$1*PricesByItr!X42)/1000) -> -4455.973464 | Y42: =IF(PricesByItr!Y42<0,0,(PurchByItr!Y42*Y$1*PricesByItr!Y42)/1000) -> 15991.57179 | Z42: =IF(PricesByItr!Z42<0,0,(PurchByItr!Z42*Z$1*PricesByItr!Z42)/1000) -> 0 | AA42: =IF(PricesByItr!AA42<0,0,(PurchByItr!AA42*AA$1*PricesByItr!AA42)/1000) -> 2213.170318 | AB42: =IF(PricesByItr!AB42<0,0,(PurchByItr!AB42*AB$1*PricesByItr!AB42)/1000) -> 11497.84926 | AC42: =IF(PricesByItr!AC42<0,0,(PurchByItr!AC42*AC$1*PricesByItr!AC42)/1000) -> 4505.115267 | AD42: =IF(PricesByItr!AD42<0,0,(PurchByItr!AD42*AD$1*PricesByItr!AD42)/1000) -> 5811.359347 | AE42: 95366.11172
A43: =PurchByItr!A43 -> 2020 | B43: =PurchByItr!B43 -> 1947 | C43: =IF(PricesByItr!C43<0,0,(PurchByItr!C43*C$1*PricesByItr!C43)/1000) -> 28798.09597 | D43: =IF(PricesByItr!D43<0,0,(PurchByItr!D43*D$1*PricesByItr!D43)/1000) -> 0 | E43: =IF(PricesByItr!E43<0,0,(PurchByItr!E43*E$1*PricesByItr!E43)/1000) -> 0 | F43: =IF(PricesByItr!F43<0,0,(PurchByItr!F43*F$1*PricesByItr!F43)/1000) -> 0 | G43: =IF(PricesByItr!G43<0,0,(PurchByItr!G43*G$1*PricesByItr!G43)/1000) -> 0 | H43: =IF(PricesByItr!H43<0,0,(PurchByItr!H43*H$1*PricesByItr!H43)/1000) -> 0 | I43: =IF(PricesByItr!I43<0,0,(PurchByItr!I43*I$1*PricesByItr!I43)/1000) -> 0 | J43: =IF(PricesByItr!J43<0,0,(PurchByItr!J43*J$1*PricesByItr!J43)/1000) -> 0 | K43: =IF(PricesByItr!K43<0,0,(PurchByItr!K43*K$1*PricesByItr!K43)/1000) -> 0 | L43: =IF(PricesByItr!L43<0,0,(PurchByItr!L43*L$1*PricesByItr!L43)/1000) -> 0 | M43: =IF(PricesByItr!M43<0,0,(PurchByItr!M43*M$1*PricesByItr!M43)/1000) -> 0 | N43: =IF(PricesByItr!N43<0,0,(PurchByItr!N43*N$1*PricesByItr!N43)/1000) -> 6330.815737 | O43: 35128.91171 | Q43: =PurchByItr!Q43 -> 2021 | R43: =PurchByItr!R43 -> 1948 | S43: =IF(PricesByItr!S43<0,0,(PurchByItr!S43*S$1*PricesByItr!S43)/1000) -> 0 | T43: =IF(PricesByItr!T43<0,0,(PurchByItr!T43*T$1*PricesByItr!T43)/1000) -> 0 | U43: =IF(PricesByItr!U43<0,0,(PurchByItr!U43*U$1*PricesByItr!U43)/1000) -> 0 | V43: =IF(PricesByItr!V43<0,0,(PurchByItr!V43*V$1*PricesByItr!V43)/1000) -> 0 | W43: =IF(PricesByItr!W43<0,0,(PurchByItr!W43*W$1*PricesByItr!W43)/1000) -> 0 | X43: =IF(PricesByItr!X43<0,0,(PurchByItr!X43*X$1*PricesByItr!X43)/1000) -> 0 | Y43: =IF(PricesByItr!Y43<0,0,(PurchByItr!Y43*Y$1*PricesByItr!Y43)/1000) -> 0 | Z43: =IF(PricesByItr!Z43<0,0,(PurchByItr!Z43*Z$1*PricesByItr!Z43)/1000) -> 0 | AA43: =IF(PricesByItr!AA43<0,0,(PurchByItr!AA43*AA$1*PricesByItr!AA43)/1000) -> 0 | AB43: =IF(PricesByItr!AB43<0,0,(PurchByItr!AB43*AB$1*PricesByItr!AB43)/1000) -> 0 | AC43: =IF(PricesByItr!AC43<0,0,(PurchByItr!AC43*AC$1*PricesByItr!AC43)/1000) -> 0 | AD43: =IF(PricesByItr!AD43<0,0,(PurchByItr!AD43*AD$1*PricesByItr!AD43)/1000) -> 0 | AE43: 0
A44: =PurchByItr!A44 -> 2020 | B44: =PurchByItr!B44 -> 1997 | C44: =IF(PricesByItr!C44<0,0,(PurchByItr!C44*C$1*PricesByItr!C44)/1000) -> 21693.53225 | D44: =IF(PricesByItr!D44<0,0,(PurchByItr!D44*D$1*PricesByItr!D44)/1000) -> 0 | E44: =IF(PricesByItr!E44<0,0,(PurchByItr!E44*E$1*PricesByItr!E44)/1000) -> 0 | F44: =IF(PricesByItr!F44<0,0,(PurchByItr!F44*F$1*PricesByItr!F44)/1000) -> 0 | G44: =IF(PricesByItr!G44<0,0,(PurchByItr!G44*G$1*PricesByItr!G44)/1000) -> 0 | H44: =IF(PricesByItr!H44<0,0,(PurchByItr!H44*H$1*PricesByItr!H44)/1000) -> 0 | I44: =IF(PricesByItr!I44<0,0,(PurchByItr!I44*I$1*PricesByItr!I44)/1000) -> 0 | J44: =IF(PricesByItr!J44<0,0,(PurchByItr!J44*J$1*PricesByItr!J44)/1000) -> 0 | K44: =IF(PricesByItr!K44<0,0,(PurchByItr!K44*K$1*PricesByItr!K44)/1000) -> 0 | L44: =IF(PricesByItr!L44<0,0,(PurchByItr!L44*L$1*PricesByItr!L44)/1000) -> 0 | M44: =IF(PricesByItr!M44<0,0,(PurchByItr!M44*M$1*PricesByItr!M44)/1000) -> 0 | N44: =IF(PricesByItr!N44<0,0,(PurchByItr!N44*N$1*PricesByItr!N44)/1000) -> 0 | O44: 21693.53225 | Q44: =PurchByItr!Q44 -> 2021 | R44: =PurchByItr!R44 -> 1998 | S44: =IF(PricesByItr!S44<0,0,(PurchByItr!S44*S$1*PricesByItr!S44)/1000) -> 0 | T44: =IF(PricesByItr!T44<0,0,(PurchByItr!T44*T$1*PricesByItr!T44)/1000) -> 0 | U44: =IF(PricesByItr!U44<0,0,(PurchByItr!U44*U$1*PricesByItr!U44)/1000) -> 4026.607971 | V44: =IF(PricesByItr!V44<0,0,(PurchByItr!V44*V$1*PricesByItr!V44)/1000) -> 0 | W44: =IF(PricesByItr!W44<0,0,(PurchByItr!W44*W$1*PricesByItr!W44)/1000) -> 0 | X44: =IF(PricesByItr!X44<0,0,(PurchByItr!X44*X$1*PricesByItr!X44)/1000) -> 0 | Y44: =IF(PricesByItr!Y44<0,0,(PurchByItr!Y44*Y$1*PricesByItr!Y44)/1000) -> 18783.62634 | Z44: =IF(PricesByItr!Z44<0,0,(PurchByItr!Z44*Z$1*PricesByItr!Z44)/1000) -> 0 | AA44: =IF(PricesByItr!AA44<0,0,(PurchByItr!AA44*AA$1*PricesByItr!AA44)/1000) -> 0 | AB44: =IF(PricesByItr!AB44<0,0,(PurchByItr!AB44*AB$1*PricesByItr!AB44)/1000) -> 0 | AC44: =IF(PricesByItr!AC44<0,0,(PurchByItr!AC44*AC$1*PricesByItr!AC44)/1000) -> 0 | AD44: =IF(PricesByItr!AD44<0,0,(PurchByItr!AD44*AD$1*PricesByItr!AD44)/1000) -> 13673.32999 | AE44: 36483.5643
A45: =PurchByItr!A45 -> 2020 | B45: =PurchByItr!B45 -> 1974 | C45: =IF(PricesByItr!C45<0,0,(PurchByItr!C45*C$1*PricesByItr!C45)/1000) -> 14172.44753 | D45: =IF(PricesByItr!D45<0,0,(PurchByItr!D45*D$1*PricesByItr!D45)/1000) -> 12295.58745 | E45: =IF(PricesByItr!E45<0,0,(PurchByItr!E45*E$1*PricesByItr!E45)/1000) -> 0 | F45: =IF(PricesByItr!F45<0,0,(PurchByItr!F45*F$1*PricesByItr!F45)/1000) -> 0 | G45: =IF(PricesByItr!G45<0,0,(PurchByItr!G45*G$1*PricesByItr!G45)/1000) -> 0 | H45: =IF(PricesByItr!H45<0,0,(PurchByItr!H45*H$1*PricesByItr!H45)/1000) -> 0 | I45: =IF(PricesByItr!I45<0,0,(PurchByItr!I45*I$1*PricesByItr!I45)/1000) -> 0 | J45: =IF(PricesByItr!J45<0,0,(PurchByItr!J45*J$1*PricesByItr!J45)/1000) -> 0 | K45: =IF(PricesByItr!K45<0,0,(PurchByItr!K45*K$1*PricesByItr!K45)/1000) -> 0 | L45: =IF(PricesByItr!L45<0,0,(PurchByItr!L45*L$1*PricesByItr!L45)/1000) -> 0 | M45: =IF(PricesByItr!M45<0,0,(PurchByItr!M45*M$1*PricesByItr!M45)/1000) -> 0 | N45: =IF(PricesByItr!N45<0,0,(PurchByItr!N45*N$1*PricesByItr!N45)/1000) -> 0 | O45: 26468.03499 | Q45: =PurchByItr!Q45 -> 2021 | R45: =PurchByItr!R45 -> 1975 | S45: =IF(PricesByItr!S45<0,0,(PurchByItr!S45*S$1*PricesByItr!S45)/1000) -> 34188.1657 | T45: =IF(PricesByItr!T45<0,0,(PurchByItr!T45*T$1*PricesByItr!T45)/1000) -> 10384.61574 | U45: =IF(PricesByItr!U45<0,0,(PurchByItr!U45*U$1*PricesByItr!U45)/1000) -> 23412.75587 | V45: =IF(PricesByItr!V45<0,0,(PurchByItr!V45*V$1*PricesByItr!V45)/1000) -> 0 | W45: =IF(PricesByItr!W45<0,0,(PurchByItr!W45*W$1*PricesByItr!W45)/1000) -> 0 | X45: =IF(PricesByItr!X45<0,0,(PurchByItr!X45*X$1*PricesByItr!X45)/1000) -> 0 | Y45: =IF(PricesByItr!Y45<0,0,(PurchByItr!Y45*Y$1*PricesByItr!Y45)/1000) -> 8546.499672 | Z45: =IF(PricesByItr!Z45<0,0,(PurchByItr!Z45*Z$1*PricesByItr!Z45)/1000) -> 0 | AA45: =IF(PricesByItr!AA45<0,0,(PurchByItr!AA45*AA$1*PricesByItr!AA45)/1000) -> 0 | AB45: =IF(PricesByItr!AB45<0,0,(PurchByItr!AB45*AB$1*PricesByItr!AB45)/1000) -> 0 | AC45: =IF(PricesByItr!AC45<0,0,(PurchByItr!AC45*AC$1*PricesByItr!AC45)/1000) -> 0 | AD45: =IF(PricesByItr!AD45<0,0,(PurchByItr!AD45*AD$1*PricesByItr!AD45)/1000) -> 0 | AE45: 76532.03698
A46: =PurchByItr!A46 -> 2020 | B46: =PurchByItr!B46 -> 1977 | C46: =IF(PricesByItr!C46<0,0,(PurchByItr!C46*C$1*PricesByItr!C46)/1000) -> 15901.67587 | D46: =IF(PricesByItr!D46<0,0,(PurchByItr!D46*D$1*PricesByItr!D46)/1000) -> 7617.19314 | E46: =IF(PricesByItr!E46<0,0,(PurchByItr!E46*E$1*PricesByItr!E46)/1000) -> 32560.72899 | F46: =IF(PricesByItr!F46<0,0,(PurchByItr!F46*F$1*PricesByItr!F46)/1000) -> 17064.11479 | G46: =IF(PricesByItr!G46<0,0,(PurchByItr!G46*G$1*PricesByItr!G46)/1000) -> 21747.59405 | H46: =IF(PricesByItr!H46<0,0,(PurchByItr!H46*H$1*PricesByItr!H46)/1000) -> 33117.81718 | I46: =IF(PricesByItr!I46<0,0,(PurchByItr!I46*I$1*PricesByItr!I46)/1000) -> 49903.96023 | J46: =IF(PricesByItr!J46<0,0,(PurchByItr!J46*J$1*PricesByItr!J46)/1000) -> 36546.69475 | K46: =IF(PricesByItr!K46<0,0,(PurchByItr!K46*K$1*PricesByItr!K46)/1000) -> 18915.86281 | L46: =IF(PricesByItr!L46<0,0,(PurchByItr!L46*L$1*PricesByItr!L46)/1000) -> 10610.20312 | M46: =IF(PricesByItr!M46<0,0,(PurchByItr!M46*M$1*PricesByItr!M46)/1000) -> -618.5421383 | N46: =IF(PricesByItr!N46<0,0,(PurchByItr!N46*N$1*PricesByItr!N46)/1000) -> 20466.70788 | O46: 263834.0107 | Q46: =PurchByItr!Q46 -> 2021 | R46: =PurchByItr!R46 -> 1978 | S46: =IF(PricesByItr!S46<0,0,(PurchByItr!S46*S$1*PricesByItr!S46)/1000) -> 20063.97291 | T46: =IF(PricesByItr!T46<0,0,(PurchByItr!T46*T$1*PricesByItr!T46)/1000) -> -3366.967409 | U46: =IF(PricesByItr!U46<0,0,(PurchByItr!U46*U$1*PricesByItr!U46)/1000) -> 4085.536869 | V46: =IF(PricesByItr!V46<0,0,(PurchByItr!V46*V$1*PricesByItr!V46)/1000) -> 0 | W46: =IF(PricesByItr!W46<0,0,(PurchByItr!W46*W$1*PricesByItr!W46)/1000) -> 0 | X46: =IF(PricesByItr!X46<0,0,(PurchByItr!X46*X$1*PricesByItr!X46)/1000) -> 15983.85385 | Y46: =IF(PricesByItr!Y46<0,0,(PurchByItr!Y46*Y$1*PricesByItr!Y46)/1000) -> 0 | Z46: =IF(PricesByItr!Z46<0,0,(PurchByItr!Z46*Z$1*PricesByItr!Z46)/1000) -> 0 | AA46: =IF(PricesByItr!AA46<0,0,(PurchByItr!AA46*AA$1*PricesByItr!AA46)/1000) -> 0 | AB46: =IF(PricesByItr!AB46<0,0,(PurchByItr!AB46*AB$1*PricesByItr!AB46)/1000) -> 0 | AC46: =IF(PricesByItr!AC46<0,0,(PurchByItr!AC46*AC$1*PricesByItr!AC46)/1000) -> -222.1261252 | AD46: =IF(PricesByItr!AD46<0,0,(PurchByItr!AD46*AD$1*PricesByItr!AD46)/1000) -> 0 | AE46: 36544.27009
A47: =PurchByItr!A47 -> 2020 | B47: =PurchByItr!B47 -> 1955 | C47: =IF(PricesByItr!C47<0,0,(PurchByItr!C47*C$1*PricesByItr!C47)/1000) -> 19926.16569 | D47: =IF(PricesByItr!D47<0,0,(PurchByItr!D47*D$1*PricesByItr!D47)/1000) -> 0 | E47: =IF(PricesByItr!E47<0,0,(PurchByItr!E47*E$1*PricesByItr!E47)/1000) -> 0 | F47: =IF(PricesByItr!F47<0,0,(PurchByItr!F47*F$1*PricesByItr!F47)/1000) -> 15743.57385 | G47: =IF(PricesByItr!G47<0,0,(PurchByItr!G47*G$1*PricesByItr!G47)/1000) -> 3360.686382 | H47: =IF(PricesByItr!H47<0,0,(PurchByItr!H47*H$1*PricesByItr!H47)/1000) -> 32464.07612 | I47: =IF(PricesByItr!I47<0,0,(PurchByItr!I47*I$1*PricesByItr!I47)/1000) -> 24740.45442 | J47: =IF(PricesByItr!J47<0,0,(PurchByItr!J47*J$1*PricesByItr!J47)/1000) -> 0 | K47: =IF(PricesByItr!K47<0,0,(PurchByItr!K47*K$1*PricesByItr!K47)/1000) -> 0 | L47: =IF(PricesByItr!L47<0,0,(PurchByItr!L47*L$1*PricesByItr!L47)/1000) -> 0 | M47: =IF(PricesByItr!M47<0,0,(PurchByItr!M47*M$1*PricesByItr!M47)/1000) -> 0 | N47: =IF(PricesByItr!N47<0,0,(PurchByItr!N47*N$1*PricesByItr!N47)/1000) -> 6940.032893 | O47: 103174.9894 | Q47: =PurchByItr!Q47 -> 2021 | R47: =PurchByItr!R47 -> 1956 | S47: =IF(PricesByItr!S47<0,0,(PurchByItr!S47*S$1*PricesByItr!S47)/1000) -> 8321.832092 | T47: =IF(PricesByItr!T47<0,0,(PurchByItr!T47*T$1*PricesByItr!T47)/1000) -> 0 | U47: =IF(PricesByItr!U47<0,0,(PurchByItr!U47*U$1*PricesByItr!U47)/1000) -> 0 | V47: =IF(PricesByItr!V47<0,0,(PurchByItr!V47*V$1*PricesByItr!V47)/1000) -> 0 | W47: =IF(PricesByItr!W47<0,0,(PurchByItr!W47*W$1*PricesByItr!W47)/1000) -> 0 | X47: =IF(PricesByItr!X47<0,0,(PurchByItr!X47*X$1*PricesByItr!X47)/1000) -> 0 | Y47: =IF(PricesByItr!Y47<0,0,(PurchByItr!Y47*Y$1*PricesByItr!Y47)/1000) -> 0 | Z47: =IF(PricesByItr!Z47<0,0,(PurchByItr!Z47*Z$1*PricesByItr!Z47)/1000) -> 0 | AA47: =IF(PricesByItr!AA47<0,0,(PurchByItr!AA47*AA$1*PricesByItr!AA47)/1000) -> 0 | AB47: =IF(PricesByItr!AB47<0,0,(PurchByItr!AB47*AB$1*PricesByItr!AB47)/1000) -> 0 | AC47: =IF(PricesByItr!AC47<0,0,(PurchByItr!AC47*AC$1*PricesByItr!AC47)/1000) -> 0 | AD47: =IF(PricesByItr!AD47<0,0,(PurchByItr!AD47*AD$1*PricesByItr!AD47)/1000) -> 7680.858461 | AE47: 16002.69055
A48: =PurchByItr!A48 -> 2020 | B48: =PurchByItr!B48 -> 1972 | C48: =IF(PricesByItr!C48<0,0,(PurchByItr!C48*C$1*PricesByItr!C48)/1000) -> 12918.48118 | D48: =IF(PricesByItr!D48<0,0,(PurchByItr!D48*D$1*PricesByItr!D48)/1000) -> 445.4252445 | E48: =IF(PricesByItr!E48<0,0,(PurchByItr!E48*E$1*PricesByItr!E48)/1000) -> 0 | F48: =IF(PricesByItr!F48<0,0,(PurchByItr!F48*F$1*PricesByItr!F48)/1000) -> 0 | G48: =IF(PricesByItr!G48<0,0,(PurchByItr!G48*G$1*PricesByItr!G48)/1000) -> 0 | H48: =IF(PricesByItr!H48<0,0,(PurchByItr!H48*H$1*PricesByItr!H48)/1000) -> 0 | I48: =IF(PricesByItr!I48<0,0,(PurchByItr!I48*I$1*PricesByItr!I48)/1000) -> 0 | J48: =IF(PricesByItr!J48<0,0,(PurchByItr!J48*J$1*PricesByItr!J48)/1000) -> 0 | K48: =IF(PricesByItr!K48<0,0,(PurchByItr!K48*K$1*PricesByItr!K48)/1000) -> 0 | L48: =IF(PricesByItr!L48<0,0,(PurchByItr!L48*L$1*PricesByItr!L48)/1000) -> 0 | M48: =IF(PricesByItr!M48<0,0,(PurchByItr!M48*M$1*PricesByItr!M48)/1000) -> 0 | N48: =IF(PricesByItr!N48<0,0,(PurchByItr!N48*N$1*PricesByItr!N48)/1000) -> 0 | O48: 13363.90642 | Q48: =PurchByItr!Q48 -> 2021 | R48: =PurchByItr!R48 -> 1973 | S48: =IF(PricesByItr!S48<0,0,(PurchByItr!S48*S$1*PricesByItr!S48)/1000) -> 21073.04842 | T48: =IF(PricesByItr!T48<0,0,(PurchByItr!T48*T$1*PricesByItr!T48)/1000) -> 0 | U48: =IF(PricesByItr!U48<0,0,(PurchByItr!U48*U$1*PricesByItr!U48)/1000) -> 4664.375142 | V48: =IF(PricesByItr!V48<0,0,(PurchByItr!V48*V$1*PricesByItr!V48)/1000) -> 0 | W48: =IF(PricesByItr!W48<0,0,(PurchByItr!W48*W$1*PricesByItr!W48)/1000) -> 0 | X48: =IF(PricesByItr!X48<0,0,(PurchByItr!X48*X$1*PricesByItr!X48)/1000) -> 12753.09487 | Y48: =IF(PricesByItr!Y48<0,0,(PurchByItr!Y48*Y$1*PricesByItr!Y48)/1000) -> 76007.25684 | Z48: =IF(PricesByItr!Z48<0,0,(PurchByItr!Z48*Z$1*PricesByItr!Z48)/1000) -> 51014.96305 | AA48: =IF(PricesByItr!AA48<0,0,(PurchByItr!AA48*AA$1*PricesByItr!AA48)/1000) -> 8220.148982 | AB48: =IF(PricesByItr!AB48<0,0,(PurchByItr!AB48*AB$1*PricesByItr!AB48)/1000) -> 2034.775586 | AC48: =IF(PricesByItr!AC48<0,0,(PurchByItr!AC48*AC$1*PricesByItr!AC48)/1000) -> 3486.071389 | AD48: =IF(PricesByItr!AD48<0,0,(PurchByItr!AD48*AD$1*PricesByItr!AD48)/1000) -> -1770.456838 | AE48: 177483.2774
A49: =PurchByItr!A49 -> 2020 | B49: =PurchByItr!B49 -> 1949 | C49: =IF(PricesByItr!C49<0,0,(PurchByItr!C49*C$1*PricesByItr!C49)/1000) -> 10615.10884 | D49: =IF(PricesByItr!D49<0,0,(PurchByItr!D49*D$1*PricesByItr!D49)/1000) -> 2286.154621 | E49: =IF(PricesByItr!E49<0,0,(PurchByItr!E49*E$1*PricesByItr!E49)/1000) -> 9497.064681 | F49: =IF(PricesByItr!F49<0,0,(PurchByItr!F49*F$1*PricesByItr!F49)/1000) -> 0 | G49: =IF(PricesByItr!G49<0,0,(PurchByItr!G49*G$1*PricesByItr!G49)/1000) -> 0 | H49: =IF(PricesByItr!H49<0,0,(PurchByItr!H49*H$1*PricesByItr!H49)/1000) -> 0 | I49: =IF(PricesByItr!I49<0,0,(PurchByItr!I49*I$1*PricesByItr!I49)/1000) -> 0 | J49: =IF(PricesByItr!J49<0,0,(PurchByItr!J49*J$1*PricesByItr!J49)/1000) -> 0 | K49: =IF(PricesByItr!K49<0,0,(PurchByItr!K49*K$1*PricesByItr!K49)/1000) -> 0 | L49: =IF(PricesByItr!L49<0,0,(PurchByItr!L49*L$1*PricesByItr!L49)/1000) -> 344.1451147 | M49: =IF(PricesByItr!M49<0,0,(PurchByItr!M49*M$1*PricesByItr!M49)/1000) -> 5933.761783 | N49: =IF(PricesByItr!N49<0,0,(PurchByItr!N49*N$1*PricesByItr!N49)/1000) -> 4906.031113 | O49: 33582.26615 | Q49: =PurchByItr!Q49 -> 2021 | R49: =PurchByItr!R49 -> 1950 | S49: =IF(PricesByItr!S49<0,0,(PurchByItr!S49*S$1*PricesByItr!S49)/1000) -> 16763.58698 | T49: =IF(PricesByItr!T49<0,0,(PurchByItr!T49*T$1*PricesByItr!T49)/1000) -> 16737.06544 | U49: =IF(PricesByItr!U49<0,0,(PurchByItr!U49*U$1*PricesByItr!U49)/1000) -> 9100.519214 | V49: =IF(PricesByItr!V49<0,0,(PurchByItr!V49*V$1*PricesByItr!V49)/1000) -> 0 | W49: =IF(PricesByItr!W49<0,0,(PurchByItr!W49*W$1*PricesByItr!W49)/1000) -> 0 | X49: =IF(PricesByItr!X49<0,0,(PurchByItr!X49*X$1*PricesByItr!X49)/1000) -> 0 | Y49: =IF(PricesByItr!Y49<0,0,(PurchByItr!Y49*Y$1*PricesByItr!Y49)/1000) -> 350.9717429 | Z49: =IF(PricesByItr!Z49<0,0,(PurchByItr!Z49*Z$1*PricesByItr!Z49)/1000) -> 0 | AA49: =IF(PricesByItr!AA49<0,0,(PurchByItr!AA49*AA$1*PricesByItr!AA49)/1000) -> 0 | AB49: =IF(PricesByItr!AB49<0,0,(PurchByItr!AB49*AB$1*PricesByItr!AB49)/1000) -> 0 | AC49: =IF(PricesByItr!AC49<0,0,(PurchByItr!AC49*AC$1*PricesByItr!AC49)/1000) -> 0 | AD49: =IF(PricesByItr!AD49<0,0,(PurchByItr!AD49*AD$1*PricesByItr!AD49)/1000) -> 960.0316956 | AE49: 43912.17507
A50: =PurchByItr!A50 -> 2020 | B50: =PurchByItr!B50 -> 2003 | C50: =IF(PricesByItr!C50<0,0,(PurchByItr!C50*C$1*PricesByItr!C50)/1000) -> 17734.04992 | D50: =IF(PricesByItr!D50<0,0,(PurchByItr!D50*D$1*PricesByItr!D50)/1000) -> 1899.571771 | E50: =IF(PricesByItr!E50<0,0,(PurchByItr!E50*E$1*PricesByItr!E50)/1000) -> 32795.85454 | F50: =IF(PricesByItr!F50<0,0,(PurchByItr!F50*F$1*PricesByItr!F50)/1000) -> 45637.0538 | G50: =IF(PricesByItr!G50<0,0,(PurchByItr!G50*G$1*PricesByItr!G50)/1000) -> 7523.455728 | H50: =IF(PricesByItr!H50<0,0,(PurchByItr!H50*H$1*PricesByItr!H50)/1000) -> 0 | I50: =IF(PricesByItr!I50<0,0,(PurchByItr!I50*I$1*PricesByItr!I50)/1000) -> 142.075342 | J50: =IF(PricesByItr!J50<0,0,(PurchByItr!J50*J$1*PricesByItr!J50)/1000) -> 8278.362769 | K50: =IF(PricesByItr!K50<0,0,(PurchByItr!K50*K$1*PricesByItr!K50)/1000) -> 0 | L50: =IF(PricesByItr!L50<0,0,(PurchByItr!L50*L$1*PricesByItr!L50)/1000) -> -144.749648 | M50: =IF(PricesByItr!M50<0,0,(PurchByItr!M50*M$1*PricesByItr!M50)/1000) -> 9727.466945 | N50: =IF(PricesByItr!N50<0,0,(PurchByItr!N50*N$1*PricesByItr!N50)/1000) -> 14527.65916 | O50: 138120.8003 | Q50: =PurchByItr!Q50 -> 2021 | R50: =PurchByItr!R50 -> 2004 | S50: =IF(PricesByItr!S50<0,0,(PurchByItr!S50*S$1*PricesByItr!S50)/1000) -> 14444.43421 | T50: =IF(PricesByItr!T50<0,0,(PurchByItr!T50*T$1*PricesByItr!T50)/1000) -> -2433.94114 | U50: =IF(PricesByItr!U50<0,0,(PurchByItr!U50*U$1*PricesByItr!U50)/1000) -> 6881.340454 | V50: =IF(PricesByItr!V50<0,0,(PurchByItr!V50*V$1*PricesByItr!V50)/1000) -> 38648.75886 | W50: =IF(PricesByItr!W50<0,0,(PurchByItr!W50*W$1*PricesByItr!W50)/1000) -> 23299.36274 | X50: =IF(PricesByItr!X50<0,0,(PurchByItr!X50*X$1*PricesByItr!X50)/1000) -> 17502.34346 | Y50: =IF(PricesByItr!Y50<0,0,(PurchByItr!Y50*Y$1*PricesByItr!Y50)/1000) -> 21507.41781 | Z50: =IF(PricesByItr!Z50<0,0,(PurchByItr!Z50*Z$1*PricesByItr!Z50)/1000) -> 4842.904368 | AA50: =IF(PricesByItr!AA50<0,0,(PurchByItr!AA50*AA$1*PricesByItr!AA50)/1000) -> 0 | AB50: =IF(PricesByItr!AB50<0,0,(PurchByItr!AB50*AB$1*PricesByItr!AB50)/1000) -> 0 | AC50: =IF(PricesByItr!AC50<0,0,(PurchByItr!AC50*AC$1*PricesByItr!AC50)/1000) -> 4956.522367 | AD50: =IF(PricesByItr!AD50<0,0,(PurchByItr!AD50*AD$1*PricesByItr!AD50)/1000) -> 0 | AE50: 129649.1431
A51: =PurchByItr!A51 -> 2020 | B51: =PurchByItr!B51 -> 2000 | C51: =IF(PricesByItr!C51<0,0,(PurchByItr!C51*C$1*PricesByItr!C51)/1000) -> 16432.4542 | D51: =IF(PricesByItr!D51<0,0,(PurchByItr!D51*D$1*PricesByItr!D51)/1000) -> 0 | E51: =IF(PricesByItr!E51<0,0,(PurchByItr!E51*E$1*PricesByItr!E51)/1000) -> 0 | F51: =IF(PricesByItr!F51<0,0,(PurchByItr!F51*F$1*PricesByItr!F51)/1000) -> 0 | G51: =IF(PricesByItr!G51<0,0,(PurchByItr!G51*G$1*PricesByItr!G51)/1000) -> 0 | H51: =IF(PricesByItr!H51<0,0,(PurchByItr!H51*H$1*PricesByItr!H51)/1000) -> 0 | I51: =IF(PricesByItr!I51<0,0,(PurchByItr!I51*I$1*PricesByItr!I51)/1000) -> 0 | J51: =IF(PricesByItr!J51<0,0,(PurchByItr!J51*J$1*PricesByItr!J51)/1000) -> 0 | K51: =IF(PricesByItr!K51<0,0,(PurchByItr!K51*K$1*PricesByItr!K51)/1000) -> 3622.898659 | L51: =IF(PricesByItr!L51<0,0,(PurchByItr!L51*L$1*PricesByItr!L51)/1000) -> 0 | M51: =IF(PricesByItr!M51<0,0,(PurchByItr!M51*M$1*PricesByItr!M51)/1000) -> -312.4851606 | N51: =IF(PricesByItr!N51<0,0,(PurchByItr!N51*N$1*PricesByItr!N51)/1000) -> 18594.89178 | O51: 38337.75948 | Q51: =PurchByItr!Q51 -> 2021 | R51: =PurchByItr!R51 -> 2001 | S51: =IF(PricesByItr!S51<0,0,(PurchByItr!S51*S$1*PricesByItr!S51)/1000) -> 25448.80108 | T51: =IF(PricesByItr!T51<0,0,(PurchByItr!T51*T$1*PricesByItr!T51)/1000) -> 10511.33831 | U51: =IF(PricesByItr!U51<0,0,(PurchByItr!U51*U$1*PricesByItr!U51)/1000) -> 36481.0985 | V51: =IF(PricesByItr!V51<0,0,(PurchByItr!V51*V$1*PricesByItr!V51)/1000) -> 25908.44808 | W51: =IF(PricesByItr!W51<0,0,(PurchByItr!W51*W$1*PricesByItr!W51)/1000) -> 26933.57766 | X51: =IF(PricesByItr!X51<0,0,(PurchByItr!X51*X$1*PricesByItr!X51)/1000) -> 26357.62191 | Y51: =IF(PricesByItr!Y51<0,0,(PurchByItr!Y51*Y$1*PricesByItr!Y51)/1000) -> 54509.35955 | Z51: =IF(PricesByItr!Z51<0,0,(PurchByItr!Z51*Z$1*PricesByItr!Z51)/1000) -> 28822.39148 | AA51: =IF(PricesByItr!AA51<0,0,(PurchByItr!AA51*AA$1*PricesByItr!AA51)/1000) -> 23027.93037 | AB51: =IF(PricesByItr!AB51<0,0,(PurchByItr!AB51*AB$1*PricesByItr!AB51)/1000) -> 4611.440764 | AC51: =IF(PricesByItr!AC51<0,0,(PurchByItr!AC51*AC$1*PricesByItr!AC51)/1000) -> -1968.4471 | AD51: =IF(PricesByItr!AD51<0,0,(PurchByItr!AD51*AD$1*PricesByItr!AD51)/1000) -> 16990.49215 | AE51: 277634.0528
A52: =PurchByItr!A52 -> 2020 | B52: =PurchByItr!B52 -> 1991 | C52: =IF(PricesByItr!C52<0,0,(PurchByItr!C52*C$1*PricesByItr!C52)/1000) -> 17323.62194 | D52: =IF(PricesByItr!D52<0,0,(PurchByItr!D52*D$1*PricesByItr!D52)/1000) -> 0 | E52: =IF(PricesByItr!E52<0,0,(PurchByItr!E52*E$1*PricesByItr!E52)/1000) -> 0 | F52: =IF(PricesByItr!F52<0,0,(PurchByItr!F52*F$1*PricesByItr!F52)/1000) -> 0 | G52: =IF(PricesByItr!G52<0,0,(PurchByItr!G52*G$1*PricesByItr!G52)/1000) -> 0 | H52: =IF(PricesByItr!H52<0,0,(PurchByItr!H52*H$1*PricesByItr!H52)/1000) -> 0 | I52: =IF(PricesByItr!I52<0,0,(PurchByItr!I52*I$1*PricesByItr!I52)/1000) -> 0 | J52: =IF(PricesByItr!J52<0,0,(PurchByItr!J52*J$1*PricesByItr!J52)/1000) -> 0 | K52: =IF(PricesByItr!K52<0,0,(PurchByItr!K52*K$1*PricesByItr!K52)/1000) -> 0 | L52: =IF(PricesByItr!L52<0,0,(PurchByItr!L52*L$1*PricesByItr!L52)/1000) -> 0 | M52: =IF(PricesByItr!M52<0,0,(PurchByItr!M52*M$1*PricesByItr!M52)/1000) -> 0 | N52: =IF(PricesByItr!N52<0,0,(PurchByItr!N52*N$1*PricesByItr!N52)/1000) -> 13215.31518 | O52: 30538.93712 | Q52: =PurchByItr!Q52 -> 2021 | R52: =PurchByItr!R52 -> 1992 | S52: =IF(PricesByItr!S52<0,0,(PurchByItr!S52*S$1*PricesByItr!S52)/1000) -> 25705.47876 | T52: =IF(PricesByItr!T52<0,0,(PurchByItr!T52*T$1*PricesByItr!T52)/1000) -> 3303.878455 | U52: =IF(PricesByItr!U52<0,0,(PurchByItr!U52*U$1*PricesByItr!U52)/1000) -> 45298.52128 | V52: =IF(PricesByItr!V52<0,0,(PurchByItr!V52*V$1*PricesByItr!V52)/1000) -> 20387.39006 | W52: =IF(PricesByItr!W52<0,0,(PurchByItr!W52*W$1*PricesByItr!W52)/1000) -> 16570.5142 | X52: =IF(PricesByItr!X52<0,0,(PurchByItr!X52*X$1*PricesByItr!X52)/1000) -> 11755.31368 | Y52: =IF(PricesByItr!Y52<0,0,(PurchByItr!Y52*Y$1*PricesByItr!Y52)/1000) -> 32480.66179 | Z52: =IF(PricesByItr!Z52<0,0,(PurchByItr!Z52*Z$1*PricesByItr!Z52)/1000) -> -833.6635812 | AA52: =IF(PricesByItr!AA52<0,0,(PurchByItr!AA52*AA$1*PricesByItr!AA52)/1000) -> 12701.29052 | AB52: =IF(PricesByItr!AB52<0,0,(PurchByItr!AB52*AB$1*PricesByItr!AB52)/1000) -> 13549.19068 | AC52: =IF(PricesByItr!AC52<0,0,(PurchByItr!AC52*AC$1*PricesByItr!AC52)/1000) -> 3930.98327 | AD52: =IF(PricesByItr!AD52<0,0,(PurchByItr!AD52*AD$1*PricesByItr!AD52)/1000) -> 3232.420448 | AE52: 188081.9796
A53: =PurchByItr!A53 -> 2020 | B53: =PurchByItr!B53 -> 1981 | C53: =IF(PricesByItr!C53<0,0,(PurchByItr!C53*C$1*PricesByItr!C53)/1000) -> 23878.69447 | D53: =IF(PricesByItr!D53<0,0,(PurchByItr!D53*D$1*PricesByItr!D53)/1000) -> 0 | E53: =IF(PricesByItr!E53<0,0,(PurchByItr!E53*E$1*PricesByItr!E53)/1000) -> 0 | F53: =IF(PricesByItr!F53<0,0,(PurchByItr!F53*F$1*PricesByItr!F53)/1000) -> 0 | G53: =IF(PricesByItr!G53<0,0,(PurchByItr!G53*G$1*PricesByItr!G53)/1000) -> 0 | H53: =IF(PricesByItr!H53<0,0,(PurchByItr!H53*H$1*PricesByItr!H53)/1000) -> 7806.107109 | I53: =IF(PricesByItr!I53<0,0,(PurchByItr!I53*I$1*PricesByItr!I53)/1000) -> 31943.17835 | J53: =IF(PricesByItr!J53<0,0,(PurchByItr!J53*J$1*PricesByItr!J53)/1000) -> 0 | K53: =IF(PricesByItr!K53<0,0,(PurchByItr!K53*K$1*PricesByItr!K53)/1000) -> 0 | L53: =IF(PricesByItr!L53<0,0,(PurchByItr!L53*L$1*PricesByItr!L53)/1000) -> 0 | M53: =IF(PricesByItr!M53<0,0,(PurchByItr!M53*M$1*PricesByItr!M53)/1000) -> 0 | N53: =IF(PricesByItr!N53<0,0,(PurchByItr!N53*N$1*PricesByItr!N53)/1000) -> 2270.059835 | O53: 65898.03976 | Q53: =PurchByItr!Q53 -> 2021 | R53: =PurchByItr!R53 -> 1982 | S53: =IF(PricesByItr!S53<0,0,(PurchByItr!S53*S$1*PricesByItr!S53)/1000) -> 16706.3043 | T53: =IF(PricesByItr!T53<0,0,(PurchByItr!T53*T$1*PricesByItr!T53)/1000) -> 0 | U53: =IF(PricesByItr!U53<0,0,(PurchByItr!U53*U$1*PricesByItr!U53)/1000) -> 3636.99045 | V53: =IF(PricesByItr!V53<0,0,(PurchByItr!V53*V$1*PricesByItr!V53)/1000) -> 0 | W53: =IF(PricesByItr!W53<0,0,(PurchByItr!W53*W$1*PricesByItr!W53)/1000) -> 0 | X53: =IF(PricesByItr!X53<0,0,(PurchByItr!X53*X$1*PricesByItr!X53)/1000) -> 0 | Y53: =IF(PricesByItr!Y53<0,0,(PurchByItr!Y53*Y$1*PricesByItr!Y53)/1000) -> 0 | Z53: =IF(PricesByItr!Z53<0,0,(PurchByItr!Z53*Z$1*PricesByItr!Z53)/1000) -> 0 | AA53: =IF(PricesByItr!AA53<0,0,(PurchByItr!AA53*AA$1*PricesByItr!AA53)/1000) -> 0 | AB53: =IF(PricesByItr!AB53<0,0,(PurchByItr!AB53*AB$1*PricesByItr!AB53)/1000) -> 0 | AC53: =IF(PricesByItr!AC53<0,0,(PurchByItr!AC53*AC$1*PricesByItr!AC53)/1000) -> 0 | AD53: =IF(PricesByItr!AD53<0,0,(PurchByItr!AD53*AD$1*PricesByItr!AD53)/1000) -> 0 | AE53: 20343.29475
A54: =PurchByItr!A54 -> 2020 | B54: =PurchByItr!B54 -> 1980 | C54: =IF(PricesByItr!C54<0,0,(PurchByItr!C54*C$1*PricesByItr!C54)/1000) -> 19040.96666 | D54: =IF(PricesByItr!D54<0,0,(PurchByItr!D54*D$1*PricesByItr!D54)/1000) -> 17573.06545 | E54: =IF(PricesByItr!E54<0,0,(PurchByItr!E54*E$1*PricesByItr!E54)/1000) -> 52911.48536 | F54: =IF(PricesByItr!F54<0,0,(PurchByItr!F54*F$1*PricesByItr!F54)/1000) -> 26915.07437 | G54: =IF(PricesByItr!G54<0,0,(PurchByItr!G54*G$1*PricesByItr!G54)/1000) -> 17382.16095 | H54: =IF(PricesByItr!H54<0,0,(PurchByItr!H54*H$1*PricesByItr!H54)/1000) -> 39820.66228 | I54: =IF(PricesByItr!I54<0,0,(PurchByItr!I54*I$1*PricesByItr!I54)/1000) -> 1621.032203 | J54: =IF(PricesByItr!J54<0,0,(PurchByItr!J54*J$1*PricesByItr!J54)/1000) -> 0 | K54: =IF(PricesByItr!K54<0,0,(PurchByItr!K54*K$1*PricesByItr!K54)/1000) -> 0 | L54: =IF(PricesByItr!L54<0,0,(PurchByItr!L54*L$1*PricesByItr!L54)/1000) -> -6514.978328 | M54: =IF(PricesByItr!M54<0,0,(PurchByItr!M54*M$1*PricesByItr!M54)/1000) -> -1951.77702 | N54: =IF(PricesByItr!N54<0,0,(PurchByItr!N54*N$1*PricesByItr!N54)/1000) -> 12072.03517 | O54: 178869.7271 | Q54: =PurchByItr!Q54 -> 2021 | R54: =PurchByItr!R54 -> 1981 | S54: =IF(PricesByItr!S54<0,0,(PurchByItr!S54*S$1*PricesByItr!S54)/1000) -> 23168.46988 | T54: =IF(PricesByItr!T54<0,0,(PurchByItr!T54*T$1*PricesByItr!T54)/1000) -> 1403.284367 | U54: =IF(PricesByItr!U54<0,0,(PurchByItr!U54*U$1*PricesByItr!U54)/1000) -> 0 | V54: =IF(PricesByItr!V54<0,0,(PurchByItr!V54*V$1*PricesByItr!V54)/1000) -> 0 | W54: =IF(PricesByItr!W54<0,0,(PurchByItr!W54*W$1*PricesByItr!W54)/1000) -> 0 | X54: =IF(PricesByItr!X54<0,0,(PurchByItr!X54*X$1*PricesByItr!X54)/1000) -> 11511.85231 | Y54: =IF(PricesByItr!Y54<0,0,(PurchByItr!Y54*Y$1*PricesByItr!Y54)/1000) -> 53447.75192 | Z54: =IF(PricesByItr!Z54<0,0,(PurchByItr!Z54*Z$1*PricesByItr!Z54)/1000) -> 0 | AA54: =IF(PricesByItr!AA54<0,0,(PurchByItr!AA54*AA$1*PricesByItr!AA54)/1000) -> 0 | AB54: =IF(PricesByItr!AB54<0,0,(PurchByItr!AB54*AB$1*PricesByItr!AB54)/1000) -> 0 | AC54: =IF(PricesByItr!AC54<0,0,(PurchByItr!AC54*AC$1*PricesByItr!AC54)/1000) -> 0 | AD54: =IF(PricesByItr!AD54<0,0,(PurchByItr!AD54*AD$1*PricesByItr!AD54)/1000) -> 2192.825688 | AE54: 91724.18417
A55: =PurchByItr!A55 -> 2020 | B55: =PurchByItr!B55 -> 1956 | C55: =IF(PricesByItr!C55<0,0,(PurchByItr!C55*C$1*PricesByItr!C55)/1000) -> 9830.987915 | D55: =IF(PricesByItr!D55<0,0,(PurchByItr!D55*D$1*PricesByItr!D55)/1000) -> 0 | E55: =IF(PricesByItr!E55<0,0,(PurchByItr!E55*E$1*PricesByItr!E55)/1000) -> 0 | F55: =IF(PricesByItr!F55<0,0,(PurchByItr!F55*F$1*PricesByItr!F55)/1000) -> 0 | G55: =IF(PricesByItr!G55<0,0,(PurchByItr!G55*G$1*PricesByItr!G55)/1000) -> 0 | H55: =IF(PricesByItr!H55<0,0,(PurchByItr!H55*H$1*PricesByItr!H55)/1000) -> 0 | I55: =IF(PricesByItr!I55<0,0,(PurchByItr!I55*I$1*PricesByItr!I55)/1000) -> 0 | J55: =IF(PricesByItr!J55<0,0,(PurchByItr!J55*J$1*PricesByItr!J55)/1000) -> 0 | K55: =IF(PricesByItr!K55<0,0,(PurchByItr!K55*K$1*PricesByItr!K55)/1000) -> 0 | L55: =IF(PricesByItr!L55<0,0,(PurchByItr!L55*L$1*PricesByItr!L55)/1000) -> 0 | M55: =IF(PricesByItr!M55<0,0,(PurchByItr!M55*M$1*PricesByItr!M55)/1000) -> 0 | N55: =IF(PricesByItr!N55<0,0,(PurchByItr!N55*N$1*PricesByItr!N55)/1000) -> 4762.905994 | O55: 14593.89391 | Q55: =PurchByItr!Q55 -> 2021 | R55: =PurchByItr!R55 -> 1957 | S55: =IF(PricesByItr!S55<0,0,(PurchByItr!S55*S$1*PricesByItr!S55)/1000) -> 10716.42578 | T55: =IF(PricesByItr!T55<0,0,(PurchByItr!T55*T$1*PricesByItr!T55)/1000) -> 2973.494036 | U55: =IF(PricesByItr!U55<0,0,(PurchByItr!U55*U$1*PricesByItr!U55)/1000) -> 0 | V55: =IF(PricesByItr!V55<0,0,(PurchByItr!V55*V$1*PricesByItr!V55)/1000) -> 0 | W55: =IF(PricesByItr!W55<0,0,(PurchByItr!W55*W$1*PricesByItr!W55)/1000) -> 8328.255995 | X55: =IF(PricesByItr!X55<0,0,(PurchByItr!X55*X$1*PricesByItr!X55)/1000) -> 0 | Y55: =IF(PricesByItr!Y55<0,0,(PurchByItr!Y55*Y$1*PricesByItr!Y55)/1000) -> 0 | Z55: =IF(PricesByItr!Z55<0,0,(PurchByItr!Z55*Z$1*PricesByItr!Z55)/1000) -> 0 | AA55: =IF(PricesByItr!AA55<0,0,(PurchByItr!AA55*AA$1*PricesByItr!AA55)/1000) -> 0 | AB55: =IF(PricesByItr!AB55<0,0,(PurchByItr!AB55*AB$1*PricesByItr!AB55)/1000) -> 0 | AC55: =IF(PricesByItr!AC55<0,0,(PurchByItr!AC55*AC$1*PricesByItr!AC55)/1000) -> 0 | AD55: =IF(PricesByItr!AD55<0,0,(PurchByItr!AD55*AD$1*PricesByItr!AD55)/1000) -> 17522.35916 | AE55: 39540.53497
A56: =PurchByItr!A56 -> 2020 | B56: =PurchByItr!B56 -> 1942 | C56: =IF(PricesByItr!C56<0,0,(PurchByItr!C56*C$1*PricesByItr!C56)/1000) -> 12699.00573 | D56: =IF(PricesByItr!D56<0,0,(PurchByItr!D56*D$1*PricesByItr!D56)/1000) -> -1298.763143 | E56: =IF(PricesByItr!E56<0,0,(PurchByItr!E56*E$1*PricesByItr!E56)/1000) -> 0 | F56: =IF(PricesByItr!F56<0,0,(PurchByItr!F56*F$1*PricesByItr!F56)/1000) -> 0 | G56: =IF(PricesByItr!G56<0,0,(PurchByItr!G56*G$1*PricesByItr!G56)/1000) -> 805.2091913 | H56: =IF(PricesByItr!H56<0,0,(PurchByItr!H56*H$1*PricesByItr!H56)/1000) -> 51499.63875 | I56: =IF(PricesByItr!I56<0,0,(PurchByItr!I56*I$1*PricesByItr!I56)/1000) -> 14259.77639 | J56: =IF(PricesByItr!J56<0,0,(PurchByItr!J56*J$1*PricesByItr!J56)/1000) -> 9390.948265 | K56: =IF(PricesByItr!K56<0,0,(PurchByItr!K56*K$1*PricesByItr!K56)/1000) -> 0 | L56: =IF(PricesByItr!L56<0,0,(PurchByItr!L56*L$1*PricesByItr!L56)/1000) -> 0 | M56: =IF(PricesByItr!M56<0,0,(PurchByItr!M56*M$1*PricesByItr!M56)/1000) -> 0 | N56: =IF(PricesByItr!N56<0,0,(PurchByItr!N56*N$1*PricesByItr!N56)/1000) -> 0 | O56: 87355.81519 | Q56: =PurchByItr!Q56 -> 2021 | R56: =PurchByItr!R56 -> 1943 | S56: =IF(PricesByItr!S56<0,0,(PurchByItr!S56*S$1*PricesByItr!S56)/1000) -> 14943.5412 | T56: =IF(PricesByItr!T56<0,0,(PurchByItr!T56*T$1*PricesByItr!T56)/1000) -> 14093.65445 | U56: =IF(PricesByItr!U56<0,0,(PurchByItr!U56*U$1*PricesByItr!U56)/1000) -> 22017.71974 | V56: =IF(PricesByItr!V56<0,0,(PurchByItr!V56*V$1*PricesByItr!V56)/1000) -> 0 | W56: =IF(PricesByItr!W56<0,0,(PurchByItr!W56*W$1*PricesByItr!W56)/1000) -> 0 | X56: =IF(PricesByItr!X56<0,0,(PurchByItr!X56*X$1*PricesByItr!X56)/1000) -> 0 | Y56: =IF(PricesByItr!Y56<0,0,(PurchByItr!Y56*Y$1*PricesByItr!Y56)/1000) -> 0 | Z56: =IF(PricesByItr!Z56<0,0,(PurchByItr!Z56*Z$1*PricesByItr!Z56)/1000) -> 0 | AA56: =IF(PricesByItr!AA56<0,0,(PurchByItr!AA56*AA$1*PricesByItr!AA56)/1000) -> 0 | AB56: =IF(PricesByItr!AB56<0,0,(PurchByItr!AB56*AB$1*PricesByItr!AB56)/1000) -> 0 | AC56: =IF(PricesByItr!AC56<0,0,(PurchByItr!AC56*AC$1*PricesByItr!AC56)/1000) -> 0 | AD56: =IF(PricesByItr!AD56<0,0,(PurchByItr!AD56*AD$1*PricesByItr!AD56)/1000) -> 17849.69474 | AE56: 68904.61014
A57: =PurchByItr!A57 -> 2020 | B57: =PurchByItr!B57 -> 1937 | C57: =IF(PricesByItr!C57<0,0,(PurchByItr!C57*C$1*PricesByItr!C57)/1000) -> 23900.36135 | D57: =IF(PricesByItr!D57<0,0,(PurchByItr!D57*D$1*PricesByItr!D57)/1000) -> 1879.750102 | E57: =IF(PricesByItr!E57<0,0,(PurchByItr!E57*E$1*PricesByItr!E57)/1000) -> 38428.84309 | F57: =IF(PricesByItr!F57<0,0,(PurchByItr!F57*F$1*PricesByItr!F57)/1000) -> 65684.32579 | G57: =IF(PricesByItr!G57<0,0,(PurchByItr!G57*G$1*PricesByItr!G57)/1000) -> 51964.35409 | H57: =IF(PricesByItr!H57<0,0,(PurchByItr!H57*H$1*PricesByItr!H57)/1000) -> 36395.61765 | I57: =IF(PricesByItr!I57<0,0,(PurchByItr!I57*I$1*PricesByItr!I57)/1000) -> 42498.05192 | J57: =IF(PricesByItr!J57<0,0,(PurchByItr!J57*J$1*PricesByItr!J57)/1000) -> 34948.14116 | K57: =IF(PricesByItr!K57<0,0,(PurchByItr!K57*K$1*PricesByItr!K57)/1000) -> -5240.070635 | L57: =IF(PricesByItr!L57<0,0,(PurchByItr!L57*L$1*PricesByItr!L57)/1000) -> -3655.823908 | M57: =IF(PricesByItr!M57<0,0,(PurchByItr!M57*M$1*PricesByItr!M57)/1000) -> 1640.979273 | N57: =IF(PricesByItr!N57<0,0,(PurchByItr!N57*N$1*PricesByItr!N57)/1000) -> -5425.287197 | O57: 283019.2427 | Q57: =PurchByItr!Q57 -> 2021 | R57: =PurchByItr!R57 -> 1938 | S57: =IF(PricesByItr!S57<0,0,(PurchByItr!S57*S$1*PricesByItr!S57)/1000) -> 12605.94278 | T57: =IF(PricesByItr!T57<0,0,(PurchByItr!T57*T$1*PricesByItr!T57)/1000) -> 7898.193697 | U57: =IF(PricesByItr!U57<0,0,(PurchByItr!U57*U$1*PricesByItr!U57)/1000) -> 24098.20002 | V57: =IF(PricesByItr!V57<0,0,(PurchByItr!V57*V$1*PricesByItr!V57)/1000) -> 898.2536058 | W57: =IF(PricesByItr!W57<0,0,(PurchByItr!W57*W$1*PricesByItr!W57)/1000) -> 0 | X57: =IF(PricesByItr!X57<0,0,(PurchByItr!X57*X$1*PricesByItr!X57)/1000) -> 0 | Y57: =IF(PricesByItr!Y57<0,0,(PurchByItr!Y57*Y$1*PricesByItr!Y57)/1000) -> 0 | Z57: =IF(PricesByItr!Z57<0,0,(PurchByItr!Z57*Z$1*PricesByItr!Z57)/1000) -> 0 | AA57: =IF(PricesByItr!AA57<0,0,(PurchByItr!AA57*AA$1*PricesByItr!AA57)/1000) -> 0 | AB57: =IF(PricesByItr!AB57<0,0,(PurchByItr!AB57*AB$1*PricesByItr!AB57)/1000) -> 0 | AC57: =IF(PricesByItr!AC57<0,0,(PurchByItr!AC57*AC$1*PricesByItr!AC57)/1000) -> 335.2331444 | AD57: =IF(PricesByItr!AD57<0,0,(PurchByItr!AD57*AD$1*PricesByItr!AD57)/1000) -> 3736.443591 | AE57: 49572.26683
A58: =PurchByItr!A58 -> 2020 | B58: =PurchByItr!B58 -> 1975 | C58: =IF(PricesByItr!C58<0,0,(PurchByItr!C58*C$1*PricesByItr!C58)/1000) -> 22171.96542 | D58: =IF(PricesByItr!D58<0,0,(PurchByItr!D58*D$1*PricesByItr!D58)/1000) -> 11235.68976 | E58: =IF(PricesByItr!E58<0,0,(PurchByItr!E58*E$1*PricesByItr!E58)/1000) -> 24097.84478 | F58: =IF(PricesByItr!F58<0,0,(PurchByItr!F58*F$1*PricesByItr!F58)/1000) -> 0 | G58: =IF(PricesByItr!G58<0,0,(PurchByItr!G58*G$1*PricesByItr!G58)/1000) -> 0 | H58: =IF(PricesByItr!H58<0,0,(PurchByItr!H58*H$1*PricesByItr!H58)/1000) -> 0 | I58: =IF(PricesByItr!I58<0,0,(PurchByItr!I58*I$1*PricesByItr!I58)/1000) -> 4651.621836 | J58: =IF(PricesByItr!J58<0,0,(PurchByItr!J58*J$1*PricesByItr!J58)/1000) -> 0 | K58: =IF(PricesByItr!K58<0,0,(PurchByItr!K58*K$1*PricesByItr!K58)/1000) -> 0 | L58: =IF(PricesByItr!L58<0,0,(PurchByItr!L58*L$1*PricesByItr!L58)/1000) -> 0 | M58: =IF(PricesByItr!M58<0,0,(PurchByItr!M58*M$1*PricesByItr!M58)/1000) -> 0 | N58: =IF(PricesByItr!N58<0,0,(PurchByItr!N58*N$1*PricesByItr!N58)/1000) -> 0 | O58: 62157.1218 | Q58: =PurchByItr!Q58 -> 2021 | R58: =PurchByItr!R58 -> 1976 | S58: =IF(PricesByItr!S58<0,0,(PurchByItr!S58*S$1*PricesByItr!S58)/1000) -> 0 | T58: =IF(PricesByItr!T58<0,0,(PurchByItr!T58*T$1*PricesByItr!T58)/1000) -> 0 | U58: =IF(PricesByItr!U58<0,0,(PurchByItr!U58*U$1*PricesByItr!U58)/1000) -> 0 | V58: =IF(PricesByItr!V58<0,0,(PurchByItr!V58*V$1*PricesByItr!V58)/1000) -> 0 | W58: =IF(PricesByItr!W58<0,0,(PurchByItr!W58*W$1*PricesByItr!W58)/1000) -> 0 | X58: =IF(PricesByItr!X58<0,0,(PurchByItr!X58*X$1*PricesByItr!X58)/1000) -> 0 | Y58: =IF(PricesByItr!Y58<0,0,(PurchByItr!Y58*Y$1*PricesByItr!Y58)/1000) -> 0 | Z58: =IF(PricesByItr!Z58<0,0,(PurchByItr!Z58*Z$1*PricesByItr!Z58)/1000) -> 0 | AA58: =IF(PricesByItr!AA58<0,0,(PurchByItr!AA58*AA$1*PricesByItr!AA58)/1000) -> 0 | AB58: =IF(PricesByItr!AB58<0,0,(PurchByItr!AB58*AB$1*PricesByItr!AB58)/1000) -> 0 | AC58: =IF(PricesByItr!AC58<0,0,(PurchByItr!AC58*AC$1*PricesByItr!AC58)/1000) -> 0 | AD58: =IF(PricesByItr!AD58<0,0,(PurchByItr!AD58*AD$1*PricesByItr!AD58)/1000) -> 0 | AE58: 0
A59: =PurchByItr!A59 -> 2020 | B59: =PurchByItr!B59 -> 1961 | C59: =IF(PricesByItr!C59<0,0,(PurchByItr!C59*C$1*PricesByItr!C59)/1000) -> 25403.30889 | D59: =IF(PricesByItr!D59<0,0,(PurchByItr!D59*D$1*PricesByItr!D59)/1000) -> 0 | E59: =IF(PricesByItr!E59<0,0,(PurchByItr!E59*E$1*PricesByItr!E59)/1000) -> 7736.030069 | F59: =IF(PricesByItr!F59<0,0,(PurchByItr!F59*F$1*PricesByItr!F59)/1000) -> 0 | G59: =IF(PricesByItr!G59<0,0,(PurchByItr!G59*G$1*PricesByItr!G59)/1000) -> 0 | H59: =IF(PricesByItr!H59<0,0,(PurchByItr!H59*H$1*PricesByItr!H59)/1000) -> 0 | I59: =IF(PricesByItr!I59<0,0,(PurchByItr!I59*I$1*PricesByItr!I59)/1000) -> 0 | J59: =IF(PricesByItr!J59<0,0,(PurchByItr!J59*J$1*PricesByItr!J59)/1000) -> 0 | K59: =IF(PricesByItr!K59<0,0,(PurchByItr!K59*K$1*PricesByItr!K59)/1000) -> 0 | L59: =IF(PricesByItr!L59<0,0,(PurchByItr!L59*L$1*PricesByItr!L59)/1000) -> -2781.512368 | M59: =IF(PricesByItr!M59<0,0,(PurchByItr!M59*M$1*PricesByItr!M59)/1000) -> -1690.968874 | N59: =IF(PricesByItr!N59<0,0,(PurchByItr!N59*N$1*PricesByItr!N59)/1000) -> 10742.82137 | O59: 39409.67909 | Q59: =PurchByItr!Q59 -> 2021 | R59: =PurchByItr!R59 -> 1962 | S59: =IF(PricesByItr!S59<0,0,(PurchByItr!S59*S$1*PricesByItr!S59)/1000) -> 17672.33613 | T59: =IF(PricesByItr!T59<0,0,(PurchByItr!T59*T$1*PricesByItr!T59)/1000) -> 3420.03444 | U59: =IF(PricesByItr!U59<0,0,(PurchByItr!U59*U$1*PricesByItr!U59)/1000) -> 6316.286939 | V59: =IF(PricesByItr!V59<0,0,(PurchByItr!V59*V$1*PricesByItr!V59)/1000) -> 0 | W59: =IF(PricesByItr!W59<0,0,(PurchByItr!W59*W$1*PricesByItr!W59)/1000) -> 0 | X59: =IF(PricesByItr!X59<0,0,(PurchByItr!X59*X$1*PricesByItr!X59)/1000) -> 17965.38973 | Y59: =IF(PricesByItr!Y59<0,0,(PurchByItr!Y59*Y$1*PricesByItr!Y59)/1000) -> 0 | Z59: =IF(PricesByItr!Z59<0,0,(PurchByItr!Z59*Z$1*PricesByItr!Z59)/1000) -> 0 | AA59: =IF(PricesByItr!AA59<0,0,(PurchByItr!AA59*AA$1*PricesByItr!AA59)/1000) -> 0 | AB59: =IF(PricesByItr!AB59<0,0,(PurchByItr!AB59*AB$1*PricesByItr!AB59)/1000) -> 0 | AC59: =IF(PricesByItr!AC59<0,0,(PurchByItr!AC59*AC$1*PricesByItr!AC59)/1000) -> 0 | AD59: =IF(PricesByItr!AD59<0,0,(PurchByItr!AD59*AD$1*PricesByItr!AD59)/1000) -> 12181.80648 | AE59: 57555.85371
A60: =PurchByItr!A60 -> 2020 | B60: =PurchByItr!B60 -> 1998 | C60: =IF(PricesByItr!C60<0,0,(PurchByItr!C60*C$1*PricesByItr!C60)/1000) -> 0 | D60: =IF(PricesByItr!D60<0,0,(PurchByItr!D60*D$1*PricesByItr!D60)/1000) -> 0 | E60: =IF(PricesByItr!E60<0,0,(PurchByItr!E60*E$1*PricesByItr!E60)/1000) -> 3224.031424 | F60: =IF(PricesByItr!F60<0,0,(PurchByItr!F60*F$1*PricesByItr!F60)/1000) -> 0 | G60: =IF(PricesByItr!G60<0,0,(PurchByItr!G60*G$1*PricesByItr!G60)/1000) -> 0 | H60: =IF(PricesByItr!H60<0,0,(PurchByItr!H60*H$1*PricesByItr!H60)/1000) -> 0 | I60: =IF(PricesByItr!I60<0,0,(PurchByItr!I60*I$1*PricesByItr!I60)/1000) -> 16063.64884 | J60: =IF(PricesByItr!J60<0,0,(PurchByItr!J60*J$1*PricesByItr!J60)/1000) -> 0 | K60: =IF(PricesByItr!K60<0,0,(PurchByItr!K60*K$1*PricesByItr!K60)/1000) -> 0 | L60: =IF(PricesByItr!L60<0,0,(PurchByItr!L60*L$1*PricesByItr!L60)/1000) -> 0 | M60: =IF(PricesByItr!M60<0,0,(PurchByItr!M60*M$1*PricesByItr!M60)/1000) -> 0 | N60: =IF(PricesByItr!N60<0,0,(PurchByItr!N60*N$1*PricesByItr!N60)/1000) -> 18693.25126 | O60: 37980.93152 | Q60: =PurchByItr!Q60 -> 2021 | R60: =PurchByItr!R60 -> 1999 | S60: =IF(PricesByItr!S60<0,0,(PurchByItr!S60*S$1*PricesByItr!S60)/1000) -> 23213.09918 | T60: =IF(PricesByItr!T60<0,0,(PurchByItr!T60*T$1*PricesByItr!T60)/1000) -> 11836.8881 | U60: =IF(PricesByItr!U60<0,0,(PurchByItr!U60*U$1*PricesByItr!U60)/1000) -> 0 | V60: =IF(PricesByItr!V60<0,0,(PurchByItr!V60*V$1*PricesByItr!V60)/1000) -> 0 | W60: =IF(PricesByItr!W60<0,0,(PurchByItr!W60*W$1*PricesByItr!W60)/1000) -> 0 | X60: =IF(PricesByItr!X60<0,0,(PurchByItr!X60*X$1*PricesByItr!X60)/1000) -> 0 | Y60: =IF(PricesByItr!Y60<0,0,(PurchByItr!Y60*Y$1*PricesByItr!Y60)/1000) -> 0 | Z60: =IF(PricesByItr!Z60<0,0,(PurchByItr!Z60*Z$1*PricesByItr!Z60)/1000) -> 0 | AA60: =IF(PricesByItr!AA60<0,0,(PurchByItr!AA60*AA$1*PricesByItr!AA60)/1000) -> 0 | AB60: =IF(PricesByItr!AB60<0,0,(PurchByItr!AB60*AB$1*PricesByItr!AB60)/1000) -> 0 | AC60: =IF(PricesByItr!AC60<0,0,(PurchByItr!AC60*AC$1*PricesByItr!AC60)/1000) -> 0 | AD60: =IF(PricesByItr!AD60<0,0,(PurchByItr!AD60*AD$1*PricesByItr!AD60)/1000) -> 2310.694617 | AE60: 37360.6819
A61: =PurchByItr!A61 -> 2020 | B61: =PurchByItr!B61 -> 1959 | C61: =IF(PricesByItr!C61<0,0,(PurchByItr!C61*C$1*PricesByItr!C61)/1000) -> 19950.18805 | D61: =IF(PricesByItr!D61<0,0,(PurchByItr!D61*D$1*PricesByItr!D61)/1000) -> 0 | E61: =IF(PricesByItr!E61<0,0,(PurchByItr!E61*E$1*PricesByItr!E61)/1000) -> 0 | F61: =IF(PricesByItr!F61<0,0,(PurchByItr!F61*F$1*PricesByItr!F61)/1000) -> 0 | G61: =IF(PricesByItr!G61<0,0,(PurchByItr!G61*G$1*PricesByItr!G61)/1000) -> 0 | H61: =IF(PricesByItr!H61<0,0,(PurchByItr!H61*H$1*PricesByItr!H61)/1000) -> 0 | I61: =IF(PricesByItr!I61<0,0,(PurchByItr!I61*I$1*PricesByItr!I61)/1000) -> 0 | J61: =IF(PricesByItr!J61<0,0,(PurchByItr!J61*J$1*PricesByItr!J61)/1000) -> 0 | K61: =IF(PricesByItr!K61<0,0,(PurchByItr!K61*K$1*PricesByItr!K61)/1000) -> 0 | L61: =IF(PricesByItr!L61<0,0,(PurchByItr!L61*L$1*PricesByItr!L61)/1000) -> 0 | M61: =IF(PricesByItr!M61<0,0,(PurchByItr!M61*M$1*PricesByItr!M61)/1000) -> 0 | N61: =IF(PricesByItr!N61<0,0,(PurchByItr!N61*N$1*PricesByItr!N61)/1000) -> 0 | O61: 19950.18805 | Q61: =PurchByItr!Q61 -> 2021 | R61: =PurchByItr!R61 -> 1960 | S61: =IF(PricesByItr!S61<0,0,(PurchByItr!S61*S$1*PricesByItr!S61)/1000) -> 0 | T61: =IF(PricesByItr!T61<0,0,(PurchByItr!T61*T$1*PricesByItr!T61)/1000) -> 0 | U61: =IF(PricesByItr!U61<0,0,(PurchByItr!U61*U$1*PricesByItr!U61)/1000) -> 0 | V61: =IF(PricesByItr!V61<0,0,(PurchByItr!V61*V$1*PricesByItr!V61)/1000) -> 0 | W61: =IF(PricesByItr!W61<0,0,(PurchByItr!W61*W$1*PricesByItr!W61)/1000) -> 0 | X61: =IF(PricesByItr!X61<0,0,(PurchByItr!X61*X$1*PricesByItr!X61)/1000) -> 0 | Y61: =IF(PricesByItr!Y61<0,0,(PurchByItr!Y61*Y$1*PricesByItr!Y61)/1000) -> 0 | Z61: =IF(PricesByItr!Z61<0,0,(PurchByItr!Z61*Z$1*PricesByItr!Z61)/1000) -> 0 | AA61: =IF(PricesByItr!AA61<0,0,(PurchByItr!AA61*AA$1*PricesByItr!AA61)/1000) -> 0 | AB61: =IF(PricesByItr!AB61<0,0,(PurchByItr!AB61*AB$1*PricesByItr!AB61)/1000) -> -4692.02887 | AC61: =IF(PricesByItr!AC61<0,0,(PurchByItr!AC61*AC$1*PricesByItr!AC61)/1000) -> 0 | AD61: =IF(PricesByItr!AD61<0,0,(PurchByItr!AD61*AD$1*PricesByItr!AD61)/1000) -> 11026.36895 | AE61: 6334.340078
A62: =PurchByItr!A62 -> 2020 | B62: =PurchByItr!B62 -> 2005 | C62: =IF(PricesByItr!C62<0,0,(PurchByItr!C62*C$1*PricesByItr!C62)/1000) -> 12654.0663 | D62: =IF(PricesByItr!D62<0,0,(PurchByItr!D62*D$1*PricesByItr!D62)/1000) -> 0 | E62: =IF(PricesByItr!E62<0,0,(PurchByItr!E62*E$1*PricesByItr!E62)/1000) -> 0 | F62: =IF(PricesByItr!F62<0,0,(PurchByItr!F62*F$1*PricesByItr!F62)/1000) -> 0 | G62: =IF(PricesByItr!G62<0,0,(PurchByItr!G62*G$1*PricesByItr!G62)/1000) -> 0 | H62: =IF(PricesByItr!H62<0,0,(PurchByItr!H62*H$1*PricesByItr!H62)/1000) -> 3367.197979 | I62: =IF(PricesByItr!I62<0,0,(PurchByItr!I62*I$1*PricesByItr!I62)/1000) -> 20233.77058 | J62: =IF(PricesByItr!J62<0,0,(PurchByItr!J62*J$1*PricesByItr!J62)/1000) -> 400.6137798 | K62: =IF(PricesByItr!K62<0,0,(PurchByItr!K62*K$1*PricesByItr!K62)/1000) -> 0 | L62: =IF(PricesByItr!L62<0,0,(PurchByItr!L62*L$1*PricesByItr!L62)/1000) -> 0 | M62: =IF(PricesByItr!M62<0,0,(PurchByItr!M62*M$1*PricesByItr!M62)/1000) -> 0 | N62: =IF(PricesByItr!N62<0,0,(PurchByItr!N62*N$1*PricesByItr!N62)/1000) -> 10272.33525 | O62: 46927.98389 | Q62: =PurchByItr!Q62 -> 2021 | R62: =PurchByItr!R62 -> 2006 | S62: =IF(PricesByItr!S62<0,0,(PurchByItr!S62*S$1*PricesByItr!S62)/1000) -> 11402.3781 | T62: =IF(PricesByItr!T62<0,0,(PurchByItr!T62*T$1*PricesByItr!T62)/1000) -> 0 | U62: =IF(PricesByItr!U62<0,0,(PurchByItr!U62*U$1*PricesByItr!U62)/1000) -> 3006.719088 | V62: =IF(PricesByItr!V62<0,0,(PurchByItr!V62*V$1*PricesByItr!V62)/1000) -> 0 | W62: =IF(PricesByItr!W62<0,0,(PurchByItr!W62*W$1*PricesByItr!W62)/1000) -> 0 | X62: =IF(PricesByItr!X62<0,0,(PurchByItr!X62*X$1*PricesByItr!X62)/1000) -> 0 | Y62: =IF(PricesByItr!Y62<0,0,(PurchByItr!Y62*Y$1*PricesByItr!Y62)/1000) -> 0 | Z62: =IF(PricesByItr!Z62<0,0,(PurchByItr!Z62*Z$1*PricesByItr!Z62)/1000) -> 0 | AA62: =IF(PricesByItr!AA62<0,0,(PurchByItr!AA62*AA$1*PricesByItr!AA62)/1000) -> 0 | AB62: =IF(PricesByItr!AB62<0,0,(PurchByItr!AB62*AB$1*PricesByItr!AB62)/1000) -> 0 | AC62: =IF(PricesByItr!AC62<0,0,(PurchByItr!AC62*AC$1*PricesByItr!AC62)/1000) -> -3878.852928 | AD62: =IF(PricesByItr!AD62<0,0,(PurchByItr!AD62*AD$1*PricesByItr!AD62)/1000) -> 22334.36733 | AE62: 32864.61159
A63: =PurchByItr!A63 -> 2020 | B63: =PurchByItr!B63 -> 1965 | C63: =IF(PricesByItr!C63<0,0,(PurchByItr!C63*C$1*PricesByItr!C63)/1000) -> 2759.885617 | D63: =IF(PricesByItr!D63<0,0,(PurchByItr!D63*D$1*PricesByItr!D63)/1000) -> 0 | E63: =IF(PricesByItr!E63<0,0,(PurchByItr!E63*E$1*PricesByItr!E63)/1000) -> 0 | F63: =IF(PricesByItr!F63<0,0,(PurchByItr!F63*F$1*PricesByItr!F63)/1000) -> 0 | G63: =IF(PricesByItr!G63<0,0,(PurchByItr!G63*G$1*PricesByItr!G63)/1000) -> 0 | H63: =IF(PricesByItr!H63<0,0,(PurchByItr!H63*H$1*PricesByItr!H63)/1000) -> 0 | I63: =IF(PricesByItr!I63<0,0,(PurchByItr!I63*I$1*PricesByItr!I63)/1000) -> 0 | J63: =IF(PricesByItr!J63<0,0,(PurchByItr!J63*J$1*PricesByItr!J63)/1000) -> 0 | K63: =IF(PricesByItr!K63<0,0,(PurchByItr!K63*K$1*PricesByItr!K63)/1000) -> 0 | L63: =IF(PricesByItr!L63<0,0,(PurchByItr!L63*L$1*PricesByItr!L63)/1000) -> 0 | M63: =IF(PricesByItr!M63<0,0,(PurchByItr!M63*M$1*PricesByItr!M63)/1000) -> 0 | N63: =IF(PricesByItr!N63<0,0,(PurchByItr!N63*N$1*PricesByItr!N63)/1000) -> 11268.13838 | O63: 14028.024 | Q63: =PurchByItr!Q63 -> 2021 | R63: =PurchByItr!R63 -> 1966 | S63: =IF(PricesByItr!S63<0,0,(PurchByItr!S63*S$1*PricesByItr!S63)/1000) -> 13946.01171 | T63: =IF(PricesByItr!T63<0,0,(PurchByItr!T63*T$1*PricesByItr!T63)/1000) -> 285.755755 | U63: =IF(PricesByItr!U63<0,0,(PurchByItr!U63*U$1*PricesByItr!U63)/1000) -> 0 | V63: =IF(PricesByItr!V63<0,0,(PurchByItr!V63*V$1*PricesByItr!V63)/1000) -> 0 | W63: =IF(PricesByItr!W63<0,0,(PurchByItr!W63*W$1*PricesByItr!W63)/1000) -> 0 | X63: =IF(PricesByItr!X63<0,0,(PurchByItr!X63*X$1*PricesByItr!X63)/1000) -> 11923.77396 | Y63: =IF(PricesByItr!Y63<0,0,(PurchByItr!Y63*Y$1*PricesByItr!Y63)/1000) -> 127.3115782 | Z63: =IF(PricesByItr!Z63<0,0,(PurchByItr!Z63*Z$1*PricesByItr!Z63)/1000) -> 1360.204022 | AA63: =IF(PricesByItr!AA63<0,0,(PurchByItr!AA63*AA$1*PricesByItr!AA63)/1000) -> 0 | AB63: =IF(PricesByItr!AB63<0,0,(PurchByItr!AB63*AB$1*PricesByItr!AB63)/1000) -> 0 | AC63: =IF(PricesByItr!AC63<0,0,(PurchByItr!AC63*AC$1*PricesByItr!AC63)/1000) -> 0 | AD63: =IF(PricesByItr!AD63<0,0,(PurchByItr!AD63*AD$1*PricesByItr!AD63)/1000) -> 10659.73415 | AE63: 38302.79118
A64: =PurchByItr!A64 -> 2020 | B64: =PurchByItr!B64 -> 2006 | C64: =IF(PricesByItr!C64<0,0,(PurchByItr!C64*C$1*PricesByItr!C64)/1000) -> 16812.92121 | D64: =IF(PricesByItr!D64<0,0,(PurchByItr!D64*D$1*PricesByItr!D64)/1000) -> 0 | E64: =IF(PricesByItr!E64<0,0,(PurchByItr!E64*E$1*PricesByItr!E64)/1000) -> 3589.06911 | F64: =IF(PricesByItr!F64<0,0,(PurchByItr!F64*F$1*PricesByItr!F64)/1000) -> 0 | G64: =IF(PricesByItr!G64<0,0,(PurchByItr!G64*G$1*PricesByItr!G64)/1000) -> 0 | H64: =IF(PricesByItr!H64<0,0,(PurchByItr!H64*H$1*PricesByItr!H64)/1000) -> 0 | I64: =IF(PricesByItr!I64<0,0,(PurchByItr!I64*I$1*PricesByItr!I64)/1000) -> 0 | J64: =IF(PricesByItr!J64<0,0,(PurchByItr!J64*J$1*PricesByItr!J64)/1000) -> 0 | K64: =IF(PricesByItr!K64<0,0,(PurchByItr!K64*K$1*PricesByItr!K64)/1000) -> 0 | L64: =IF(PricesByItr!L64<0,0,(PurchByItr!L64*L$1*PricesByItr!L64)/1000) -> 0 | M64: =IF(PricesByItr!M64<0,0,(PurchByItr!M64*M$1*PricesByItr!M64)/1000) -> -2402.509201 | N64: =IF(PricesByItr!N64<0,0,(PurchByItr!N64*N$1*PricesByItr!N64)/1000) -> 33876.78943 | O64: 51876.27055 | Q64: =PurchByItr!Q64 -> 2021 | R64: =PurchByItr!R64 -> 2007 | S64: =IF(PricesByItr!S64<0,0,(PurchByItr!S64*S$1*PricesByItr!S64)/1000) -> 25058.76648 | T64: =IF(PricesByItr!T64<0,0,(PurchByItr!T64*T$1*PricesByItr!T64)/1000) -> -7256.599417 | U64: =IF(PricesByItr!U64<0,0,(PurchByItr!U64*U$1*PricesByItr!U64)/1000) -> 2895.257796 | V64: =IF(PricesByItr!V64<0,0,(PurchByItr!V64*V$1*PricesByItr!V64)/1000) -> 0 | W64: =IF(PricesByItr!W64<0,0,(PurchByItr!W64*W$1*PricesByItr!W64)/1000) -> 0 | X64: =IF(PricesByItr!X64<0,0,(PurchByItr!X64*X$1*PricesByItr!X64)/1000) -> 0 | Y64: =IF(PricesByItr!Y64<0,0,(PurchByItr!Y64*Y$1*PricesByItr!Y64)/1000) -> 1735.133054 | Z64: =IF(PricesByItr!Z64<0,0,(PurchByItr!Z64*Z$1*PricesByItr!Z64)/1000) -> 0 | AA64: =IF(PricesByItr!AA64<0,0,(PurchByItr!AA64*AA$1*PricesByItr!AA64)/1000) -> 0 | AB64: =IF(PricesByItr!AB64<0,0,(PurchByItr!AB64*AB$1*PricesByItr!AB64)/1000) -> -62.56509436 | AC64: =IF(PricesByItr!AC64<0,0,(PurchByItr!AC64*AC$1*PricesByItr!AC64)/1000) -> 1883.17124 | AD64: =IF(PricesByItr!AD64<0,0,(PurchByItr!AD64*AD$1*PricesByItr!AD64)/1000) -> 35101.20753 | AE64: 59354.37159
A65: =PurchByItr!A65 -> 2020 | B65: =PurchByItr!B65 -> 1960 | C65: =IF(PricesByItr!C65<0,0,(PurchByItr!C65*C$1*PricesByItr!C65)/1000) -> 0 | D65: =IF(PricesByItr!D65<0,0,(PurchByItr!D65*D$1*PricesByItr!D65)/1000) -> 0 | E65: =IF(PricesByItr!E65<0,0,(PurchByItr!E65*E$1*PricesByItr!E65)/1000) -> 0 | F65: =IF(PricesByItr!F65<0,0,(PurchByItr!F65*F$1*PricesByItr!F65)/1000) -> 0 | G65: =IF(PricesByItr!G65<0,0,(PurchByItr!G65*G$1*PricesByItr!G65)/1000) -> 0 | H65: =IF(PricesByItr!H65<0,0,(PurchByItr!H65*H$1*PricesByItr!H65)/1000) -> 0 | I65: =IF(PricesByItr!I65<0,0,(PurchByItr!I65*I$1*PricesByItr!I65)/1000) -> 0 | J65: =IF(PricesByItr!J65<0,0,(PurchByItr!J65*J$1*PricesByItr!J65)/1000) -> 0 | K65: =IF(PricesByItr!K65<0,0,(PurchByItr!K65*K$1*PricesByItr!K65)/1000) -> 0 | L65: =IF(PricesByItr!L65<0,0,(PurchByItr!L65*L$1*PricesByItr!L65)/1000) -> -4089.25627 | M65: =IF(PricesByItr!M65<0,0,(PurchByItr!M65*M$1*PricesByItr!M65)/1000) -> 0 | N65: =IF(PricesByItr!N65<0,0,(PurchByItr!N65*N$1*PricesByItr!N65)/1000) -> 9292.528288 | O65: 5203.272018 | Q65: =PurchByItr!Q65 -> 2021 | R65: =PurchByItr!R65 -> 1961 | S65: =IF(PricesByItr!S65<0,0,(PurchByItr!S65*S$1*PricesByItr!S65)/1000) -> 17239.67203 | T65: =IF(PricesByItr!T65<0,0,(PurchByItr!T65*T$1*PricesByItr!T65)/1000) -> 0 | U65: =IF(PricesByItr!U65<0,0,(PurchByItr!U65*U$1*PricesByItr!U65)/1000) -> 7862.35272 | V65: =IF(PricesByItr!V65<0,0,(PurchByItr!V65*V$1*PricesByItr!V65)/1000) -> 0 | W65: =IF(PricesByItr!W65<0,0,(PurchByItr!W65*W$1*PricesByItr!W65)/1000) -> 0 | X65: =IF(PricesByItr!X65<0,0,(PurchByItr!X65*X$1*PricesByItr!X65)/1000) -> 0 | Y65: =IF(PricesByItr!Y65<0,0,(PurchByItr!Y65*Y$1*PricesByItr!Y65)/1000) -> 52.38982359 | Z65: =IF(PricesByItr!Z65<0,0,(PurchByItr!Z65*Z$1*PricesByItr!Z65)/1000) -> 0 | AA65: =IF(PricesByItr!AA65<0,0,(PurchByItr!AA65*AA$1*PricesByItr!AA65)/1000) -> 0 | AB65: =IF(PricesByItr!AB65<0,0,(PurchByItr!AB65*AB$1*PricesByItr!AB65)/1000) -> 0 | AC65: =IF(PricesByItr!AC65<0,0,(PurchByItr!AC65*AC$1*PricesByItr!AC65)/1000) -> 0 | AD65: =IF(PricesByItr!AD65<0,0,(PurchByItr!AD65*AD$1*PricesByItr!AD65)/1000) -> 14841.17105 | AE65: 39995.58562
A66: =PurchByItr!A66 -> 2020 | B66: =PurchByItr!B66 -> 1993 | C66: =IF(PricesByItr!C66<0,0,(PurchByItr!C66*C$1*PricesByItr!C66)/1000) -> 13787.41647 | D66: =IF(PricesByItr!D66<0,0,(PurchByItr!D66*D$1*PricesByItr!D66)/1000) -> -860.114064 | E66: =IF(PricesByItr!E66<0,0,(PurchByItr!E66*E$1*PricesByItr!E66)/1000) -> 40353.93099 | F66: =IF(PricesByItr!F66<0,0,(PurchByItr!F66*F$1*PricesByItr!F66)/1000) -> 67427.32649 | G66: =IF(PricesByItr!G66<0,0,(PurchByItr!G66*G$1*PricesByItr!G66)/1000) -> 47118.34776 | H66: =IF(PricesByItr!H66<0,0,(PurchByItr!H66*H$1*PricesByItr!H66)/1000) -> 6550.637341 | I66: =IF(PricesByItr!I66<0,0,(PurchByItr!I66*I$1*PricesByItr!I66)/1000) -> 35349.58366 | J66: =IF(PricesByItr!J66<0,0,(PurchByItr!J66*J$1*PricesByItr!J66)/1000) -> 0 | K66: =IF(PricesByItr!K66<0,0,(PurchByItr!K66*K$1*PricesByItr!K66)/1000) -> 0 | L66: =IF(PricesByItr!L66<0,0,(PurchByItr!L66*L$1*PricesByItr!L66)/1000) -> 0 | M66: =IF(PricesByItr!M66<0,0,(PurchByItr!M66*M$1*PricesByItr!M66)/1000) -> -1127.705717 | N66: =IF(PricesByItr!N66<0,0,(PurchByItr!N66*N$1*PricesByItr!N66)/1000) -> 2506.937832 | O66: 211106.3608 | Q66: =PurchByItr!Q66 -> 2021 | R66: =PurchByItr!R66 -> 1994 | S66: =IF(PricesByItr!S66<0,0,(PurchByItr!S66*S$1*PricesByItr!S66)/1000) -> 22827.20977 | T66: =IF(PricesByItr!T66<0,0,(PurchByItr!T66*T$1*PricesByItr!T66)/1000) -> 5237.777633 | U66: =IF(PricesByItr!U66<0,0,(PurchByItr!U66*U$1*PricesByItr!U66)/1000) -> 27206.27565 | V66: =IF(PricesByItr!V66<0,0,(PurchByItr!V66*V$1*PricesByItr!V66)/1000) -> 59783.43772 | W66: =IF(PricesByItr!W66<0,0,(PurchByItr!W66*W$1*PricesByItr!W66)/1000) -> 11137.38875 | X66: =IF(PricesByItr!X66<0,0,(PurchByItr!X66*X$1*PricesByItr!X66)/1000) -> 33955.64375 | Y66: =IF(PricesByItr!Y66<0,0,(PurchByItr!Y66*Y$1*PricesByItr!Y66)/1000) -> 31908.75963 | Z66: =IF(PricesByItr!Z66<0,0,(PurchByItr!Z66*Z$1*PricesByItr!Z66)/1000) -> 11785.62982 | AA66: =IF(PricesByItr!AA66<0,0,(PurchByItr!AA66*AA$1*PricesByItr!AA66)/1000) -> 22338.10794 | AB66: =IF(PricesByItr!AB66<0,0,(PurchByItr!AB66*AB$1*PricesByItr!AB66)/1000) -> 0 | AC66: =IF(PricesByItr!AC66<0,0,(PurchByItr!AC66*AC$1*PricesByItr!AC66)/1000) -> 1804.351918 | AD66: =IF(PricesByItr!AD66<0,0,(PurchByItr!AD66*AD$1*PricesByItr!AD66)/1000) -> 3587.659399 | AE66: 231572.242
A67: =PurchByItr!A67 -> 2020 | B67: =PurchByItr!B67 -> 2007 | C67: =IF(PricesByItr!C67<0,0,(PurchByItr!C67*C$1*PricesByItr!C67)/1000) -> 19457.54345 | D67: =IF(PricesByItr!D67<0,0,(PurchByItr!D67*D$1*PricesByItr!D67)/1000) -> -6592.076024 | E67: =IF(PricesByItr!E67<0,0,(PurchByItr!E67*E$1*PricesByItr!E67)/1000) -> 2873.452661 | F67: =IF(PricesByItr!F67<0,0,(PurchByItr!F67*F$1*PricesByItr!F67)/1000) -> 0 | G67: =IF(PricesByItr!G67<0,0,(PurchByItr!G67*G$1*PricesByItr!G67)/1000) -> 0 | H67: =IF(PricesByItr!H67<0,0,(PurchByItr!H67*H$1*PricesByItr!H67)/1000) -> 0 | I67: =IF(PricesByItr!I67<0,0,(PurchByItr!I67*I$1*PricesByItr!I67)/1000) -> 2713.853108 | J67: =IF(PricesByItr!J67<0,0,(PurchByItr!J67*J$1*PricesByItr!J67)/1000) -> 0 | K67: =IF(PricesByItr!K67<0,0,(PurchByItr!K67*K$1*PricesByItr!K67)/1000) -> 0 | L67: =IF(PricesByItr!L67<0,0,(PurchByItr!L67*L$1*PricesByItr!L67)/1000) -> -82.19862097 | M67: =IF(PricesByItr!M67<0,0,(PurchByItr!M67*M$1*PricesByItr!M67)/1000) -> 3579.806158 | N67: =IF(PricesByItr!N67<0,0,(PurchByItr!N67*N$1*PricesByItr!N67)/1000) -> 39913.26446 | O67: 61863.64519 | Q67: =PurchByItr!Q67 -> 2021 | R67: =PurchByItr!R67 -> 2008 | S67: =IF(PricesByItr!S67<0,0,(PurchByItr!S67*S$1*PricesByItr!S67)/1000) -> 24066.73107 | T67: =IF(PricesByItr!T67<0,0,(PurchByItr!T67*T$1*PricesByItr!T67)/1000) -> -511.5204891 | U67: =IF(PricesByItr!U67<0,0,(PurchByItr!U67*U$1*PricesByItr!U67)/1000) -> 24033.90051 | V67: =IF(PricesByItr!V67<0,0,(PurchByItr!V67*V$1*PricesByItr!V67)/1000) -> 22874.2705 | W67: =IF(PricesByItr!W67<0,0,(PurchByItr!W67*W$1*PricesByItr!W67)/1000) -> 11337.48757 | X67: =IF(PricesByItr!X67<0,0,(PurchByItr!X67*X$1*PricesByItr!X67)/1000) -> 4878.135862 | Y67: =IF(PricesByItr!Y67<0,0,(PurchByItr!Y67*Y$1*PricesByItr!Y67)/1000) -> 20606.97367 | Z67: =IF(PricesByItr!Z67<0,0,(PurchByItr!Z67*Z$1*PricesByItr!Z67)/1000) -> 0 | AA67: =IF(PricesByItr!AA67<0,0,(PurchByItr!AA67*AA$1*PricesByItr!AA67)/1000) -> 0 | AB67: =IF(PricesByItr!AB67<0,0,(PurchByItr!AB67*AB$1*PricesByItr!AB67)/1000) -> 0 | AC67: =IF(PricesByItr!AC67<0,0,(PurchByItr!AC67*AC$1*PricesByItr!AC67)/1000) -> 0 | AD67: =IF(PricesByItr!AD67<0,0,(PurchByItr!AD67*AD$1*PricesByItr!AD67)/1000) -> 13354.42069 | AE67: 120640.3994
A68: =PurchByItr!A68 -> 2020 | B68: =PurchByItr!B68 -> 1982 | C68: =IF(PricesByItr!C68<0,0,(PurchByItr!C68*C$1*PricesByItr!C68)/1000) -> 23993.98094 | D68: =IF(PricesByItr!D68<0,0,(PurchByItr!D68*D$1*PricesByItr!D68)/1000) -> 0 | E68: =IF(PricesByItr!E68<0,0,(PurchByItr!E68*E$1*PricesByItr!E68)/1000) -> 4647.108532 | F68: =IF(PricesByItr!F68<0,0,(PurchByItr!F68*F$1*PricesByItr!F68)/1000) -> 0 | G68: =IF(PricesByItr!G68<0,0,(PurchByItr!G68*G$1*PricesByItr!G68)/1000) -> 0 | H68: =IF(PricesByItr!H68<0,0,(PurchByItr!H68*H$1*PricesByItr!H68)/1000) -> 0 | I68: =IF(PricesByItr!I68<0,0,(PurchByItr!I68*I$1*PricesByItr!I68)/1000) -> 0 | J68: =IF(PricesByItr!J68<0,0,(PurchByItr!J68*J$1*PricesByItr!J68)/1000) -> 0 | K68: =IF(PricesByItr!K68<0,0,(PurchByItr!K68*K$1*PricesByItr!K68)/1000) -> 0 | L68: =IF(PricesByItr!L68<0,0,(PurchByItr!L68*L$1*PricesByItr!L68)/1000) -> 0 | M68: =IF(PricesByItr!M68<0,0,(PurchByItr!M68*M$1*PricesByItr!M68)/1000) -> 0 | N68: =IF(PricesByItr!N68<0,0,(PurchByItr!N68*N$1*PricesByItr!N68)/1000) -> 0 | O68: =SUM(C68:N68) -> 28641.08947 | Q68: =PurchByItr!Q68 -> 2021 | R68: =PurchByItr!R68 -> 1983 | S68: =IF(PricesByItr!S68<0,0,(PurchByItr!S68*S$1*PricesByItr!S68)/1000) -> 2236.515965 | T68: =IF(PricesByItr!T68<0,0,(PurchByItr!T68*T$1*PricesByItr!T68)/1000) -> 0 | U68: =IF(PricesByItr!U68<0,0,(PurchByItr!U68*U$1*PricesByItr!U68)/1000) -> 0 | V68: =IF(PricesByItr!V68<0,0,(PurchByItr!V68*V$1*PricesByItr!V68)/1000) -> 0 | W68: =IF(PricesByItr!W68<0,0,(PurchByItr!W68*W$1*PricesByItr!W68)/1000) -> 0 | X68: =IF(PricesByItr!X68<0,0,(PurchByItr!X68*X$1*PricesByItr!X68)/1000) -> 0 | Y68: =IF(PricesByItr!Y68<0,0,(PurchByItr!Y68*Y$1*PricesByItr!Y68)/1000) -> 0 | Z68: =IF(PricesByItr!Z68<0,0,(PurchByItr!Z68*Z$1*PricesByItr!Z68)/1000) -> 0 | AA68: =IF(PricesByItr!AA68<0,0,(PurchByItr!AA68*AA$1*PricesByItr!AA68)/1000) -> 0 | AB68: =IF(PricesByItr!AB68<0,0,(PurchByItr!AB68*AB$1*PricesByItr!AB68)/1000) -> 0 | AC68: =IF(PricesByItr!AC68<0,0,(PurchByItr!AC68*AC$1*PricesByItr!AC68)/1000) -> 0 | AD68: =IF(PricesByItr!AD68<0,0,(PurchByItr!AD68*AD$1*PricesByItr!AD68)/1000) -> 0 | AE68: =SUM(S68:AD68) -> 2236.515965
A69: =PurchByItr!A69 -> 2020 | B69: =PurchByItr!B69 -> 1952 | C69: =IF(PricesByItr!C69<0,0,(PurchByItr!C69*C$1*PricesByItr!C69)/1000) -> 0 | D69: =IF(PricesByItr!D69<0,0,(PurchByItr!D69*D$1*PricesByItr!D69)/1000) -> 0 | E69: =IF(PricesByItr!E69<0,0,(PurchByItr!E69*E$1*PricesByItr!E69)/1000) -> 0 | F69: =IF(PricesByItr!F69<0,0,(PurchByItr!F69*F$1*PricesByItr!F69)/1000) -> 0 | G69: =IF(PricesByItr!G69<0,0,(PurchByItr!G69*G$1*PricesByItr!G69)/1000) -> 0 | H69: =IF(PricesByItr!H69<0,0,(PurchByItr!H69*H$1*PricesByItr!H69)/1000) -> 0 | I69: =IF(PricesByItr!I69<0,0,(PurchByItr!I69*I$1*PricesByItr!I69)/1000) -> 0 | J69: =IF(PricesByItr!J69<0,0,(PurchByItr!J69*J$1*PricesByItr!J69)/1000) -> 0 | K69: =IF(PricesByItr!K69<0,0,(PurchByItr!K69*K$1*PricesByItr!K69)/1000) -> 0 | L69: =IF(PricesByItr!L69<0,0,(PurchByItr!L69*L$1*PricesByItr!L69)/1000) -> 0 | M69: =IF(PricesByItr!M69<0,0,(PurchByItr!M69*M$1*PricesByItr!M69)/1000) -> 0 | N69: =IF(PricesByItr!N69<0,0,(PurchByItr!N69*N$1*PricesByItr!N69)/1000) -> 23958.44098 | O69: 23958.44098 | Q69: =PurchByItr!Q69 -> 2021 | R69: =PurchByItr!R69 -> 1953 | S69: =IF(PricesByItr!S69<0,0,(PurchByItr!S69*S$1*PricesByItr!S69)/1000) -> 24400.56404 | T69: =IF(PricesByItr!T69<0,0,(PurchByItr!T69*T$1*PricesByItr!T69)/1000) -> 11340.80728 | U69: =IF(PricesByItr!U69<0,0,(PurchByItr!U69*U$1*PricesByItr!U69)/1000) -> 46796.83864 | V69: =IF(PricesByItr!V69<0,0,(PurchByItr!V69*V$1*PricesByItr!V69)/1000) -> 34188.91286 | W69: =IF(PricesByItr!W69<0,0,(PurchByItr!W69*W$1*PricesByItr!W69)/1000) -> 0 | X69: =IF(PricesByItr!X69<0,0,(PurchByItr!X69*X$1*PricesByItr!X69)/1000) -> 2982.556145 | Y69: =IF(PricesByItr!Y69<0,0,(PurchByItr!Y69*Y$1*PricesByItr!Y69)/1000) -> 25034.72458 | Z69: =IF(PricesByItr!Z69<0,0,(PurchByItr!Z69*Z$1*PricesByItr!Z69)/1000) -> 0 | AA69: =IF(PricesByItr!AA69<0,0,(PurchByItr!AA69*AA$1*PricesByItr!AA69)/1000) -> 0 | AB69: =IF(PricesByItr!AB69<0,0,(PurchByItr!AB69*AB$1*PricesByItr!AB69)/1000) -> 0 | AC69: =IF(PricesByItr!AC69<0,0,(PurchByItr!AC69*AC$1*PricesByItr!AC69)/1000) -> 0 | AD69: =IF(PricesByItr!AD69<0,0,(PurchByItr!AD69*AD$1*PricesByItr!AD69)/1000) -> 6596.929425 | AE69: 151341.333
A70: =PurchByItr!A70 -> 2020 | B70: =PurchByItr!B70 -> 2008 | C70: =IF(PricesByItr!C70<0,0,(PurchByItr!C70*C$1*PricesByItr!C70)/1000) -> 21602.6166 | D70: =IF(PricesByItr!D70<0,0,(PurchByItr!D70*D$1*PricesByItr!D70)/1000) -> -582.6590816 | E70: =IF(PricesByItr!E70<0,0,(PurchByItr!E70*E$1*PricesByItr!E70)/1000) -> 18749.00483 | F70: =IF(PricesByItr!F70<0,0,(PurchByItr!F70*F$1*PricesByItr!F70)/1000) -> 23695.3289 | G70: =IF(PricesByItr!G70<0,0,(PurchByItr!G70*G$1*PricesByItr!G70)/1000) -> 11743.74208 | H70: =IF(PricesByItr!H70<0,0,(PurchByItr!H70*H$1*PricesByItr!H70)/1000) -> 4904.799464 | I70: =IF(PricesByItr!I70<0,0,(PurchByItr!I70*I$1*PricesByItr!I70)/1000) -> 17663.638 | J70: =IF(PricesByItr!J70<0,0,(PurchByItr!J70*J$1*PricesByItr!J70)/1000) -> 0 | K70: =IF(PricesByItr!K70<0,0,(PurchByItr!K70*K$1*PricesByItr!K70)/1000) -> 0 | L70: =IF(PricesByItr!L70<0,0,(PurchByItr!L70*L$1*PricesByItr!L70)/1000) -> 0 | M70: =IF(PricesByItr!M70<0,0,(PurchByItr!M70*M$1*PricesByItr!M70)/1000) -> 0 | N70: =IF(PricesByItr!N70<0,0,(PurchByItr!N70*N$1*PricesByItr!N70)/1000) -> 13010.60223 | O70: 110787.073 | Q70: =PurchByItr!Q70 -> 2021 | R70: =PurchByItr!R70 -> 1929 | S70: =IF(PricesByItr!S70<0,0,(PurchByItr!S70*S$1*PricesByItr!S70)/1000) -> 17012.09241 | T70: =IF(PricesByItr!T70<0,0,(PurchByItr!T70*T$1*PricesByItr!T70)/1000) -> 6202.230231 | U70: =IF(PricesByItr!U70<0,0,(PurchByItr!U70*U$1*PricesByItr!U70)/1000) -> 35700.24781 | V70: =IF(PricesByItr!V70<0,0,(PurchByItr!V70*V$1*PricesByItr!V70)/1000) -> 45137.12234 | W70: =IF(PricesByItr!W70<0,0,(PurchByItr!W70*W$1*PricesByItr!W70)/1000) -> 32699.03122 | X70: =IF(PricesByItr!X70<0,0,(PurchByItr!X70*X$1*PricesByItr!X70)/1000) -> 29159.94239 | Y70: =IF(PricesByItr!Y70<0,0,(PurchByItr!Y70*Y$1*PricesByItr!Y70)/1000) -> 34267.45244 | Z70: =IF(PricesByItr!Z70<0,0,(PurchByItr!Z70*Z$1*PricesByItr!Z70)/1000) -> 30764.2993 | AA70: =IF(PricesByItr!AA70<0,0,(PurchByItr!AA70*AA$1*PricesByItr!AA70)/1000) -> -335.0370674 | AB70: =IF(PricesByItr!AB70<0,0,(PurchByItr!AB70*AB$1*PricesByItr!AB70)/1000) -> 17745.50051 | AC70: =IF(PricesByItr!AC70<0,0,(PurchByItr!AC70*AC$1*PricesByItr!AC70)/1000) -> 3214.736917 | AD70: =IF(PricesByItr!AD70<0,0,(PurchByItr!AD70*AD$1*PricesByItr!AD70)/1000) -> -1804.655773 | AE70: 249762.9627
A71: =PurchByItr!A71 -> 2020 | B71: =PurchByItr!B71 -> 1938 | C71: =IF(PricesByItr!C71<0,0,(PurchByItr!C71*C$1*PricesByItr!C71)/1000) -> 14656.03149 | D71: =IF(PricesByItr!D71<0,0,(PurchByItr!D71*D$1*PricesByItr!D71)/1000) -> 7740.335412 | E71: =IF(PricesByItr!E71<0,0,(PurchByItr!E71*E$1*PricesByItr!E71)/1000) -> 21389.69999 | F71: =IF(PricesByItr!F71<0,0,(PurchByItr!F71*F$1*PricesByItr!F71)/1000) -> 970.3010632 | G71: =IF(PricesByItr!G71<0,0,(PurchByItr!G71*G$1*PricesByItr!G71)/1000) -> 0 | H71: =IF(PricesByItr!H71<0,0,(PurchByItr!H71*H$1*PricesByItr!H71)/1000) -> 0 | I71: =IF(PricesByItr!I71<0,0,(PurchByItr!I71*I$1*PricesByItr!I71)/1000) -> 0 | J71: =IF(PricesByItr!J71<0,0,(PurchByItr!J71*J$1*PricesByItr!J71)/1000) -> 0 | K71: =IF(PricesByItr!K71<0,0,(PurchByItr!K71*K$1*PricesByItr!K71)/1000) -> 0 | L71: =IF(PricesByItr!L71<0,0,(PurchByItr!L71*L$1*PricesByItr!L71)/1000) -> 0 | M71: =IF(PricesByItr!M71<0,0,(PurchByItr!M71*M$1*PricesByItr!M71)/1000) -> 315.5093392 | N71: =IF(PricesByItr!N71<0,0,(PurchByItr!N71*N$1*PricesByItr!N71)/1000) -> 3831.919497 | O71: 48903.79679 | Q71: =PurchByItr!Q71 -> 2021 | R71: =PurchByItr!R71 -> 1939 | S71: =IF(PricesByItr!S71<0,0,(PurchByItr!S71*S$1*PricesByItr!S71)/1000) -> 17459.66966 | T71: =IF(PricesByItr!T71<0,0,(PurchByItr!T71*T$1*PricesByItr!T71)/1000) -> 14408.20236 | U71: =IF(PricesByItr!U71<0,0,(PurchByItr!U71*U$1*PricesByItr!U71)/1000) -> 38997.05758 | V71: =IF(PricesByItr!V71<0,0,(PurchByItr!V71*V$1*PricesByItr!V71)/1000) -> 10616.56939 | W71: =IF(PricesByItr!W71<0,0,(PurchByItr!W71*W$1*PricesByItr!W71)/1000) -> 4543.007855 | X71: =IF(PricesByItr!X71<0,0,(PurchByItr!X71*X$1*PricesByItr!X71)/1000) -> 11552.14917 | Y71: =IF(PricesByItr!Y71<0,0,(PurchByItr!Y71*Y$1*PricesByItr!Y71)/1000) -> 1099.875834 | Z71: =IF(PricesByItr!Z71<0,0,(PurchByItr!Z71*Z$1*PricesByItr!Z71)/1000) -> 0 | AA71: =IF(PricesByItr!AA71<0,0,(PurchByItr!AA71*AA$1*PricesByItr!AA71)/1000) -> 4264.20487 | AB71: =IF(PricesByItr!AB71<0,0,(PurchByItr!AB71*AB$1*PricesByItr!AB71)/1000) -> -154.1475983 | AC71: =IF(PricesByItr!AC71<0,0,(PurchByItr!AC71*AC$1*PricesByItr!AC71)/1000) -> 3951.342503 | AD71: =IF(PricesByItr!AD71<0,0,(PurchByItr!AD71*AD$1*PricesByItr!AD71)/1000) -> 7031.892352 | AE71: 113769.824
A72: =PurchByItr!A72 -> 2020 | B72: =PurchByItr!B72 -> 1985 | C72: =IF(PricesByItr!C72<0,0,(PurchByItr!C72*C$1*PricesByItr!C72)/1000) -> 16573.73208 | D72: =IF(PricesByItr!D72<0,0,(PurchByItr!D72*D$1*PricesByItr!D72)/1000) -> 0 | E72: =IF(PricesByItr!E72<0,0,(PurchByItr!E72*E$1*PricesByItr!E72)/1000) -> 2969.343302 | F72: =IF(PricesByItr!F72<0,0,(PurchByItr!F72*F$1*PricesByItr!F72)/1000) -> 0 | G72: =IF(PricesByItr!G72<0,0,(PurchByItr!G72*G$1*PricesByItr!G72)/1000) -> 0 | H72: =IF(PricesByItr!H72<0,0,(PurchByItr!H72*H$1*PricesByItr!H72)/1000) -> 8574.11004 | I72: =IF(PricesByItr!I72<0,0,(PurchByItr!I72*I$1*PricesByItr!I72)/1000) -> 0 | J72: =IF(PricesByItr!J72<0,0,(PurchByItr!J72*J$1*PricesByItr!J72)/1000) -> 0 | K72: =IF(PricesByItr!K72<0,0,(PurchByItr!K72*K$1*PricesByItr!K72)/1000) -> -623.8447859 | L72: =IF(PricesByItr!L72<0,0,(PurchByItr!L72*L$1*PricesByItr!L72)/1000) -> 1003.809209 | M72: =IF(PricesByItr!M72<0,0,(PurchByItr!M72*M$1*PricesByItr!M72)/1000) -> 8756.170229 | N72: =IF(PricesByItr!N72<0,0,(PurchByItr!N72*N$1*PricesByItr!N72)/1000) -> 1611.067672 | O72: 38864.38774 | Q72: =PurchByItr!Q72 -> 2021 | R72: =PurchByItr!R72 -> 1986 | S72: =IF(PricesByItr!S72<0,0,(PurchByItr!S72*S$1*PricesByItr!S72)/1000) -> 3153.1584 | T72: =IF(PricesByItr!T72<0,0,(PurchByItr!T72*T$1*PricesByItr!T72)/1000) -> -4262.373743 | U72: =IF(PricesByItr!U72<0,0,(PurchByItr!U72*U$1*PricesByItr!U72)/1000) -> 102.7553704 | V72: =IF(PricesByItr!V72<0,0,(PurchByItr!V72*V$1*PricesByItr!V72)/1000) -> 0 | W72: =IF(PricesByItr!W72<0,0,(PurchByItr!W72*W$1*PricesByItr!W72)/1000) -> 0 | X72: =IF(PricesByItr!X72<0,0,(PurchByItr!X72*X$1*PricesByItr!X72)/1000) -> 0 | Y72: =IF(PricesByItr!Y72<0,0,(PurchByItr!Y72*Y$1*PricesByItr!Y72)/1000) -> 0 | Z72: =IF(PricesByItr!Z72<0,0,(PurchByItr!Z72*Z$1*PricesByItr!Z72)/1000) -> 0 | AA72: =IF(PricesByItr!AA72<0,0,(PurchByItr!AA72*AA$1*PricesByItr!AA72)/1000) -> 0 | AB72: =IF(PricesByItr!AB72<0,0,(PurchByItr!AB72*AB$1*PricesByItr!AB72)/1000) -> -118.0989767 | AC72: =IF(PricesByItr!AC72<0,0,(PurchByItr!AC72*AC$1*PricesByItr!AC72)/1000) -> -549.3978295 | AD72: =IF(PricesByItr!AD72<0,0,(PurchByItr!AD72*AD$1*PricesByItr!AD72)/1000) -> 19981.01569 | AE72: 18307.05891
A73: =PurchByItr!A73 -> 2020 | B73: =PurchByItr!B73 -> 1987 | C73: =IF(PricesByItr!C73<0,0,(PurchByItr!C73*C$1*PricesByItr!C73)/1000) -> 23557.56182 | D73: =IF(PricesByItr!D73<0,0,(PurchByItr!D73*D$1*PricesByItr!D73)/1000) -> -278.2112455 | E73: =IF(PricesByItr!E73<0,0,(PurchByItr!E73*E$1*PricesByItr!E73)/1000) -> 0 | F73: =IF(PricesByItr!F73<0,0,(PurchByItr!F73*F$1*PricesByItr!F73)/1000) -> 12143.39385 | G73: =IF(PricesByItr!G73<0,0,(PurchByItr!G73*G$1*PricesByItr!G73)/1000) -> 17541.89988 | H73: =IF(PricesByItr!H73<0,0,(PurchByItr!H73*H$1*PricesByItr!H73)/1000) -> -3772.027113 | I73: =IF(PricesByItr!I73<0,0,(PurchByItr!I73*I$1*PricesByItr!I73)/1000) -> 11633.25653 | J73: =IF(PricesByItr!J73<0,0,(PurchByItr!J73*J$1*PricesByItr!J73)/1000) -> 0 | K73: =IF(PricesByItr!K73<0,0,(PurchByItr!K73*K$1*PricesByItr!K73)/1000) -> 1375.979349 | L73: =IF(PricesByItr!L73<0,0,(PurchByItr!L73*L$1*PricesByItr!L73)/1000) -> 11237.87348 | M73: =IF(PricesByItr!M73<0,0,(PurchByItr!M73*M$1*PricesByItr!M73)/1000) -> 4736.55534 | N73: =IF(PricesByItr!N73<0,0,(PurchByItr!N73*N$1*PricesByItr!N73)/1000) -> 6212.642234 | O73: 84388.92412 | Q73: =PurchByItr!Q73 -> 2021 | R73: =PurchByItr!R73 -> 1988 | S73: =IF(PricesByItr!S73<0,0,(PurchByItr!S73*S$1*PricesByItr!S73)/1000) -> 21219.09665 | T73: =IF(PricesByItr!T73<0,0,(PurchByItr!T73*T$1*PricesByItr!T73)/1000) -> 19780.9427 | U73: =IF(PricesByItr!U73<0,0,(PurchByItr!U73*U$1*PricesByItr!U73)/1000) -> 56831.56501 | V73: =IF(PricesByItr!V73<0,0,(PurchByItr!V73*V$1*PricesByItr!V73)/1000) -> 91654.54157 | W73: =IF(PricesByItr!W73<0,0,(PurchByItr!W73*W$1*PricesByItr!W73)/1000) -> 21700.64173 | X73: =IF(PricesByItr!X73<0,0,(PurchByItr!X73*X$1*PricesByItr!X73)/1000) -> 32947.55694 | Y73: =IF(PricesByItr!Y73<0,0,(PurchByItr!Y73*Y$1*PricesByItr!Y73)/1000) -> 51244.2734 | Z73: =IF(PricesByItr!Z73<0,0,(PurchByItr!Z73*Z$1*PricesByItr!Z73)/1000) -> 29905.05557 | AA73: =IF(PricesByItr!AA73<0,0,(PurchByItr!AA73*AA$1*PricesByItr!AA73)/1000) -> 7496.037865 | AB73: =IF(PricesByItr!AB73<0,0,(PurchByItr!AB73*AB$1*PricesByItr!AB73)/1000) -> -2306.937799 | AC73: =IF(PricesByItr!AC73<0,0,(PurchByItr!AC73*AC$1*PricesByItr!AC73)/1000) -> 0 | AD73: =IF(PricesByItr!AD73<0,0,(PurchByItr!AD73*AD$1*PricesByItr!AD73)/1000) -> 1572.730484 | AE73: 332045.5041
A74: =PurchByItr!A74 -> 2020 | B74: =PurchByItr!B74 -> 1933 | C74: =IF(PricesByItr!C74<0,0,(PurchByItr!C74*C$1*PricesByItr!C74)/1000) -> 23114.33272 | D74: =IF(PricesByItr!D74<0,0,(PurchByItr!D74*D$1*PricesByItr!D74)/1000) -> 12479.10087 | E74: =IF(PricesByItr!E74<0,0,(PurchByItr!E74*E$1*PricesByItr!E74)/1000) -> 0 | F74: =IF(PricesByItr!F74<0,0,(PurchByItr!F74*F$1*PricesByItr!F74)/1000) -> 0 | G74: =IF(PricesByItr!G74<0,0,(PurchByItr!G74*G$1*PricesByItr!G74)/1000) -> 0 | H74: =IF(PricesByItr!H74<0,0,(PurchByItr!H74*H$1*PricesByItr!H74)/1000) -> 0 | I74: =IF(PricesByItr!I74<0,0,(PurchByItr!I74*I$1*PricesByItr!I74)/1000) -> 2166.303405 | J74: =IF(PricesByItr!J74<0,0,(PurchByItr!J74*J$1*PricesByItr!J74)/1000) -> 0 | K74: =IF(PricesByItr!K74<0,0,(PurchByItr!K74*K$1*PricesByItr!K74)/1000) -> 0 | L74: =IF(PricesByItr!L74<0,0,(PurchByItr!L74*L$1*PricesByItr!L74)/1000) -> 0 | M74: =IF(PricesByItr!M74<0,0,(PurchByItr!M74*M$1*PricesByItr!M74)/1000) -> 0 | N74: =IF(PricesByItr!N74<0,0,(PurchByItr!N74*N$1*PricesByItr!N74)/1000) -> 4113.762936 | O74: 41873.49992 | Q74: =PurchByItr!Q74 -> 2021 | R74: =PurchByItr!R74 -> 1934 | S74: =IF(PricesByItr!S74<0,0,(PurchByItr!S74*S$1*PricesByItr!S74)/1000) -> 9941.145127 | T74: =IF(PricesByItr!T74<0,0,(PurchByItr!T74*T$1*PricesByItr!T74)/1000) -> 0 | U74: =IF(PricesByItr!U74<0,0,(PurchByItr!U74*U$1*PricesByItr!U74)/1000) -> 0 | V74: =IF(PricesByItr!V74<0,0,(PurchByItr!V74*V$1*PricesByItr!V74)/1000) -> 0 | W74: =IF(PricesByItr!W74<0,0,(PurchByItr!W74*W$1*PricesByItr!W74)/1000) -> 0 | X74: =IF(PricesByItr!X74<0,0,(PurchByItr!X74*X$1*PricesByItr!X74)/1000) -> 0 | Y74: =IF(PricesByItr!Y74<0,0,(PurchByItr!Y74*Y$1*PricesByItr!Y74)/1000) -> 0 | Z74: =IF(PricesByItr!Z74<0,0,(PurchByItr!Z74*Z$1*PricesByItr!Z74)/1000) -> 0 | AA74: =IF(PricesByItr!AA74<0,0,(PurchByItr!AA74*AA$1*PricesByItr!AA74)/1000) -> -7234.375781 | AB74: =IF(PricesByItr!AB74<0,0,(PurchByItr!AB74*AB$1*PricesByItr!AB74)/1000) -> 4567.49335 | AC74: =IF(PricesByItr!AC74<0,0,(PurchByItr!AC74*AC$1*PricesByItr!AC74)/1000) -> 3498.69536 | AD74: =IF(PricesByItr!AD74<0,0,(PurchByItr!AD74*AD$1*PricesByItr!AD74)/1000) -> 9240.551034 | AE74: 20013.50909
A75: =PurchByItr!A75 -> 2020 | B75: =PurchByItr!B75 -> 1994 | C75: =IF(PricesByItr!C75<0,0,(PurchByItr!C75*C$1*PricesByItr!C75)/1000) -> 12848.70779 | D75: =IF(PricesByItr!D75<0,0,(PurchByItr!D75*D$1*PricesByItr!D75)/1000) -> 5283.647065 | E75: =IF(PricesByItr!E75<0,0,(PurchByItr!E75*E$1*PricesByItr!E75)/1000) -> 23309.60332 | F75: =IF(PricesByItr!F75<0,0,(PurchByItr!F75*F$1*PricesByItr!F75)/1000) -> 56639.50768 | G75: =IF(PricesByItr!G75<0,0,(PurchByItr!G75*G$1*PricesByItr!G75)/1000) -> 8644.689603 | H75: =IF(PricesByItr!H75<0,0,(PurchByItr!H75*H$1*PricesByItr!H75)/1000) -> 30955.14639 | I75: =IF(PricesByItr!I75<0,0,(PurchByItr!I75*I$1*PricesByItr!I75)/1000) -> 28022.66143 | J75: =IF(PricesByItr!J75<0,0,(PurchByItr!J75*J$1*PricesByItr!J75)/1000) -> 10049.28824 | K75: =IF(PricesByItr!K75<0,0,(PurchByItr!K75*K$1*PricesByItr!K75)/1000) -> 16269.40402 | L75: =IF(PricesByItr!L75<0,0,(PurchByItr!L75*L$1*PricesByItr!L75)/1000) -> 0 | M75: =IF(PricesByItr!M75<0,0,(PurchByItr!M75*M$1*PricesByItr!M75)/1000) -> 1606.366013 | N75: =IF(PricesByItr!N75<0,0,(PurchByItr!N75*N$1*PricesByItr!N75)/1000) -> 2816.771289 | O75: 196445.7928 | Q75: =PurchByItr!Q75 -> 2021 | R75: =PurchByItr!R75 -> 1995 | S75: =IF(PricesByItr!S75<0,0,(PurchByItr!S75*S$1*PricesByItr!S75)/1000) -> 14210.51806 | T75: =IF(PricesByItr!T75<0,0,(PurchByItr!T75*T$1*PricesByItr!T75)/1000) -> 20503.02858 | U75: =IF(PricesByItr!U75<0,0,(PurchByItr!U75*U$1*PricesByItr!U75)/1000) -> 24990.00305 | V75: =IF(PricesByItr!V75<0,0,(PurchByItr!V75*V$1*PricesByItr!V75)/1000) -> 18879.98087 | W75: =IF(PricesByItr!W75<0,0,(PurchByItr!W75*W$1*PricesByItr!W75)/1000) -> 0 | X75: =IF(PricesByItr!X75<0,0,(PurchByItr!X75*X$1*PricesByItr!X75)/1000) -> 0 | Y75: =IF(PricesByItr!Y75<0,0,(PurchByItr!Y75*Y$1*PricesByItr!Y75)/1000) -> 32671.98255 | Z75: =IF(PricesByItr!Z75<0,0,(PurchByItr!Z75*Z$1*PricesByItr!Z75)/1000) -> 0 | AA75: =IF(PricesByItr!AA75<0,0,(PurchByItr!AA75*AA$1*PricesByItr!AA75)/1000) -> 0 | AB75: =IF(PricesByItr!AB75<0,0,(PurchByItr!AB75*AB$1*PricesByItr!AB75)/1000) -> 0 | AC75: =IF(PricesByItr!AC75<0,0,(PurchByItr!AC75*AC$1*PricesByItr!AC75)/1000) -> 0 | AD75: =IF(PricesByItr!AD75<0,0,(PurchByItr!AD75*AD$1*PricesByItr!AD75)/1000) -> 2956.61338 | AE75: 114212.1265
A76: =PurchByItr!A76 -> 2020 | B76: =PurchByItr!B76 -> 1999 | C76: =IF(PricesByItr!C76<0,0,(PurchByItr!C76*C$1*PricesByItr!C76)/1000) -> 18435.51145 | D76: =IF(PricesByItr!D76<0,0,(PurchByItr!D76*D$1*PricesByItr!D76)/1000) -> 12053.29757 | E76: =IF(PricesByItr!E76<0,0,(PurchByItr!E76*E$1*PricesByItr!E76)/1000) -> 0 | F76: =IF(PricesByItr!F76<0,0,(PurchByItr!F76*F$1*PricesByItr!F76)/1000) -> 0 | G76: =IF(PricesByItr!G76<0,0,(PurchByItr!G76*G$1*PricesByItr!G76)/1000) -> 0 | H76: =IF(PricesByItr!H76<0,0,(PurchByItr!H76*H$1*PricesByItr!H76)/1000) -> 0 | I76: =IF(PricesByItr!I76<0,0,(PurchByItr!I76*I$1*PricesByItr!I76)/1000) -> 0 | J76: =IF(PricesByItr!J76<0,0,(PurchByItr!J76*J$1*PricesByItr!J76)/1000) -> 0 | K76: =IF(PricesByItr!K76<0,0,(PurchByItr!K76*K$1*PricesByItr!K76)/1000) -> 0 | L76: =IF(PricesByItr!L76<0,0,(PurchByItr!L76*L$1*PricesByItr!L76)/1000) -> 0 | M76: =IF(PricesByItr!M76<0,0,(PurchByItr!M76*M$1*PricesByItr!M76)/1000) -> 0 | N76: =IF(PricesByItr!N76<0,0,(PurchByItr!N76*N$1*PricesByItr!N76)/1000) -> 3066.874957 | O76: 33555.68397 | Q76: =PurchByItr!Q76 -> 2021 | R76: =PurchByItr!R76 -> 2000 | S76: =IF(PricesByItr!S76<0,0,(PurchByItr!S76*S$1*PricesByItr!S76)/1000) -> 19621.73457 | T76: =IF(PricesByItr!T76<0,0,(PurchByItr!T76*T$1*PricesByItr!T76)/1000) -> 0 | U76: =IF(PricesByItr!U76<0,0,(PurchByItr!U76*U$1*PricesByItr!U76)/1000) -> 0 | V76: =IF(PricesByItr!V76<0,0,(PurchByItr!V76*V$1*PricesByItr!V76)/1000) -> 0 | W76: =IF(PricesByItr!W76<0,0,(PurchByItr!W76*W$1*PricesByItr!W76)/1000) -> 0 | X76: =IF(PricesByItr!X76<0,0,(PurchByItr!X76*X$1*PricesByItr!X76)/1000) -> 0 | Y76: =IF(PricesByItr!Y76<0,0,(PurchByItr!Y76*Y$1*PricesByItr!Y76)/1000) -> 0 | Z76: =IF(PricesByItr!Z76<0,0,(PurchByItr!Z76*Z$1*PricesByItr!Z76)/1000) -> 0 | AA76: =IF(PricesByItr!AA76<0,0,(PurchByItr!AA76*AA$1*PricesByItr!AA76)/1000) -> 4047.316436 | AB76: =IF(PricesByItr!AB76<0,0,(PurchByItr!AB76*AB$1*PricesByItr!AB76)/1000) -> 0 | AC76: =IF(PricesByItr!AC76<0,0,(PurchByItr!AC76*AC$1*PricesByItr!AC76)/1000) -> -301.4621766 | AD76: =IF(PricesByItr!AD76<0,0,(PurchByItr!AD76*AD$1*PricesByItr!AD76)/1000) -> 17927.89237 | AE76: 41295.48119
A77: =PurchByItr!A77 -> 2020 | B77: =PurchByItr!B77 -> 1992 | C77: =IF(PricesByItr!C77<0,0,(PurchByItr!C77*C$1*PricesByItr!C77)/1000) -> 24047.88061 | D77: =IF(PricesByItr!D77<0,0,(PurchByItr!D77*D$1*PricesByItr!D77)/1000) -> 2718.991042 | E77: =IF(PricesByItr!E77<0,0,(PurchByItr!E77*E$1*PricesByItr!E77)/1000) -> 36967.55565 | F77: =IF(PricesByItr!F77<0,0,(PurchByItr!F77*F$1*PricesByItr!F77)/1000) -> 19244.58394 | G77: =IF(PricesByItr!G77<0,0,(PurchByItr!G77*G$1*PricesByItr!G77)/1000) -> 15629.46421 | H77: =IF(PricesByItr!H77<0,0,(PurchByItr!H77*H$1*PricesByItr!H77)/1000) -> 8084.162306 | I77: =IF(PricesByItr!I77<0,0,(PurchByItr!I77*I$1*PricesByItr!I77)/1000) -> 19466.3161 | J77: =IF(PricesByItr!J77<0,0,(PurchByItr!J77*J$1*PricesByItr!J77)/1000) -> -314.1328165 | K77: =IF(PricesByItr!K77<0,0,(PurchByItr!K77*K$1*PricesByItr!K77)/1000) -> 8730.219581 | L77: =IF(PricesByItr!L77<0,0,(PurchByItr!L77*L$1*PricesByItr!L77)/1000) -> 8242.340359 | M77: =IF(PricesByItr!M77<0,0,(PurchByItr!M77*M$1*PricesByItr!M77)/1000) -> 3911.00056 | N77: =IF(PricesByItr!N77<0,0,(PurchByItr!N77*N$1*PricesByItr!N77)/1000) -> 2554.296653 | O77: 149282.6782 | Q77: =PurchByItr!Q77 -> 2021 | R77: =PurchByItr!R77 -> 1993 | S77: =IF(PricesByItr!S77<0,0,(PurchByItr!S77*S$1*PricesByItr!S77)/1000) -> 11815.83069 | T77: =IF(PricesByItr!T77<0,0,(PurchByItr!T77*T$1*PricesByItr!T77)/1000) -> -890.4344018 | U77: =IF(PricesByItr!U77<0,0,(PurchByItr!U77*U$1*PricesByItr!U77)/1000) -> 36471.08808 | V77: =IF(PricesByItr!V77<0,0,(PurchByItr!V77*V$1*PricesByItr!V77)/1000) -> 68109.3016 | W77: =IF(PricesByItr!W77<0,0,(PurchByItr!W77*W$1*PricesByItr!W77)/1000) -> 37012.81312 | X77: =IF(PricesByItr!X77<0,0,(PurchByItr!X77*X$1*PricesByItr!X77)/1000) -> 5370.343761 | Y77: =IF(PricesByItr!Y77<0,0,(PurchByItr!Y77*Y$1*PricesByItr!Y77)/1000) -> 29066.26018 | Z77: =IF(PricesByItr!Z77<0,0,(PurchByItr!Z77*Z$1*PricesByItr!Z77)/1000) -> 0 | AA77: =IF(PricesByItr!AA77<0,0,(PurchByItr!AA77*AA$1*PricesByItr!AA77)/1000) -> 0 | AB77: =IF(PricesByItr!AB77<0,0,(PurchByItr!AB77*AB$1*PricesByItr!AB77)/1000) -> 0 | AC77: =IF(PricesByItr!AC77<0,0,(PurchByItr!AC77*AC$1*PricesByItr!AC77)/1000) -> -949.778374 | AD77: =IF(PricesByItr!AD77<0,0,(PurchByItr!AD77*AD$1*PricesByItr!AD77)/1000) -> 1986.904283 | AE77: 187992.3289
A78: =PurchByItr!A78 -> 2020 | B78: =PurchByItr!B78 -> 1935 | C78: =IF(PricesByItr!C78<0,0,(PurchByItr!C78*C$1*PricesByItr!C78)/1000) -> 17425.85843 | D78: =IF(PricesByItr!D78<0,0,(PurchByItr!D78*D$1*PricesByItr!D78)/1000) -> 24775.51734 | E78: =IF(PricesByItr!E78<0,0,(PurchByItr!E78*E$1*PricesByItr!E78)/1000) -> 21293.72604 | F78: =IF(PricesByItr!F78<0,0,(PurchByItr!F78*F$1*PricesByItr!F78)/1000) -> 0 | G78: =IF(PricesByItr!G78<0,0,(PurchByItr!G78*G$1*PricesByItr!G78)/1000) -> 0 | H78: =IF(PricesByItr!H78<0,0,(PurchByItr!H78*H$1*PricesByItr!H78)/1000) -> 0 | I78: =IF(PricesByItr!I78<0,0,(PurchByItr!I78*I$1*PricesByItr!I78)/1000) -> 13668.58751 | J78: =IF(PricesByItr!J78<0,0,(PurchByItr!J78*J$1*PricesByItr!J78)/1000) -> 0 | K78: =IF(PricesByItr!K78<0,0,(PurchByItr!K78*K$1*PricesByItr!K78)/1000) -> 1209.121052 | L78: =IF(PricesByItr!L78<0,0,(PurchByItr!L78*L$1*PricesByItr!L78)/1000) -> -218.8745991 | M78: =IF(PricesByItr!M78<0,0,(PurchByItr!M78*M$1*PricesByItr!M78)/1000) -> 0 | N78: =IF(PricesByItr!N78<0,0,(PurchByItr!N78*N$1*PricesByItr!N78)/1000) -> 9749.736569 | O78: 87903.67234 | Q78: =PurchByItr!Q78 -> 2021 | R78: =PurchByItr!R78 -> 1936 | S78: =IF(PricesByItr!S78<0,0,(PurchByItr!S78*S$1*PricesByItr!S78)/1000) -> 12320.09498 | T78: =IF(PricesByItr!T78<0,0,(PurchByItr!T78*T$1*PricesByItr!T78)/1000) -> 6206.924284 | U78: =IF(PricesByItr!U78<0,0,(PurchByItr!U78*U$1*PricesByItr!U78)/1000) -> 34592.1959 | V78: =IF(PricesByItr!V78<0,0,(PurchByItr!V78*V$1*PricesByItr!V78)/1000) -> 68494.44271 | W78: =IF(PricesByItr!W78<0,0,(PurchByItr!W78*W$1*PricesByItr!W78)/1000) -> 44710.06852 | X78: =IF(PricesByItr!X78<0,0,(PurchByItr!X78*X$1*PricesByItr!X78)/1000) -> 19483.85085 | Y78: =IF(PricesByItr!Y78<0,0,(PurchByItr!Y78*Y$1*PricesByItr!Y78)/1000) -> 4024.702919 | Z78: =IF(PricesByItr!Z78<0,0,(PurchByItr!Z78*Z$1*PricesByItr!Z78)/1000) -> 0 | AA78: =IF(PricesByItr!AA78<0,0,(PurchByItr!AA78*AA$1*PricesByItr!AA78)/1000) -> 0 | AB78: =IF(PricesByItr!AB78<0,0,(PurchByItr!AB78*AB$1*PricesByItr!AB78)/1000) -> 0 | AC78: =IF(PricesByItr!AC78<0,0,(PurchByItr!AC78*AC$1*PricesByItr!AC78)/1000) -> 2067.818208 | AD78: =IF(PricesByItr!AD78<0,0,(PurchByItr!AD78*AD$1*PricesByItr!AD78)/1000) -> 16802.42577 | AE78: 208702.5241
A79: =PurchByItr!A79 -> 2020 | B79: =PurchByItr!B79 -> 1932 | C79: =IF(PricesByItr!C79<0,0,(PurchByItr!C79*C$1*PricesByItr!C79)/1000) -> 12909.69598 | D79: =IF(PricesByItr!D79<0,0,(PurchByItr!D79*D$1*PricesByItr!D79)/1000) -> 6466.944453 | E79: =IF(PricesByItr!E79<0,0,(PurchByItr!E79*E$1*PricesByItr!E79)/1000) -> 32772.60626 | F79: =IF(PricesByItr!F79<0,0,(PurchByItr!F79*F$1*PricesByItr!F79)/1000) -> 46938.62278 | G79: =IF(PricesByItr!G79<0,0,(PurchByItr!G79*G$1*PricesByItr!G79)/1000) -> 51964.59182 | H79: =IF(PricesByItr!H79<0,0,(PurchByItr!H79*H$1*PricesByItr!H79)/1000) -> 3120.691122 | I79: =IF(PricesByItr!I79<0,0,(PurchByItr!I79*I$1*PricesByItr!I79)/1000) -> 0 | J79: =IF(PricesByItr!J79<0,0,(PurchByItr!J79*J$1*PricesByItr!J79)/1000) -> 0 | K79: =IF(PricesByItr!K79<0,0,(PurchByItr!K79*K$1*PricesByItr!K79)/1000) -> 0 | L79: =IF(PricesByItr!L79<0,0,(PurchByItr!L79*L$1*PricesByItr!L79)/1000) -> 0 | M79: =IF(PricesByItr!M79<0,0,(PurchByItr!M79*M$1*PricesByItr!M79)/1000) -> 0 | N79: =IF(PricesByItr!N79<0,0,(PurchByItr!N79*N$1*PricesByItr!N79)/1000) -> 4237.15546 | O79: 158410.3079 | Q79: =PurchByItr!Q79 -> 2021 | R79: =PurchByItr!R79 -> 1933 | S79: =IF(PricesByItr!S79<0,0,(PurchByItr!S79*S$1*PricesByItr!S79)/1000) -> 22125.82292 | T79: =IF(PricesByItr!T79<0,0,(PurchByItr!T79*T$1*PricesByItr!T79)/1000) -> 12538.59591 | U79: =IF(PricesByItr!U79<0,0,(PurchByItr!U79*U$1*PricesByItr!U79)/1000) -> 0 | V79: =IF(PricesByItr!V79<0,0,(PurchByItr!V79*V$1*PricesByItr!V79)/1000) -> 0 | W79: =IF(PricesByItr!W79<0,0,(PurchByItr!W79*W$1*PricesByItr!W79)/1000) -> 0 | X79: =IF(PricesByItr!X79<0,0,(PurchByItr!X79*X$1*PricesByItr!X79)/1000) -> 0 | Y79: =IF(PricesByItr!Y79<0,0,(PurchByItr!Y79*Y$1*PricesByItr!Y79)/1000) -> 2945.501344 | Z79: =IF(PricesByItr!Z79<0,0,(PurchByItr!Z79*Z$1*PricesByItr!Z79)/1000) -> 0 | AA79: =IF(PricesByItr!AA79<0,0,(PurchByItr!AA79*AA$1*PricesByItr!AA79)/1000) -> 0 | AB79: =IF(PricesByItr!AB79<0,0,(PurchByItr!AB79*AB$1*PricesByItr!AB79)/1000) -> 0 | AC79: =IF(PricesByItr!AC79<0,0,(PurchByItr!AC79*AC$1*PricesByItr!AC79)/1000) -> 0 | AD79: =IF(PricesByItr!AD79<0,0,(PurchByItr!AD79*AD$1*PricesByItr!AD79)/1000) -> 2604.155522 | AE79: 40214.0757
A80: =PurchByItr!A80 -> 2020 | B80: =PurchByItr!B80 -> 1948 | C80: =IF(PricesByItr!C80<0,0,(PurchByItr!C80*C$1*PricesByItr!C80)/1000) -> 0 | D80: =IF(PricesByItr!D80<0,0,(PurchByItr!D80*D$1*PricesByItr!D80)/1000) -> 0 | E80: =IF(PricesByItr!E80<0,0,(PurchByItr!E80*E$1*PricesByItr!E80)/1000) -> 0 | F80: =IF(PricesByItr!F80<0,0,(PurchByItr!F80*F$1*PricesByItr!F80)/1000) -> 0 | G80: =IF(PricesByItr!G80<0,0,(PurchByItr!G80*G$1*PricesByItr!G80)/1000) -> 0 | H80: =IF(PricesByItr!H80<0,0,(PurchByItr!H80*H$1*PricesByItr!H80)/1000) -> 0 | I80: =IF(PricesByItr!I80<0,0,(PurchByItr!I80*I$1*PricesByItr!I80)/1000) -> 0 | J80: =IF(PricesByItr!J80<0,0,(PurchByItr!J80*J$1*PricesByItr!J80)/1000) -> 0 | K80: =IF(PricesByItr!K80<0,0,(PurchByItr!K80*K$1*PricesByItr!K80)/1000) -> 0 | L80: =IF(PricesByItr!L80<0,0,(PurchByItr!L80*L$1*PricesByItr!L80)/1000) -> 0 | M80: =IF(PricesByItr!M80<0,0,(PurchByItr!M80*M$1*PricesByItr!M80)/1000) -> 0 | N80: =IF(PricesByItr!N80<0,0,(PurchByItr!N80*N$1*PricesByItr!N80)/1000) -> 0 | O80: 0 | Q80: =PurchByItr!Q80 -> 2021 | R80: =PurchByItr!R80 -> 1949 | S80: =IF(PricesByItr!S80<0,0,(PurchByItr!S80*S$1*PricesByItr!S80)/1000) -> 17813.93382 | T80: =IF(PricesByItr!T80<0,0,(PurchByItr!T80*T$1*PricesByItr!T80)/1000) -> 2422.476337 | U80: =IF(PricesByItr!U80<0,0,(PurchByItr!U80*U$1*PricesByItr!U80)/1000) -> 12261.52647 | V80: =IF(PricesByItr!V80<0,0,(PurchByItr!V80*V$1*PricesByItr!V80)/1000) -> 0 | W80: =IF(PricesByItr!W80<0,0,(PurchByItr!W80*W$1*PricesByItr!W80)/1000) -> 0 | X80: =IF(PricesByItr!X80<0,0,(PurchByItr!X80*X$1*PricesByItr!X80)/1000) -> 0 | Y80: =IF(PricesByItr!Y80<0,0,(PurchByItr!Y80*Y$1*PricesByItr!Y80)/1000) -> 0 | Z80: =IF(PricesByItr!Z80<0,0,(PurchByItr!Z80*Z$1*PricesByItr!Z80)/1000) -> 0 | AA80: =IF(PricesByItr!AA80<0,0,(PurchByItr!AA80*AA$1*PricesByItr!AA80)/1000) -> 0 | AB80: =IF(PricesByItr!AB80<0,0,(PurchByItr!AB80*AB$1*PricesByItr!AB80)/1000) -> 146.8047319 | AC80: =IF(PricesByItr!AC80<0,0,(PurchByItr!AC80*AC$1*PricesByItr!AC80)/1000) -> 2848.456574 | AD80: =IF(PricesByItr!AD80<0,0,(PurchByItr!AD80*AD$1*PricesByItr!AD80)/1000) -> 3316.944287 | AE80: 38810.14223
A81: =PurchByItr!A81 -> 2020 | B81: =PurchByItr!B81 -> 1930 | C81: =IF(PricesByItr!C81<0,0,(PurchByItr!C81*C$1*PricesByItr!C81)/1000) -> 15342.16089 | D81: =IF(PricesByItr!D81<0,0,(PurchByItr!D81*D$1*PricesByItr!D81)/1000) -> 6709.579892 | E81: =IF(PricesByItr!E81<0,0,(PurchByItr!E81*E$1*PricesByItr!E81)/1000) -> 56122.05819 | F81: =IF(PricesByItr!F81<0,0,(PurchByItr!F81*F$1*PricesByItr!F81)/1000) -> 82868.82224 | G81: =IF(PricesByItr!G81<0,0,(PurchByItr!G81*G$1*PricesByItr!G81)/1000) -> 14599.48525 | H81: =IF(PricesByItr!H81<0,0,(PurchByItr!H81*H$1*PricesByItr!H81)/1000) -> 16332.79862 | I81: =IF(PricesByItr!I81<0,0,(PurchByItr!I81*I$1*PricesByItr!I81)/1000) -> 21818.66597 | J81: =IF(PricesByItr!J81<0,0,(PurchByItr!J81*J$1*PricesByItr!J81)/1000) -> 26915.90539 | K81: =IF(PricesByItr!K81<0,0,(PurchByItr!K81*K$1*PricesByItr!K81)/1000) -> 7690.740025 | L81: =IF(PricesByItr!L81<0,0,(PurchByItr!L81*L$1*PricesByItr!L81)/1000) -> -239.145473 | M81: =IF(PricesByItr!M81<0,0,(PurchByItr!M81*M$1*PricesByItr!M81)/1000) -> 4013.366084 | N81: =IF(PricesByItr!N81<0,0,(PurchByItr!N81*N$1*PricesByItr!N81)/1000) -> -1054.081626 | O81: 251120.3554 | Q81: =PurchByItr!Q81 -> 2021 | R81: =PurchByItr!R81 -> 1931 | S81: =IF(PricesByItr!S81<0,0,(PurchByItr!S81*S$1*PricesByItr!S81)/1000) -> 9954.065925 | T81: =IF(PricesByItr!T81<0,0,(PurchByItr!T81*T$1*PricesByItr!T81)/1000) -> 3275.061316 | U81: =IF(PricesByItr!U81<0,0,(PurchByItr!U81*U$1*PricesByItr!U81)/1000) -> 47101.84604 | V81: =IF(PricesByItr!V81<0,0,(PurchByItr!V81*V$1*PricesByItr!V81)/1000) -> 76373.70867 | W81: =IF(PricesByItr!W81<0,0,(PurchByItr!W81*W$1*PricesByItr!W81)/1000) -> 19214.63908 | X81: =IF(PricesByItr!X81<0,0,(PurchByItr!X81*X$1*PricesByItr!X81)/1000) -> 24316.77424 | Y81: =IF(PricesByItr!Y81<0,0,(PurchByItr!Y81*Y$1*PricesByItr!Y81)/1000) -> 65152.61947 | Z81: =IF(PricesByItr!Z81<0,0,(PurchByItr!Z81*Z$1*PricesByItr!Z81)/1000) -> 44317.6993 | AA81: =IF(PricesByItr!AA81<0,0,(PurchByItr!AA81*AA$1*PricesByItr!AA81)/1000) -> 24538.39505 | AB81: =IF(PricesByItr!AB81<0,0,(PurchByItr!AB81*AB$1*PricesByItr!AB81)/1000) -> 0 | AC81: =IF(PricesByItr!AC81<0,0,(PurchByItr!AC81*AC$1*PricesByItr!AC81)/1000) -> 0 | AD81: =IF(PricesByItr!AD81<0,0,(PurchByItr!AD81*AD$1*PricesByItr!AD81)/1000) -> 11695.56883 | AE81: 325940.3779
A82: =PurchByItr!A82 -> 2020 | B82: =PurchByItr!B82 -> 1978 | C82: =IF(PricesByItr!C82<0,0,(PurchByItr!C82*C$1*PricesByItr!C82)/1000) -> 29722.55036 | D82: =IF(PricesByItr!D82<0,0,(PurchByItr!D82*D$1*PricesByItr!D82)/1000) -> -5914.388886 | E82: =IF(PricesByItr!E82<0,0,(PurchByItr!E82*E$1*PricesByItr!E82)/1000) -> 989.5103167 | F82: =IF(PricesByItr!F82<0,0,(PurchByItr!F82*F$1*PricesByItr!F82)/1000) -> 0 | G82: =IF(PricesByItr!G82<0,0,(PurchByItr!G82*G$1*PricesByItr!G82)/1000) -> 0 | H82: =IF(PricesByItr!H82<0,0,(PurchByItr!H82*H$1*PricesByItr!H82)/1000) -> 5876.473004 | I82: =IF(PricesByItr!I82<0,0,(PurchByItr!I82*I$1*PricesByItr!I82)/1000) -> 0 | J82: =IF(PricesByItr!J82<0,0,(PurchByItr!J82*J$1*PricesByItr!J82)/1000) -> 0 | K82: =IF(PricesByItr!K82<0,0,(PurchByItr!K82*K$1*PricesByItr!K82)/1000) -> 0 | L82: =IF(PricesByItr!L82<0,0,(PurchByItr!L82*L$1*PricesByItr!L82)/1000) -> 0 | M82: =IF(PricesByItr!M82<0,0,(PurchByItr!M82*M$1*PricesByItr!M82)/1000) -> -174.9484549 | N82: =IF(PricesByItr!N82<0,0,(PurchByItr!N82*N$1*PricesByItr!N82)/1000) -> 0 | O82: 30499.19634 | Q82: =PurchByItr!Q82 -> 2021 | R82: =PurchByItr!R82 -> 1979 | S82: =IF(PricesByItr!S82<0,0,(PurchByItr!S82*S$1*PricesByItr!S82)/1000) -> 5747.074894 | T82: =IF(PricesByItr!T82<0,0,(PurchByItr!T82*T$1*PricesByItr!T82)/1000) -> 3464.216701 | U82: =IF(PricesByItr!U82<0,0,(PurchByItr!U82*U$1*PricesByItr!U82)/1000) -> 33963.83241 | V82: =IF(PricesByItr!V82<0,0,(PurchByItr!V82*V$1*PricesByItr!V82)/1000) -> 20156.31467 | W82: =IF(PricesByItr!W82<0,0,(PurchByItr!W82*W$1*PricesByItr!W82)/1000) -> 6839.896783 | X82: =IF(PricesByItr!X82<0,0,(PurchByItr!X82*X$1*PricesByItr!X82)/1000) -> 0 | Y82: =IF(PricesByItr!Y82<0,0,(PurchByItr!Y82*Y$1*PricesByItr!Y82)/1000) -> 22448.98323 | Z82: =IF(PricesByItr!Z82<0,0,(PurchByItr!Z82*Z$1*PricesByItr!Z82)/1000) -> 0 | AA82: =IF(PricesByItr!AA82<0,0,(PurchByItr!AA82*AA$1*PricesByItr!AA82)/1000) -> 2679.586755 | AB82: =IF(PricesByItr!AB82<0,0,(PurchByItr!AB82*AB$1*PricesByItr!AB82)/1000) -> 11341.11048 | AC82: =IF(PricesByItr!AC82<0,0,(PurchByItr!AC82*AC$1*PricesByItr!AC82)/1000) -> 3728.73625 | AD82: =IF(PricesByItr!AD82<0,0,(PurchByItr!AD82*AD$1*PricesByItr!AD82)/1000) -> -516.1534912 | AE82: 109853.5987
A83: =PurchByItr!A83 -> 2020 | B83: =PurchByItr!B83 -> 1961 | C83: =IF(PricesByItr!C83<0,0,(PurchByItr!C83*C$1*PricesByItr!C83)/1000) -> 19549.66166 | D83: =IF(PricesByItr!D83<0,0,(PurchByItr!D83*D$1*PricesByItr!D83)/1000) -> 0 | E83: =IF(PricesByItr!E83<0,0,(PurchByItr!E83*E$1*PricesByItr!E83)/1000) -> 6657.930392 | F83: =IF(PricesByItr!F83<0,0,(PurchByItr!F83*F$1*PricesByItr!F83)/1000) -> 0 | G83: =IF(PricesByItr!G83<0,0,(PurchByItr!G83*G$1*PricesByItr!G83)/1000) -> 0 | H83: =IF(PricesByItr!H83<0,0,(PurchByItr!H83*H$1*PricesByItr!H83)/1000) -> 0 | I83: =IF(PricesByItr!I83<0,0,(PurchByItr!I83*I$1*PricesByItr!I83)/1000) -> 0 | J83: =IF(PricesByItr!J83<0,0,(PurchByItr!J83*J$1*PricesByItr!J83)/1000) -> 0 | K83: =IF(PricesByItr!K83<0,0,(PurchByItr!K83*K$1*PricesByItr!K83)/1000) -> 0 | L83: =IF(PricesByItr!L83<0,0,(PurchByItr!L83*L$1*PricesByItr!L83)/1000) -> -4372.322378 | M83: =IF(PricesByItr!M83<0,0,(PurchByItr!M83*M$1*PricesByItr!M83)/1000) -> -2281.293708 | N83: =IF(PricesByItr!N83<0,0,(PurchByItr!N83*N$1*PricesByItr!N83)/1000) -> 16258.82866 | O83: =SUM(C83:N83) -> 35812.80463 | Q83: =PurchByItr!Q83 -> 2021 | R83: =PurchByItr!R83 -> 1962 | S83: =IF(PricesByItr!S83<0,0,(PurchByItr!S83*S$1*PricesByItr!S83)/1000) -> 32667.72623 | T83: =IF(PricesByItr!T83<0,0,(PurchByItr!T83*T$1*PricesByItr!T83)/1000) -> 3967.848805 | U83: =IF(PricesByItr!U83<0,0,(PurchByItr!U83*U$1*PricesByItr!U83)/1000) -> 10431.23691 | V83: =IF(PricesByItr!V83<0,0,(PurchByItr!V83*V$1*PricesByItr!V83)/1000) -> 0 | W83: =IF(PricesByItr!W83<0,0,(PurchByItr!W83*W$1*PricesByItr!W83)/1000) -> 0 | X83: =IF(PricesByItr!X83<0,0,(PurchByItr!X83*X$1*PricesByItr!X83)/1000) -> 16535.32687 | Y83: =IF(PricesByItr!Y83<0,0,(PurchByItr!Y83*Y$1*PricesByItr!Y83)/1000) -> 0 | Z83: =IF(PricesByItr!Z83<0,0,(PurchByItr!Z83*Z$1*PricesByItr!Z83)/1000) -> 0 | AA83: =IF(PricesByItr!AA83<0,0,(PurchByItr!AA83*AA$1*PricesByItr!AA83)/1000) -> 0 | AB83: =IF(PricesByItr!AB83<0,0,(PurchByItr!AB83*AB$1*PricesByItr!AB83)/1000) -> 0 | AC83: =IF(PricesByItr!AC83<0,0,(PurchByItr!AC83*AC$1*PricesByItr!AC83)/1000) -> 0 | AD83: =IF(PricesByItr!AD83<0,0,(PurchByItr!AD83*AD$1*PricesByItr!AD83)/1000) -> 13274.3168 | AE83: =SUM(S83:AD83) -> 76876.45561
A84: =PurchByItr!A84 -> 2020 | B84: =PurchByItr!B84 -> 1938 | C84: =IF(PricesByItr!C84<0,0,(PurchByItr!C84*C$1*PricesByItr!C84)/1000) -> 13777.01409 | D84: =IF(PricesByItr!D84<0,0,(PurchByItr!D84*D$1*PricesByItr!D84)/1000) -> 7883.5278 | E84: =IF(PricesByItr!E84<0,0,(PurchByItr!E84*E$1*PricesByItr!E84)/1000) -> 19797.99935 | F84: =IF(PricesByItr!F84<0,0,(PurchByItr!F84*F$1*PricesByItr!F84)/1000) -> 804.405812 | G84: =IF(PricesByItr!G84<0,0,(PurchByItr!G84*G$1*PricesByItr!G84)/1000) -> 0 | H84: =IF(PricesByItr!H84<0,0,(PurchByItr!H84*H$1*PricesByItr!H84)/1000) -> 0 | I84: =IF(PricesByItr!I84<0,0,(PurchByItr!I84*I$1*PricesByItr!I84)/1000) -> 0 | J84: =IF(PricesByItr!J84<0,0,(PurchByItr!J84*J$1*PricesByItr!J84)/1000) -> 0 | K84: =IF(PricesByItr!K84<0,0,(PurchByItr!K84*K$1*PricesByItr!K84)/1000) -> 0 | L84: =IF(PricesByItr!L84<0,0,(PurchByItr!L84*L$1*PricesByItr!L84)/1000) -> 0 | M84: =IF(PricesByItr!M84<0,0,(PurchByItr!M84*M$1*PricesByItr!M84)/1000) -> 321.0081611 | N84: =IF(PricesByItr!N84<0,0,(PurchByItr!N84*N$1*PricesByItr!N84)/1000) -> 4397.919886 | O84: 46981.8751 | Q84: =PurchByItr!Q84 -> 2021 | R84: =PurchByItr!R84 -> 1939 | S84: =IF(PricesByItr!S84<0,0,(PurchByItr!S84*S$1*PricesByItr!S84)/1000) -> 26044.30613 | T84: =IF(PricesByItr!T84<0,0,(PurchByItr!T84*T$1*PricesByItr!T84)/1000) -> 23890.97919 | U84: =IF(PricesByItr!U84<0,0,(PurchByItr!U84*U$1*PricesByItr!U84)/1000) -> 57560.32016 | V84: =IF(PricesByItr!V84<0,0,(PurchByItr!V84*V$1*PricesByItr!V84)/1000) -> 11258.7195 | W84: =IF(PricesByItr!W84<0,0,(PurchByItr!W84*W$1*PricesByItr!W84)/1000) -> 5202.917781 | X84: =IF(PricesByItr!X84<0,0,(PurchByItr!X84*X$1*PricesByItr!X84)/1000) -> 10466.19514 | Y84: =IF(PricesByItr!Y84<0,0,(PurchByItr!Y84*Y$1*PricesByItr!Y84)/1000) -> 1141.114108 | Z84: =IF(PricesByItr!Z84<0,0,(PurchByItr!Z84*Z$1*PricesByItr!Z84)/1000) -> 0 | AA84: =IF(PricesByItr!AA84<0,0,(PurchByItr!AA84*AA$1*PricesByItr!AA84)/1000) -> 5322.93786 | AB84: =IF(PricesByItr!AB84<0,0,(PurchByItr!AB84*AB$1*PricesByItr!AB84)/1000) -> -162.6768437 | AC84: =IF(PricesByItr!AC84<0,0,(PurchByItr!AC84*AC$1*PricesByItr!AC84)/1000) -> 3811.433725 | AD84: =IF(PricesByItr!AD84<0,0,(PurchByItr!AD84*AD$1*PricesByItr!AD84)/1000) -> 9158.678945 | AE84: 153694.9257
A85: =PurchByItr!A85 -> 2020 | B85: =PurchByItr!B85 -> 1953 | C85: =IF(PricesByItr!C85<0,0,(PurchByItr!C85*C$1*PricesByItr!C85)/1000) -> 25706.23013 | D85: =IF(PricesByItr!D85<0,0,(PurchByItr!D85*D$1*PricesByItr!D85)/1000) -> 8771.60057 | E85: =IF(PricesByItr!E85<0,0,(PurchByItr!E85*E$1*PricesByItr!E85)/1000) -> 35680.19101 | F85: =IF(PricesByItr!F85<0,0,(PurchByItr!F85*F$1*PricesByItr!F85)/1000) -> 20880.06717 | G85: =IF(PricesByItr!G85<0,0,(PurchByItr!G85*G$1*PricesByItr!G85)/1000) -> 0 | H85: =IF(PricesByItr!H85<0,0,(PurchByItr!H85*H$1*PricesByItr!H85)/1000) -> 3189.871742 | I85: =IF(PricesByItr!I85<0,0,(PurchByItr!I85*I$1*PricesByItr!I85)/1000) -> 31927.27589 | J85: =IF(PricesByItr!J85<0,0,(PurchByItr!J85*J$1*PricesByItr!J85)/1000) -> 0 | K85: =IF(PricesByItr!K85<0,0,(PurchByItr!K85*K$1*PricesByItr!K85)/1000) -> 0 | L85: =IF(PricesByItr!L85<0,0,(PurchByItr!L85*L$1*PricesByItr!L85)/1000) -> 0 | M85: =IF(PricesByItr!M85<0,0,(PurchByItr!M85*M$1*PricesByItr!M85)/1000) -> 0 | N85: =IF(PricesByItr!N85<0,0,(PurchByItr!N85*N$1*PricesByItr!N85)/1000) -> 6501.130663 | O85: 132656.3672 | Q85: =PurchByItr!Q85 -> 2021 | R85: =PurchByItr!R85 -> 1954 | S85: =IF(PricesByItr!S85<0,0,(PurchByItr!S85*S$1*PricesByItr!S85)/1000) -> 20076.14179 | T85: =IF(PricesByItr!T85<0,0,(PurchByItr!T85*T$1*PricesByItr!T85)/1000) -> 0 | U85: =IF(PricesByItr!U85<0,0,(PurchByItr!U85*U$1*PricesByItr!U85)/1000) -> 0 | V85: =IF(PricesByItr!V85<0,0,(PurchByItr!V85*V$1*PricesByItr!V85)/1000) -> 0 | W85: =IF(PricesByItr!W85<0,0,(PurchByItr!W85*W$1*PricesByItr!W85)/1000) -> 0 | X85: =IF(PricesByItr!X85<0,0,(PurchByItr!X85*X$1*PricesByItr!X85)/1000) -> 0 | Y85: =IF(PricesByItr!Y85<0,0,(PurchByItr!Y85*Y$1*PricesByItr!Y85)/1000) -> 0 | Z85: =IF(PricesByItr!Z85<0,0,(PurchByItr!Z85*Z$1*PricesByItr!Z85)/1000) -> 0 | AA85: =IF(PricesByItr!AA85<0,0,(PurchByItr!AA85*AA$1*PricesByItr!AA85)/1000) -> 0 | AB85: =IF(PricesByItr!AB85<0,0,(PurchByItr!AB85*AB$1*PricesByItr!AB85)/1000) -> 0 | AC85: =IF(PricesByItr!AC85<0,0,(PurchByItr!AC85*AC$1*PricesByItr!AC85)/1000) -> 0 | AD85: =IF(PricesByItr!AD85<0,0,(PurchByItr!AD85*AD$1*PricesByItr!AD85)/1000) -> 0 | AE85: 20076.14179
A86: =PurchByItr!A86 -> 2020 | B86: =PurchByItr!B86 -> 2008 | C86: =IF(PricesByItr!C86<0,0,(PurchByItr!C86*C$1*PricesByItr!C86)/1000) -> 14662.54685 | D86: =IF(PricesByItr!D86<0,0,(PurchByItr!D86*D$1*PricesByItr!D86)/1000) -> -608.250165 | E86: =IF(PricesByItr!E86<0,0,(PurchByItr!E86*E$1*PricesByItr!E86)/1000) -> 15796.56917 | F86: =IF(PricesByItr!F86<0,0,(PurchByItr!F86*F$1*PricesByItr!F86)/1000) -> 19589.716 | G86: =IF(PricesByItr!G86<0,0,(PurchByItr!G86*G$1*PricesByItr!G86)/1000) -> 12164.29609 | H86: =IF(PricesByItr!H86<0,0,(PurchByItr!H86*H$1*PricesByItr!H86)/1000) -> 5505.592063 | I86: =IF(PricesByItr!I86<0,0,(PurchByItr!I86*I$1*PricesByItr!I86)/1000) -> 21697.81267 | J86: =IF(PricesByItr!J86<0,0,(PurchByItr!J86*J$1*PricesByItr!J86)/1000) -> 0 | K86: =IF(PricesByItr!K86<0,0,(PurchByItr!K86*K$1*PricesByItr!K86)/1000) -> 0 | L86: =IF(PricesByItr!L86<0,0,(PurchByItr!L86*L$1*PricesByItr!L86)/1000) -> 0 | M86: =IF(PricesByItr!M86<0,0,(PurchByItr!M86*M$1*PricesByItr!M86)/1000) -> 0 | N86: =IF(PricesByItr!N86<0,0,(PurchByItr!N86*N$1*PricesByItr!N86)/1000) -> 10628.53077 | O86: 99436.81346 | Q86: =PurchByItr!Q86 -> 2021 | R86: =PurchByItr!R86 -> 1929 | S86: =IF(PricesByItr!S86<0,0,(PurchByItr!S86*S$1*PricesByItr!S86)/1000) -> 17257.79827 | T86: =IF(PricesByItr!T86<0,0,(PurchByItr!T86*T$1*PricesByItr!T86)/1000) -> 7333.767171 | U86: =IF(PricesByItr!U86<0,0,(PurchByItr!U86*U$1*PricesByItr!U86)/1000) -> 41666.53281 | V86: =IF(PricesByItr!V86<0,0,(PurchByItr!V86*V$1*PricesByItr!V86)/1000) -> 40221.19856 | W86: =IF(PricesByItr!W86<0,0,(PurchByItr!W86*W$1*PricesByItr!W86)/1000) -> 31471.97105 | X86: =IF(PricesByItr!X86<0,0,(PurchByItr!X86*X$1*PricesByItr!X86)/1000) -> 30745.86123 | Y86: =IF(PricesByItr!Y86<0,0,(PurchByItr!Y86*Y$1*PricesByItr!Y86)/1000) -> 40255.11301 | Z86: =IF(PricesByItr!Z86<0,0,(PurchByItr!Z86*Z$1*PricesByItr!Z86)/1000) -> 39934.97399 | AA86: =IF(PricesByItr!AA86<0,0,(PurchByItr!AA86*AA$1*PricesByItr!AA86)/1000) -> -420.1319166 | AB86: =IF(PricesByItr!AB86<0,0,(PurchByItr!AB86*AB$1*PricesByItr!AB86)/1000) -> 14570.67233 | AC86: =IF(PricesByItr!AC86<0,0,(PurchByItr!AC86*AC$1*PricesByItr!AC86)/1000) -> 3225.874631 | AD86: =IF(PricesByItr!AD86<0,0,(PurchByItr!AD86*AD$1*PricesByItr!AD86)/1000) -> -2191.752753 | AE86: 264071.8784
A87: =PurchByItr!A87 -> 2020 | B87: =PurchByItr!B87 -> 2007 | C87: =IF(PricesByItr!C87<0,0,(PurchByItr!C87*C$1*PricesByItr!C87)/1000) -> 23768.57516 | D87: =IF(PricesByItr!D87<0,0,(PurchByItr!D87*D$1*PricesByItr!D87)/1000) -> -9413.301191 | E87: =IF(PricesByItr!E87<0,0,(PurchByItr!E87*E$1*PricesByItr!E87)/1000) -> 3196.9099 | F87: =IF(PricesByItr!F87<0,0,(PurchByItr!F87*F$1*PricesByItr!F87)/1000) -> 0 | G87: =IF(PricesByItr!G87<0,0,(PurchByItr!G87*G$1*PricesByItr!G87)/1000) -> 0 | H87: =IF(PricesByItr!H87<0,0,(PurchByItr!H87*H$1*PricesByItr!H87)/1000) -> 0 | I87: =IF(PricesByItr!I87<0,0,(PurchByItr!I87*I$1*PricesByItr!I87)/1000) -> 1641.921913 | J87: =IF(PricesByItr!J87<0,0,(PurchByItr!J87*J$1*PricesByItr!J87)/1000) -> 0 | K87: =IF(PricesByItr!K87<0,0,(PurchByItr!K87*K$1*PricesByItr!K87)/1000) -> 0 | L87: =IF(PricesByItr!L87<0,0,(PurchByItr!L87*L$1*PricesByItr!L87)/1000) -> -55.92836047 | M87: =IF(PricesByItr!M87<0,0,(PurchByItr!M87*M$1*PricesByItr!M87)/1000) -> 2941.464324 | N87: =IF(PricesByItr!N87<0,0,(PurchByItr!N87*N$1*PricesByItr!N87)/1000) -> 31499.18806 | O87: 53578.82981 | Q87: =PurchByItr!Q87 -> 2021 | R87: =PurchByItr!R87 -> 2008 | S87: =IF(PricesByItr!S87<0,0,(PurchByItr!S87*S$1*PricesByItr!S87)/1000) -> 14815.15063 | T87: =IF(PricesByItr!T87<0,0,(PurchByItr!T87*T$1*PricesByItr!T87)/1000) -> -442.3654897 | U87: =IF(PricesByItr!U87<0,0,(PurchByItr!U87*U$1*PricesByItr!U87)/1000) -> 19400.55408 | V87: =IF(PricesByItr!V87<0,0,(PurchByItr!V87*V$1*PricesByItr!V87)/1000) -> 24141.53262 | W87: =IF(PricesByItr!W87<0,0,(PurchByItr!W87*W$1*PricesByItr!W87)/1000) -> 13807.21241 | X87: =IF(PricesByItr!X87<0,0,(PurchByItr!X87*X$1*PricesByItr!X87)/1000) -> 5855.126071 | Y87: =IF(PricesByItr!Y87<0,0,(PurchByItr!Y87*Y$1*PricesByItr!Y87)/1000) -> 23802.23078 | Z87: =IF(PricesByItr!Z87<0,0,(PurchByItr!Z87*Z$1*PricesByItr!Z87)/1000) -> 0 | AA87: =IF(PricesByItr!AA87<0,0,(PurchByItr!AA87*AA$1*PricesByItr!AA87)/1000) -> 0 | AB87: =IF(PricesByItr!AB87<0,0,(PurchByItr!AB87*AB$1*PricesByItr!AB87)/1000) -> 0 | AC87: =IF(PricesByItr!AC87<0,0,(PurchByItr!AC87*AC$1*PricesByItr!AC87)/1000) -> 0 | AD87: =IF(PricesByItr!AD87<0,0,(PurchByItr!AD87*AD$1*PricesByItr!AD87)/1000) -> 19166.04013 | AE87: 120545.4812
A88: =PurchByItr!A88 -> 2020 | B88: =PurchByItr!B88 -> 1936 | C88: =IF(PricesByItr!C88<0,0,(PurchByItr!C88*C$1*PricesByItr!C88)/1000) -> 30881.14082 | D88: =IF(PricesByItr!D88<0,0,(PurchByItr!D88*D$1*PricesByItr!D88)/1000) -> 9447.431409 | E88: =IF(PricesByItr!E88<0,0,(PurchByItr!E88*E$1*PricesByItr!E88)/1000) -> 34654.68094 | F88: =IF(PricesByItr!F88<0,0,(PurchByItr!F88*F$1*PricesByItr!F88)/1000) -> 70166.95602 | G88: =IF(PricesByItr!G88<0,0,(PurchByItr!G88*G$1*PricesByItr!G88)/1000) -> 41935.68649 | H88: =IF(PricesByItr!H88<0,0,(PurchByItr!H88*H$1*PricesByItr!H88)/1000) -> 23880.30702 | I88: =IF(PricesByItr!I88<0,0,(PurchByItr!I88*I$1*PricesByItr!I88)/1000) -> 5597.972264 | J88: =IF(PricesByItr!J88<0,0,(PurchByItr!J88*J$1*PricesByItr!J88)/1000) -> 0 | K88: =IF(PricesByItr!K88<0,0,(PurchByItr!K88*K$1*PricesByItr!K88)/1000) -> 0 | L88: =IF(PricesByItr!L88<0,0,(PurchByItr!L88*L$1*PricesByItr!L88)/1000) -> 0 | M88: =IF(PricesByItr!M88<0,0,(PurchByItr!M88*M$1*PricesByItr!M88)/1000) -> 2567.169328 | N88: =IF(PricesByItr!N88<0,0,(PurchByItr!N88*N$1*PricesByItr!N88)/1000) -> 19742.25981 | O88: 238873.6041 | Q88: =PurchByItr!Q88 -> 2021 | R88: =PurchByItr!R88 -> 1937 | S88: =IF(PricesByItr!S88<0,0,(PurchByItr!S88*S$1*PricesByItr!S88)/1000) -> 15430.65583 | T88: =IF(PricesByItr!T88<0,0,(PurchByItr!T88*T$1*PricesByItr!T88)/1000) -> 1707.281216 | U88: =IF(PricesByItr!U88<0,0,(PurchByItr!U88*U$1*PricesByItr!U88)/1000) -> 30273.49432 | V88: =IF(PricesByItr!V88<0,0,(PurchByItr!V88*V$1*PricesByItr!V88)/1000) -> 82820.39643 | W88: =IF(PricesByItr!W88<0,0,(PurchByItr!W88*W$1*PricesByItr!W88)/1000) -> 49916.31882 | X88: =IF(PricesByItr!X88<0,0,(PurchByItr!X88*X$1*PricesByItr!X88)/1000) -> 32884.51012 | Y88: =IF(PricesByItr!Y88<0,0,(PurchByItr!Y88*Y$1*PricesByItr!Y88)/1000) -> 33059.36118 | Z88: =IF(PricesByItr!Z88<0,0,(PurchByItr!Z88*Z$1*PricesByItr!Z88)/1000) -> 28584.79068 | AA88: =IF(PricesByItr!AA88<0,0,(PurchByItr!AA88*AA$1*PricesByItr!AA88)/1000) -> -4740.757921 | AB88: =IF(PricesByItr!AB88<0,0,(PurchByItr!AB88*AB$1*PricesByItr!AB88)/1000) -> -2593.718592 | AC88: =IF(PricesByItr!AC88<0,0,(PurchByItr!AC88*AC$1*PricesByItr!AC88)/1000) -> -379.144474 | AD88: =IF(PricesByItr!AD88<0,0,(PurchByItr!AD88*AD$1*PricesByItr!AD88)/1000) -> -3332.917853 | AE88: 263630.2698
A89: =PurchByItr!A89 -> 2020 | B89: =PurchByItr!B89 -> 1994 | C89: =IF(PricesByItr!C89<0,0,(PurchByItr!C89*C$1*PricesByItr!C89)/1000) -> 18131.71524 | D89: =IF(PricesByItr!D89<0,0,(PurchByItr!D89*D$1*PricesByItr!D89)/1000) -> 5365.838147 | E89: =IF(PricesByItr!E89<0,0,(PurchByItr!E89*E$1*PricesByItr!E89)/1000) -> 26642.13358 | F89: =IF(PricesByItr!F89<0,0,(PurchByItr!F89*F$1*PricesByItr!F89)/1000) -> 65287.28738 | G89: =IF(PricesByItr!G89<0,0,(PurchByItr!G89*G$1*PricesByItr!G89)/1000) -> 11737.97806 | H89: =IF(PricesByItr!H89<0,0,(PurchByItr!H89*H$1*PricesByItr!H89)/1000) -> 33804.60117 | I89: =IF(PricesByItr!I89<0,0,(PurchByItr!I89*I$1*PricesByItr!I89)/1000) -> 23748.97753 | J89: =IF(PricesByItr!J89<0,0,(PurchByItr!J89*J$1*PricesByItr!J89)/1000) -> 6593.721779 | K89: =IF(PricesByItr!K89<0,0,(PurchByItr!K89*K$1*PricesByItr!K89)/1000) -> 10593.57096 | L89: =IF(PricesByItr!L89<0,0,(PurchByItr!L89*L$1*PricesByItr!L89)/1000) -> 0 | M89: =IF(PricesByItr!M89<0,0,(PurchByItr!M89*M$1*PricesByItr!M89)/1000) -> 1535.233697 | N89: =IF(PricesByItr!N89<0,0,(PurchByItr!N89*N$1*PricesByItr!N89)/1000) -> 2870.721826 | O89: 206311.7794 | Q89: =PurchByItr!Q89 -> 2021 | R89: =PurchByItr!R89 -> 1995 | S89: =IF(PricesByItr!S89<0,0,(PurchByItr!S89*S$1*PricesByItr!S89)/1000) -> 18085.50777 | T89: =IF(PricesByItr!T89<0,0,(PurchByItr!T89*T$1*PricesByItr!T89)/1000) -> 23740.75848 | U89: =IF(PricesByItr!U89<0,0,(PurchByItr!U89*U$1*PricesByItr!U89)/1000) -> 33334.95932 | V89: =IF(PricesByItr!V89<0,0,(PurchByItr!V89*V$1*PricesByItr!V89)/1000) -> 25651.62217 | W89: =IF(PricesByItr!W89<0,0,(PurchByItr!W89*W$1*PricesByItr!W89)/1000) -> 0 | X89: =IF(PricesByItr!X89<0,0,(PurchByItr!X89*X$1*PricesByItr!X89)/1000) -> 0 | Y89: =IF(PricesByItr!Y89<0,0,(PurchByItr!Y89*Y$1*PricesByItr!Y89)/1000) -> 29996.55417 | Z89: =IF(PricesByItr!Z89<0,0,(PurchByItr!Z89*Z$1*PricesByItr!Z89)/1000) -> 0 | AA89: =IF(PricesByItr!AA89<0,0,(PurchByItr!AA89*AA$1*PricesByItr!AA89)/1000) -> 0 | AB89: =IF(PricesByItr!AB89<0,0,(PurchByItr!AB89*AB$1*PricesByItr!AB89)/1000) -> 0 | AC89: =IF(PricesByItr!AC89<0,0,(PurchByItr!AC89*AC$1*PricesByItr!AC89)/1000) -> 0 | AD89: =IF(PricesByItr!AD89<0,0,(PurchByItr!AD89*AD$1*PricesByItr!AD89)/1000) -> 3358.364029 | AE89: 134167.7659
